Workbook

Sheet Introduction
B2: About this spreadsheet
B3: This spreadsheet lets you test - and possibly improve - your financial modelling skills.
B5: Index
B6: This spreadsheet has an index page that shows a summary of which topics you have mastered. To go to the index page click on the following link.
C10: Index
B12: Help
B13: For help click on the following link.
C15: Help
C17: Copyright (c) 2020 Tykoh Group Pty Ltd. All rights reserved.
C18: www.tykoh.com

Sheet Index
B1: Financial modelling competition | I1: Help
B2: [-] | C2: Core finance concepts | I2: 2080
D3: [-] | E3: Core
F4: =Core!$A$7 -> 2 | G4: Terminal value formula
F5: =Core!$A$38 -> 2 | G5: Discounting a single cashflow over one period
F6: =Core!$A$62 -> 7 | G6: Discounting cash flows + terminal value
F7: =Core!$A$83 -> 2 | G7: Internal rate of return
F8: =Core!$A$99 -> 1 | G8: Calculating present value on a nominal basis
F9: =Core!$A$110 -> 10 | G9: Calculating an inflation index
F10: =Core!$A$121 -> 1 | G10: Calculating a real discount rate
F11: =Core!$A$128 -> 1 | G11: Calculating NPV on a real (inflation-adjusted) basis
F12: =Core!$A$137 -> 4 | G12: Calculating IRR on nominal and inflation-adjusted bases
D13: [-] | E13: DCF and EVA
F14: =DCF_and_EVA!$A$5 -> 21 | G14: Discounted cash flow
F15: =DCF_and_EVA!$A$31 -> 14 | G15: Economic profit
B16: [-] | C16: Common logic issues
D17: [-] | E17: Logic
F18: =Logic!$A$7 -> 2 | G18: Meeting two objectives concurrently
F19: =Logic!$A$17 -> 24 | G19: Meeting several objectives concurrently
F20: =Logic!$A$50 -> 2 | G20: Resolving circular references
F21: =Logic!$A$76 -> 10 | G21: Induction
B22: [-] | C22: Discounted cash flow
D23: [-] | E23: Term structure
F24: =Term_structure!$A$6 -> 2 | G24: Multiple discount rates
F25: =Term_structure!$A$35 -> 8 | G25: Term structure of discount rates
F26: =Term_structure!$A$48 -> 1 | G26: Term structure of discount rates - using an array
D27: [-] | E27: Beta
F28: =Beta!$A$13 -> 42 | G28: Calculation of Beta
F29: =Beta!$A$48 -> 2 | G29: Market and asset risk
F30: =Beta!$A$55 -> 1 | G30: Market and asset correlation
F31: =Beta!$A$59 -> 1 | G31: Beta
F32: =Beta!$A$63 -> 1 | G32: Cost of capital
F33: =Beta!$A$67 -> 1 | G33: Net present value
D34: [-] | E34: DCF steady state
F35: =DCF_steady_state!$A$21 -> 2 | G35: Balance sheet
F36: =DCF_steady_state!$A$31 -> 7 | G36: Income statement
F37: =DCF_steady_state!$A$44 -> 10 | G37: Cash flow statement
F38: =DCF_steady_state!$A$73 -> 3 | G38: Statement of changes in equity
F39: =DCF_steady_state!$A$81 -> 3 | G39: Free cash flows
F40: =DCF_steady_state!$A$97 -> 3 | G40: Levered cost of equity
F41: =DCF_steady_state!$A$105 -> 3 | G41: Market values
F42: =DCF_steady_state!$A$114 -> 3 | G42: Book values
F43: =DCF_steady_state!$A$123 -> 2 | G43: WACC
F44: =DCF_steady_state!$A$132 -> 2 | G44: Market value reconciliation
F45: =DCF_steady_state!$A$139 -> 2 | G45: Ratios
F46: =DCF_steady_state!$A$146 -> 2 | G46: Returns
D47: [-] | E47: DCF time varying
F48: =DCF_time_varying!$A$25 -> 20 | G48: Balance sheet
F49: =DCF_time_varying!$A$34 -> 49 | G49: Income statement
F50: =DCF_time_varying!$A$44 -> 70 | G50: Cash flow statement
F51: =DCF_time_varying!$A$63 -> 21 | G51: Statement of changes in equity
F52: =DCF_time_varying!$A$69 -> 21 | G52: Free cash flows
F53: =DCF_time_varying!$A$75 -> 21 | G53: Levered cost of equity
F54: =DCF_time_varying!$A$81 -> 21 | G54: Market values
F55: =DCF_time_varying!$A$87 -> 21 | G55: Book values
F56: =DCF_time_varying!$A$93 -> 7 | G56: WACC
F57: =DCF_time_varying!$A$97 -> 14 | G57: Ratios
F58: =DCF_time_varying!$A$102 -> 14 | G58: Returns
F59: =DCF_time_varying!$A$107 -> 28 | G59: Economic value added
F60: =DCF_time_varying!$A$114 -> 28 | G60: EVA / DCF reconciliation
B61: [-] | C61: Internal rate of return
D62: [-] | E62: IRR
F63: =IRR!$A$5 -> 7 | G63: Share of free cash flow to achieve a target IRR
F64: =IRR!$A$33 -> 8 | G64: Calculating IRR tenor
F65: =IRR!$A$66 -> 34 | G65: IRR waterfall
F66: =IRR!$A$103 -> 2 | G66: Two IRRs
F67: =IRR!$A$113 -> 1 | G67: IRR when cash flows grow at a constant rate in perpetuity
B68: [-] | C68: Various types of problems
D69: [-] | E69: Sculpting
F70: =Sculpting!$A$5 -> 36 | G70: Reserving for a future need #1
F71: =Sculpting!$A$35 -> 36 | G71: Reserving for a future need #2
F72: =Sculpting!$A$60 -> 30 | G72: Paying down a loan according to a repayment profile
F73: =Sculpting!$A$88 -> 35 | G73: Paying down a loan with capitalised interest
D74: [-] | E74: Expected value
F75: =Expected_value!$A$5 -> 4 | G75: Expected value of a distribution
F76: =Expected_value!$A$67 -> 2 | G76: Standard deviation of a distribution
F77: =Expected_value!$A$78 -> 1 | G77: Two envelope problem
D78: [-] | E78: Foreign exchange
F79: =Foreign_exchange!$A$6 -> 20 | G79: Forward foreign exchange rates
F80: =Foreign_exchange!$A$45 -> 20 | G80: Discount factors across currencies
F81: =Foreign_exchange!$A$59 -> 20 | G81: Present-valuing currency cash flows
F82: =Foreign_exchange!$A$70 -> 26 | G82: Converting risky foreign cash flows to a reference / domestic currency
F83: =Foreign_exchange!$A$83 -> 20 | G83: Inflation adjusting currency cash flows
F84: =Foreign_exchange!$A$94 -> 8 | G84: Calculating real risk-free and risky rates
D85: [-] | E85: Ratios
F86: =Ratios!$A$5 -> 7 | G86: Debt service coverage ratio
F87: =Ratios!$A$16 -> 14 | G87: Loan life coverage ratio
B88: [-] | C88: Typical types of models
D89: [-] | E89: Four phase
F90: =Four_phase!$A$38 -> 35 | G90: Generate phase flags
F91: =Four_phase!$A$54 -> 35 | G91: Calculate growth rates
F92: =Four_phase!$A$68 -> 35 | G92: Calculate income #1
F93: =Four_phase!$A$81 -> 35 | G93: Calculate income #2
F94: =Four_phase!$A$94 -> 35 | G94: Calculate upgrade cost
F95: =Four_phase!$A$108 -> 35 | G95: Calculate break fee
F96: =Four_phase!$A$122 -> 46 | G96: Calculate net cash flow and NPV
D97: [-] | E97: Lookups
F98: =Lookups!$A$46 -> 35 | G98: Dates and events
F99: =Lookups!$A$57 -> 27 | G99: Growth and volume
F100: =Lookups!$A$65 -> 18 | G100: Resource requirements
F101: =Lookups!$A$72 -> 45 | G101: Resource costs
F102: =Lookups!$A$85 -> 45 | G102: Normalised growth
D103: [-] | E103: Project
F104: =Project!$A$33 -> 35 | G104: Income statement
F105: =Project!$A$51 -> 21 | G105: Operating revenues
F106: =Project!$A$64 -> 7 | G106: Capital expenditure
F107: =Project!$A$72 -> 7 | G107: Funding
F108: =Project!$A$80 -> 42 | G108: Cashflow available for debt service
F109: =Project!$A$91 -> 28 | G109: Cashflow available for equity
F110: =Project!$A$100 -> 21 | G110: Net cash flow
F111: =Project!$A$108 -> 42 | G111: Distribution waterfall
F112: =Project!$A$123 -> 28 | G112: Terminal value calculations
F113: =Project!$A$134 -> 1 | G113: Net present value
F114: =Project!$A$140 -> 9 | G114: Internal rate of return
F115: =Project!$A$147 -> 21 | G115: Debt service
F116: =Project!$A$155 -> 14 | G116: Ratios
F117: =Project!$A$162 -> 42 | G117: Cash account
F118: =Project!$A$177 -> 63 | G118: Balance sheet
F119: =Project!$A$198 -> 49 | G119: Sources of funds
F120: =Project!$A$210 -> 63 | G120: Uses of funds
B121: [-] | C121: Scenarios
D122: [-] | E122: Breakeven
F123: =Breakeven!$A$44 -> 40 | G123: Determine if refurbishing
F124: =Breakeven!$A$57 -> 40 | G124: Calculate growth rate per qtr in rent / m2
F125: =Breakeven!$A$68 -> 40 | G125: Calculate rental income / m2 / qtr
F126: =Breakeven!$A$79 -> 40 | G126: Calculate rental income in 000's / qtr
F127: =Breakeven!$A$90 -> 40 | G127: Calculate refurbishing cost in 000's / qtr
F128: =Breakeven!$A$101 -> 40 | G128: Calculate lease break cost
F129: =Breakeven!$A$112 -> 51 | G129: Calculate net cash flow and NPV
D132: Copyright (c) 2020 Tykoh Group Pty Ltd. All rights reserved.
D133: www.tykoh.com

Sheet Help
B1: Help
B3: This spreadsheet contains a set of questions which you can answer. The questions are in tabs to the right of this - Help - tab.
B6: To answer questions you need to put formulas into cells that have a colored background (outlined in red border below).
B19: When a formula is correct a corresponding blue marker on the left will turn yellow:
B34: On the Index page is a summary of questions you have answered correctly. Markers on that page indicate whether questions have been completed correctly. A marker that looks like "-" means all parts of the question has been completed correctly. A marker that looks like "x" means the answer isn't complete.
B50: Macros
B52: If you have macros enabled then the functions described below will be available to you.
B55: 1. Clicking in the '[+]' and '[-]' markers on the Index page will expand or collapse the corresponding index section.
B58: 2. You can check your progress through the questions (e.g. 35%). To do that, right-mouse-click on any tab and select the "Tykoh check progress" menu item on the pop-up menu.
B62: 3. You can load model answers. To do that, right-mouse-click on the tab you want the answers for. Then select the "Tykoh load answers" menu item on the pop-up menu. The answers that are loadable are changed from time-to time so all, none or a subset may be available.
B67: 4. You can add your name to a live "leader-board" if your percentage progress is sufficiently high relative to others who have answered the questions. You will be given that opportunity when you choose the "Tykoh check progress" option mentioned above.
D73: Copyright (c) 2020 Tykoh Group Pty Ltd. All rights reserved.
D74: www.tykoh.com

Sheet Core
J1: Click here to see what your answer should look like.
Q2: Core | R2: Core
J4: The questions on this page cover some core finance topics. Concepts covered here will be useful in more complex questions later in this spreadsheet.
A7: =SUM($A$8:$G$37) -> 2 | I7: 1 | J7: Terminal value formula
J9: Financial modelling sometimes requires "terminal values" to be calculated. A terminal value is the value of an ongoing (i.e. perpetual) stream of cash flows. If the cash flows are all the same (or grow by a constant percentage) and are evenly spaced then their total value can be calculated by a simple terminal value formula described below.
J13: In the formula we assume that the first cash flow will occur in one period and its amount then will be "C". Thereafter cash flows will increase by a factor of G per period. Cash flows are discounted at R per period.
J16: Amount of first cash flow to be received | K16: [$m] | L16: C
J17: Per-period growth rate | K17: [%] | L17: G
J18: Per-period discount rate | K18: [%] | L18: R
J20: With these assumptions the value of the ongoing series of cash flows is given by the terminal value formula below.
J22: Value of perpertual annuity described by the above | K22: [$] | L22: C/(R-G)
J24: ="A cash flow of $" & L27&"m will be received in one period's time. Thereafter cash flows will be received on an ongoing basis and will increase by " & TEXT(L28,"0%") & " per period. If the discount rate is " & TEXT(L29,"0%") & " per period what is the terminal value of the cash flows?" -> A cash flow of $2m will be received in one period's time. Thereafter cash flows will be received on an ongoing basis and will increase by 5% per period. If the discount rate is 8% per period what is the terminal value of the cash flows?
J27: Amount of first cash flow to be received | K27: [$m] | L27: 2
J28: Per-period growth rate | K28: [%] | L28: 0.05
J29: Per-period discount rate | K29: [%] | L29: 0.08
A31: =IF(OR(NOT(ISNUMBER($L$31)),ISERROR($L$31)),1,IF(AND(LEN($L$31)>0,ABS((1-($L$31* 2.05547511577606+ 0.0334240198135376)/ 137.065098404884))<0.00005),0,1)) -> 1 | J31: Value of perpertual annuity described by the above | K31: [$m]
J33: ="An initial cash flow of $" & L27&"m is received immediately. Thereafter cash flows will increase by " & TEXT(L28,"0%") & " per period. If the discount rate is " & TEXT(L29,"0%") & " per period what is the terminal value of the cash flows?" -> An initial cash flow of $2m is received immediately. Thereafter cash flows will increase by 5% per period. If the discount rate is 8% per period what is the terminal value of the cash flows?
A36: =IF(OR(NOT(ISNUMBER($L$36)),ISERROR($L$36)),1,IF(AND(LEN($L$36)>0,ABS((1-($L$36* 0.795186161994934+-0.210437536239624)/ 57.0429661273956))<0.00005),0,1)) -> 1 | J36: Value of perpertual annuity described by the above | K36: [$m]
S37: Index
A38: =SUM($A$39:$G$61) -> 2 | I38: 2 | J38: Discounting a single cashflow over one period
J40: In the preceding example we discounted an ongoing set of cash flows to a present value. In this section we discount a single cash flow: A cash flow of "C" will occur in one period. We assume the one-period discount rate is R%.
J43: Cash flow | K43: [$] | L43: C
J44: Period period discount rate | K44: [%] | L44: R
J46: The present value of the future cash flow is given by the following formula.
J48: Discounted value of cash flow | K48: [$] | L48: C/(1+R)
J50: ="A cash flow of $" & L53 &"m will occur in one period. The one period discount rate is " & TEXT(L54,"0%")&". What is the discounted or present value?" -> A cash flow of $1.8m will occur in one period. The one period discount rate is 5%. What is the discounted or present value?
J53: Cash flow | K53: [$m] | L53: 1.8
J54: Per-period discount rate | K54: [%] | L54: 0.05
A56: =IF(OR(NOT(ISNUMBER($L$56)),ISERROR($L$56)),1,IF(AND(LEN($L$56)>0,ABS((1-($L$56*-1.98051989078522+ 0.274740099906921)/-3.12043685572488))<0.00005),0,1)) -> 1 | J56: Discounted value of cash flow | K56: [$m]
J58: Alternatively, the PV function can be used to do the calculation. The formula required would be as shown below.
A60: =IF(OR(NOT(ISNUMBER($L$60)),ISERROR($L$60)),1,IF(AND(LEN($L$60)>0,ABS((1-($L$60*-4.85982358455657+ 0.26072359085083)/-8.07040255410331))<0.00005),0,1)) -> 1 | J60: Discounted value of cash flow | K60: [$m] | M60: ="<<< =-PV(" &ADDRESS(ROW(L54),COLUMN(L54),4) &",1,0," & ADDRESS(ROW(L53),COLUMN(L53),4)&") " -> <<< =-PV(L54,1,0,L53)
S61: Index
A62: =SUM($A$63:$G$82) -> 7 | I62: 3 | J62: Discounting cash flows + terminal value
J64: ="A series of cash flows must be discounted to present value. Cash flows are shown below on row " & ROW(77:77) & ". Cash flows are shown explicitly for periods 1 - " & R75 & ". After period " & R75 & " cash flows continue in perpetuity and each cash flow is " & TEXT(L79,"0%") & " greater than the preceding." -> A series of cash flows must be discounted to present value. Cash flows are shown below on row 77. Cash flows are shown explicitly for periods 1 - 7. After period 7 cash flows continue in perpetuity and each cash flow is 5% greater than the preceding.
J68: ="Discount rates vary over time. Each discount rate is a 'one-period' discount rate. For example, the discount rate for period " & O75 & " (in cell " & ADDRESS(ROW(O76),COLUMN(O76),4) & "), " & " gives the rate at which the cash flow at the end of period " & O75 & " should be discounted to give the value of the cash flow at the beginning of the period." -> Discount rates vary over time. Each discount rate is a 'one-period' discount rate. For example, the discount rate for period 4 (in cell O76), gives the rate at which the cash flow at the end of period 4 should be discounted to give the value of the cash flow at the beginning of the period.
J72: For each period find the value at the beginning of that period of all following cash flows. The first number in the series will be the present value of all of the cash flows.
J75: Period | K75: [yr] | L75: 1 | M75: =L75+1 -> 2 | N75: 3 | O75: 4 | P75: 5 | Q75: 6 | R75: 7
J76: One-period discount rate | K76: [%] | L76: 0.06 | M76: 0.065 | N76: 0.066 | O76: 0.07 | P76: 0.075 | Q76: 0.08 | R76: 0.085
J77: Cash flow | K77: [$m] | L77: 1 | M77: 1.1 | N77: 1.2 | O77: 1.3 | P77: 1.35 | Q77: 1.4 | R77: 1.44
J79: Terminal growth rate | K79: [%] | L79: 0.05
A81: =IF(OR(NOT(ISNUMBER($L$81)),ISERROR($L$81)),1,IF(AND(LEN($L$81)>0,ABS((1-($L$81* 3.14490020275116+ 0.209037899971008)/ 105.114790819548))<0.00005),0,1)) -> 1 | B81: =IF(OR(NOT(ISNUMBER($M$81)),ISERROR($M$81)),1,IF(AND(LEN($M$81)>0,ABS((1-($M$81*-4.54647243022919+-0.0859673023223877)/-156.297594535891))<0.00005),0,1)) -> 1 | C81: =IF(OR(NOT(ISNUMBER($N$81)),ISERROR($N$81)),1,IF(AND(LEN($N$81)>0,ABS((1-($N$81* 3.62619340419769+ 0.290480017662048)/ 128.99202530181))<0.00005),0,1)) -> 1 | D81: =IF(OR(NOT(ISNUMBER($O$81)),ISERROR($O$81)),1,IF(AND(LEN($O$81)>0,ABS((1-($O$81*-1.26463830471039+ 0.461953163146973)/-45.8676595428237))<0.00005),0,1)) -> 1 | E81: =IF(OR(NOT(ISNUMBER($P$81)),ISERROR($P$81)),1,IF(AND(LEN($P$81)>0,ABS((1-($P$81* 3.71445834636688+-0.443763136863709)/ 140.330871713767))<0.00005),0,1)) -> 1 | F81: =IF(OR(NOT(ISNUMBER($Q$81)),ISERROR($Q$81)),1,IF(AND(LEN($Q$81)>0,ABS((1-($Q$81* 4.49556648731232+-0.135981321334839)/ 176.951280573058))<0.00005),0,1)) -> 1 | G81: =IF(OR(NOT(ISNUMBER($R$81)),ISERROR($R$81)),1,IF(AND(LEN($R$81)>0,ABS((1-($R$81* 0.248684287071228+ 0.267111659049988)/ 10.4986937556948))<0.00005),0,1)) -> 1 | J81: Value at beginning of period of all following cash flows | K81: [$m]
S82: Index
A83: =SUM($A$84:$G$98) -> 2 | I83: 4 | J83: Internal rate of return
J85: The internal rate of return of a set of cash flows can be defined as the discount rate that makes the present value of those cash flows zero.
J88: Period | K88: [yr] | L88: 1 | M88: =L88+1 -> 2 | N88: =M88+1 -> 3 | O88: =N88+1 -> 4 | P88: =O88+1 -> 5
J89: Cash flow | K89: [$m] | L89: -100 | M89: 23 | N89: 56 | O89: 77 | P89: 20
J91: Find the internal rate of return (IRR) of the cash flows above.
A93: =IF(OR(NOT(ISNUMBER($L$93)),ISERROR($L$93)),1,IF(AND(LEN($L$93)>0,ABS((1-($L$93*-4.46495473384857+ 0.0924582481384277)/-1.06736049324785))<0.00005),0,1)) -> 1 | J93: IRR | K93: [%]
J95: Show that discounting the cash flows above at the internal rate of return gives a net present value of zero.
A97: =IF(OR(NOT(ISNUMBER($L$97)),ISERROR($L$97)),1,IF(AND(LEN($L$97)>0,ABS((1-($L$97*-0.31299889087677+-0.201834559440613)/-0.201834559480432))<0.00005),0,1)) -> 1 | J97: NPV @ IRR | K97: [$m]
S98: Index
A99: =SUM($A$100:$G$109) -> 1 | I99: 5 | J99: Calculating present value on a nominal basis
J101: ="The discount rate in cell " & ADDRESS(ROW(M104),COLUMN(M104),4) & " and the cash flows on row " & ROW(107:107) & " are expressed on a nominal basis. Nominal means not inflation adjusted. Calculate the NPV." -> The discount rate in cell M104 and the cash flows on row 107 are expressed on a nominal basis. Nominal means not inflation adjusted. Calculate the NPV.
J104: Nominal discount rate | L104: [%] | M104: 0.045
J106: Period | L106: [yr] | N106: 1 | O106: =N106+1 -> 2 | P106: =O106+1 -> 3 | Q106: =P106+1 -> 4 | R106: =Q106+1 -> 5
J107: Nominal cash flow | L107: [$m] | N107: -360 | O107: 110 | P107: 140 | Q107: 150 | R107: 150
A108: =IF(OR(NOT(ISNUMBER($M$108)),ISERROR($M$108)),1,IF(AND(LEN($M$108)>0,ABS((1-($M$108* 1.22696697711945+ 0.147821187973022)/ 153.599759112622))<0.00005),0,1)) -> 1 | J108: NPV using nominal discount rate | L108: [$m]
S109: Index
A110: =SUM($A$111:$G$120) -> 10 | I110: 6 | J110: Calculating an inflation index
J112: ="This question continues from the preceding one. Yearly inflation is " & TEXT(M115,"0.00%")&". On row " & ROW(118:118) & " calculate an inflation index (relative to a starting value of 1). On row " & ROW(119:119) & " calculate real (i.e. inflation-adjusted) cash flows." -> This question continues from the preceding one. Yearly inflation is 1.20%. On row 118 calculate an inflation index (relative to a starting value of 1). On row 119 calculate real (i.e. inflation-adjusted) cash flows.
J115: Inflation rate per year | L115: [%] | M115: 0.012
J117: Period | L117: [yr] | N117: 1 | O117: =N117+1 -> 2 | P117: =O117+1 -> 3 | Q117: =P117+1 -> 4 | R117: =Q117+1 -> 5
A118: =IF(OR(NOT(ISNUMBER($N$118)),ISERROR($N$118)),1,IF(AND(LEN($N$118)>0,ABS((1-($N$118*-2.36207067966461+-0.22065794467926)/-2.61107347249985))<0.00005),0,1)) -> 1 | B118: =IF(OR(NOT(ISNUMBER($O$118)),ISERROR($O$118)),1,IF(AND(LEN($O$118)>0,ABS((1-($O$118* 3.29801619052887+ 0.324602127075195)/ 3.70224562050819))<0.00005),0,1)) -> 1 | C118: =IF(OR(NOT(ISNUMBER($P$118)),ISERROR($P$118)),1,IF(AND(LEN($P$118)>0,ABS((1-($P$118* 0.891630053520203+ 0.486093163490295)/ 1.41020862385708))<0.00005),0,1)) -> 1 | D118: =IF(OR(NOT(ISNUMBER($Q$118)),ISERROR($Q$118)),1,IF(AND(LEN($Q$118)>0,ABS((1-($Q$118* 4.10964310169219+-0.273133993148804)/ 4.03735120013516))<0.00005),0,1)) -> 1 | E118: =IF(OR(NOT(ISNUMBER($R$118)),ISERROR($R$118)),1,IF(AND(LEN($R$118)>0,ABS((1-($R$118* 1.95115506649017+ 0.480003237724304)/ 2.55107119024045))<0.00005),0,1)) -> 1 | J118: Inflation index | L118: [#] | M118: 1
A119: =IF(OR(NOT(ISNUMBER($N$119)),ISERROR($N$119)),1,IF(AND(LEN($N$119)>0,ABS((1-($N$119*-2.56068646907806+ 0.0338730812072754)/ 910.950008326368))<0.00005),0,1)) -> 1 | B119: =IF(OR(NOT(ISNUMBER($O$119)),ISERROR($O$119)),1,IF(AND(LEN($O$119)>0,ABS((1-($O$119*-3.9363032579422+ 0.499414563179016)/-422.286207745444))<0.00005),0,1)) -> 1 | C119: =IF(OR(NOT(ISNUMBER($P$119)),ISERROR($P$119)),1,IF(AND(LEN($P$119)>0,ABS((1-($P$119* 1.76175892353058+-0.484296083450317)/ 237.491603996753))<0.00005),0,1)) -> 1 | D119: =IF(OR(NOT(ISNUMBER($Q$119)),ISERROR($Q$119)),1,IF(AND(LEN($Q$119)>0,ABS((1-($Q$119* 0.751838088035584+-0.399947762489319)/ 107.121111011787))<0.00005),0,1)) -> 1 | E119: =IF(OR(NOT(ISNUMBER($R$119)),ISERROR($R$119)),1,IF(AND(LEN($R$119)>0,ABS((1-($R$119*-3.96977365016937+ 0.298884391784668)/-560.690239186002))<0.00005),0,1)) -> 1 | J119: Real (inflation-adjusted) cash flow | L119: [$m]
S120: Index
A121: =SUM($A$122:$G$127) -> 1 | I121: 7 | J121: Calculating a real discount rate
J123: ="Using the nominal discount rate in cell " & ADDRESS(ROW(M104),COLUMN(M104),4) & " and the inflation rate in cell " & ADDRESS(ROW(M115),COLUMN(M115),4) & " calculate in cell " & ADDRESS(ROW(M126),COLUMN(M126),4) & " the real (inflation-adjusted) discount rate." -> Using the nominal discount rate in cell M104 and the inflation rate in cell M115 calculate in cell M126 the real (inflation-adjusted) discount rate.
A126: =IF(OR(NOT(ISNUMBER($M$126)),ISERROR($M$126)),1,IF(AND(LEN($M$126)>0,ABS((1-($M$126*-2.15519726276398+-0.454350829124451)/-0.524629000736319))<0.00005),0,1)) -> 1 | J126: Real discount rate | L126: [%] | N126: <- Note - This is not simply the nominal
N127: discount rate less the inflation rate. | S127: Index
A128: =SUM($A$129:$G$136) -> 1 | I128: 8 | J128: Calculating NPV on a real (inflation-adjusted) basis
J130: Discount the real cash flows you calculated using the real discount rate to obtain the NPV of the real cash flows. The NPV of the real cash flows discounted at the real rate should equal the NPV of the nominal cash flows discounted at the nominal rate.
A134: =IF(OR(NOT(ISNUMBER($M$134)),ISERROR($M$134)),1,IF(AND(LEN($M$134)>0,ABS((1-($M$134*-2.04227149486542+-0.117989301681519)/-255.536859164925))<0.00005),0,1)) -> 1 | J134: NPV using real values | L134: [$m] | N134: <- Note - This is the same on real and nominal
N135: bases (if the correct real discount rate is used).
S136: Index
A137: =SUM($A$138:$G$151) -> 4 | I137: =I128+1 -> 9 | J137: Calculating IRR on nominal and inflation-adjusted bases
J139: Calculate the IRRs of the nominal and real cash flows. You should find that the margin between these does NOT (in general) equal the inflation rate.
A142: =IF(OR(NOT(ISNUMBER($M$142)),ISERROR($M$142)),1,IF(AND(LEN($M$142)>0,ABS((1-($M$142*-1.99029505252838+ 0.448571085929871)/ 0.0837825147712352))<0.00005),0,1)) -> 1 | J142: IRR of nominal cash flows | L142: [%]
A143: =IF(OR(NOT(ISNUMBER($M$143)),ISERROR($M$143)),1,IF(AND(LEN($M$143)>0,ABS((1-($M$143* 4.79829370975494+-0.098625659942627)/ 0.713498185064818))<0.00005),0,1)) -> 1 | J143: IRR of real cash flows | L143: [%]
J144: Difference between IRR on nominal and real bases
A145: =IF(OR(NOT(ISNUMBER($M$145)),ISERROR($M$145)),1,IF(AND(LEN($M$145)>0,ABS((1-($M$145*-2.21720039844513+-0.339558482170105)/-0.370668091019364))<0.00005),0,1)) -> 1 | L145: [%]
A146: =IF(OR(NOT(ISNUMBER($M$146)),ISERROR($M$146)),1,IF(AND(LEN($M$146)>0,ABS((1-($M$146*-3.37178409099579+ 0.146587133407593)/ 0.106125724315643))<0.00005),0,1)) -> 1 | J146: Inflation rate | L146: [%]
J148: Note that the IRR on a real basis does not equal the IRR on a nominal basis less inflation.
K151: Copyright (c) 2020 Tykoh Group Pty Ltd. All rights reserved. | S151: Index
K152: www.tykoh.com

Sheet DCF_and_EVA
G1: Click here to see what your answer should look like.
N2: Core | O2: DCF_and_EVA
G3: Following are questions introducing discounted cash flow (DCF) and economic profit (EVA) methodologies.
A5: =SUM($A$6:$D$30) -> 21 | F5: 1 | G5: Discounted cash flow
G7: ="A firm has a growth rate of "&TEXT(I10,"0%")&".p.a: Each year capital, capital expenditure and free cash flows grow by "&TEXT(I10,"0%")&". The firm's cost of capital is "&TEXT(I11,"0%")&" and its after-tax return on invested capital is "&TEXT(I12,"0%")&"." -> A firm has a growth rate of 3%.p.a: Each year capital, capital expenditure and free cash flows grow by 3%. The firm's cost of capital is 8% and its after-tax return on invested capital is 7%.
G10: Growth rate | H10: [%] | I10: 0.03
G11: Cost of capital | H11: [%] | I11: 0.08
G12: After-tax return on invested capital | H12: [%] | I12: 0.07
G14: ="Calculate CAPEX (capital expenditure), FCFF (free cash flow to the firm) and the firm's discounted cash flow (DCF) value. The FCFF terminal value in cell " & ADDRESS(ROW(M27),COLUMN(M27),4) & " should show the value at the end of period " & M22 & " of all cash flows to be received in periods " & M22+1 & " through to perpetuity." -> Calculate CAPEX (capital expenditure), FCFF (free cash flow to the firm) and the firm's discounted cash flow (DCF) value. The FCFF terminal value in cell M27 should show the value at the end of period 4 of all cash flows to be received in periods 5 through to perpetuity.
G18: ="Cash flows occur at the end of periods. The DCF firm value in cell " & ADDRESS(ROW(I29),COLUMN(I29),4) & " is the value as at the beginning of period 1 (or, equivalently, as at the end of period 0)." -> Cash flows occur at the end of periods. The DCF firm value in cell I29 is the value as at the beginning of period 1 (or, equivalently, as at the end of period 0).
G21: DCF valuation
G22: Period | H22: [yr] | I22: 0 | J22: =I22+1 -> 1 | K22: =J22+1 -> 2 | L22: =K22+1 -> 3 | M22: =L22+1 -> 4
A23: =IF(OR(NOT(ISNUMBER($K$23)),ISERROR($K$23)),1,IF(AND(LEN($K$23)>0,ABS((1-($K$23*-0.899267792701721+-0.0872331857681274)/-92.7118158340454))<0.00005),0,1)) -> 1 | B23: =IF(OR(NOT(ISNUMBER($L$23)),ISERROR($L$23)),1,IF(AND(LEN($L$23)>0,ABS((1-($L$23* 2.12730467319489+-0.173793792724609)/ 225.511958986521))<0.00005),0,1)) -> 1 | C23: =IF(OR(NOT(ISNUMBER($M$23)),ISERROR($M$23)),1,IF(AND(LEN($M$23)>0,ABS((1-($M$23* 1.33178889751434+-0.292438864707947)/ 145.235729796708))<0.00005),0,1)) -> 1 | G23: Invested capital | H23: [$m] | J23: 100
A24: =IF(OR(NOT(ISNUMBER($J$24)),ISERROR($J$24)),1,IF(AND(LEN($J$24)>0,ABS((1-($J$24*-3.13986480236053+ 0.0833590030670166)/-21.8956946134567))<0.00005),0,1)) -> 1 | B24: =IF(OR(NOT(ISNUMBER($K$24)),ISERROR($K$24)),1,IF(AND(LEN($K$24)>0,ABS((1-($K$24*-4.19285356998444+-0.042028546333313)/-30.2725027859211))<0.00005),0,1)) -> 1 | C24: =IF(OR(NOT(ISNUMBER($L$24)),ISERROR($L$24)),1,IF(AND(LEN($L$24)>0,ABS((1-($L$24* 4.05729830265045+-0.238631725311279)/ 29.8920826596618))<0.00005),0,1)) -> 1 | D24: =IF(OR(NOT(ISNUMBER($M$24)),ISERROR($M$24)),1,IF(AND(LEN($M$24)>0,ABS((1-($M$24* 2.85212218761444+-0.121097445487976)/ 21.6950390064496))<0.00005),0,1)) -> 1 | G24: Net operating profit after tax | H24: [$m]
A25: =IF(OR(NOT(ISNUMBER($J$25)),ISERROR($J$25)),1,IF(AND(LEN($J$25)>0,ABS((1-($J$25*-2.10334956645966+ 0.419377088546753)/-5.89067161083221))<0.00005),0,1)) -> 1 | B25: =IF(OR(NOT(ISNUMBER($K$25)),ISERROR($K$25)),1,IF(AND(LEN($K$25)>0,ABS((1-($K$25* 1.31742417812347+ 0.127642035484314)/ 4.19848274588585))<0.00005),0,1)) -> 1 | C25: =IF(OR(NOT(ISNUMBER($L$25)),ISERROR($L$25)),1,IF(AND(LEN($L$25)>0,ABS((1-($L$25*-0.715436339378357+-0.402026176452637)/-2.67904541379213))<0.00005),0,1)) -> 1 | D25: =IF(OR(NOT(ISNUMBER($M$25)),ISERROR($M$25)),1,IF(AND(LEN($M$25)>0,ABS((1-($M$25* 0.610401034355164+ 0.194485306739807)/ 2.19549037994325))<0.00005),0,1)) -> 1 | G25: CAPEX | H25: [$m]
A26: =IF(OR(NOT(ISNUMBER($J$26)),ISERROR($J$26)),1,IF(AND(LEN($J$26)>0,ABS((1-($J$26* 4.13717567920685+ 0.334817171096802)/ 16.8835198879242))<0.00005),0,1)) -> 1 | B26: =IF(OR(NOT(ISNUMBER($K$26)),ISERROR($K$26)),1,IF(AND(LEN($K$26)>0,ABS((1-($K$26*-4.77370798587799+ 0.0433605909347534)/-19.6243163108826))<0.00005),0,1)) -> 1 | C26: =IF(OR(NOT(ISNUMBER($L$26)),ISERROR($L$26)),1,IF(AND(LEN($L$26)>0,ABS((1-($L$26* 4.16163980960846+-0.0697388648986816)/ 17.5905958311558))<0.00005),0,1)) -> 1 | D26: =IF(OR(NOT(ISNUMBER($M$26)),ISERROR($M$26)),1,IF(AND(LEN($M$26)>0,ABS((1-($M$26* 1.77947700023651+ 0.00245392322540283)/ 7.78038417937517))<0.00005),0,1)) -> 1 | G26: FCFF | H26: [$m]
A27: =IF(OR(NOT(ISNUMBER($M$27)),ISERROR($M$27)),1,IF(AND(LEN($M$27)>0,ABS((1-($M$27* 0.137374997138977+-0.0370199680328369)/ 12.3323215962586))<0.00005),0,1)) -> 1 | G27: FCFF terminal value | H27: [$m] | J27: 0 | K27: 0 | L27: 0
A28: =IF(OR(NOT(ISNUMBER($J$28)),ISERROR($J$28)),1,IF(AND(LEN($J$28)>0,ABS((1-($J$28*-1.46527349948883+-0.0951658487319946)/-5.95625984668732))<0.00005),0,1)) -> 1 | B28: =IF(OR(NOT(ISNUMBER($K$28)),ISERROR($K$28)),1,IF(AND(LEN($K$28)>0,ABS((1-($K$28*-2.3026841878891+-0.444406509399414)/-9.9314653635025))<0.00005),0,1)) -> 1 | C28: =IF(OR(NOT(ISNUMBER($L$28)),ISERROR($L$28)),1,IF(AND(LEN($L$28)>0,ABS((1-($L$28*-2.56154835224152+ 0.479077935218811)/-10.3911086523533))<0.00005),0,1)) -> 1 | D28: =IF(OR(NOT(ISNUMBER($M$28)),ISERROR($M$28)),1,IF(AND(LEN($M$28)>0,ABS((1-($M$28*-4.39083755016327+-0.109708547592163)/-414.655763201307))<0.00005),0,1)) -> 1 | G28: FCFF + terminal value | H28: [$m]
A29: =IF(OR(NOT(ISNUMBER($I$29)),ISERROR($I$29)),1,IF(AND(LEN($I$29)>0,ABS((1-($I$29*-1.35004580020905+-0.0101052522659302)/-108.01376926899))<0.00005),0,1)) -> 1 | G29: DCF firm value | H29: [$m]
P30: Index
A31: =SUM($A$32:$D$61) -> 14 | F31: =F5+1 -> 2 | G31: Economic profit
G33: Economic profit / value added is calculated by multiplying invested capital by return on capital less the cost of capital. Calculate economic value added for each year and determine the net present value of all economic value added.
G37: Economic value added
G38: Period | H38: [yr] | J38: 1 | K38: =J38+1 -> 2 | L38: =K38+1 -> 3 | M38: =L38+1 -> 4
A39: =IF(OR(NOT(ISNUMBER($J$39)),ISERROR($J$39)),1,IF(AND(LEN($J$39)>0,ABS((1-($J$39*-3.44336926937103+-0.025540828704834)/ 3.4178284406662))<0.00005),0,1)) -> 1 | B39: =IF(OR(NOT(ISNUMBER($K$39)),ISERROR($K$39)),1,IF(AND(LEN($K$39)>0,ABS((1-($K$39*-2.42732346057892+ 0.128751873970032)/ 2.62889503836632))<0.00005),0,1)) -> 1 | C39: =IF(OR(NOT(ISNUMBER($L$39)),ISERROR($L$39)),1,IF(AND(LEN($L$39)>0,ABS((1-($L$39* 0.42070209980011+-0.343697786331177)/-0.790020644009113))<0.00005),0,1)) -> 1 | D39: =IF(OR(NOT(ISNUMBER($M$39)),ISERROR($M$39)),1,IF(AND(LEN($M$39)>0,ABS((1-($M$39* 4.38545167446136+ 0.154499411582947)/-4.6376020402962))<0.00005),0,1)) -> 1 | G39: Economic value added (EVA) | H39: [$m]
A40: =IF(OR(NOT(ISNUMBER($M$40)),ISERROR($M$40)),1,IF(AND(LEN($M$40)>0,ABS((1-($M$40* 0.0608736276626587+-0.109528541564941)/-1.47980462618458))<0.00005),0,1)) -> 1 | G40: Terminal value of EVA | H40: [$m] | J40: 0 | K40: =J40 -> 0 | L40: =K40 -> 0
A41: =IF(OR(NOT(ISNUMBER($J$41)),ISERROR($J$41)),1,IF(AND(LEN($J$41)>0,ABS((1-($J$41*-3.9262467622757+ 0.283995270729065)/ 4.21024203300476))<0.00005),0,1)) -> 1 | B41: =IF(OR(NOT(ISNUMBER($K$41)),ISERROR($K$41)),1,IF(AND(LEN($K$41)>0,ABS((1-($K$41*-0.403591990470886+ 0.253688097000122)/ 0.669387847185135))<0.00005),0,1)) -> 1 | C41: =IF(OR(NOT(ISNUMBER($L$41)),ISERROR($L$41)),1,IF(AND(LEN($L$41)>0,ABS((1-($L$41* 0.9609454870224+ 0.332730174064636)/-0.686736893117427))<0.00005),0,1)) -> 1 | D41: =IF(OR(NOT(ISNUMBER($M$41)),ISERROR($M$41)),1,IF(AND(LEN($M$41)>0,ABS((1-($M$41*-4.81241643428802+-0.289631366729736)/ 113.29736788986))<0.00005),0,1)) -> 1 | G41: EVA + terminal value | H41: [$m]
A42: =IF(OR(NOT(ISNUMBER($I$42)),ISERROR($I$42)),1,IF(AND(LEN($I$42)>0,ABS((1-($I$42*-4.26046669483185+-0.394547343254089)/ 84.8147865533828))<0.00005),0,1)) -> 1 | G42: NPV of EVA + terminal value | H42: [$m]
G44: Summarise invested capital, EVA due to assets in place and EVA due to future investments. Reconcile those against the DCF valuation from earlier.
G47: Economic value added summary
A48: =IF(OR(NOT(ISNUMBER($I$48)),ISERROR($I$48)),1,IF(AND(LEN($I$48)>0,ABS((1-($I$48*-1.68305575847626+-0.371750116348267)/-168.677325963973))<0.00005),0,1)) -> 1 | G48: Invested capital | K48: Invested capital | M48: =I48 -> 0
A49: =IF(OR(NOT(ISNUMBER($I$49)),ISERROR($I$49)),1,IF(AND(LEN($I$49)>0,ABS((1-($I$49*-4.99758780002593+ 0.0367940664291382)/ 62.5066415667534))<0.00005),0,1)) -> 1 | G49: EVA due to assets in place | K49: EVA (assets in place) | N49: =SUM(I$48:I48)+IF(I49<0,I49,0) -> 0 | O49: =ABS(I49) -> 0
A50: =IF(OR(NOT(ISNUMBER($I$50)),ISERROR($I$50)),1,IF(AND(LEN($I$50)>0,ABS((1-($I$50* 1.57054960727692+ 0.0440139770507813)/-11.7351080775261))<0.00005),0,1)) -> 1 | G50: EVA due to future investments | K50: EVA (future investment) | N50: =SUM(I$48:I49)+IF(I50<0,I50,0) -> 0 | O50: =ABS(I50) -> 0
A51: =IF(OR(NOT(ISNUMBER($I$51)),ISERROR($I$51)),1,IF(AND(LEN($I$51)>0,ABS((1-($I$51* 3.27411830425262+-0.418106436729431)/ 261.511357903481))<0.00005),0,1)) -> 1 | G51: Firm value | K51: Firm value | M51: =I51 -> 0
K52: ="EVA attribution. Return on capital = " & TEXT(I12,"0.0%") & ", cost of capital = " & TEXT(I11,"0.0%") & ", growth rate = " & TEXT(I10,"0.0%") -> EVA attribution. Return on capital = 7.0%, cost of capital = 8.0%, growth rate = 3.0%
H61: Copyright (c) 2020 Tykoh Group Pty Ltd. All rights reserved. | P61: Index
H62: www.tykoh.com

Sheet Logic
H1: Click here to see what your answer should look like.
O2: Logic | P2: Logic
H3: Some problems that appear difficult or intractable can be solved more easily if re-framed in an appropriate way. This sheet contains examples of such problems. Solutions require careful design of the "chain of logic" in the underlying calculations. Some simple algebra (no more than high-school level) may be required.
A7: =SUM($A$8:$E$16) -> 2 | G7: 1 | H7: Meeting two objectives concurrently
H9: ="Capital is comprised of debt and equity. Calculate debt and equity so that the debt / equity ratio is " & TEXT(J12,"0%")&" and total capital is $" & TEXT(J15,"0")&"." -> Capital is comprised of debt and equity. Calculate debt and equity so that the debt / equity ratio is 35% and total capital is $100.
H12: Debt / Equity ratio | I12: [%] | J12: 0.35
A13: =IF(OR(NOT(ISNUMBER($J$13)),ISERROR($J$13)),1,IF(AND(LEN($J$13)>0,ABS((1-($J$13*-3.080775141716+ 0.178913354873657)/-79.6930347636894))<0.00005),0,1)) -> 1 | H13: Debt | I13: [$m]
A14: =IF(OR(NOT(ISNUMBER($J$14)),ISERROR($J$14)),1,IF(AND(LEN($J$14)>0,ABS((1-($J$14*-0.457921624183655+-0.142976880073547)/-34.0630971899739))<0.00005),0,1)) -> 1 | H14: Equity | I14: [$m]
H15: Capital (Debt + Equity) | I15: [$m] | J15: 100
Q16: Index
A17: =SUM($A$18:$E$49) -> 24 | G17: 2 | H17: Meeting several objectives concurrently
H19: This is an extension of the preceding problem. Two policies are to be set: 1) Dividend payout policy, and 2) borrowing policy. Policy settings are required to meet two constraints 1) The debt / equity ratio must meet certain targets, and 2) capital growth must also meet targets.
H23: ="Determine an investing policy to meet debt / equity and growth rate targets. The debt / equity targets are given on row " & ROW(32:32) &". Growth rate targets are given on row " & ROW(33:33)&". A growth rate target of, say, " & TEXT(K33,"0%") & " in period " & K30 & " means that the capital in period " & K30+1 & " should be " & TEXT(K33,"0%") & " greater than in period " & K30 &"." -> Determine an investing policy to meet debt / equity and growth rate targets. The debt / equity targets are given on row 32. Growth rate targets are given on row 33. A growth rate target of, say, 6% in period 1 means that the capital in period 2 should be 6% greater than in period 1.
H27: In the section below dividends should be represented as negative numbers (since they are outgoing cash). Net borrowings should be represented as positive numbers (since they are incoming cash).
H30: Period | I30: [yr] | K30: 1 | L30: =K30+1 -> 2 | M30: =L30+1 -> 3 | N30: =M30+1 -> 4 | O30: =N30+1 -> 5 | P30: =O30+1 -> 6
H32: Debt / Equity ratio | I32: [%] | K32: 0.3 | L32: 0.35 | M32: 0.4 | N32: 0.42 | O32: 0.4 | P32: 0.38
H33: Growth rate of capital | I33: [%] | K33: 0.06 | L33: 0.05 | M33: 0.04 | N33: 0.03 | O33: 0.02 | P33: 0.01
H35: Net income | I35: [$m] | K35: 50 | L35: 55 | M35: 60 | N35: 61 | O35: 62
A37: =IF(OR(NOT(ISNUMBER($K$37)),ISERROR($K$37)),1,IF(AND(LEN($K$37)>0,ABS((1-($K$37*-3.50018918514252+ 0.204395771026611)/-80.5692008091853))<0.00005),0,1)) -> 1 | B37: =IF(OR(NOT(ISNUMBER($L$37)),ISERROR($L$37)),1,IF(AND(LEN($L$37)>0,ABS((1-($L$37* 4.28785979747772+ 0.0302125215530396)/ 117.866952141126))<0.00005),0,1)) -> 1 | C37: =IF(OR(NOT(ISNUMBER($M$37)),ISERROR($M$37)),1,IF(AND(LEN($M$37)>0,ABS((1-($M$37*-4.10358607769012+ 0.257729291915894)/-130.23630797863))<0.00005),0,1)) -> 1 | D37: =IF(OR(NOT(ISNUMBER($N$37)),ISERROR($N$37)),1,IF(AND(LEN($N$37)>0,ABS((1-($N$37*-0.981579422950745+-0.0381256341934204)/-33.6439764605777))<0.00005),0,1)) -> 1 | E37: =IF(OR(NOT(ISNUMBER($O$37)),ISERROR($O$37)),1,IF(AND(LEN($O$37)>0,ABS((1-($O$37*-0.0783437490463257+-0.292372703552246)/-2.96108670606613))<0.00005),0,1)) -> 1 | H37: Debt | I37: [$m]
A38: =IF(OR(NOT(ISNUMBER($K$38)),ISERROR($K$38)),1,IF(AND(LEN($K$38)>0,ABS((1-($K$38*-1.70264065265656+-0.404570937156677)/-131.376928833815))<0.00005),0,1)) -> 1 | B38: =IF(OR(NOT(ISNUMBER($L$38)),ISERROR($L$38)),1,IF(AND(LEN($L$38)>0,ABS((1-($L$38* 0.897925496101379+-0.330126523971558)/ 70.1736531699145))<0.00005),0,1)) -> 1 | C38: =IF(OR(NOT(ISNUMBER($M$38)),ISERROR($M$38)),1,IF(AND(LEN($M$38)>0,ABS((1-($M$38* 4.27616536617279+-0.402070164680481)/ 339.553076446056))<0.00005),0,1)) -> 1 | D38: =IF(OR(NOT(ISNUMBER($N$38)),ISERROR($N$38)),1,IF(AND(LEN($N$38)>0,ABS((1-($N$38*-0.561375021934509+-0.227053165435791)/-45.9878148125931))<0.00005),0,1)) -> 1 | E38: =IF(OR(NOT(ISNUMBER($O$38)),ISERROR($O$38)),1,IF(AND(LEN($O$38)>0,ABS((1-($O$38* 3.72546851634979+ 0.250687718391418)/ 317.513076758146))<0.00005),0,1)) -> 1 | H38: Equity | I38: [$m]
A39: =IF(OR(NOT(ISNUMBER($L$39)),ISERROR($L$39)),1,IF(AND(LEN($L$39)>0,ABS((1-($L$39*-2.27057635784149+ 0.173646688461304)/-240.507447242737))<0.00005),0,1)) -> 1 | B39: =IF(OR(NOT(ISNUMBER($M$39)),ISERROR($M$39)),1,IF(AND(LEN($M$39)>0,ABS((1-($M$39*-2.43371069431305+-0.410103440284729)/-271.282103717327))<0.00005),0,1)) -> 1 | C39: =IF(OR(NOT(ISNUMBER($N$39)),ISERROR($N$39)),1,IF(AND(LEN($N$39)>0,ABS((1-($N$39*-4.69049394130707+-0.177282333374023)/-543.11133702755))<0.00005),0,1)) -> 1 | D39: =IF(OR(NOT(ISNUMBER($O$39)),ISERROR($O$39)),1,IF(AND(LEN($O$39)>0,ABS((1-($O$39* 2.90128886699677+-0.202741980552673)/ 345.702146620035))<0.00005),0,1)) -> 1 | H39: Capital | I39: [$m] | K39: 100
H41: Investing cash flows
A42: =IF(OR(NOT(ISNUMBER($K$42)),ISERROR($K$42)),1,IF(AND(LEN($K$42)>0,ABS((1-($K$42*-2.64717757701874+-0.0195252895355225)/ 128.115936344505))<0.00005),0,1)) -> 1 | B42: =IF(OR(NOT(ISNUMBER($L$42)),ISERROR($L$42)),1,IF(AND(LEN($L$42)>0,ABS((1-($L$42*-2.45398104190826+-0.159393429756165)/ 132.401026926659))<0.00005),0,1)) -> 1 | C42: =IF(OR(NOT(ISNUMBER($M$42)),ISERROR($M$42)),1,IF(AND(LEN($M$42)>0,ABS((1-($M$42*-4.550661444664+-0.0175719261169434)/ 263.850288658914))<0.00005),0,1)) -> 1 | D42: =IF(OR(NOT(ISNUMBER($N$42)),ISERROR($N$42)),1,IF(AND(LEN($N$42)>0,ABS((1-($N$42*-2.93982803821564+ 0.364534497261047)/ 168.978644908908))<0.00005),0,1)) -> 1 | E42: =IF(OR(NOT(ISNUMBER($O$42)),ISERROR($O$42)),1,IF(AND(LEN($O$42)>0,ABS((1-($O$42* 0.886285901069641+ 0.254908323287964)/-52.069549304788))<0.00005),0,1)) -> 1 | H42: Dividends | I42: [$m]
A43: =IF(OR(NOT(ISNUMBER($K$43)),ISERROR($K$43)),1,IF(AND(LEN($K$43)>0,ABS((1-($K$43* 4.27883088588715+-0.168983101844788)/ 18.6773774382735))<0.00005),0,1)) -> 1 | B43: =IF(OR(NOT(ISNUMBER($L$43)),ISERROR($L$43)),1,IF(AND(LEN($L$43)>0,ABS((1-($L$43* 0.42941153049469+-0.419308662414551)/ 1.43511298409215))<0.00005),0,1)) -> 1 | C43: =IF(OR(NOT(ISNUMBER($M$43)),ISERROR($M$43)),1,IF(AND(LEN($M$43)>0,ABS((1-($M$43* 1.34371936321259+-0.0899633169174194)/ 3.18401837436246))<0.00005),0,1)) -> 1 | D43: =IF(OR(NOT(ISNUMBER($N$43)),ISERROR($N$43)),1,IF(AND(LEN($N$43)>0,ABS((1-($N$43* 4.60422813892365+-0.385376691818237)/-1.17890179342212))<0.00005),0,1)) -> 1 | E43: =IF(OR(NOT(ISNUMBER($O$43)),ISERROR($O$43)),1,IF(AND(LEN($O$43)>0,ABS((1-($O$43* 4.23445165157318+ 0.120209574699402)/-2.32565064455565))<0.00005),0,1)) -> 1 | H43: Borrowings | I43: [$m]
K45: Workspace (not really needed though)
Q49: Index
A50: =SUM($A$51:$E$75) -> 2 | G50: 3 | H50: Resolving circular references
H52: Two formulae are shown below. The first formula expresses the Ke - the cost of equity - in terms of four other parameters. One of those parameters is E - the market value of equity. The second formula expresses E - the market value of equity - in terms of three other parameters. One of those parameters is Ke - the cost of equity.
H56: Formulae
H57: Ke = Ku + D/E x (Ku - Kd)
H58: E = FCFE / (Ke - g)
H60: There is a circular relationship between the cost of equity and the market value of equity: Cost of equity depends on the market value of equity, and the market value of equity depends on the cost of equity.
H63: ="Restructure the formulae to resolve the circular references. Then determine the cost of equity and the market value of equity in cells " & ADDRESS(ROW(K73),COLUMN(K73),4) & " and " & ADDRESS(ROW(K74),COLUMN(K74),4)&"." -> Restructure the formulae to resolve the circular references. Then determine the cost of equity and the market value of equity in cells K73 and K74.
H66: Term | I66: Symbol | J66: Units | K66: Amount
H67: Market value of debt | I67: D | J67: [$] | K67: 20
H68: Free cash flow to equity | I68: FCFE | J68: [$] | K68: 35
H69: Cost of debt | I69: Kd | J69: [%] | K69: 0.06
H70: Growth rate | I70: g | J70: [%] | K70: 0.03
H71: Unlevered cost of equity | I71: Ku | J71: [%] | K71: 0.11
A73: =IF(OR(NOT(ISNUMBER($K$73)),ISERROR($K$73)),1,IF(AND(LEN($K$73)>0,ABS((1-($K$73*-1.52273595333099+-0.350754261016846)/-0.52183812400874))<0.00005),0,1)) -> 1 | H73: Cost of equity | I73: Ke | J73: [%]
A74: =IF(OR(NOT(ISNUMBER($K$74)),ISERROR($K$74)),1,IF(AND(LEN($K$74)>0,ABS((1-($K$74*-0.200217366218567+-0.280590891838074)/-85.372971534729))<0.00005),0,1)) -> 1 | H74: Market value of equity | I74: E | J74: [$]
Q75: Index
A76: =SUM($A$77:$E$106) -> 10 | G76: =G50+1 -> 4 | H76: Induction
H78: In some problems an "nth" (last) result is known and an inductive method can be used to calculate the n-1th, n-2nd, n-3rd and so on. Following is an example.
H81: The formula below gives the market value of equity in a 5th (terminal) year. The formula assumes free cash flows will continue indefinitely into the future after year 5. In the formula E5 is the market value of equity in the fifth year, FCFE is free cash flow, Ke is cost of equity and g is the growth rate in perpetuity.
H85: E5=FCFE5/(Ke5 - g)
H87: The formula below defines the market values of equity in years prior to the terminal year. Each formula for year "m" refers to the following year "m+1".
H90: Em=(Em+1 + FCFEm)/(1+Kem)
H92: Use the above formulae to calculate the market value of equity at the beginning of period 1. Try to make your formulae consistent across years.
H95: Growth rate of free cash flows in terminal phase | I95: g | J95: [%] | K95: 0.03
H97: Term | I97: Symbol | J97: Units
H98: Period | J98: [yr] | K98: 1 | L98: =K98+1 -> 2 | M98: =L98+1 -> 3 | N98: =M98+1 -> 4 | O98: =N98+1 -> 5
H99: Terminal period | J99: [0/1] | K99: 0 | L99: 0 | M99: 0 | N99: 0 | O99: 1
H101: Cost of equity [one-period discount rate] | I101: Ke | J101: [%] | K101: 0.11 | L101: =K101+1% -> 0.12 | M101: =L101+1% -> 0.13 | N101: =M101+1% -> 0.14 | O101: =N101+1% -> 0.15
A102: =IF(OR(NOT(ISNUMBER($K$102)),ISERROR($K$102)),1,IF(AND(LEN($K$102)>0,ABS((1-($K$102* 4.93731319904327+-0.369579553604126)/ 147.749816417694))<0.00005),0,1)) -> 1 | B102: =IF(OR(NOT(ISNUMBER($L$102)),ISERROR($L$102)),1,IF(AND(LEN($L$102)>0,ABS((1-($L$102*-4.71114218235016+-0.154608368873596)/-165.044584751129))<0.00005),0,1)) -> 1 | C102: =IF(OR(NOT(ISNUMBER($M$102)),ISERROR($M$102)),1,IF(AND(LEN($M$102)>0,ABS((1-($M$102* 0.476685166358948+ 0.422954559326172)/ 19.4903612136841))<0.00005),0,1)) -> 1 | D102: =IF(OR(NOT(ISNUMBER($N$102)),ISERROR($N$102)),1,IF(AND(LEN($N$102)>0,ABS((1-($N$102* 0.382463335990906+-0.0935786962509155)/ 17.1172714233398))<0.00005),0,1)) -> 1 | E102: =IF(OR(NOT(ISNUMBER($O$102)),ISERROR($O$102)),1,IF(AND(LEN($O$102)>0,ABS((1-($O$102* 3.47245514392853+ 0.326225519180298)/ 173.948982715607))<0.00005),0,1)) -> 1 | H102: Free cash flow to equity | I102: FCFE | J102: [$m]
A103: =IF(OR(NOT(ISNUMBER($K$103)),ISERROR($K$103)),1,IF(AND(LEN($K$103)>0,ABS((1-($K$103* 1.72427594661713+ 0.221895098686218)/ 641.52638027621))<0.00005),0,1)) -> 1 | B103: =IF(OR(NOT(ISNUMBER($L$103)),ISERROR($L$103)),1,IF(AND(LEN($L$103)>0,ABS((1-($L$103* 4.96771395206451+-0.160193920135498)/ 1901.673355921))<0.00005),0,1)) -> 1 | C103: =IF(OR(NOT(ISNUMBER($M$103)),ISERROR($M$103)),1,IF(AND(LEN($M$103)>0,ABS((1-($M$103*-0.0478869676589966+-0.0870321989059448)/-18.9439352117562))<0.00005),0,1)) -> 1 | D103: =IF(OR(NOT(ISNUMBER($N$103)),ISERROR($N$103)),1,IF(AND(LEN($N$103)>0,ABS((1-($N$103* 1.95281803607941+-0.320910692214966)/ 790.513293977369))<0.00005),0,1)) -> 1 | E103: =IF(OR(NOT(ISNUMBER($O$103)),ISERROR($O$103)),1,IF(AND(LEN($O$103)>0,ABS((1-($O$103*-0.770817399024963+ 0.0431770086288452)/-321.130739251772))<0.00005),0,1)) -> 1 | H103: Market value of equity | I103: E | J103: [$m]
I106: Copyright (c) 2020 Tykoh Group Pty Ltd. All rights reserved. | Q106: Index
I107: www.tykoh.com

Sheet Term_structure
J1: Click here to see what your answer should look like.
Q2: DCF | R2: Term_structure
J3: Interest rates and costs of capital can vary over time - they can have a "term structure". The questions on this page relate to term structure.
A6: =SUM($A$7:$G$34) -> 2 | I6: 1 | J6: Multiple discount rates
J8: ="Rows " & ROW(18:18) & " and " & ROW(19:19) & " below show cash flows in a lease. Cash flows in periods 1 - " & Q18 & " (inclusive) are lease payments. The lease ends in period " & R18&" and at that time the underlying asset is sold for its estimated residual value. There is no lease payment made in the final period." -> Rows 18 and 19 below show cash flows in a lease. Cash flows in periods 1 - 6 (inclusive) are lease payments. The lease ends in period 7 and at that time the underlying asset is sold for its estimated residual value. There is no lease payment made in the final period.
J12: ="Calculate the present value of the lease. Lease payments should be discounted at the rate shown in cell " & ADDRESS(ROW(L15),COLUMN(L15),4)&". Discount the final - riskier - asset sale at the higher discount rate shown in cell " & ADDRESS(ROW(L16),COLUMN(L16),4)&"." -> Calculate the present value of the lease. Lease payments should be discounted at the rate shown in cell L15. Discount the final - riskier - asset sale at the higher discount rate shown in cell L16.
J15: ="Discount rate of lease payments in periods 1 - " & Q18 -> Discount rate of lease payments in periods 1 - 6 | K15: [%] | L15: 0.06
J16: ="Discount rate of asset sale in period " & MAX(18:18) -> Discount rate of asset sale in period 7 | K16: [%] | L16: 0.11
J18: Period | K18: [yr] | L18: 1 | M18: =L18+1 -> 2 | N18: 3 | O18: 4 | P18: 5 | Q18: 6 | R18: 7
J19: Cash flow | K19: [$m] | L19: -0.23 | M19: -0.23 | N19: -0.23 | O19: -0.23 | P19: -0.23 | Q19: -0.23 | R19: 1.2
A21: =IF(OR(NOT(ISNUMBER($L$21)),ISERROR($L$21)),1,IF(AND(LEN($L$21)>0,ABS((1-($L$21* 3.14663946628571+ 0.0409135818481445)/-1.69916074250803))<0.00005),0,1)) -> 1 | J21: Present value of lease cash flows | K21: [$m]
J23: ="What would the value of the lease be if the final cash flow in cell " & ADDRESS(ROW(R19),COLUMN(R19),4) & " included a lease payment? (Assume the figure shown in that cell is the net of the lease payment and asset sale)." -> What would the value of the lease be if the final cash flow in cell R19 included a lease payment? (Assume the figure shown in that cell is the net of the lease payment and asset sale).
A26: =IF(OR(NOT(ISNUMBER($L$26)),ISERROR($L$26)),1,IF(AND(LEN($L$26)>0,ABS((1-($L$26*-0.724666714668274+ 0.00906813144683838)/ 0.440372515515289))<0.00005),0,1)) -> 1 | J26: Present value of lease cash flows | K26: [$m]
J28: In solving this problem wouldn't it be better to model the lease cash flows on two separate rows - one row for payments and another for the asset sale? That way the individual streams could easily be discounted at their own rates.
J31: That's true - that would be a better solution. The reason the problem has been structured this way is as a lead-in to following problems. Those problems involve not one or two discount rates but many and we look for solutions that can cope with multiple discount rates without requiring separate rows for each rate.
S34: Index
A35: =SUM($A$36:$G$47) -> 8 | I35: 2 | J35: Term structure of discount rates
J37: ="Discount rates have a term structure shown on rows " & ROW(41:41) & " and " & ROW(42:42) & ". Each period has its own discount rate. Calculate the present values of the cash flows shown on row " & ROW(43:43)&" by discounting each future cash flow by its corresponding discount rate. Also calculate the total present value." -> Discount rates have a term structure shown on rows 41 and 42. Each period has its own discount rate. Calculate the present values of the cash flows shown on row 43 by discounting each future cash flow by its corresponding discount rate. Also calculate the total present value.
J41: Period | K41: [yr] | L41: 1 | M41: =L41+1 -> 2 | N41: 3 | O41: 4 | P41: 5 | Q41: 6 | R41: 7
J42: Discount rate [annual effective from beginning of period 1 to end of period "n"] | K42: [%] | L42: 0.06 | M42: 0.06 | N42: 0.065 | O42: 0.066 | P42: 0.07 | Q42: 0.08 | R42: 0.09
J43: Cash flow | K43: [$m] | L43: -0.23 | M43: -0.23 | N43: -0.23 | O43: -0.23 | P43: -0.23 | Q43: -0.23 | R43: 1.2
A45: =IF(OR(NOT(ISNUMBER($L$45)),ISERROR($L$45)),1,IF(AND(LEN($L$45)>0,ABS((1-($L$45*-2.72218406200409+ 0.119187593460083)/ 0.709850172951536))<0.00005),0,1)) -> 1 | B45: =IF(OR(NOT(ISNUMBER($M$45)),ISERROR($M$45)),1,IF(AND(LEN($M$45)>0,ABS((1-($M$45*-0.101695656776428+ 0.180819392204285)/ 0.201636409878349))<0.00005),0,1)) -> 1 | C45: =IF(OR(NOT(ISNUMBER($N$45)),ISERROR($N$45)),1,IF(AND(LEN($N$45)>0,ABS((1-($N$45* 3.86600077152252+-0.1294846534729)/-0.865591655824245))<0.00005),0,1)) -> 1 | D45: =IF(OR(NOT(ISNUMBER($O$45)),ISERROR($O$45)),1,IF(AND(LEN($O$45)>0,ABS((1-($O$45*-1.97502434253693+-0.207133173942566)/ 0.144647089666228))<0.00005),0,1)) -> 1 | E45: =IF(OR(NOT(ISNUMBER($P$45)),ISERROR($P$45)),1,IF(AND(LEN($P$45)>0,ABS((1-($P$45*-3.49688708782196+ 0.0298211574554443)/ 0.603264555366793))<0.00005),0,1)) -> 1 | F45: =IF(OR(NOT(ISNUMBER($Q$45)),ISERROR($Q$45)),1,IF(AND(LEN($Q$45)>0,ABS((1-($Q$45*-2.76738226413727+ 0.0845292806625366)/ 0.485630937894426))<0.00005),0,1)) -> 1 | G45: =IF(OR(NOT(ISNUMBER($R$45)),ISERROR($R$45)),1,IF(AND(LEN($R$45)>0,ABS((1-($R$45*-1.36541306972504+ 0.375974655151367)/-0.52033859384411))<0.00005),0,1)) -> 1 | J45: Present value of individual cash flows | K45: [$m]
A46: =IF(OR(NOT(ISNUMBER($L$46)),ISERROR($L$46)),1,IF(AND(LEN($L$46)>0,ABS((1-($L$46*-0.219858288764954+-0.309366583824158)/-0.212038674448436))<0.00005),0,1)) -> 1 | J46: Total present value | K46: [$m]
S47: Index
A48: =SUM($A$49:$G$60) -> 1 | I48: =I35+1 -> 3 | J48: Term structure of discount rates - using an array
J50: ="Consider the discount rate term structure shown below on rows " & ROW(53:53) & " and " & ROW(54:54) & ". Calculate the present value of the cash flows shown on row " & ROW(55:55)&". You'll probably need to use an array to solve this problem." -> Consider the discount rate term structure shown below on rows 53 and 54. Calculate the present value of the cash flows shown on row 55. You'll probably need to use an array to solve this problem.
J53: Period | K53: [yr] | L53: 1 | M53: =L53+1 -> 2 | N53: 3 | O53: 4 | P53: 5 | Q53: 6 | R53: 7
J54: Discount rate | K54: [%] | L54: 0.06 | M54: 0.06 | N54: 0.065 | O54: 0.066 | P54: 0.07 | Q54: 0.08 | R54: 0.085
J55: Cash flow | K55: [$m] | L55: -0.18 | M55: -0.18 | N55: -0.18 | O55: -0.18 | P55: -0.18 | Q55: -0.18 | R55: 2.1
A57: =IF(OR(NOT(ISNUMBER($L$57)),ISERROR($L$57)),1,IF(AND(LEN($L$57)>0,ABS((1-($L$57* 1.84062302112579+ 0.247415781021118)/ 0.847753204377659))<0.00005),0,1)) -> 1 | J57: Total present value | K57: [$m]
K60: Copyright (c) 2020 Tykoh Group Pty Ltd. All rights reserved. | S60: Index
K61: www.tykoh.com

Sheet Beta
E1: Click here to see what your answer should look like.
K2: DCF | L2: Beta
E3: The capital asset pricing model (CAPM) relates the expected-or-required return on an asset in terms of a number of drivers: The risk free rate, the asset's risk, market return, market risk and the correlation between the asset returns and market returns. Beta is can be defined as the asset's risk divided by the market's risk and multiplied by the correlation between the asset's returns and the market's returns. In spreadsheets risk can be calculated using the STDEV function and correlation by the CORREL function.
A13: =SUM($A$14:$B$47) -> 42 | D13: 1 | E13: Calculation of Beta
E15: The table below shows weekly asset and market prices. Calculate returns, risks and correlations and from those calculate beta and the expected return / cost of capital.
E18: Market and asset price data
E19: Week | F19: Market price | G19: Market return | H19: Asset price | I19: Asset return
F20: [$] | G20: [%] | H20: [$] | I20: [%]
E21: 0 | F21: 103.1885187 | H21: 104.1594243
A22: =IF(OR(NOT(ISNUMBER($G$22)),ISERROR($G$22)),1,IF(AND(LEN($G$22)>0,ABS((1-($G$22* 1.13934934139252+ 0.282138705253601)/ 0.291070973461044))<0.00005),0,1)) -> 1 | B22: =IF(OR(NOT(ISNUMBER($I$22)),ISERROR($I$22)),1,IF(AND(LEN($I$22)>0,ABS((1-($I$22*-3.38256299495697+ 0.307779788970947)/ 0.206595438374825))<0.00005),0,1)) -> 1 | E22: =E21+1 -> 1 | F22: 103.9974958 | H22: 107.2751989
A23: =IF(OR(NOT(ISNUMBER($G$23)),ISERROR($G$23)),1,IF(AND(LEN($G$23)>0,ABS((1-($G$23*-2.97381699085236+ 0.456762433052063)/ 0.364271456424763))<0.00005),0,1)) -> 1 | B23: =IF(OR(NOT(ISNUMBER($I$23)),ISERROR($I$23)),1,IF(AND(LEN($I$23)>0,ABS((1-($I$23*-4.34148967266083+-0.438477754592896)/-0.888685232774271))<0.00005),0,1)) -> 1 | E23: 2 | F23: 107.2320021 | H23: 118.3995134
A24: =IF(OR(NOT(ISNUMBER($G$24)),ISERROR($G$24)),1,IF(AND(LEN($G$24)>0,ABS((1-($G$24* 2.93197572231293+-0.120395302772522)/-0.129955348877212))<0.00005),0,1)) -> 1 | B24: =IF(OR(NOT(ISNUMBER($I$24)),ISERROR($I$24)),1,IF(AND(LEN($I$24)>0,ABS((1-($I$24*-0.364159941673279+-0.38045597076416)/-0.383958630782272))<0.00005),0,1)) -> 1 | E24: 3 | F24: 106.8823598 | H24: 119.5383351
A25: =IF(OR(NOT(ISNUMBER($G$25)),ISERROR($G$25)),1,IF(AND(LEN($G$25)>0,ABS((1-($G$25*-3.84529888629913+-0.326226592063904)/-0.400538693862637))<0.00005),0,1)) -> 1 | B25: =IF(OR(NOT(ISNUMBER($I$25)),ISERROR($I$25)),1,IF(AND(LEN($I$25)>0,ABS((1-($I$25*-4.51881110668182+ 0.214816331863403)/ 0.417380077582898))<0.00005),0,1)) -> 1 | E25: 4 | F25: 108.9479086 | H25: 114.1798166
A26: =IF(OR(NOT(ISNUMBER($G$26)),ISERROR($G$26)),1,IF(AND(LEN($G$26)>0,ABS((1-($G$26* 0.330223441123962+ 0.0610092878341675)/ 0.0597556680295129))<0.00005),0,1)) -> 1 | B26: =IF(OR(NOT(ISNUMBER($I$26)),ISERROR($I$26)),1,IF(AND(LEN($I$26)>0,ABS((1-($I$26*-2.83266484737396+-0.0319943428039551)/-0.185274085293864))<0.00005),0,1)) -> 1 | E26: 5 | F26: 108.5343121 | H26: 120.3582577
A27: =IF(OR(NOT(ISNUMBER($G$27)),ISERROR($G$27)),1,IF(AND(LEN($G$27)>0,ABS((1-($G$27* 2.46354758739471+ 0.252310872077942)/ 0.274711072353203))<0.00005),0,1)) -> 1 | B27: =IF(OR(NOT(ISNUMBER($I$27)),ISERROR($I$27)),1,IF(AND(LEN($I$27)>0,ABS((1-($I$27*-1.01067721843719+ 0.403098821640015)/ 0.470179932856406))<0.00005),0,1)) -> 1 | E27: 6 | F27: 109.5211777 | H27: 112.3697867
A28: =IF(OR(NOT(ISNUMBER($G$28)),ISERROR($G$28)),1,IF(AND(LEN($G$28)>0,ABS((1-($G$28* 2.46006906032562+-0.411440491676331)/-0.43518716481786))<0.00005),0,1)) -> 1 | B28: =IF(OR(NOT(ISNUMBER($I$28)),ISERROR($I$28)),1,IF(AND(LEN($I$28)>0,ABS((1-($I$28* 1.34571135044098+ 0.213027954101563)/ 0.161832404363385))<0.00005),0,1)) -> 1 | E28: 7 | F28: 108.4639864 | H28: 108.0948484
A29: =IF(OR(NOT(ISNUMBER($G$29)),ISERROR($G$29)),1,IF(AND(LEN($G$29)>0,ABS((1-($G$29*-4.84317600727081+-0.0688556432723999)/-0.141724543419381))<0.00005),0,1)) -> 1 | B29: =IF(OR(NOT(ISNUMBER($I$29)),ISERROR($I$29)),1,IF(AND(LEN($I$29)>0,ABS((1-($I$29*-0.980173945426941+-0.224704504013062)/-0.27220893785434))<0.00005),0,1)) -> 1 | E29: 8 | F29: 110.0959014 | H29: 113.3336987
A30: =IF(OR(NOT(ISNUMBER($G$30)),ISERROR($G$30)),1,IF(AND(LEN($G$30)>0,ABS((1-($G$30* 4.85373914241791+ 0.302587389945984)/-0.0207922675202668))<0.00005),0,1)) -> 1 | B30: =IF(OR(NOT(ISNUMBER($I$30)),ISERROR($I$30)),1,IF(AND(LEN($I$30)>0,ABS((1-($I$30* 1.96100771427155+-0.0824007987976074)/-0.25743555023489))<0.00005),0,1)) -> 1 | E30: 9 | F30: 102.7607781 | H30: 103.21781
A31: =IF(OR(NOT(ISNUMBER($G$31)),ISERROR($G$31)),1,IF(AND(LEN($G$31)>0,ABS((1-($G$31* 2.34488189220428+-0.222831606864929)/-0.261865268921349))<0.00005),0,1)) -> 1 | B31: =IF(OR(NOT(ISNUMBER($I$31)),ISERROR($I$31)),1,IF(AND(LEN($I$31)>0,ABS((1-($I$31*-1.43413722515106+-0.0665428638458252)/-0.00785997031193034))<0.00005),0,1)) -> 1 | E31: 10 | F31: 101.050189 | H31: 98.99428127
A32: =IF(OR(NOT(ISNUMBER($G$32)),ISERROR($G$32)),1,IF(AND(LEN($G$32)>0,ABS((1-($G$32* 4.44971024990082+-0.378450036048889)/-0.440240825695686))<0.00005),0,1)) -> 1 | B32: =IF(OR(NOT(ISNUMBER($I$32)),ISERROR($I$32)),1,IF(AND(LEN($I$32)>0,ABS((1-($I$32* 1.45951330661774+-0.152167320251465)/-0.160628888017722))<0.00005),0,1)) -> 1 | E32: 11 | F32: 99.64695809 | H32: 98.42035926
A33: =IF(OR(NOT(ISNUMBER($G$33)),ISERROR($G$33)),1,IF(AND(LEN($G$33)>0,ABS((1-($G$33*-3.95567715167999+-0.314597487449646)/-0.407118608456383))<0.00005),0,1)) -> 1 | B33: =IF(OR(NOT(ISNUMBER($I$33)),ISERROR($I$33)),1,IF(AND(LEN($I$33)>0,ABS((1-($I$33*-4.22315299510956+-0.0672404766082764)/-0.173103730812816))<0.00005),0,1)) -> 1 | E33: 12 | F33: 101.9776458 | H33: 100.8874968
A34: =IF(OR(NOT(ISNUMBER($G$34)),ISERROR($G$34)),1,IF(AND(LEN($G$34)>0,ABS((1-($G$34* 4.59270894527435+ 0.0420292615890503)/-0.125812594430885))<0.00005),0,1)) -> 1 | B34: =IF(OR(NOT(ISNUMBER($I$34)),ISERROR($I$34)),1,IF(AND(LEN($I$34)>0,ABS((1-($I$34*-0.0562328100204468+ 0.47296667098999)/ 0.479014793831592))<0.00005),0,1)) -> 1 | E34: 13 | F34: 98.25084373 | H34: 90.03653682
A35: =IF(OR(NOT(ISNUMBER($G$35)),ISERROR($G$35)),1,IF(AND(LEN($G$35)>0,ABS((1-($G$35*-2.82200157642365+-0.12100875377655)/-0.0613079990431644))<0.00005),0,1)) -> 1 | B35: =IF(OR(NOT(ISNUMBER($I$35)),ISERROR($I$35)),1,IF(AND(LEN($I$35)>0,ABS((1-($I$35*-1.04155719280243+-0.218496561050415)/-0.201303968590249))<0.00005),0,1)) -> 1 | E35: 14 | F35: 96.17230148 | H35: 88.5503376
A36: =IF(OR(NOT(ISNUMBER($G$36)),ISERROR($G$36)),1,IF(AND(LEN($G$36)>0,ABS((1-($G$36* 0.0337117910385132+-0.361267685890198)/-0.361137503014799))<0.00005),0,1)) -> 1 | B36: =IF(OR(NOT(ISNUMBER($I$36)),ISERROR($I$36)),1,IF(AND(LEN($I$36)>0,ABS((1-($I$36* 0.172558426856995+ 0.465364456176758)/ 0.466130500483232))<0.00005),0,1)) -> 1 | E36: 15 | F36: 96.54368449 | H36: 88.94344203
A37: =IF(OR(NOT(ISNUMBER($G$37)),ISERROR($G$37)),1,IF(AND(LEN($G$37)>0,ABS((1-($G$37* 0.575010180473328+ 0.409204125404358)/ 0.415108892408288))<0.00005),0,1)) -> 1 | B37: =IF(OR(NOT(ISNUMBER($I$37)),ISERROR($I$37)),1,IF(AND(LEN($I$37)>0,ABS((1-($I$37* 1.57256424427032+-0.0588853359222412)/-0.101161689369265))<0.00005),0,1)) -> 1 | E37: 16 | F37: 97.53508949 | H37: 86.55231276
A38: =IF(OR(NOT(ISNUMBER($G$38)),ISERROR($G$38)),1,IF(AND(LEN($G$38)>0,ABS((1-($G$38* 1.9299453496933+-0.435508847236633)/-0.415561851658492))<0.00005),0,1)) -> 1 | B38: =IF(OR(NOT(ISNUMBER($I$38)),ISERROR($I$38)),1,IF(AND(LEN($I$38)>0,ABS((1-($I$38* 2.56092607975006+ 0.200514316558838)/ 0.366196245557153))<0.00005),0,1)) -> 1 | E38: 17 | F38: 98.5431657 | H38: 92.15190982
A39: =IF(OR(NOT(ISNUMBER($G$39)),ISERROR($G$39)),1,IF(AND(LEN($G$39)>0,ABS((1-($G$39*-0.0292903184890747+-0.344564318656921)/-0.345218275209059))<0.00005),0,1)) -> 1 | B39: =IF(OR(NOT(ISNUMBER($I$39)),ISERROR($I$39)),1,IF(AND(LEN($I$39)>0,ABS((1-($I$39*-2.7626246213913+-0.173856019973755)/-0.209016839629281))<0.00005),0,1)) -> 1 | E39: 18 | F39: 100.7433107 | H39: 93.32475706
A40: =IF(OR(NOT(ISNUMBER($G$40)),ISERROR($G$40)),1,IF(AND(LEN($G$40)>0,ABS((1-($G$40* 2.84488618373871+-0.449737191200256)/-0.400191571131448))<0.00005),0,1)) -> 1 | B40: =IF(OR(NOT(ISNUMBER($I$40)),ISERROR($I$40)),1,IF(AND(LEN($I$40)>0,ABS((1-($I$40* 0.180159211158752+ 0.25702953338623)/ 0.272554567664064))<0.00005),0,1)) -> 1 | E40: 19 | F40: 102.4978237 | H40: 101.3669218
A41: =IF(OR(NOT(ISNUMBER($G$41)),ISERROR($G$41)),1,IF(AND(LEN($G$41)>0,ABS((1-($G$41* 3.00669848918915+-0.174794554710388)/-0.215072540550889))<0.00005),0,1)) -> 1 | B41: =IF(OR(NOT(ISNUMBER($I$41)),ISERROR($I$41)),1,IF(AND(LEN($I$41)>0,ABS((1-($I$41* 4.72729027271271+ 0.304267168045044)/ 0.288110159144772))<0.00005),0,1)) -> 1 | E41: 20 | F41: 101.1247543 | H41: 101.0204683
A42: =IF(OR(NOT(ISNUMBER($G$42)),ISERROR($G$42)),1,IF(AND(LEN($G$42)>0,ABS((1-($G$42* 1.74826085567474+ 0.405129313468933)/ 0.372938533916847))<0.00005),0,1)) -> 1 | B42: =IF(OR(NOT(ISNUMBER($I$42)),ISERROR($I$42)),1,IF(AND(LEN($I$42)>0,ABS((1-($I$42* 3.75779688358307+-0.0833516120910645)/-0.342316265353325))<0.00005),0,1)) -> 1 | E42: 21 | F42: 99.26274114 | H42: 94.05874807
E44: Risk / standard deviation is usually expressed on an annualised basis. To convert a weekly standard deviation to a yearly one multiply the weekly standard deviation by the square root of the number of weeks in a year.
M47: Index
A48: =SUM($A$49:$B$54) -> 2 | D48: 2 | E48: Market and asset risk
E50: Risk free rate | F50: [%] | G50: 0.0355
E51: Market return | F51: [%] | G51: 0.09
A52: =IF(OR(NOT(ISNUMBER($G$52)),ISERROR($G$52)),1,IF(AND(LEN($G$52)>0,ABS((1-($G$52*-3.769171833992+ 0.454157948493958)/-0.17047517154241))<0.00005),0,1)) -> 1 | E52: Riskiness of market (annualised standard deviation) | F52: [%] | H52: ="<< =STDEV(" & ADDRESS(ROW(G22),COLUMN(G22),4) & ":" &ADDRESS(ROW(G42),COLUMN(G42),4) & ")*SQRT(52)" -> << =STDEV(G22:G42)*SQRT(52)
A53: =IF(OR(NOT(ISNUMBER($G$53)),ISERROR($G$53)),1,IF(AND(LEN($G$53)>0,ABS((1-($G$53* 2.97297298908234+ 0.196285009384155)/ 1.40968576605045))<0.00005),0,1)) -> 1 | E53: Riskiness of asset (annualised standard deviation) | F53: [%]
M54: Index
A55: =SUM($A$56:$B$58) -> 1 | D55: 3 | E55: Market and asset correlation
A57: =IF(OR(NOT(ISNUMBER($G$57)),ISERROR($G$57)),1,IF(AND(LEN($G$57)>0,ABS((1-($G$57*-0.983954071998596+-0.483702301979065)/-1.15781911600121))<0.00005),0,1)) -> 1 | E57: Correlation of asset with market | F57: [%] | H57: ="<< =CORREL(" & ADDRESS(ROW(G22),COLUMN(G22),4) & ":" &ADDRESS(ROW(G42),COLUMN(G42),4) &"," & ADDRESS(ROW(G22),COLUMN(G22),4) & ":" &ADDRESS(ROW(I42),COLUMN(I42),4) & ")*SQRT(52)" -> << =CORREL(G22:G42,G22:I42)*SQRT(52)
M58: Index
A59: =SUM($A$60:$B$62) -> 1 | D59: 4 | E59: Beta
A61: =IF(OR(NOT(ISNUMBER($G$61)),ISERROR($G$61)),1,IF(AND(LEN($G$61)>0,ABS((1-($G$61*-3.32237184047699+-0.335765838623047)/-5.94163292162629))<0.00005),0,1)) -> 1 | E61: Beta | F61: [#] | H61: ="<< =" &ADDRESS(ROW(G57),COLUMN(G57),4)& "*" &ADDRESS(ROW(G53),COLUMN(G53),4)& "/" & ADDRESS(ROW(G52),COLUMN(G52),4) -> << =G57*G53/G52
M62: Index
A63: =SUM($A$64:$B$66) -> 1 | D63: 5 | E63: Cost of capital
A65: =IF(OR(NOT(ISNUMBER($G$65)),ISERROR($G$65)),1,IF(AND(LEN($G$65)>0,ABS((1-($G$65* 0.0972002744674683+-0.0939372777938843)/-0.0815482934292016))<0.00005),0,1)) -> 1 | E65: Cost of capital | F65: [%] | H65: << =risk free rate + (market return - risk free rate) * beta
M66: Index
A67: =SUM($A$68:$B$77) -> 1 | D67: =D63+1 -> 6 | E67: Net present value
E69: The table below shows free cash flows expected from the asset. The first will be received in one year's time. Using the cost of captial above find the present values of the asset's cash flows.
E72: Period | F72: [yr] | G72: 1 | H72: =G72+1 -> 2 | I72: =H72+1 -> 3 | J72: =I72+1 -> 4 | K72: =J72+1 -> 5 | L72: =K72+1 -> 6
E73: Asset free cash flow | F73: [$m] | G73: 15 | H73: =G73*1.02 -> 15.3 | I73: =H73*1.02 -> 15.606 | J73: =I73*1.02 -> 15.91812 | K73: =J73*1.02 -> 16.2364824 | L73: =K73*1.02 -> 16.56121205
A74: =IF(OR(NOT(ISNUMBER($G$74)),ISERROR($G$74)),1,IF(AND(LEN($G$74)>0,ABS((1-($G$74*-3.93866240978241+-0.223876714706421)/-248.579821150497))<0.00005),0,1)) -> 1 | E74: NPV | F74: [$m]
F77: Copyright (c) 2020 Tykoh Group Pty Ltd. All rights reserved. | M77: Index
F78: www.tykoh.com

Sheet DCF_steady_state
D1: Click here to see what your answer should look like.
L2: DCF | M2: DCF_steady_state
D3: The questions on this page relate to a valuing a firm in a "steady-state" where growth, leverage, tax and return on capital do not change from year to year. Steady state scenarios are often used in the terminal phase of discounted cash flow (DCF) models.
D6: ="The table below on the left shows assumptions to be used in a DCF valuation. The table below on the right shows formulae that are useful in performing the valuation. The symbols used in the formula are defined in various rows in column " & CHAR(CODE("A") + COLUMN(E:E)-1)&"." -> The table below on the left shows assumptions to be used in a DCF valuation. The table below on the right shows formulae that are useful in performing the valuation. The symbols used in the formula are defined in various rows in column E.
D9: Assumptions | E9: Symbol | F9: Units | G9: Value | I9: Formulae
D10: Unlevered cost of equity | E10: Ku | F10: [%] | G10: 0.1 | I10: EBIT x (1 - t) = C x ROC
D11: Pre-tax cost of debt | E11: Kd | F11: [%] | G11: 0.06 | I11: FCFE = (EBIT - I) x (1 - t) + Depn - CAPEX + Dd
D12: Growth rate | E12: g | F12: [%] | G12: 0.03 | I12: FCFD = -Dd + (1 - t) * I
D13: Tax rate | E13: t | F13: [%] | G13: 0.3 | I13: FCFF = FCFE + FCFD
D14: Return on capital | E14: ROC | F14: [%] | G14: 0.12 | I14: S = D x (Ku - Kd)
D15: Depreciation rate | F15: [%] | G15: 0.05 | I15: Ke = (Ku - S x g / FCFE) / (1 - S / FCFE)
D16: Debt / equity ratio | F16: [%] | G16: 0.25
D18: ="Consider the assumptions shown above. Calculate the book values of debt and equity in cells "&ADDRESS(ROW(G23),COLUMN(G23),4)&" and "&ADDRESS(ROW(G24),COLUMN(G24),4)&" below. Their ratio should be in accord with the debt/equity ratio in cell " & ADDRESS(ROW(G16),COLUMN(G16),4) -> Consider the assumptions shown above. Calculate the book values of debt and equity in cells G23 and G24 below. Their ratio should be in accord with the debt/equity ratio in cell G16
A21: =SUM($A$22:$A$30) -> 2 | C21: 1 | D21: Balance sheet
A23: =IF(OR(NOT(ISNUMBER($G$23)),ISERROR($G$23)),1,IF(AND(LEN($G$23)>0,ABS((1-($G$23* 1.43046796321869+ 0.34909999370575)/ 28.9584592580795))<0.00005),0,1)) -> 1 | D23: Debt | E23: D | F23: [$m]
A24: =IF(OR(NOT(ISNUMBER($G$24)),ISERROR($G$24)),1,IF(AND(LEN($G$24)>0,ABS((1-($G$24*-0.0203078985214233+-0.312224864959717)/-1.93685674667358))<0.00005),0,1)) -> 1 | D24: Equity | E24: E | F24: [$m]
D25: Assets | E25: C | F25: [$m] | G25: 100
D27: Calculate the components of the income statement below. The first calculation will need to be for earnings before interest and taxes (EBIT). Once EBIT is known then EBITDA (earnings before interest, taxes, depreciation and amortisation) and the other sections can be determined.
N30: Index
A31: =SUM($A$32:$A$43) -> 7 | C31: 2 | D31: Income statement
A33: =IF(OR(NOT(ISNUMBER($G$33)),ISERROR($G$33)),1,IF(AND(LEN($G$33)>0,ABS((1-($G$33* 3.96616637706757+-0.127185702323914)/ 87.6950697898865))<0.00005),0,1)) -> 1 | D33: EBITDA | F33: [$m]
A34: =IF(OR(NOT(ISNUMBER($G$34)),ISERROR($G$34)),1,IF(AND(LEN($G$34)>0,ABS((1-($G$34*-1.76445186138153+ 0.270832777023315)/ 9.09309208393096))<0.00005),0,1)) -> 1 | D34: (Depreciation) | E34: Depn | F34: [$m]
A35: =IF(OR(NOT(ISNUMBER($G$35)),ISERROR($G$35)),1,IF(AND(LEN($G$35)>0,ABS((1-($G$35*-2.8199964761734+-0.0530067682266235)/-48.3958035026278))<0.00005),0,1)) -> 1 | D35: EBIT | E35: EBIT | F35: [$m]
A36: =IF(OR(NOT(ISNUMBER($G$36)),ISERROR($G$36)),1,IF(AND(LEN($G$36)>0,ABS((1-($G$36*-2.63972222805023+ 0.378384590148926)/ 3.5460512638092))<0.00005),0,1)) -> 1 | D36: (Interest) | E36: I | F36: [$m]
A37: =IF(OR(NOT(ISNUMBER($G$37)),ISERROR($G$37)),1,IF(AND(LEN($G$37)>0,ABS((1-($G$37* 1.10432803630829+-0.12556779384613)/ 17.4805763278689))<0.00005),0,1)) -> 1 | D37: EBT | F37: [$m]
A38: =IF(OR(NOT(ISNUMBER($G$38)),ISERROR($G$38)),1,IF(AND(LEN($G$38)>0,ABS((1-($G$38*-1.10498130321503+ 0.360589265823364)/ 5.64555698462895))<0.00005),0,1)) -> 1 | D38: (Tax) | F38: [$m]
A39: =IF(OR(NOT(ISNUMBER($G$39)),ISERROR($G$39)),1,IF(AND(LEN($G$39)>0,ABS((1-($G$39* 0.859379172325134+ 0.431559443473816)/ 10.0222310066223))<0.00005),0,1)) -> 1 | D39: Net profit | F39: [$m]
D41: Calculate the cash flow from operations. A non-cash item (depreciation) was deducted in calculating net income. That deduction needs to be reversed to obtain the cash flow from operations.
N43: Index
A44: =SUM($A$45:$A$72) -> 10 | C44: 3 | D44: Cash flow statement
D46: Cash flow from operations
A47: =IF(OR(NOT(ISNUMBER($G$47)),ISERROR($G$47)),1,IF(AND(LEN($G$47)>0,ABS((1-($G$47* 0.171924233436584+-0.169699192047119)/ 1.74897525310516))<0.00005),0,1)) -> 1 | D47: Net profit | F47: [$m]
A48: =IF(OR(NOT(ISNUMBER($G$48)),ISERROR($G$48)),1,IF(AND(LEN($G$48)>0,ABS((1-($G$48* 3.68453681468964+-0.240939021110535)/ 18.1817450523376))<0.00005),0,1)) -> 1 | D48: Plus depreciation | F48: [$m]
A49: =IF(OR(NOT(ISNUMBER($G$49)),ISERROR($G$49)),1,IF(AND(LEN($G$49)>0,ABS((1-($G$49*-2.4045866727829+-0.321306467056274)/-39.1794270992279))<0.00005),0,1)) -> 1 | D49: Cash flow from operations | F49: [$m]
D51: Calculate the cash flow from financing. There are two components here: Dividends (outgoing) and net borrowing (incoming - in this case). Both of these are driven by the growth assumption. Both equity and debt in the next period should be the current periods' increased by the growth factor.
D55: Cash flow from financing
A56: =IF(OR(NOT(ISNUMBER($G$56)),ISERROR($G$56)),1,IF(AND(LEN($G$56)>0,ABS((1-($G$56*-1.53042852878571+-0.497494339942932)/ 12.9090595722198))<0.00005),0,1)) -> 1 | D56: Dividends | F56: [$m]
A57: =IF(OR(NOT(ISNUMBER($G$57)),ISERROR($G$57)),1,IF(AND(LEN($G$57)>0,ABS((1-($G$57* 2.42342054843903+ 0.340887069702148)/ 1.79493939876556))<0.00005),0,1)) -> 1 | D57: Net borrowing | E57: Dd | F57: [$m]
A58: =IF(OR(NOT(ISNUMBER($G$58)),ISERROR($G$58)),1,IF(AND(LEN($G$58)>0,ABS((1-($G$58*-2.21410572528839+ 0.202970147132874)/ 18.2700728654861))<0.00005),0,1)) -> 1 | D58: Cash flow from financing | F58: [$m]
D60: Calculate capital expenditure (CAPEX). This has two components: Replacement CAPEX (i.e. expenditures to "make up" for depreciation) plus growth CAPEX.
D63: Cash flow from investing
A64: =IF(OR(NOT(ISNUMBER($G$64)),ISERROR($G$64)),1,IF(AND(LEN($G$64)>0,ABS((1-($G$64*-0.951353907585144+ 0.311571359634399)/ 5.06834089756011))<0.00005),0,1)) -> 1 | D64: Replacement CAPEX | F64: [$m]
A65: =IF(OR(NOT(ISNUMBER($G$65)),ISERROR($G$65)),1,IF(AND(LEN($G$65)>0,ABS((1-($G$65* 2.41780698299408+-0.0623360872268677)/-7.31575703620911))<0.00005),0,1)) -> 1 | D65: Growth CAPEX | F65: [$m]
A66: =IF(OR(NOT(ISNUMBER($G$66)),ISERROR($G$66)),1,IF(AND(LEN($G$66)>0,ABS((1-($G$66*-4.22019422054291+-0.0893683433532715)/ 33.67218542099))<0.00005),0,1)) -> 1 | D66: Total CAPEX | E66: CAPEX | F66: [$m]
D67: Other investments | F67: [$m] | G67: 0
A68: =IF(OR(NOT(ISNUMBER($G$68)),ISERROR($G$68)),1,IF(AND(LEN($G$68)>0,ABS((1-($G$68*-1.60624802112579+ 0.210554242134094)/ 13.0605384111404))<0.00005),0,1)) -> 1 | D68: Cash flow from investing | F68: [$m]
D70: Generate the statement of changes in equity. Retained earnings will be previous retained earnings (none) plus net income less dividends paid.
N72: Index
A73: =SUM($A$74:$A$80) -> 3 | C73: 4 | D73: Statement of changes in equity
A75: =IF(OR(NOT(ISNUMBER($G$75)),ISERROR($G$75)),1,IF(AND(LEN($G$75)>0,ABS((1-($G$75*-1.87711894512177+ 0.298773527145386)/-149.870742082596))<0.00005),0,1)) -> 1 | D75: Opening equity | F75: [$m]
A76: =IF(OR(NOT(ISNUMBER($G$76)),ISERROR($G$76)),1,IF(AND(LEN($G$76)>0,ABS((1-($G$76*-3.48243772983551+ 0.0929912328720093)/-8.26485931873322))<0.00005),0,1)) -> 1 | D76: Retained earnings | F76: [$m]
A77: =IF(OR(NOT(ISNUMBER($G$77)),ISERROR($G$77)),1,IF(AND(LEN($G$77)>0,ABS((1-($G$77* 4.56236898899078+-0.256852149963379)/ 375.682352542877))<0.00005),0,1)) -> 1 | D77: Closing equity | F77: [$m]
D79: Calculate free cash flows to equity, to debt and to the firm (equity + debt).
N80: Index
A81: =SUM($A$82:$A$96) -> 3 | C81: 5 | D81: Free cash flows
A83: =IF(OR(NOT(ISNUMBER($G$83)),ISERROR($G$83)),1,IF(AND(LEN($G$83)>0,ABS((1-($G$83* 4.39971148967743+-0.385667204856873)/ 38.1558054447174))<0.00005),0,1)) -> 1 | D83: Free cash flow to equity | E83: FCFE | F83: [$m]
A84: =IF(OR(NOT(ISNUMBER($G$84)),ISERROR($G$84)),1,IF(AND(LEN($G$84)>0,ABS((1-($G$84* 4.84253227710724+ 0.132975816726685)/ 1.29518356323242))<0.00005),0,1)) -> 1 | D84: Free cash flow to debt | E84: FCFD | F84: [$m]
A85: =IF(OR(NOT(ISNUMBER($G$85)),ISERROR($G$85)),1,IF(AND(LEN($G$85)>0,ABS((1-($G$85* 0.988563895225525+ 0.402569651603699)/ 9.29964470863342))<0.00005),0,1)) -> 1 | D85: Free cash flow to the firm | E85: FCFF | F85: [$m]
D87: The preceding sections describe the firm from a "book" or accounting perspective. Next analyse the firm from a "market value" perspective.
D90: ="If the firm were solely financed by equity then the 'unlevered' equity discount rate in cell "&ADDRESS(ROW(G10),COLUMN(G10),4)&" should be used to discount equity cash flows. However, the firm is partly financed by debt. Debt financing increases the volatility and risk of equity cash flows because interest payments must be made in both good years and bad years." -> If the firm were solely financed by equity then the 'unlevered' equity discount rate in cell G10 should be used to discount equity cash flows. However, the firm is partly financed by debt. Debt financing increases the volatility and risk of equity cash flows because interest payments must be made in both good years and bad years.
D94: Calculate the risky / leveraged cost of equity below. Use two of the formulae (for S and Ke) from the formula box on the top of this page.
N96: Index
A97: =SUM($A$98:$A$104) -> 3 | C97: 6 | D97: Levered cost of equity
A99: =IF(OR(NOT(ISNUMBER($G$99)),ISERROR($G$99)),1,IF(AND(LEN($G$99)>0,ABS((1-($G$99* 0.7486492395401+-0.254826068878174)/-0.179961144924164))<0.00005),0,1)) -> 1 | D99: Unlevered cost of equity | F99: [%]
A100: =IF(OR(NOT(ISNUMBER($G$100)),ISERROR($G$100)),1,IF(AND(LEN($G$100)>0,ABS((1-($G$100* 3.60162436962128+-0.425049662590027)/ 2.456249833107))<0.00005),0,1)) -> 1 | D100: Dollar spread between Ku & Kd | E100: S | F100: [$m]
A101: =IF(OR(NOT(ISNUMBER($G$101)),ISERROR($G$101)),1,IF(AND(LEN($G$101)>0,ABS((1-($G$101*-0.611736178398132+ 0.259979009628296)/ 0.194501720181662))<0.00005),0,1)) -> 1 | D101: Levered cost of equity | E101: Ke | F101: [%]
D103: Using terminal value formulae and appropriate discount rates determine the market values of debt and equity.
N104: Index
A105: =SUM($A$106:$A$113) -> 3 | C105: 7 | D105: Market values
A107: =IF(OR(NOT(ISNUMBER($G$107)),ISERROR($G$107)),1,IF(AND(LEN($G$107)>0,ABS((1-($G$107*-2.54321157932281+-0.121393799781799)/-289.320881962776))<0.00005),0,1)) -> 1 | D107: Market value of equity | F107: [$m]
A108: =IF(OR(NOT(ISNUMBER($G$108)),ISERROR($G$108)),1,IF(AND(LEN($G$108)>0,ABS((1-($G$108*-1.02756440639496+ 0.0265731811523438)/-20.5247149467468))<0.00005),0,1)) -> 1 | D108: Market value of debt | F108: [$m]
A109: =IF(OR(NOT(ISNUMBER($G$109)),ISERROR($G$109)),1,IF(AND(LEN($G$109)>0,ABS((1-($G$109*-2.29640781879425+ 0.0811764001846313)/-306.981354798589))<0.00005),0,1)) -> 1 | D109: Market value of firm | F109: [$m]
D111: Summarise below the book values of debt and equity. How do they compare with market values? When would they be the same? When would they be greater? When would they be less?
N113: Index
A114: =SUM($A$115:$A$122) -> 3 | C114: 8 | D114: Book values
A116: =IF(OR(NOT(ISNUMBER($G$116)),ISERROR($G$116)),1,IF(AND(LEN($G$116)>0,ABS((1-($G$116*-2.90301024913788+-0.42129111289978)/-232.66211104393))<0.00005),0,1)) -> 1 | D116: Book value of equity | F116: [$m]
A117: =IF(OR(NOT(ISNUMBER($G$117)),ISERROR($G$117)),1,IF(AND(LEN($G$117)>0,ABS((1-($G$117* 3.95446240901947+-0.388567090034485)/ 78.7006810903549))<0.00005),0,1)) -> 1 | D117: Book value of debt | F117: [$m]
A118: =IF(OR(NOT(ISNUMBER($G$118)),ISERROR($G$118)),1,IF(AND(LEN($G$118)>0,ABS((1-($G$118* 1.52376711368561+ 0.400333881378174)/ 152.777045249939))<0.00005),0,1)) -> 1 | D118: Book value of firm | F118: [$m]
D120: Calculate the weighted average cost of capital (WACC). Do this twice: Once using market value weights for debt and equity, and again with book value weights.
N122: Index
A123: =SUM($A$124:$A$131) -> 2 | C123: 9 | D123: WACC
A125: =IF(OR(NOT(ISNUMBER($G$125)),ISERROR($G$125)),1,IF(AND(LEN($G$125)>0,ABS((1-($G$125*-2.68403351306915+ 0.449905514717102)/ 0.188728407483834))<0.00005),0,1)) -> 1 | D125: WACC (on market value basis) | F125: [%]
A126: =IF(OR(NOT(ISNUMBER($G$126)),ISERROR($G$126)),1,IF(AND(LEN($G$126)>0,ABS((1-($G$126* 3.461874127388+-0.0587837696075439)/ 0.266729817940362))<0.00005),0,1)) -> 1 | D126: WACC (on book value basis) | F126: [%]
D128: ="Using the free cash flow to the firm (in cell " & ADDRESS(ROW(G85),COLUMN(G85),4) & ") and the WACC you have just calculated determine the market value of the firm (use a terminal value formula). Do this twice - once using the market-value-weighted WACC, and again using the book-value-weighted WACC. Which gives the correct answer?" -> Using the free cash flow to the firm (in cell G85) and the WACC you have just calculated determine the market value of the firm (use a terminal value formula). Do this twice - once using the market-value-weighted WACC, and again using the book-value-weighted WACC. Which gives the correct answer?
N131: Index
A132: =SUM($A$133:$A$138) -> 2 | C132: 10 | D132: Market value reconciliation
A134: =IF(OR(NOT(ISNUMBER($G$134)),ISERROR($G$134)),1,IF(AND(LEN($G$134)>0,ABS((1-($G$134*-0.0799375772476196+ 0.269506812095642)/-10.4192892313004))<0.00005),0,1)) -> 1 | D134: Market value of firm (using market value weighted WACC) | F134: [$m]
A135: =IF(OR(NOT(ISNUMBER($G$135)),ISERROR($G$135)),1,IF(AND(LEN($G$135)>0,ABS((1-($G$135* 3.3489328622818+-0.117430686950684)/ 470.619270853413))<0.00005),0,1)) -> 1 | D135: Market value of firm (using book value weighted WACC) | F135: [$m]
D137: Find the P/E and Enterprise value / EBITDA ratios.
N138: Index
A139: =SUM($A$140:$A$145) -> 2 | C139: 11 | D139: Ratios
A141: =IF(OR(NOT(ISNUMBER($G$141)),ISERROR($G$141)),1,IF(AND(LEN($G$141)>0,ABS((1-($G$141*-3.04465115070343+-0.173842787742615)/-21.9992990651866))<0.00005),0,1)) -> 1 | D141: P/E ratio | F141: [#]
A142: =IF(OR(NOT(ISNUMBER($G$142)),ISERROR($G$142)),1,IF(AND(LEN($G$142)>0,ABS((1-($G$142*-0.867668986320496+-0.347323179244995)/-5.58692428373521))<0.00005),0,1)) -> 1 | D142: Enterprise value / EBITDA | F142: [#]
D144: Summarise below the returns on capital and equity.
N145: Index
A146: =SUM($A$147:$A$155) -> 2 | C146: =C139+1 -> 12 | D146: Returns
A148: =IF(OR(NOT(ISNUMBER($G$148)),ISERROR($G$148)),1,IF(AND(LEN($G$148)>0,ABS((1-($G$148* 1.19831502437592+-0.400590062141418)/-0.256792259216309))<0.00005),0,1)) -> 1 | D148: Return on capital | F148: [%]
A149: =IF(OR(NOT(ISNUMBER($G$149)),ISERROR($G$149)),1,IF(AND(LEN($G$149)>0,ABS((1-($G$149*-2.94952809810638+ 0.192517757415771)/-0.218941412270069))<0.00005),0,1)) -> 1 | D149: Return on equity | F149: [%]
F155: Copyright (c) 2020 Tykoh Group Pty Ltd. All rights reserved. | N155: Index
F156: www.tykoh.com

Sheet DCF_time_varying
J1: Click here to see what your answer should look like.
R2: DCF | S2: DCF_time_varying
J3: This page is a progression from the preceding page which considered only a steady-state scenario. Here we allow assumptions to vary over time: So leverage, cost of capital, growth, return on capital etc all have a term structure. Aside from that, the calculations needed on this page are very similar to those on the preceding page. Generally, you will need to "work backwards" from the terminal state. Try to make your formulae "copy-and-pastable" i.e. uniform across each row.
J11: Induction example
J13: Period | L13: [yr] | M13: 1 | N13: =M13+1 -> 2 | O13: 3 | P13: 4 | Q13: 5 | R13: 6 | S13: 7
J14: Terminal year | L14: [0/1] | M14: 0 | N14: 0 | O14: 0 | P14: 0 | Q14: 0 | R14: 0 | S14: 1
J16: Assumptions
J17: Unlevered cost of equity | K17: Ku | L17: [%] | M17: 0.1 | N17: 0.1 | O17: 0.1 | P17: 0.1 | Q17: 0.1 | R17: 0.1 | S17: 0.1
J18: Pre-tax cost of debt | K18: Kd | L18: [%] | M18: 0.06 | N18: 0.06 | O18: 0.06 | P18: 0.06 | Q18: 0.06 | R18: 0.06 | S18: 0.06
J19: Growth rate | K19: g | L19: [%] | M19: 0.09 | N19: =M19-1% -> 0.08 | O19: =N19-1% -> 0.07 | P19: =O19-1% -> 0.06 | Q19: =P19-1% -> 0.05 | R19: =Q19-1% -> 0.04 | S19: 0.04
J20: Tax rate | K20: t | L20: [%] | M20: 0.3 | N20: 0.3 | O20: 0.3 | P20: 0.3 | Q20: 0.3 | R20: 0.3 | S20: 0.3
J21: Return on capital | K21: ROC | L21: [%] | M21: 0.15 | N21: =M21-1% -> 0.14 | O21: =N21-1% -> 0.13 | P21: =O21-1% -> 0.12 | Q21: =P21-1% -> 0.11 | R21: =Q21-1% -> 0.1 | S21: 0.1
J22: Depreciation rate | L22: [%] | M22: 0.05 | N22: 0.05 | O22: 0.05 | P22: 0.05 | Q22: 0.05 | R22: 0.05 | S22: 0.05
J23: Debt / equity ratio | L23: [%] | M23: 0.35 | N23: =M23-3% -> 0.32 | O23: =N23-3% -> 0.29 | P23: =O23-3% -> 0.26 | Q23: =P23-3% -> 0.23 | R23: =Q23-3% -> 0.2 | S23: 0.2
A25: =SUM($A$26:$G$33) -> 20 | I25: 1 | J25: Balance sheet
A27: =IF(OR(NOT(ISNUMBER($M$27)),ISERROR($M$27)),1,IF(AND(LEN($M$27)>0,ABS((1-($M$27* 0.0445908308029175+-0.316923975944519)/ 0.839134600427416))<0.00005),0,1)) -> 1 | B27: =IF(OR(NOT(ISNUMBER($N$27)),ISERROR($N$27)),1,IF(AND(LEN($N$27)>0,ABS((1-($N$27* 4.91402447223663+-0.0286085605621338)/ 129.820765372479))<0.00005),0,1)) -> 1 | C27: =IF(OR(NOT(ISNUMBER($O$27)),ISERROR($O$27)),1,IF(AND(LEN($O$27)>0,ABS((1-($O$27*-4.95980322360992+-0.0741506814956665)/-131.331305945197))<0.00005),0,1)) -> 1 | D27: =IF(OR(NOT(ISNUMBER($P$27)),ISERROR($P$27)),1,IF(AND(LEN($P$27)>0,ABS((1-($P$27*-2.11282670497894+ 0.252542495727539)/-54.6636870212214))<0.00005),0,1)) -> 1 | E27: =IF(OR(NOT(ISNUMBER($Q$27)),ISERROR($Q$27)),1,IF(AND(LEN($Q$27)>0,ABS((1-($Q$27* 3.91279399394989+ 0.321931481361389)/ 98.0118177821656))<0.00005),0,1)) -> 1 | F27: =IF(OR(NOT(ISNUMBER($R$27)),ISERROR($R$27)),1,IF(AND(LEN($R$27)>0,ABS((1-($R$27*-3.23113143444061+-0.39121413230896)/-75.8887139041983))<0.00005),0,1)) -> 1 | G27: =IF(OR(NOT(ISNUMBER($S$27)),ISERROR($S$27)),1,IF(AND(LEN($S$27)>0,ABS((1-($S$27*-4.89706575870514+-0.348343014717102)/-119.348413931785))<0.00005),0,1)) -> 1 | J27: Debt | K27: D | L27: [$m]
A28: =IF(OR(NOT(ISNUMBER($M$28)),ISERROR($M$28)),1,IF(AND(LEN($M$28)>0,ABS((1-($M$28*-1.22592389583588+-0.311868190765381)/-91.1210456600896))<0.00005),0,1)) -> 1 | B28: =IF(OR(NOT(ISNUMBER($N$28)),ISERROR($N$28)),1,IF(AND(LEN($N$28)>0,ABS((1-($N$28* 4.79530990123749+ 0.37211811542511)/ 396.348466020642))<0.00005),0,1)) -> 1 | C28: =IF(OR(NOT(ISNUMBER($O$28)),ISERROR($O$28)),1,IF(AND(LEN($O$28)>0,ABS((1-($O$28* 0.815027356147766+ 0.229410886764526)/ 74.6053956663886))<0.00005),0,1)) -> 1 | D28: =IF(OR(NOT(ISNUMBER($P$28)),ISERROR($P$28)),1,IF(AND(LEN($P$28)>0,ABS((1-($P$28*-3.54999601840973+-0.242210030555725)/-355.130240568093))<0.00005),0,1)) -> 1 | E28: =IF(OR(NOT(ISNUMBER($Q$28)),ISERROR($Q$28)),1,IF(AND(LEN($Q$28)>0,ABS((1-($Q$28*-4.71753060817719+ 0.327898979187012)/-511.765893673932))<0.00005),0,1)) -> 1 | F28: =IF(OR(NOT(ISNUMBER($R$28)),ISERROR($R$28)),1,IF(AND(LEN($R$28)>0,ABS((1-($R$28* 2.83374011516571+ 0.291155457496643)/ 331.352113575648))<0.00005),0,1)) -> 1 | G28: =IF(OR(NOT(ISNUMBER($S$28)),ISERROR($S$28)),1,IF(AND(LEN($S$28)>0,ABS((1-($S$28*-1.67308509349822+-0.0490577220916748)/-203.331241979734))<0.00005),0,1)) -> 1 | J28: Equity | K28: E | L28: [$m]
A29: =IF(OR(NOT(ISNUMBER($N$29)),ISERROR($N$29)),1,IF(AND(LEN($N$29)>0,ABS((1-($N$29* 0.551132559776306+ 0.303330302238464)/ 60.3767793178558))<0.00005),0,1)) -> 1 | B29: =IF(OR(NOT(ISNUMBER($O$29)),ISERROR($O$29)),1,IF(AND(LEN($O$29)>0,ABS((1-($O$29* 0.639892220497131+-0.296417713165283)/ 75.031694483757))<0.00005),0,1)) -> 1 | C29: =IF(OR(NOT(ISNUMBER($P$29)),ISERROR($P$29)),1,IF(AND(LEN($P$29)>0,ABS((1-($P$29*-2.92406380176544+-0.135311961174011)/-368.45155805707))<0.00005),0,1)) -> 1 | D29: =IF(OR(NOT(ISNUMBER($Q$29)),ISERROR($Q$29)),1,IF(AND(LEN($Q$29)>0,ABS((1-($Q$29* 0.735195279121399+-0.155819177627563)/ 98.0060017447901))<0.00005),0,1)) -> 1 | E29: =IF(OR(NOT(ISNUMBER($R$29)),ISERROR($R$29)),1,IF(AND(LEN($R$29)>0,ABS((1-($R$29* 0.282296538352966+-0.0745149850845337)/ 39.5017447969902))<0.00005),0,1)) -> 1 | F29: =IF(OR(NOT(ISNUMBER($S$29)),ISERROR($S$29)),1,IF(AND(LEN($S$29)>0,ABS((1-($S$29* 0.730133652687073+-0.449954986572266)/ 106.004759811875))<0.00005),0,1)) -> 1 | J29: Assets | K29: C | L29: [$m] | M29: 100
J31: Debt / Equity ratio check | L31: [%] | M31: =IF(M28=0,"",M27/M28) -> 
J32: Growth rate check | L32: [%] | M32: =IF(M14=0,IF(OR(M29=0,N29=0),"",N29/M29-1),M19) -> 
T33: Index
A34: =SUM($A$35:$G$43) -> 49 | I34: 2 | J34: Income statement
A36: =IF(OR(NOT(ISNUMBER($M$36)),ISERROR($M$36)),1,IF(AND(LEN($M$36)>0,ABS((1-($M$36* 0.475999712944031+-0.293514609336853)/ 12.286477804184))<0.00005),0,1)) -> 1 | B36: =IF(OR(NOT(ISNUMBER($N$36)),ISERROR($N$36)),1,IF(AND(LEN($N$36)>0,ABS((1-($N$36* 4.62678253650665+ 0.43305230140686)/ 126.512876421213))<0.00005),0,1)) -> 1 | C36: =IF(OR(NOT(ISNUMBER($O$36)),ISERROR($O$36)),1,IF(AND(LEN($O$36)>0,ABS((1-($O$36* 4.92572247982025+ 0.339586138725281)/ 137.019940858058))<0.00005),0,1)) -> 1 | D36: =IF(OR(NOT(ISNUMBER($P$36)),ISERROR($P$36)),1,IF(AND(LEN($P$36)>0,ABS((1-($P$36*-0.906767249107361+ 0.305275440216064)/-24.9855797564864))<0.00005),0,1)) -> 1 | E36: =IF(OR(NOT(ISNUMBER($Q$36)),ISERROR($Q$36)),1,IF(AND(LEN($Q$36)>0,ABS((1-($Q$36* 4.89428222179413+-0.241557955741882)/ 135.121098068659))<0.00005),0,1)) -> 1 | F36: =IF(OR(NOT(ISNUMBER($R$36)),ISERROR($R$36)),1,IF(AND(LEN($R$36)>0,ABS((1-($R$36*-3.25515925884247+ 0.194607496261597)/-87.8164349930435))<0.00005),0,1)) -> 1 | G36: =IF(OR(NOT(ISNUMBER($S$36)),ISERROR($S$36)),1,IF(AND(LEN($S$36)>0,ABS((1-($S$36*-4.83011305332184+-0.160909295082092)/-135.978355206417))<0.00005),0,1)) -> 1 | J36: EBITDA | L36: [$m]
A37: =IF(OR(NOT(ISNUMBER($M$37)),ISERROR($M$37)),1,IF(AND(LEN($M$37)>0,ABS((1-($M$37* 1.92547857761383+-0.389613151550293)/-10.0170060396194))<0.00005),0,1)) -> 1 | B37: =IF(OR(NOT(ISNUMBER($N$37)),ISERROR($N$37)),1,IF(AND(LEN($N$37)>0,ABS((1-($N$37*-3.90261471271515+-0.209422469139099)/ 21.0598277151585))<0.00005),0,1)) -> 1 | C37: =IF(OR(NOT(ISNUMBER($O$37)),ISERROR($O$37)),1,IF(AND(LEN($O$37)>0,ABS((1-($O$37*-1.01121604442596+ 0.0590221881866455)/ 6.01103982567787))<0.00005),0,1)) -> 1 | D37: =IF(OR(NOT(ISNUMBER($P$37)),ISERROR($P$37)),1,IF(AND(LEN($P$37)>0,ABS((1-($P$37*-1.8904834985733+-0.204419255256653)/ 11.701883628428))<0.00005),0,1)) -> 1 | E37: =IF(OR(NOT(ISNUMBER($Q$37)),ISERROR($Q$37)),1,IF(AND(LEN($Q$37)>0,ABS((1-($Q$37* 3.07941019535065+-0.190382480621338)/-20.748220699055))<0.00005),0,1)) -> 1 | F37: =IF(OR(NOT(ISNUMBER($R$37)),ISERROR($R$37)),1,IF(AND(LEN($R$37)>0,ABS((1-($R$37*-1.2418395280838+-0.0989636182785034)/ 8.60595427725069))<0.00005),0,1)) -> 1 | G37: =IF(OR(NOT(ISNUMBER($S$37)),ISERROR($S$37)),1,IF(AND(LEN($S$37)>0,ABS((1-($S$37* 3.41427624225616+-0.0904028415679932)/-24.9807638237559))<0.00005),0,1)) -> 1 | J37: (Depreciation) | K37: Depn | L37: [$m]
A38: =IF(OR(NOT(ISNUMBER($M$38)),ISERROR($M$38)),1,IF(AND(LEN($M$38)>0,ABS((1-($M$38* 2.24558770656586+ 0.158763289451599)/ 48.27849985872))<0.00005),0,1)) -> 1 | B38: =IF(OR(NOT(ISNUMBER($N$38)),ISERROR($N$38)),1,IF(AND(LEN($N$38)>0,ABS((1-($N$38*-0.936183333396912+ 0.45033073425293)/-19.9584659337997))<0.00005),0,1)) -> 1 | C38: =IF(OR(NOT(ISNUMBER($O$38)),ISERROR($O$38)),1,IF(AND(LEN($O$38)>0,ABS((1-($O$38* 1.45570933818817+ 0.0160881280899048)/ 31.8412215965135))<0.00005),0,1)) -> 1 | D38: =IF(OR(NOT(ISNUMBER($P$38)),ISERROR($P$38)),1,IF(AND(LEN($P$38)>0,ABS((1-($P$38*-2.76676833629608+ 0.0827581882476807)/-59.6606554712704))<0.00005),0,1)) -> 1 | E38: =IF(OR(NOT(ISNUMBER($Q$38)),ISERROR($Q$38)),1,IF(AND(LEN($Q$38)>0,ABS((1-($Q$38* 2.48532712459564+-0.0435296297073364)/ 52.1021222755174))<0.00005),0,1)) -> 1 | F38: =IF(OR(NOT(ISNUMBER($R$38)),ISERROR($R$38)),1,IF(AND(LEN($R$38)>0,ABS((1-($R$38* 4.04373705387115+-0.21698522567749)/ 80.7697819255913))<0.00005),0,1)) -> 1 | G38: =IF(OR(NOT(ISNUMBER($S$38)),ISERROR($S$38)),1,IF(AND(LEN($S$38)>0,ABS((1-($S$38* 1.67538344860077+ 0.390127301216125)/ 35.2863737511351))<0.00005),0,1)) -> 1 | J38: EBIT | K38: EBIT | L38: [$m]
A39: =IF(OR(NOT(ISNUMBER($M$39)),ISERROR($M$39)),1,IF(AND(LEN($M$39)>0,ABS((1-($M$39*-2.1861857175827+-0.131943941116333)/ 3.26878939734565))<0.00005),0,1)) -> 1 | B39: =IF(OR(NOT(ISNUMBER($N$39)),ISERROR($N$39)),1,IF(AND(LEN($N$39)>0,ABS((1-($N$39*-4.85778868198395+-0.205340981483459)/ 7.49646216522564))<0.00005),0,1)) -> 1 | C39: =IF(OR(NOT(ISNUMBER($O$39)),ISERROR($O$39)),1,IF(AND(LEN($O$39)>0,ABS((1-($O$39* 4.84046041965485+ 0.261282920837402)/-7.42464778495389))<0.00005),0,1)) -> 1 | D39: =IF(OR(NOT(ISNUMBER($P$39)),ISERROR($P$39)),1,IF(AND(LEN($P$39)>0,ABS((1-($P$39* 0.808784365653992+ 0.105673432350159)/-1.15563364264965))<0.00005),0,1)) -> 1 | E39: =IF(OR(NOT(ISNUMBER($Q$39)),ISERROR($Q$39)),1,IF(AND(LEN($Q$39)>0,ABS((1-($Q$39*-2.3195618391037+ 0.00816655158996582)/ 3.48288665206188))<0.00005),0,1)) -> 1 | F39: =IF(OR(NOT(ISNUMBER($R$39)),ISERROR($R$39)),1,IF(AND(LEN($R$39)>0,ABS((1-($R$39* 2.93596684932709+ 0.35741126537323)/-3.75863590326918))<0.00005),0,1)) -> 1 | G39: =IF(OR(NOT(ISNUMBER($S$39)),ISERROR($S$39)),1,IF(AND(LEN($S$39)>0,ABS((1-($S$39*-4.06847417354584+ 0.0418734550476074)/ 5.97377724027547))<0.00005),0,1)) -> 1 | J39: (Interest) | K39: I | L39: [$m]
A40: =IF(OR(NOT(ISNUMBER($M$40)),ISERROR($M$40)),1,IF(AND(LEN($M$40)>0,ABS((1-($M$40*-0.846236348152161+-0.426628947257996)/-17.2438973264089))<0.00005),0,1)) -> 1 | B40: =IF(OR(NOT(ISNUMBER($N$40)),ISERROR($N$40)),1,IF(AND(LEN($N$40)>0,ABS((1-($N$40*-0.48623263835907+ 0.198890447616577)/-9.6300813219764))<0.00005),0,1)) -> 1 | C40: =IF(OR(NOT(ISNUMBER($O$40)),ISERROR($O$40)),1,IF(AND(LEN($O$40)>0,ABS((1-($O$40*-0.00742971897125244+-0.0930658578872681)/-0.243699208905927))<0.00005),0,1)) -> 1 | D40: =IF(OR(NOT(ISNUMBER($P$40)),ISERROR($P$40)),1,IF(AND(LEN($P$40)>0,ABS((1-($P$40* 4.4507223367691+ 0.484649658203125)/ 89.6490933661441))<0.00005),0,1)) -> 1 | E40: =IF(OR(NOT(ISNUMBER($Q$40)),ISERROR($Q$40)),1,IF(AND(LEN($Q$40)>0,ABS((1-($Q$40* 0.914422869682312+ 0.0319896936416626)/ 17.8480531904264))<0.00005),0,1)) -> 1 | F40: =IF(OR(NOT(ISNUMBER($R$40)),ISERROR($R$40)),1,IF(AND(LEN($R$40)>0,ABS((1-($R$40* 1.15071594715118+-0.410846471786499)/ 21.0221175913371))<0.00005),0,1)) -> 1 | G40: =IF(OR(NOT(ISNUMBER($S$40)),ISERROR($S$40)),1,IF(AND(LEN($S$40)>0,ABS((1-($S$40*-3.15575182437897+-0.216440320014954)/-61.3458617345348))<0.00005),0,1)) -> 1 | J40: EBT | L40: [$m]
A41: =IF(OR(NOT(ISNUMBER($M$41)),ISERROR($M$41)),1,IF(AND(LEN($M$41)>0,ABS((1-($M$41*-4.81191098690032+-0.347400188446045)/ 28.3407548382169))<0.00005),0,1)) -> 1 | B41: =IF(OR(NOT(ISNUMBER($N$41)),ISERROR($N$41)),1,IF(AND(LEN($N$41)>0,ABS((1-($N$41*-0.79888641834259+ 0.0484238862991333)/ 4.89316163128073))<0.00005),0,1)) -> 1 | C41: =IF(OR(NOT(ISNUMBER($O$41)),ISERROR($O$41)),1,IF(AND(LEN($O$41)>0,ABS((1-($O$41* 0.584447979927062+ 0.281006574630737)/-3.27379912070468))<0.00005),0,1)) -> 1 | D41: =IF(OR(NOT(ISNUMBER($P$41)),ISERROR($P$41)),1,IF(AND(LEN($P$41)>0,ABS((1-($P$41*-4.57052290439606+-0.0942550897598267)/ 27.3750926737346))<0.00005),0,1)) -> 1 | E41: =IF(OR(NOT(ISNUMBER($Q$41)),ISERROR($Q$41)),1,IF(AND(LEN($Q$41)>0,ABS((1-($Q$41*-4.41008508205414+-0.188162803649902)/ 25.5888683008094))<0.00005),0,1)) -> 1 | F41: =IF(OR(NOT(ISNUMBER($R$41)),ISERROR($R$41)),1,IF(AND(LEN($R$41)>0,ABS((1-($R$41* 1.03043735027313+ 0.0176931619644165)/-5.74011181650506))<0.00005),0,1)) -> 1 | G41: =IF(OR(NOT(ISNUMBER($S$41)),ISERROR($S$41)),1,IF(AND(LEN($S$41)>0,ABS((1-($S$41* 0.964377522468567+-0.170374631881714)/-5.77460239639609))<0.00005),0,1)) -> 1 | J41: (Tax) | L41: [$m]
A42: =IF(OR(NOT(ISNUMBER($M$42)),ISERROR($M$42)),1,IF(AND(LEN($M$42)>0,ABS((1-($M$42* 4.09298360347748+ 0.270071864128113)/ 57.2080215480593))<0.00005),0,1)) -> 1 | B42: =IF(OR(NOT(ISNUMBER($N$42)),ISERROR($N$42)),1,IF(AND(LEN($N$42)>0,ABS((1-($N$42* 0.758739113807678+-0.0683999061584473)/ 10.6678965067863))<0.00005),0,1)) -> 1 | C42: =IF(OR(NOT(ISNUMBER($O$42)),ISERROR($O$42)),1,IF(AND(LEN($O$42)>0,ABS((1-($O$42* 2.32524573802947+-0.337057948112488)/ 32.6630718241625))<0.00005),0,1)) -> 1 | D42: =IF(OR(NOT(ISNUMBER($P$42)),ISERROR($P$42)),1,IF(AND(LEN($P$42)>0,ABS((1-($P$42*-4.4038313627243+-0.256689310073853)/-62.0142200546584))<0.00005),0,1)) -> 1 | E42: =IF(OR(NOT(ISNUMBER($Q$42)),ISERROR($Q$42)),1,IF(AND(LEN($Q$42)>0,ABS((1-($Q$42* 2.58574426174164+ 0.451247572898865)/ 35.7166043752155))<0.00005),0,1)) -> 1 | F42: =IF(OR(NOT(ISNUMBER($R$42)),ISERROR($R$42)),1,IF(AND(LEN($R$42)>0,ABS((1-($R$42*-1.54664933681488+ 0.18425178527832)/-19.9810164682748))<0.00005),0,1)) -> 1 | G42: =IF(OR(NOT(ISNUMBER($S$42)),ISERROR($S$42)),1,IF(AND(LEN($S$42)>0,ABS((1-($S$42* 2.91464030742645+-0.46455991268158)/ 39.0566698537422))<0.00005),0,1)) -> 1 | J42: Net profit | L42: [$m]
T43: Index
A44: =SUM($A$45:$G$62) -> 70 | I44: 3 | J44: Cash flow statement
J46: Cash flow from operations
A47: =IF(OR(NOT(ISNUMBER($M$47)),ISERROR($M$47)),1,IF(AND(LEN($M$47)>0,ABS((1-($M$47* 2.94173538684845+-0.0165116786956787)/ 40.9062961472405))<0.00005),0,1)) -> 1 | B47: =IF(OR(NOT(ISNUMBER($N$47)),ISERROR($N$47)),1,IF(AND(LEN($N$47)>0,ABS((1-($N$47*-2.93501436710358+ 0.102104067802429)/-41.428882865689))<0.00005),0,1)) -> 1 | C47: =IF(OR(NOT(ISNUMBER($O$47)),ISERROR($O$47)),1,IF(AND(LEN($O$47)>0,ABS((1-($O$47* 4.08878862857819+ 0.4452805519104)/ 58.4737947634142))<0.00005),0,1)) -> 1 | D47: =IF(OR(NOT(ISNUMBER($P$47)),ISERROR($P$47)),1,IF(AND(LEN($P$47)>0,ABS((1-($P$47* 1.53397262096405+-0.485418200492859)/ 21.0263867478995))<0.00005),0,1)) -> 1 | E47: =IF(OR(NOT(ISNUMBER($Q$47)),ISERROR($Q$47)),1,IF(AND(LEN($Q$47)>0,ABS((1-($Q$47* 1.61924183368683+ 0.464709043502808)/ 22.5485407120458))<0.00005),0,1)) -> 1 | F47: =IF(OR(NOT(ISNUMBER($R$47)),ISERROR($R$47)),1,IF(AND(LEN($R$47)>0,ABS((1-($R$47*-4.90581572055817+ 0.453598380088806)/-63.5085989019924))<0.00005),0,1)) -> 1 | G47: =IF(OR(NOT(ISNUMBER($S$47)),ISERROR($S$47)),1,IF(AND(LEN($S$47)>0,ABS((1-($S$47*-4.26365792751312+-0.206700325012207)/-58.0200106567648))<0.00005),0,1)) -> 1 | J47: Net profit | L47: [$m]
A48: =IF(OR(NOT(ISNUMBER($M$48)),ISERROR($M$48)),1,IF(AND(LEN($M$48)>0,ABS((1-($M$48* 0.824844241142272+ 0.307886719703674)/ 4.43210792541504))<0.00005),0,1)) -> 1 | B48: =IF(OR(NOT(ISNUMBER($N$48)),ISERROR($N$48)),1,IF(AND(LEN($N$48)>0,ABS((1-($N$48*-4.59689795970917+-0.445351362228394)/-25.4984452426434))<0.00005),0,1)) -> 1 | C48: =IF(OR(NOT(ISNUMBER($O$48)),ISERROR($O$48)),1,IF(AND(LEN($O$48)>0,ABS((1-($O$48* 0.643066763877869+-0.185187458992004)/ 3.59990351319313))<0.00005),0,1)) -> 1 | D48: =IF(OR(NOT(ISNUMBER($P$48)),ISERROR($P$48)),1,IF(AND(LEN($P$48)>0,ABS((1-($P$48*-0.876449942588806+ 0.010047435760498)/-5.50985183166266))<0.00005),0,1)) -> 1 | E48: =IF(OR(NOT(ISNUMBER($Q$48)),ISERROR($Q$48)),1,IF(AND(LEN($Q$48)>0,ABS((1-($Q$48* 2.33510673046112+-0.04900062084198)/ 15.5399412031715))<0.00005),0,1)) -> 1 | F48: =IF(OR(NOT(ISNUMBER($R$48)),ISERROR($R$48)),1,IF(AND(LEN($R$48)>0,ABS((1-($R$48*-1.77601993083954+-0.425892114639282)/-12.8752523815307))<0.00005),0,1)) -> 1 | G48: =IF(OR(NOT(ISNUMBER($S$48)),ISERROR($S$48)),1,IF(AND(LEN($S$48)>0,ABS((1-($S$48*-0.912390351295471+ 0.0729535818099976)/-6.57844882065139))<0.00005),0,1)) -> 1 | J48: Plus depreciation | L48: [$m]
A49: =IF(OR(NOT(ISNUMBER($M$49)),ISERROR($M$49)),1,IF(AND(LEN($M$49)>0,ABS((1-($M$49* 2.63420164585114+ 0.0803871154785156)/ 49.8960671292411))<0.00005),0,1)) -> 1 | B49: =IF(OR(NOT(ISNUMBER($N$49)),ISERROR($N$49)),1,IF(AND(LEN($N$49)>0,ABS((1-($N$49* 1.51886165142059+ 0.307689309120178)/ 30.0776538336277))<0.00005),0,1)) -> 1 | C49: =IF(OR(NOT(ISNUMBER($O$49)),ISERROR($O$49)),1,IF(AND(LEN($O$49)>0,ABS((1-($O$49*-0.831210017204285+ 0.297012567520142)/-16.392108758393))<0.00005),0,1)) -> 1 | D49: =IF(OR(NOT(ISNUMBER($P$49)),ISERROR($P$49)),1,IF(AND(LEN($P$49)>0,ABS((1-($P$49* 2.21003949642181+ 0.193353533744812)/ 45.1049169166727))<0.00005),0,1)) -> 1 | E49: =IF(OR(NOT(ISNUMBER($Q$49)),ISERROR($Q$49)),1,IF(AND(LEN($Q$49)>0,ABS((1-($Q$49* 2.3083359003067+-0.307693004608154)/ 46.5844862022193))<0.00005),0,1)) -> 1 | F49: =IF(OR(NOT(ISNUMBER($R$49)),ISERROR($R$49)),1,IF(AND(LEN($R$49)>0,ABS((1-($R$49* 2.73646056652069+-0.430148959159851)/ 54.429677201344))<0.00005),0,1)) -> 1 | G49: =IF(OR(NOT(ISNUMBER($S$49)),ISERROR($S$49)),1,IF(AND(LEN($S$49)>0,ABS((1-($S$49*-2.51930415630341+ 0.450413465499878)/-52.0761726440181))<0.00005),0,1)) -> 1 | J49: Cash flow from operations | L49: [$m]
J51: Cash flow from financing
A52: =IF(OR(NOT(ISNUMBER($M$52)),ISERROR($M$52)),1,IF(AND(LEN($M$52)>0,ABS((1-($M$52* 3.19883286952972+-0.280530571937561)/-17.5843854143162))<0.00005),0,1)) -> 1 | B52: =IF(OR(NOT(ISNUMBER($N$52)),ISERROR($N$52)),1,IF(AND(LEN($N$52)>0,ABS((1-($N$52*-3.15775811672211+-0.263079643249512)/ 17.0102533658228))<0.00005),0,1)) -> 1 | C52: =IF(OR(NOT(ISNUMBER($O$52)),ISERROR($O$52)),1,IF(AND(LEN($O$52)>0,ABS((1-($O$52* 4.25450503826141+-0.242495894432068)/-23.5544040826071))<0.00005),0,1)) -> 1 | D52: =IF(OR(NOT(ISNUMBER($P$52)),ISERROR($P$52)),1,IF(AND(LEN($P$52)>0,ABS((1-($P$52*-2.4408882856369+ 0.214486360549927)/ 13.4951730490411))<0.00005),0,1)) -> 1 | E52: =IF(OR(NOT(ISNUMBER($Q$52)),ISERROR($Q$52)),1,IF(AND(LEN($Q$52)>0,ABS((1-($Q$52* 1.64871633052826+ 0.272883296012878)/-8.56645490562461))<0.00005),0,1)) -> 1 | F52: =IF(OR(NOT(ISNUMBER($R$52)),ISERROR($R$52)),1,IF(AND(LEN($R$52)>0,ABS((1-($R$52* 2.58845865726471+-0.191534519195557)/-21.843743222194))<0.00005),0,1)) -> 1 | G52: =IF(OR(NOT(ISNUMBER($S$52)),ISERROR($S$52)),1,IF(AND(LEN($S$52)>0,ABS((1-($S$52* 3.24584662914276+ 0.218793034553528)/-28.0184509222979))<0.00005),0,1)) -> 1 | J52: Dividends | L52: [$m]
A53: =IF(OR(NOT(ISNUMBER($M$53)),ISERROR($M$53)),1,IF(AND(LEN($M$53)>0,ABS((1-($M$53* 3.95970165729523+-0.277467966079712)/ 1.69571669816168))<0.00005),0,1)) -> 1 | B53: =IF(OR(NOT(ISNUMBER($N$53)),ISERROR($N$53)),1,IF(AND(LEN($N$53)>0,ABS((1-($N$53*-1.43933355808258+ 0.0533021688461304)/-0.00419002711729716))<0.00005),0,1)) -> 1 | C53: =IF(OR(NOT(ISNUMBER($O$53)),ISERROR($O$53)),1,IF(AND(LEN($O$53)>0,ABS((1-($O$53*-1.44422471523285+-0.295694351196289)/ 0.386495988743632))<0.00005),0,1)) -> 1 | D53: =IF(OR(NOT(ISNUMBER($P$53)),ISERROR($P$53)),1,IF(AND(LEN($P$53)>0,ABS((1-($P$53* 0.789586901664734+ 0.129987359046936)/-0.679373637846923))<0.00005),0,1)) -> 1 | E53: =IF(OR(NOT(ISNUMBER($Q$53)),ISERROR($Q$53)),1,IF(AND(LEN($Q$53)>0,ABS((1-($Q$53*-3.60562026500702+-0.439023733139038)/ 5.3340458383259))<0.00005),0,1)) -> 1 | F53: =IF(OR(NOT(ISNUMBER($R$53)),ISERROR($R$53)),1,IF(AND(LEN($R$53)>0,ABS((1-($R$53* 1.3419097661972+ 0.338558077812195)/ 1.59274206039488))<0.00005),0,1)) -> 1 | G53: =IF(OR(NOT(ISNUMBER($S$53)),ISERROR($S$53)),1,IF(AND(LEN($S$53)>0,ABS((1-($S$53* 1.40923082828522+-0.075070858001709)/ 1.29471731122068))<0.00005),0,1)) -> 1 | J53: Net borrowing | K53: Dd | L53: [$m]
A54: =IF(OR(NOT(ISNUMBER($M$54)),ISERROR($M$54)),1,IF(AND(LEN($M$54)>0,ABS((1-($M$54*-3.12892258167267+-0.00451838970184326)/ 15.3619680669572))<0.00005),0,1)) -> 1 | B54: =IF(OR(NOT(ISNUMBER($N$54)),ISERROR($N$54)),1,IF(AND(LEN($N$54)>0,ABS((1-($N$54* 4.73131000995635+ 0.269369840621948)/-25.4225037516248))<0.00005),0,1)) -> 1 | C54: =IF(OR(NOT(ISNUMBER($O$54)),ISERROR($O$54)),1,IF(AND(LEN($O$54)>0,ABS((1-($O$54*-1.19407713413239+-0.0153919458389282)/ 7.09140193183917))<0.00005),0,1)) -> 1 | D54: =IF(OR(NOT(ISNUMBER($P$54)),ISERROR($P$54)),1,IF(AND(LEN($P$54)>0,ABS((1-($P$54* 0.470114350318909+ 0.173949241638184)/-2.8657947277732))<0.00005),0,1)) -> 1 | E54: =IF(OR(NOT(ISNUMBER($Q$54)),ISERROR($Q$54)),1,IF(AND(LEN($Q$54)>0,ABS((1-($Q$54*-4.61808025836945+ 0.14779531955719)/ 32.3010704597567))<0.00005),0,1)) -> 1 | F54: =IF(OR(NOT(ISNUMBER($R$54)),ISERROR($R$54)),1,IF(AND(LEN($R$54)>0,ABS((1-($R$54* 3.99490654468536+-0.159611463546753)/-29.8428778167971))<0.00005),0,1)) -> 1 | G54: =IF(OR(NOT(ISNUMBER($S$54)),ISERROR($S$54)),1,IF(AND(LEN($S$54)>0,ABS((1-($S$54*-3.82756769657135+-0.0744658708572388)/ 29.5030220021732))<0.00005),0,1)) -> 1 | J54: Cash flow from financing | L54: [$m]
J56: Cash flow from investing
A57: =IF(OR(NOT(ISNUMBER($M$57)),ISERROR($M$57)),1,IF(AND(LEN($M$57)>0,ABS((1-($M$57* 2.71596491336823+-0.141895771026611)/-13.7217203378677))<0.00005),0,1)) -> 1 | B57: =IF(OR(NOT(ISNUMBER($N$57)),ISERROR($N$57)),1,IF(AND(LEN($N$57)>0,ABS((1-($N$57*-0.880034565925598+ 0.247573018074036)/ 5.04376140236855))<0.00005),0,1)) -> 1 | C57: =IF(OR(NOT(ISNUMBER($O$57)),ISERROR($O$57)),1,IF(AND(LEN($O$57)>0,ABS((1-($O$57*-0.634166598320007+ 0.219833135604858)/ 3.95253773331642))<0.00005),0,1)) -> 1 | D57: =IF(OR(NOT(ISNUMBER($P$57)),ISERROR($P$57)),1,IF(AND(LEN($P$57)>0,ABS((1-($P$57* 0.0674146413803101+-0.326456665992737)/-0.751035425698757))<0.00005),0,1)) -> 1 | E57: =IF(OR(NOT(ISNUMBER($Q$57)),ISERROR($Q$57)),1,IF(AND(LEN($Q$57)>0,ABS((1-($Q$57*-2.21942842006683+-0.412742614746094)/ 14.4039422380922))<0.00005),0,1)) -> 1 | F57: =IF(OR(NOT(ISNUMBER($R$57)),ISERROR($R$57)),1,IF(AND(LEN($R$57)>0,ABS((1-($R$57* 4.78931605815887+-0.216415762901306)/-33.7880666237355))<0.00005),0,1)) -> 1 | G57: =IF(OR(NOT(ISNUMBER($S$57)),ISERROR($S$57)),1,IF(AND(LEN($S$57)>0,ABS((1-($S$57* 1.18100464344025+-0.193370580673218)/-8.80299376612558))<0.00005),0,1)) -> 1 | J57: Replacement CAPEX | L57: [$m]
A58: =IF(OR(NOT(ISNUMBER($M$58)),ISERROR($M$58)),1,IF(AND(LEN($M$58)>0,ABS((1-($M$58* 3.5230964422226+-0.181032299995422)/-31.8889002799988))<0.00005),0,1)) -> 1 | B58: =IF(OR(NOT(ISNUMBER($N$58)),ISERROR($N$58)),1,IF(AND(LEN($N$58)>0,ABS((1-($N$58* 2.95397341251373+-0.325603008270264)/-26.08425116539))<0.00005),0,1)) -> 1 | C58: =IF(OR(NOT(ISNUMBER($O$58)),ISERROR($O$58)),1,IF(AND(LEN($O$58)>0,ABS((1-($O$58*-1.99967682361603+-0.427276492118835)/ 16.0508604052067))<0.00005),0,1)) -> 1 | D58: =IF(OR(NOT(ISNUMBER($P$58)),ISERROR($P$58)),1,IF(AND(LEN($P$58)>0,ABS((1-($P$58*-0.0664156675338745+-0.0471718311309814)/ 0.454772811799049))<0.00005),0,1)) -> 1 | E58: =IF(OR(NOT(ISNUMBER($Q$58)),ISERROR($Q$58)),1,IF(AND(LEN($Q$58)>0,ABS((1-($Q$58* 0.977954268455505+-0.469735741615295)/-6.99846181594253))<0.00005),0,1)) -> 1 | F58: =IF(OR(NOT(ISNUMBER($R$58)),ISERROR($R$58)),1,IF(AND(LEN($R$58)>0,ABS((1-($R$58*-1.81754052639008+-0.364363670349121)/ 9.82796195383884))<0.00005),0,1)) -> 1 | G58: =IF(OR(NOT(ISNUMBER($S$58)),ISERROR($S$58)),1,IF(AND(LEN($S$58)>0,ABS((1-($S$58*-1.73041164875031+ 0.260010361671448)/ 10.351887533676))<0.00005),0,1)) -> 1 | J58: Growth CAPEX | L58: [$m]
A59: =IF(OR(NOT(ISNUMBER($M$59)),ISERROR($M$59)),1,IF(AND(LEN($M$59)>0,ABS((1-($M$59* 1.27298653125763+ 0.463605165481567)/-17.3582062721252))<0.00005),0,1)) -> 1 | B59: =IF(OR(NOT(ISNUMBER($N$59)),ISERROR($N$59)),1,IF(AND(LEN($N$59)>0,ABS((1-($N$59* 3.27671468257904+ 0.054015040397644)/-46.3770320117474))<0.00005),0,1)) -> 1 | C59: =IF(OR(NOT(ISNUMBER($O$59)),ISERROR($O$59)),1,IF(AND(LEN($O$59)>0,ABS((1-($O$59* 1.06856882572174+-0.309786319732666)/-15.4048169794083))<0.00005),0,1)) -> 1 | D59: =IF(OR(NOT(ISNUMBER($P$59)),ISERROR($P$59)),1,IF(AND(LEN($P$59)>0,ABS((1-($P$59* 4.01996314525604+-0.181410670280457)/-55.8805889040685))<0.00005),0,1)) -> 1 | E59: =IF(OR(NOT(ISNUMBER($Q$59)),ISERROR($Q$59)),1,IF(AND(LEN($Q$59)>0,ABS((1-($Q$59* 1.00487530231476+ 0.0972611904144287)/-13.3196352827325))<0.00005),0,1)) -> 1 | F59: =IF(OR(NOT(ISNUMBER($R$59)),ISERROR($R$59)),1,IF(AND(LEN($R$59)>0,ABS((1-($R$59* 2.6703542470932+ 0.214927077293396)/-33.4781428444104))<0.00005),0,1)) -> 1 | G59: =IF(OR(NOT(ISNUMBER($S$59)),ISERROR($S$59)),1,IF(AND(LEN($S$59)>0,ABS((1-($S$59* 1.87109053134918+ 0.260492324829102)/-24.2922409082463))<0.00005),0,1)) -> 1 | J59: Total CAPEX | K59: CAPEX | L59: [$m]
J60: Other investments | L60: [$m] | M60: 0 | N60: 0 | O60: 0 | P60: 0 | Q60: 0 | R60: 0 | S60: 0
A61: =IF(OR(NOT(ISNUMBER($M$61)),ISERROR($M$61)),1,IF(AND(LEN($M$61)>0,ABS((1-($M$61*-2.41945087909698+ 0.0497299432754517)/ 33.9220422506332))<0.00005),0,1)) -> 1 | B61: =IF(OR(NOT(ISNUMBER($N$61)),ISERROR($N$61)),1,IF(AND(LEN($N$61)>0,ABS((1-($N$61* 0.0911647081375122+ 0.0652220249176025)/-1.22658188939095))<0.00005),0,1)) -> 1 | C61: =IF(OR(NOT(ISNUMBER($O$61)),ISERROR($O$61)),1,IF(AND(LEN($O$61)>0,ABS((1-($O$61*-2.18390047550201+-0.0841675996780396)/ 30.7664840774536))<0.00005),0,1)) -> 1 | D61: =IF(OR(NOT(ISNUMBER($P$61)),ISERROR($P$61)),1,IF(AND(LEN($P$61)>0,ABS((1-($P$61*-1.49493634700775+ 0.471960544586182)/ 21.1852663713861))<0.00005),0,1)) -> 1 | E61: =IF(OR(NOT(ISNUMBER($Q$61)),ISERROR($Q$61)),1,IF(AND(LEN($Q$61)>0,ABS((1-($Q$61* 0.186697840690613+ 0.0828267335891724)/-2.40992594381857))<0.00005),0,1)) -> 1 | F61: =IF(OR(NOT(ISNUMBER($R$61)),ISERROR($R$61)),1,IF(AND(LEN($R$61)>0,ABS((1-($R$61*-0.349981188774109+-0.467961549758911)/ 3.94790974427749))<0.00005),0,1)) -> 1 | G61: =IF(OR(NOT(ISNUMBER($S$61)),ISERROR($S$61)),1,IF(AND(LEN($S$61)>0,ABS((1-($S$61*-1.2225729227066+-0.362311959266663)/ 15.680475028465))<0.00005),0,1)) -> 1 | J61: Cash flow from investing | L61: [$m]
T62: Index
A63: =SUM($A$64:$G$68) -> 21 | I63: 4 | J63: Statement of changes in equity
A65: =IF(OR(NOT(ISNUMBER($M$65)),ISERROR($M$65)),1,IF(AND(LEN($M$65)>0,ABS((1-($M$65* 1.54177725315093+-0.346768379211426)/ 113.858954076414))<0.00005),0,1)) -> 1 | B65: =IF(OR(NOT(ISNUMBER($N$65)),ISERROR($N$65)),1,IF(AND(LEN($N$65)>0,ABS((1-($N$65*-3.01998913288116+-0.124600768089294)/-249.502491286307))<0.00005),0,1)) -> 1 | C65: =IF(OR(NOT(ISNUMBER($O$65)),ISERROR($O$65)),1,IF(AND(LEN($O$65)>0,ABS((1-($O$65*-4.04414832592011+ 0.115386247634888)/-368.936660982842))<0.00005),0,1)) -> 1 | D65: =IF(OR(NOT(ISNUMBER($P$65)),ISERROR($P$65)),1,IF(AND(LEN($P$65)>0,ABS((1-($P$65* 2.02406346797943+-0.0604239702224731)/ 202.282309404441))<0.00005),0,1)) -> 1 | E65: =IF(OR(NOT(ISNUMBER($Q$65)),ISERROR($Q$65)),1,IF(AND(LEN($Q$65)>0,ABS((1-($Q$65*-0.791229605674744+-0.163956165313721)/-86.0529102140869))<0.00005),0,1)) -> 1 | F65: =IF(OR(NOT(ISNUMBER($R$65)),ISERROR($R$65)),1,IF(AND(LEN($R$65)>0,ABS((1-($R$65* 2.00833976268768+-0.286908030509949)/ 234.343954024842))<0.00005),0,1)) -> 1 | G65: =IF(OR(NOT(ISNUMBER($S$65)),ISERROR($S$65)),1,IF(AND(LEN($S$65)>0,ABS((1-($S$65*-4.56067264080048+ 0.386066198348999)/-553.742052992244))<0.00005),0,1)) -> 1 | J65: Opening equity | L65: [$m]
A66: =IF(OR(NOT(ISNUMBER($M$66)),ISERROR($M$66)),1,IF(AND(LEN($M$66)>0,ABS((1-($M$66*-4.56801474094391+-0.0412966012954712)/-38.8771121598254))<0.00005),0,1)) -> 1 | B66: =IF(OR(NOT(ISNUMBER($N$66)),ISERROR($N$66)),1,IF(AND(LEN($N$66)>0,ABS((1-($N$66* 2.3898321390152+ 0.255260467529297)/ 20.9991381674942))<0.00005),0,1)) -> 1 | C66: =IF(OR(NOT(ISNUMBER($O$66)),ISERROR($O$66)),1,IF(AND(LEN($O$66)>0,ABS((1-($O$66* 3.22578608989716+-0.290325522422791)/ 27.8151663453477))<0.00005),0,1)) -> 1 | D66: =IF(OR(NOT(ISNUMBER($P$66)),ISERROR($P$66)),1,IF(AND(LEN($P$66)>0,ABS((1-($P$66*-0.312640070915222+ 0.368004083633423)/-2.31528172216515))<0.00005),0,1)) -> 1 | E66: =IF(OR(NOT(ISNUMBER($Q$66)),ISERROR($Q$66)),1,IF(AND(LEN($Q$66)>0,ABS((1-($Q$66* 3.28341901302338+-0.0895978212356567)/ 27.0873663388839))<0.00005),0,1)) -> 1 | F66: =IF(OR(NOT(ISNUMBER($R$66)),ISERROR($R$66)),1,IF(AND(LEN($R$66)>0,ABS((1-($R$66*-0.374998450279236+-0.151130199432373)/-1.90354702238447))<0.00005),0,1)) -> 1 | G66: =IF(OR(NOT(ISNUMBER($S$66)),ISERROR($S$66)),1,IF(AND(LEN($S$66)>0,ABS((1-($S$66*-2.50729858875275+ 0.30704128742218)/-11.8785704471743))<0.00005),0,1)) -> 1 | J66: Retained earnings | L66: [$m]
A67: =IF(OR(NOT(ISNUMBER($M$67)),ISERROR($M$67)),1,IF(AND(LEN($M$67)>0,ABS((1-($M$67* 0.443113446235657+ 0.0382506847381592)/ 36.6286791996522))<0.00005),0,1)) -> 1 | B67: =IF(OR(NOT(ISNUMBER($N$67)),ISERROR($N$67)),1,IF(AND(LEN($N$67)>0,ABS((1-($N$67* 1.26684129238129+-0.41187059879303)/ 115.19476268735))<0.00005),0,1)) -> 1 | C67: =IF(OR(NOT(ISNUMBER($O$67)),ISERROR($O$67)),1,IF(AND(LEN($O$67)>0,ABS((1-($O$67* 2.11056768894196+-0.24201488494873)/ 210.74842188188))<0.00005),0,1)) -> 1 | D67: =IF(OR(NOT(ISNUMBER($P$67)),ISERROR($P$67)),1,IF(AND(LEN($P$67)>0,ABS((1-($P$67*-4.42431271076202+-0.224788069725037)/-480.489414654302))<0.00005),0,1)) -> 1 | E67: =IF(OR(NOT(ISNUMBER($Q$67)),ISERROR($Q$67)),1,IF(AND(LEN($Q$67)>0,ABS((1-($Q$67* 4.60600197315216+-0.173018217086792)/ 537.938228528869))<0.00005),0,1)) -> 1 | F67: =IF(OR(NOT(ISNUMBER($R$67)),ISERROR($R$67)),1,IF(AND(LEN($R$67)>0,ABS((1-($R$67* 1.47697865962982+-0.13653290271759)/ 179.31844473007))<0.00005),0,1)) -> 1 | G67: =IF(OR(NOT(ISNUMBER($S$67)),ISERROR($S$67)),1,IF(AND(LEN($S$67)>0,ABS((1-($S$67*-1.30093038082123+-0.173155307769775)/-164.560614872435))<0.00005),0,1)) -> 1 | J67: Closing equity | L67: [$m]
T68: Index
A69: =SUM($A$70:$G$74) -> 21 | I69: 5 | J69: Free cash flows
A71: =IF(OR(NOT(ISNUMBER($M$71)),ISERROR($M$71)),1,IF(AND(LEN($M$71)>0,ABS((1-($M$71*-2.85240471363068+-0.287669062614441)/-15.7175458737897))<0.00005),0,1)) -> 1 | B71: =IF(OR(NOT(ISNUMBER($N$71)),ISERROR($N$71)),1,IF(AND(LEN($N$71)>0,ABS((1-($N$71*-0.76831042766571+ 0.117498159408569)/-4.08525625712943))<0.00005),0,1)) -> 1 | C71: =IF(OR(NOT(ISNUMBER($O$71)),ISERROR($O$71)),1,IF(AND(LEN($O$71)>0,ABS((1-($O$71*-2.58519232273102+ 0.186122298240662)/-13.9790427525235))<0.00005),0,1)) -> 1 | D71: =IF(OR(NOT(ISNUMBER($P$71)),ISERROR($P$71)),1,IF(AND(LEN($P$71)>0,ABS((1-($P$71* 0.899296402931213+ 0.102811813354492)/ 4.99581483921816))<0.00005),0,1)) -> 1 | E71: =IF(OR(NOT(ISNUMBER($Q$71)),ISERROR($Q$71)),1,IF(AND(LEN($Q$71)>0,ABS((1-($Q$71*-4.2124730348587+-0.455332159996033)/-23.039856332486))<0.00005),0,1)) -> 1 | F71: =IF(OR(NOT(ISNUMBER($R$71)),ISERROR($R$71)),1,IF(AND(LEN($R$71)>0,ABS((1-($R$71*-3.46790969371796+-0.253774404525757)/-29.2625067792123))<0.00005),0,1)) -> 1 | G71: =IF(OR(NOT(ISNUMBER($S$71)),ISERROR($S$71)),1,IF(AND(LEN($S$71)>0,ABS((1-($S$71*-1.01244509220123+ 0.0839270353317261)/-8.72383942064329))<0.00005),0,1)) -> 1 | J71: Free cash flow to equity | K71: FCFE | L71: [$m]
A72: =IF(OR(NOT(ISNUMBER($M$72)),ISERROR($M$72)),1,IF(AND(LEN($M$72)>0,ABS((1-($M$72*-2.12371289730072+ 0.336374759674072)/-0.917831442974232))<0.00005),0,1)) -> 1 | B72: =IF(OR(NOT(ISNUMBER($N$72)),ISERROR($N$72)),1,IF(AND(LEN($N$72)>0,ABS((1-($N$72* 3.98083388805389+ 0.026617169380188)/ 4.28561007199953))<0.00005),0,1)) -> 1 | C72: =IF(OR(NOT(ISNUMBER($O$72)),ISERROR($O$72)),1,IF(AND(LEN($O$72)>0,ABS((1-($O$72*-1.12463176250458+-0.497285127639771)/-2.2785368436376))<0.00005),0,1)) -> 1 | D72: =IF(OR(NOT(ISNUMBER($P$72)),ISERROR($P$72)),1,IF(AND(LEN($P$72)>0,ABS((1-($P$72*-2.49130308628082+-0.337161660194397)/-5.61050388902966))<0.00005),0,1)) -> 1 | E72: =IF(OR(NOT(ISNUMBER($Q$72)),ISERROR($Q$72)),1,IF(AND(LEN($Q$72)>0,ABS((1-($Q$72* 1.45133078098297+ 0.481146812438965)/ 4.32678986002653))<0.00005),0,1)) -> 1 | F72: =IF(OR(NOT(ISNUMBER($R$72)),ISERROR($R$72)),1,IF(AND(LEN($R$72)>0,ABS((1-($R$72*-1.88088238239288+-0.259301543235779)/-0.347197637911478))<0.00005),0,1)) -> 1 | G72: =IF(OR(NOT(ISNUMBER($S$72)),ISERROR($S$72)),1,IF(AND(LEN($S$72)>0,ABS((1-($S$72* 3.78593742847443+-0.370358228683472)/-0.186359546748205))<0.00005),0,1)) -> 1 | J72: Free cash flow to debt | K72: FCFD | L72: [$m]
A73: =IF(OR(NOT(ISNUMBER($M$73)),ISERROR($M$73)),1,IF(AND(LEN($M$73)>0,ABS((1-($M$73* 0.697960257530212+ 0.106938242912292)/ 4.29469978809357))<0.00005),0,1)) -> 1 | B73: =IF(OR(NOT(ISNUMBER($N$73)),ISERROR($N$73)),1,IF(AND(LEN($N$73)>0,ABS((1-($N$73* 1.10196650028229+ 0.19386625289917)/ 7.40072716474533))<0.00005),0,1)) -> 1 | C73: =IF(OR(NOT(ISNUMBER($O$73)),ISERROR($O$73)),1,IF(AND(LEN($O$73)>0,ABS((1-($O$73* 3.50022971630096+-0.402443766593933)/ 24.320378765583))<0.00005),0,1)) -> 1 | D73: =IF(OR(NOT(ISNUMBER($P$73)),ISERROR($P$73)),1,IF(AND(LEN($P$73)>0,ABS((1-($P$73*-1.05553805828094+ 0.32280707359314)/-7.65455268858433))<0.00005),0,1)) -> 1 | E73: =IF(OR(NOT(ISNUMBER($Q$73)),ISERROR($Q$73)),1,IF(AND(LEN($Q$73)>0,ABS((1-($Q$73*-2.31867849826813+ 0.178433775901794)/-18.3966885069011))<0.00005),0,1)) -> 1 | F73: =IF(OR(NOT(ISNUMBER($R$73)),ISERROR($R$73)),1,IF(AND(LEN($R$73)>0,ABS((1-($R$73*-1.03801667690277+ 0.334396362304688)/-8.3970215791789))<0.00005),0,1)) -> 1 | G73: =IF(OR(NOT(ISNUMBER($S$73)),ISERROR($S$73)),1,IF(AND(LEN($S$73)>0,ABS((1-($S$73*-0.671728253364562+ 0.335960030555725)/-5.54038652907597))<0.00005),0,1)) -> 1 | J73: Free cash flow to the firm | K73: FCFF | L73: [$m]
T74: Index
A75: =SUM($A$76:$G$80) -> 21 | I75: 6 | J75: Levered cost of equity
A77: =IF(OR(NOT(ISNUMBER($M$77)),ISERROR($M$77)),1,IF(AND(LEN($M$77)>0,ABS((1-($M$77*-2.81214416027069+ 0.231136560440063)/-0.0500778555870056))<0.00005),0,1)) -> 1 | B77: =IF(OR(NOT(ISNUMBER($N$77)),ISERROR($N$77)),1,IF(AND(LEN($N$77)>0,ABS((1-($N$77* 3.99100720882416+-0.282343029975891)/ 0.116757690906525))<0.00005),0,1)) -> 1 | C77: =IF(OR(NOT(ISNUMBER($O$77)),ISERROR($O$77)),1,IF(AND(LEN($O$77)>0,ABS((1-($O$77* 4.8214203119278+ 0.465725421905518)/ 0.947867453098297))<0.00005),0,1)) -> 1 | D77: =IF(OR(NOT(ISNUMBER($P$77)),ISERROR($P$77)),1,IF(AND(LEN($P$77)>0,ABS((1-($P$77* 3.71359527111053+ 0.0228043794631958)/ 0.394163906574249))<0.00005),0,1)) -> 1 | E77: =IF(OR(NOT(ISNUMBER($Q$77)),ISERROR($Q$77)),1,IF(AND(LEN($Q$77)>0,ABS((1-($Q$77* 1.50928318500519+-0.0433189868927002)/ 0.107609331607819))<0.00005),0,1)) -> 1 | F77: =IF(OR(NOT(ISNUMBER($R$77)),ISERROR($R$77)),1,IF(AND(LEN($R$77)>0,ABS((1-($R$77*-3.43450605869293+ 0.143064856529236)/-0.200385749340057))<0.00005),0,1)) -> 1 | G77: =IF(OR(NOT(ISNUMBER($S$77)),ISERROR($S$77)),1,IF(AND(LEN($S$77)>0,ABS((1-($S$77* 1.12656652927399+ 0.35396671295166)/ 0.466623365879059))<0.00005),0,1)) -> 1 | J77: Unlevered cost of equity | L77: [%]
A78: =IF(OR(NOT(ISNUMBER($M$78)),ISERROR($M$78)),1,IF(AND(LEN($M$78)>0,ABS((1-($M$78*-1.32719814777374+-0.446891188621521)/-1.82324482334985))<0.00005),0,1)) -> 1 | B78: =IF(OR(NOT(ISNUMBER($N$78)),ISERROR($N$78)),1,IF(AND(LEN($N$78)>0,ABS((1-($N$78* 0.0581580400466919+-0.445383787155151)/-0.383912501190648))<0.00005),0,1)) -> 1 | C78: =IF(OR(NOT(ISNUMBER($O$78)),ISERROR($O$78)),1,IF(AND(LEN($O$78)>0,ABS((1-($O$78*-1.2504917383194+-0.0487605333328247)/-1.37249037383323))<0.00005),0,1)) -> 1 | D78: =IF(OR(NOT(ISNUMBER($P$78)),ISERROR($P$78)),1,IF(AND(LEN($P$78)>0,ABS((1-($P$78*-2.0200389623642+ 0.468358516693115)/-1.63182174000195))<0.00005),0,1)) -> 1 | E78: =IF(OR(NOT(ISNUMBER($Q$78)),ISERROR($Q$78)),1,IF(AND(LEN($Q$78)>0,ABS((1-($Q$78*-4.8712569475174+ 0.150017857551575)/-4.7147671332329))<0.00005),0,1)) -> 1 | F78: =IF(OR(NOT(ISNUMBER($R$78)),ISERROR($R$78)),1,IF(AND(LEN($R$78)>0,ABS((1-($R$78* 1.14014446735382+ 0.03324294090271)/ 1.09885179539201))<0.00005),0,1)) -> 1 | G78: =IF(OR(NOT(ISNUMBER($S$78)),ISERROR($S$78)),1,IF(AND(LEN($S$78)>0,ABS((1-($S$78*-4.70597326755524+ 0.216887831687927)/-4.35737096054829))<0.00005),0,1)) -> 1 | J78: Dollar spread between Ku & Kd | K78: S | L78: [$m]
A79: =IF(OR(NOT(ISNUMBER($M$79)),ISERROR($M$79)),1,IF(AND(LEN($M$79)>0,ABS((1-($M$79*-1.85960710048676+ 0.481264114379883)/ 0.274689433881568))<0.00005),0,1)) -> 1 | B79: =IF(OR(NOT(ISNUMBER($N$79)),ISERROR($N$79)),1,IF(AND(LEN($N$79)>0,ABS((1-($N$79*-2.08947956562042+-0.135198950767517)/-0.366560434897007))<0.00005),0,1)) -> 1 | C79: =IF(OR(NOT(ISNUMBER($O$79)),ISERROR($O$79)),1,IF(AND(LEN($O$79)>0,ABS((1-($O$79*-1.78284347057343+-0.146013021469116)/-0.342448405987439))<0.00005),0,1)) -> 1 | D79: =IF(OR(NOT(ISNUMBER($P$79)),ISERROR($P$79)),1,IF(AND(LEN($P$79)>0,ABS((1-($P$79*-2.64372408390045+ 0.0928419828414917)/-0.196528669526338))<0.00005),0,1)) -> 1 | E79: =IF(OR(NOT(ISNUMBER($Q$79)),ISERROR($Q$79)),1,IF(AND(LEN($Q$79)>0,ABS((1-($Q$79* 2.02290117740631+-0.231828212738037)/-0.0122040561279997))<0.00005),0,1)) -> 1 | F79: =IF(OR(NOT(ISNUMBER($R$79)),ISERROR($R$79)),1,IF(AND(LEN($R$79)>0,ABS((1-($R$79* 0.753485560417175+ 0.0768529176712036)/ 0.157888157187768))<0.00005),0,1)) -> 1 | G79: =IF(OR(NOT(ISNUMBER($S$79)),ISERROR($S$79)),1,IF(AND(LEN($S$79)>0,ABS((1-($S$79* 4.90735828876495+ 0.43139910697937)/ 0.959171602186167))<0.00005),0,1)) -> 1 | J79: Levered cost of equity | K79: Ke | L79: [%]
T80: Index
A81: =SUM($A$82:$G$86) -> 21 | I81: 7 | J81: Market values
A83: =IF(OR(NOT(ISNUMBER($M$83)),ISERROR($M$83)),1,IF(AND(LEN($M$83)>0,ABS((1-($M$83*-2.50026762485504+ 0.310058951377869)/-233.595374996894))<0.00005),0,1)) -> 1 | B83: =IF(OR(NOT(ISNUMBER($N$83)),ISERROR($N$83)),1,IF(AND(LEN($N$83)>0,ABS((1-($N$83* 2.698774933815+-0.0923051834106445)/ 265.831440107639))<0.00005),0,1)) -> 1 | C83: =IF(OR(NOT(ISNUMBER($O$83)),ISERROR($O$83)),1,IF(AND(LEN($O$83)>0,ABS((1-($O$83* 1.2992399930954+-0.00630700588226318)/ 135.082595876296))<0.00005),0,1)) -> 1 | D83: =IF(OR(NOT(ISNUMBER($P$83)),ISERROR($P$83)),1,IF(AND(LEN($P$83)>0,ABS((1-($P$83*-0.0148361921310425+-0.366844892501831)/-1.99811507982469))<0.00005),0,1)) -> 1 | E83: =IF(OR(NOT(ISNUMBER($Q$83)),ISERROR($Q$83)),1,IF(AND(LEN($Q$83)>0,ABS((1-($Q$83* 4.69412267208099+-0.322379231452942)/ 546.759019045984))<0.00005),0,1)) -> 1 | F83: =IF(OR(NOT(ISNUMBER($R$83)),ISERROR($R$83)),1,IF(AND(LEN($R$83)>0,ABS((1-($R$83* 0.895553231239319+ 0.181571483612061)/ 111.085063213414))<0.00005),0,1)) -> 1 | G83: =IF(OR(NOT(ISNUMBER($S$83)),ISERROR($S$83)),1,IF(AND(LEN($S$83)>0,ABS((1-($S$83*-3.90436470508575+ 0.150965809822083)/-502.697966250467))<0.00005),0,1)) -> 1 | J83: Market value of equity | L83: [$m]
A84: =IF(OR(NOT(ISNUMBER($M$84)),ISERROR($M$84)),1,IF(AND(LEN($M$84)>0,ABS((1-($M$84* 2.38123714923859+ 0.28005576133728)/ 62.0158337045599))<0.00005),0,1)) -> 1 | B84: =IF(OR(NOT(ISNUMBER($N$84)),ISERROR($N$84)),1,IF(AND(LEN($N$84)>0,ABS((1-($N$84*-0.684576630592346+-0.41726553440094)/-18.5066843791442))<0.00005),0,1)) -> 1 | C84: =IF(OR(NOT(ISNUMBER($O$84)),ISERROR($O$84)),1,IF(AND(LEN($O$84)>0,ABS((1-($O$84*-0.00297486782073975+ 0.0746650695800781)/-0.00406238589175913))<0.00005),0,1)) -> 1 | D84: =IF(OR(NOT(ISNUMBER($P$84)),ISERROR($P$84)),1,IF(AND(LEN($P$84)>0,ABS((1-($P$84*-4.40322697162628+-0.0875591039657593)/-114.535479711567))<0.00005),0,1)) -> 1 | E84: =IF(OR(NOT(ISNUMBER($Q$84)),ISERROR($Q$84)),1,IF(AND(LEN($Q$84)>0,ABS((1-($Q$84*-3.81750762462616+-0.353973150253296)/-95.6648651570454))<0.00005),0,1)) -> 1 | F84: =IF(OR(NOT(ISNUMBER($R$84)),ISERROR($R$84)),1,IF(AND(LEN($R$84)>0,ABS((1-($R$84*-1.85413897037506+ 0.490732073783875)/-42.8324379467439))<0.00005),0,1)) -> 1 | G84: =IF(OR(NOT(ISNUMBER($S$84)),ISERROR($S$84)),1,IF(AND(LEN($S$84)>0,ABS((1-($S$84* 1.04322969913483+-0.225036144256592)/ 25.125738032944))<0.00005),0,1)) -> 1 | J84: Market value of debt | L84: [$m]
A85: =IF(OR(NOT(ISNUMBER($M$85)),ISERROR($M$85)),1,IF(AND(LEN($M$85)>0,ABS((1-($M$85*-0.836995244026184+-0.0299872159957886)/-100.032575918825))<0.00005),0,1)) -> 1 | B85: =IF(OR(NOT(ISNUMBER($N$85)),ISERROR($N$85)),1,IF(AND(LEN($N$85)>0,ABS((1-($N$85*-4.36790645122528+-0.0418808460235596)/-545.852092680171))<0.00005),0,1)) -> 1 | C85: =IF(OR(NOT(ISNUMBER($O$85)),ISERROR($O$85)),1,IF(AND(LEN($O$85)>0,ABS((1-($O$85*-0.626087784767151+ 0.445070624351501)/-81.2215150239015))<0.00005),0,1)) -> 1 | D85: =IF(OR(NOT(ISNUMBER($P$85)),ISERROR($P$85)),1,IF(AND(LEN($P$85)>0,ABS((1-($P$85*-2.26954400539398+-0.326418876647949)/-308.857102139647))<0.00005),0,1)) -> 1 | E85: =IF(OR(NOT(ISNUMBER($Q$85)),ISERROR($Q$85)),1,IF(AND(LEN($Q$85)>0,ABS((1-($Q$85* 0.0609320402145386+-0.156298995018005)/ 8.46636601191051))<0.00005),0,1)) -> 1 | F85: =IF(OR(NOT(ISNUMBER($R$85)),ISERROR($R$85)),1,IF(AND(LEN($R$85)>0,ABS((1-($R$85* 0.129454731941223+-0.103491544723511)/ 18.9527138121581))<0.00005),0,1)) -> 1 | G85: =IF(OR(NOT(ISNUMBER($S$85)),ISERROR($S$85)),1,IF(AND(LEN($S$85)>0,ABS((1-($S$85*-2.40569651126862+-0.432667851448059)/-368.724995987573))<0.00005),0,1)) -> 1 | J85: Market value of firm | L85: [$m]
T86: Index
A87: =SUM($A$88:$G$92) -> 21 | I87: 8 | J87: Book values
A89: =IF(OR(NOT(ISNUMBER($M$89)),ISERROR($M$89)),1,IF(AND(LEN($M$89)>0,ABS((1-($M$89* 1.41124308109283+-0.135244846343994)/ 104.401279679051))<0.00005),0,1)) -> 1 | B89: =IF(OR(NOT(ISNUMBER($N$89)),ISERROR($N$89)),1,IF(AND(LEN($N$89)>0,ABS((1-($N$89* 0.463406443595886+ 0.38165009021759)/ 38.6477882356355))<0.00005),0,1)) -> 1 | C89: =IF(OR(NOT(ISNUMBER($O$89)),ISERROR($O$89)),1,IF(AND(LEN($O$89)>0,ABS((1-($O$89*-0.769760012626647+ 0.0944955348968506)/-70.1505809661954))<0.00005),0,1)) -> 1 | D89: =IF(OR(NOT(ISNUMBER($P$89)),ISERROR($P$89)),1,IF(AND(LEN($P$89)>0,ABS((1-($P$89*-1.19198858737946+-0.442776322364807)/-119.60417256185))<0.00005),0,1)) -> 1 | E89: =IF(OR(NOT(ISNUMBER($Q$89)),ISERROR($Q$89)),1,IF(AND(LEN($Q$89)>0,ABS((1-($Q$89*-3.90561997890472+-0.354150772094727)/-424.314038640616))<0.00005),0,1)) -> 1 | F89: =IF(OR(NOT(ISNUMBER($R$89)),ISERROR($R$89)),1,IF(AND(LEN($R$89)>0,ABS((1-($R$89*-3.55047047138214+ 0.260129570960999)/-414.53519683717))<0.00005),0,1)) -> 1 | G89: =IF(OR(NOT(ISNUMBER($S$89)),ISERROR($S$89)),1,IF(AND(LEN($S$89)>0,ABS((1-($S$89*-2.35363662242889+-0.361493825912476)/-286.331642872986))<0.00005),0,1)) -> 1 | J89: Book value of equity | L89: [$m]
A90: =IF(OR(NOT(ISNUMBER($M$90)),ISERROR($M$90)),1,IF(AND(LEN($M$90)>0,ABS((1-($M$90*-4.57773745059967+ 0.192577242851257)/-118.489504809733))<0.00005),0,1)) -> 1 | B90: =IF(OR(NOT(ISNUMBER($N$90)),ISERROR($N$90)),1,IF(AND(LEN($N$90)>0,ABS((1-($N$90* 3.44490587711334+ 0.0173516273498535)/ 91.0463796528903))<0.00005),0,1)) -> 1 | C90: =IF(OR(NOT(ISNUMBER($O$90)),ISERROR($O$90)),1,IF(AND(LEN($O$90)>0,ABS((1-($O$90* 3.00465285778046+ 0.483533978462219)/ 79.999226211947))<0.00005),0,1)) -> 1 | D90: =IF(OR(NOT(ISNUMBER($P$90)),ISERROR($P$90)),1,IF(AND(LEN($P$90)>0,ABS((1-($P$90* 0.245988965034485+-0.431908845901489)/ 5.96179416373798))<0.00005),0,1)) -> 1 | E90: =IF(OR(NOT(ISNUMBER($Q$90)),ISERROR($Q$90)),1,IF(AND(LEN($Q$90)>0,ABS((1-($Q$90* 1.25053346157074+-0.170650124549866)/ 31.0511499152917))<0.00005),0,1)) -> 1 | F90: =IF(OR(NOT(ISNUMBER($R$90)),ISERROR($R$90)),1,IF(AND(LEN($R$90)>0,ABS((1-($R$90*-2.21589028835297+ 0.182875633239746)/-51.5928505895539))<0.00005),0,1)) -> 1 | G90: =IF(OR(NOT(ISNUMBER($S$90)),ISERROR($S$90)),1,IF(AND(LEN($S$90)>0,ABS((1-($S$90*-0.979622006416321+-0.115617156028748)/-23.9207065666081))<0.00005),0,1)) -> 1 | J90: Book value of debt | L90: [$m]
A91: =IF(OR(NOT(ISNUMBER($M$91)),ISERROR($M$91)),1,IF(AND(LEN($M$91)>0,ABS((1-($M$91*-2.94646918773651+ 0.37592625617981)/-294.270992517471))<0.00005),0,1)) -> 1 | B91: =IF(OR(NOT(ISNUMBER($N$91)),ISERROR($N$91)),1,IF(AND(LEN($N$91)>0,ABS((1-($N$91*-3.48744928836823+-0.0983763933181763)/-380.230348825455))<0.00005),0,1)) -> 1 | C91: =IF(OR(NOT(ISNUMBER($O$91)),ISERROR($O$91)),1,IF(AND(LEN($O$91)>0,ABS((1-($O$91* 1.08953058719635+ 0.0491595268249512)/ 128.308700251579))<0.00005),0,1)) -> 1 | D91: =IF(OR(NOT(ISNUMBER($P$91)),ISERROR($P$91)),1,IF(AND(LEN($P$91)>0,ABS((1-($P$91* 2.29455649852753+-0.376679301261902)/ 288.646575075865))<0.00005),0,1)) -> 1 | E91: =IF(OR(NOT(ISNUMBER($Q$91)),ISERROR($Q$91)),1,IF(AND(LEN($Q$91)>0,ABS((1-($Q$91*-1.75034701824188+-0.492187738418579)/-234.195062928367))<0.00005),0,1)) -> 1 | F91: =IF(OR(NOT(ISNUMBER($R$91)),ISERROR($R$91)),1,IF(AND(LEN($R$91)>0,ABS((1-($R$91* 2.83429086208344+ 0.421605467796326)/ 397.771966581765))<0.00005),0,1)) -> 1 | G91: =IF(OR(NOT(ISNUMBER($S$91)),ISERROR($S$91)),1,IF(AND(LEN($S$91)>0,ABS((1-($S$91*-2.00504243373871+-0.273933410644531)/-292.612493148171))<0.00005),0,1)) -> 1 | J91: Book value of firm | L91: [$m]
T92: Index
A93: =SUM($A$94:$G$96) -> 7 | I93: 9 | J93: WACC
A95: =IF(OR(NOT(ISNUMBER($M$95)),ISERROR($M$95)),1,IF(AND(LEN($M$95)>0,ABS((1-($M$95* 4.531289935112+-0.310882925987244)/ 0.12454740777303))<0.00005),0,1)) -> 1 | B95: =IF(OR(NOT(ISNUMBER($N$95)),ISERROR($N$95)),1,IF(AND(LEN($N$95)>0,ABS((1-($N$95*-0.828730463981628+-0.137325048446655)/-0.21704367115661))<0.00005),0,1)) -> 1 | C95: =IF(OR(NOT(ISNUMBER($O$95)),ISERROR($O$95)),1,IF(AND(LEN($O$95)>0,ABS((1-($O$95*-1.75201952457428+ 0.47962749004364)/ 0.310823781903014))<0.00005),0,1)) -> 1 | D95: =IF(OR(NOT(ISNUMBER($P$95)),ISERROR($P$95)),1,IF(AND(LEN($P$95)>0,ABS((1-($P$95* 0.790429711341858+ 0.0265851020812988)/ 0.102907798013144))<0.00005),0,1)) -> 1 | E95: =IF(OR(NOT(ISNUMBER($Q$95)),ISERROR($Q$95)),1,IF(AND(LEN($Q$95)>0,ABS((1-($Q$95*-3.6590701341629+ 0.398666501045227)/ 0.0443795929911386))<0.00005),0,1)) -> 1 | F95: =IF(OR(NOT(ISNUMBER($R$95)),ISERROR($R$95)),1,IF(AND(LEN($R$95)>0,ABS((1-($R$95*-4.68845546245575+ 0.292565107345581)/-0.162884851864406))<0.00005),0,1)) -> 1 | G95: =IF(OR(NOT(ISNUMBER($S$95)),ISERROR($S$95)),1,IF(AND(LEN($S$95)>0,ABS((1-($S$95* 2.19209611415863+-0.255853295326233)/-0.0429068156651089))<0.00005),0,1)) -> 1 | J95: WACC | L95: [%]
T96: Index
A97: =SUM($A$98:$G$101) -> 14 | I97: 10 | J97: Ratios
A99: =IF(OR(NOT(ISNUMBER($M$99)),ISERROR($M$99)),1,IF(AND(LEN($M$99)>0,ABS((1-($M$99* 4.42223608493805+-0.0331716537475586)/ 23.514411333143))<0.00005),0,1)) -> 1 | B99: =IF(OR(NOT(ISNUMBER($N$99)),ISERROR($N$99)),1,IF(AND(LEN($N$99)>0,ABS((1-($N$99* 2.24007785320281+-0.10301148891449)/ 12.9693382613354))<0.00005),0,1)) -> 1 | C99: =IF(OR(NOT(ISNUMBER($O$99)),ISERROR($O$99)),1,IF(AND(LEN($O$99)>0,ABS((1-($O$99*-2.68010795116425+ 0.10265851020813)/-17.1305459082863))<0.00005),0,1)) -> 1 | D99: =IF(OR(NOT(ISNUMBER($P$99)),ISERROR($P$99)),1,IF(AND(LEN($P$99)>0,ABS((1-($P$99* 0.511364340782166+-0.0382548570632935)/ 3.60705695347396))<0.00005),0,1)) -> 1 | E99: =IF(OR(NOT(ISNUMBER($Q$99)),ISERROR($Q$99)),1,IF(AND(LEN($Q$99)>0,ABS((1-($Q$99* 1.49291574954987+ 0.266034603118896)/ 12.1485222627008))<0.00005),0,1)) -> 1 | F99: =IF(OR(NOT(ISNUMBER($R$99)),ISERROR($R$99)),1,IF(AND(LEN($R$99)>0,ABS((1-($R$99*-4.34841454029083+-0.342772364616394)/-39.307060360054))<0.00005),0,1)) -> 1 | G99: =IF(OR(NOT(ISNUMBER($S$99)),ISERROR($S$99)),1,IF(AND(LEN($S$99)>0,ABS((1-($S$99*-3.99802386760712+-0.448744058609009)/-36.2733306859129))<0.00005),0,1)) -> 1 | J99: P/E ratio | L99: [#]
A100: =IF(OR(NOT(ISNUMBER($M$100)),ISERROR($M$100)),1,IF(AND(LEN($M$100)>0,ABS((1-($M$100* 0.456761717796326+ 0.457129836082459)/ 2.52205473669084))<0.00005),0,1)) -> 1 | B100: =IF(OR(NOT(ISNUMBER($N$100)),ISERROR($N$100)),1,IF(AND(LEN($N$100)>0,ABS((1-($N$100*-2.73874223232269+-0.153432846069336)/-12.7123727029458))<0.00005),0,1)) -> 1 | C100: =IF(OR(NOT(ISNUMBER($O$100)),ISERROR($O$100)),1,IF(AND(LEN($O$100)>0,ABS((1-($O$100* 3.90455424785614+-0.0193465948104858)/ 18.3352342698493))<0.00005),0,1)) -> 1 | D100: =IF(OR(NOT(ISNUMBER($P$100)),ISERROR($P$100)),1,IF(AND(LEN($P$100)>0,ABS((1-($P$100*-2.68028914928436+ 0.349783182144165)/-12.7141428253143))<0.00005),0,1)) -> 1 | E100: =IF(OR(NOT(ISNUMBER($Q$100)),ISERROR($Q$100)),1,IF(AND(LEN($Q$100)>0,ABS((1-($Q$100*-4.31448519229889+-0.366867184638977)/-22.4425892741165))<0.00005),0,1)) -> 1 | F100: =IF(OR(NOT(ISNUMBER($R$100)),ISERROR($R$100)),1,IF(AND(LEN($R$100)>0,ABS((1-($R$100* 4.64230120182037+ 0.333914279937744)/ 25.6086652676264))<0.00005),0,1)) -> 1 | G100: =IF(OR(NOT(ISNUMBER($S$100)),ISERROR($S$100)),1,IF(AND(LEN($S$100)>0,ABS((1-($S$100* 3.23433578014374+ 0.496660351753235)/ 18.1058218214247))<0.00005),0,1)) -> 1 | J100: Enterprise value / EBITDA | L100: [#]
T101: Index
A102: =SUM($A$103:$G$106) -> 14 | I102: 11 | J102: Returns
A104: =IF(OR(NOT(ISNUMBER($M$104)),ISERROR($M$104)),1,IF(AND(LEN($M$104)>0,ABS((1-($M$104*-2.60873973369598+ 0.162791013717651)/-0.228519946336746))<0.00005),0,1)) -> 1 | B104: =IF(OR(NOT(ISNUMBER($N$104)),ISERROR($N$104)),1,IF(AND(LEN($N$104)>0,ABS((1-($N$104* 1.26110017299652+ 0.4707111120224)/ 0.647265136241913))<0.00005),0,1)) -> 1 | C104: =IF(OR(NOT(ISNUMBER($O$104)),ISERROR($O$104)),1,IF(AND(LEN($O$104)>0,ABS((1-($O$104*-0.792664885520935+-0.443310737609863)/-0.546357172727585))<0.00005),0,1)) -> 1 | D104: =IF(OR(NOT(ISNUMBER($P$104)),ISERROR($P$104)),1,IF(AND(LEN($P$104)>0,ABS((1-($P$104* 3.78253161907196+-0.337231993675232)/ 0.116671800613403))<0.00005),0,1)) -> 1 | E104: =IF(OR(NOT(ISNUMBER($Q$104)),ISERROR($Q$104)),1,IF(AND(LEN($Q$104)>0,ABS((1-($Q$104*-2.50896155834197+ 0.10795521736145)/-0.168030554056168))<0.00005),0,1)) -> 1 | F104: =IF(OR(NOT(ISNUMBER($R$104)),ISERROR($R$104)),1,IF(AND(LEN($R$104)>0,ABS((1-($R$104*-1.34675562381744+ 0.0289467573165894)/-0.105728805065155))<0.00005),0,1)) -> 1 | G104: =IF(OR(NOT(ISNUMBER($S$104)),ISERROR($S$104)),1,IF(AND(LEN($S$104)>0,ABS((1-($S$104* 4.18389856815338+ 0.0466303825378418)/ 0.46502023935318))<0.00005),0,1)) -> 1 | J104: Return on capital | L104: [%]
A105: =IF(OR(NOT(ISNUMBER($M$105)),ISERROR($M$105)),1,IF(AND(LEN($M$105)>0,ABS((1-($M$105* 4.59699332714081+ 0.264620900154114)/ 1.12793624699116))<0.00005),0,1)) -> 1 | B105: =IF(OR(NOT(ISNUMBER($N$105)),ISERROR($N$105)),1,IF(AND(LEN($N$105)>0,ABS((1-($N$105*-0.950290560722351+ 0.256076574325562)/ 0.0932347838401795))<0.00005),0,1)) -> 1 | C105: =IF(OR(NOT(ISNUMBER($O$105)),ISERROR($O$105)),1,IF(AND(LEN($O$105)>0,ABS((1-($O$105* 0.737923979759216+-0.0549532175064087)/ 0.0598087198257446))<0.00005),0,1)) -> 1 | D105: =IF(OR(NOT(ISNUMBER($P$105)),ISERROR($P$105)),1,IF(AND(LEN($P$105)>0,ABS((1-($P$105*-4.54421937465668+-0.461399078369141)/-1.09886217224598))<0.00005),0,1)) -> 1 | E105: =IF(OR(NOT(ISNUMBER($Q$105)),ISERROR($Q$105)),1,IF(AND(LEN($Q$105)>0,ABS((1-($Q$105*-1.36817753314972+-0.084011435508728)/-0.255909260773659))<0.00005),0,1)) -> 1 | F105: =IF(OR(NOT(ISNUMBER($R$105)),ISERROR($R$105)),1,IF(AND(LEN($R$105)>0,ABS((1-($R$105*-1.3458126783371+ 0.131080865859985)/-0.0191118290424347))<0.00005),0,1)) -> 1 | G105: =IF(OR(NOT(ISNUMBER($S$105)),ISERROR($S$105)),1,IF(AND(LEN($S$105)>0,ABS((1-($S$105*-3.2026344537735+-0.0656567811965942)/-0.423070786237717))<0.00005),0,1)) -> 1 | J105: Return on equity | L105: [%]
T106: Index
A107: =SUM($A$108:$G$113) -> 28 | I107: 12 | J107: Economic value added
A109: =IF(OR(NOT(ISNUMBER($M$109)),ISERROR($M$109)),1,IF(AND(LEN($M$109)>0,ABS((1-($M$109*-3.43697965145111+ 0.470589160919189)/-1.45745175268043))<0.00005),0,1)) -> 1 | B109: =IF(OR(NOT(ISNUMBER($N$109)),ISERROR($N$109)),1,IF(AND(LEN($N$109)>0,ABS((1-($N$109*-2.25262939929962+-0.441234469413757)/-1.46707572266589))<0.00005),0,1)) -> 1 | C109: =IF(OR(NOT(ISNUMBER($O$109)),ISERROR($O$109)),1,IF(AND(LEN($O$109)>0,ABS((1-($O$109* 3.04763615131378+ 0.210018873214722)/ 1.27448045341967))<0.00005),0,1)) -> 1 | D109: =IF(OR(NOT(ISNUMBER($P$109)),ISERROR($P$109)),1,IF(AND(LEN($P$109)>0,ABS((1-($P$109*-2.47995436191559+ 0.290293097496033)/-0.311765700365187))<0.00005),0,1)) -> 1 | E109: =IF(OR(NOT(ISNUMBER($Q$109)),ISERROR($Q$109)),1,IF(AND(LEN($Q$109)>0,ABS((1-($Q$109* 3.70190680027008+ 0.483708381652832)/ 0.987458052120956))<0.00005),0,1)) -> 1 | F109: =IF(OR(NOT(ISNUMBER($R$109)),ISERROR($R$109)),1,IF(AND(LEN($R$109)>0,ABS((1-($R$109*-2.2897607088089+-0.0370286703109741)/-0.104374573511235))<0.00005),0,1)) -> 1 | G109: =IF(OR(NOT(ISNUMBER($S$109)),ISERROR($S$109)),1,IF(AND(LEN($S$109)>0,ABS((1-($S$109* 4.12946999073029+ 0.423066377639771)/ 0.433820205740631))<0.00005),0,1)) -> 1 | J109: EVA per unit capital and no growth | L109: [#]
A110: =IF(OR(NOT(ISNUMBER($M$110)),ISERROR($M$110)),1,IF(AND(LEN($M$110)>0,ABS((1-($M$110* 0.000690817832946777+ 0.384478449821472)/ 0.423231226411327))<0.00005),0,1)) -> 1 | B110: =IF(OR(NOT(ISNUMBER($N$110)),ISERROR($N$110)),1,IF(AND(LEN($N$110)>0,ABS((1-($N$110* 0.724979043006896+-0.0778031349182129)/ 35.9089249623509))<0.00005),0,1)) -> 1 | C110: =IF(OR(NOT(ISNUMBER($O$110)),ISERROR($O$110)),1,IF(AND(LEN($O$110)>0,ABS((1-($O$110* 3.19328010082245+ 0.226750493049622)/ 131.523550804072))<0.00005),0,1)) -> 1 | D110: =IF(OR(NOT(ISNUMBER($P$110)),ISERROR($P$110)),1,IF(AND(LEN($P$110)>0,ABS((1-($P$110* 3.95535290241241+-0.346475839614868)/ 120.605923387694))<0.00005),0,1)) -> 1 | E110: =IF(OR(NOT(ISNUMBER($Q$110)),ISERROR($Q$110)),1,IF(AND(LEN($Q$110)>0,ABS((1-($Q$110* 2.74027764797211+ 0.166606307029724)/ 49.9545006202474))<0.00005),0,1)) -> 1 | F110: =IF(OR(NOT(ISNUMBER($R$110)),ISERROR($R$110)),1,IF(AND(LEN($R$110)>0,ABS((1-($R$110* 4.14102613925934+ 0.333417892456055)/ 17.4083210930021))<0.00005),0,1)) -> 1 | G110: =IF(OR(NOT(ISNUMBER($S$110)),ISERROR($S$110)),1,IF(AND(LEN($S$110)>0,ABS((1-($S$110* 2.77559459209442+ 0.27637255191803)/ 1.3302432827899))<0.00005),0,1)) -> 1 | J110: EVA due to assets in place | L110: [$m]
A111: =IF(OR(NOT(ISNUMBER($M$111)),ISERROR($M$111)),1,IF(AND(LEN($M$111)>0,ABS((1-($M$111*-0.262801051139832+ 0.237818002700806)/ 9.86129548198799))<0.00005),0,1)) -> 1 | B111: =IF(OR(NOT(ISNUMBER($N$111)),ISERROR($N$111)),1,IF(AND(LEN($N$111)>0,ABS((1-($N$111* 0.646032691001892+-0.335491299629211)/-22.09327451653))<0.00005),0,1)) -> 1 | C111: =IF(OR(NOT(ISNUMBER($O$111)),ISERROR($O$111)),1,IF(AND(LEN($O$111)>0,ABS((1-($O$111*-1.8849128484726+-0.0321402549743652)/ 53.4938821953439))<0.00005),0,1)) -> 1 | D111: =IF(OR(NOT(ISNUMBER($P$111)),ISERROR($P$111)),1,IF(AND(LEN($P$111)>0,ABS((1-($P$111* 3.94253432750702+ 0.36623203754425)/-80.8338564873151))<0.00005),0,1)) -> 1 | E111: =IF(OR(NOT(ISNUMBER($Q$111)),ISERROR($Q$111)),1,IF(AND(LEN($Q$111)>0,ABS((1-($Q$111*-1.15682780742645+ 0.465498685836792)/ 12.235208837232))<0.00005),0,1)) -> 1 | F111: =IF(OR(NOT(ISNUMBER($R$111)),ISERROR($R$111)),1,IF(AND(LEN($R$111)>0,ABS((1-($R$111* 0.0314325094223022+ 0.484142661094666)/ 0.574867743811109))<0.00005),0,1)) -> 1 | G111: =IF(OR(NOT(ISNUMBER($S$111)),ISERROR($S$111)),1,IF(AND(LEN($S$111)>0,ABS((1-($S$111*-0.531548857688904+ 0.279135704040527)/-3.39407539181225))<0.00005),0,1)) -> 1 | J111: EVA due to growth assets | L111: [$m]
A112: =IF(OR(NOT(ISNUMBER($M$112)),ISERROR($M$112)),1,IF(AND(LEN($M$112)>0,ABS((1-($M$112*-1.91429913043976+-0.421151518821716)/-37.708032222316))<0.00005),0,1)) -> 1 | B112: =IF(OR(NOT(ISNUMBER($N$112)),ISERROR($N$112)),1,IF(AND(LEN($N$112)>0,ABS((1-($N$112* 3.79768669605255+ 0.0792419910430908)/ 60.6873843795064))<0.00005),0,1)) -> 1 | C112: =IF(OR(NOT(ISNUMBER($O$112)),ISERROR($O$112)),1,IF(AND(LEN($O$112)>0,ABS((1-($O$112* 3.61620366573334+ 0.309590220451355)/ 46.3059392258811))<0.00005),0,1)) -> 1 | D112: =IF(OR(NOT(ISNUMBER($P$112)),ISERROR($P$112)),1,IF(AND(LEN($P$112)>0,ABS((1-($P$112* 2.67865717411041+ 0.423984050750732)/ 27.1663814924957))<0.00005),0,1)) -> 1 | E112: =IF(OR(NOT(ISNUMBER($Q$112)),ISERROR($Q$112)),1,IF(AND(LEN($Q$112)>0,ABS((1-($Q$112*-4.49705421924591+ 0.324866414070129)/-35.6281770552859))<0.00005),0,1)) -> 1 | F112: =IF(OR(NOT(ISNUMBER($R$112)),ISERROR($R$112)),1,IF(AND(LEN($R$112)>0,ABS((1-($R$112*-2.71859347820281+-0.225151300430298)/-19.2816658370492))<0.00005),0,1)) -> 1 | G112: =IF(OR(NOT(ISNUMBER($S$112)),ISERROR($S$112)),1,IF(AND(LEN($S$112)>0,ABS((1-($S$112*-4.473677277565+ 0.403058409690857)/-32.2104252265437))<0.00005),0,1)) -> 1 | J112: Economic value added | L112: [$m]
T113: Index
A114: =SUM($A$115:$G$123) -> 28 | I114: =I107+1 -> 13 | J114: EVA / DCF reconciliation
A116: =IF(OR(NOT(ISNUMBER($M$116)),ISERROR($M$116)),1,IF(AND(LEN($M$116)>0,ABS((1-($M$116* 4.87949430942535+-0.23773193359375)/ 487.711699008942))<0.00005),0,1)) -> 1 | B116: =IF(OR(NOT(ISNUMBER($N$116)),ISERROR($N$116)),1,IF(AND(LEN($N$116)>0,ABS((1-($N$116* 0.398370623588562+-0.156944632530212)/ 43.2654533386231))<0.00005),0,1)) -> 1 | C116: =IF(OR(NOT(ISNUMBER($O$116)),ISERROR($O$116)),1,IF(AND(LEN($O$116)>0,ABS((1-($O$116*-2.86875426769257+-0.298755407333374)/-338.008507800102))<0.00005),0,1)) -> 1 | D116: =IF(OR(NOT(ISNUMBER($P$116)),ISERROR($P$116)),1,IF(AND(LEN($P$116)>0,ABS((1-($P$116*-3.70598375797272+ 0.104879260063171)/-466.702317287684))<0.00005),0,1)) -> 1 | E116: =IF(OR(NOT(ISNUMBER($Q$116)),ISERROR($Q$116)),1,IF(AND(LEN($Q$116)>0,ABS((1-($Q$116* 0.86100161075592+ 0.35697603225708)/ 115.316209761205))<0.00005),0,1)) -> 1 | F116: =IF(OR(NOT(ISNUMBER($R$116)),ISERROR($R$116)),1,IF(AND(LEN($R$116)>0,ABS((1-($R$116*-4.11767303943634+-0.299690127372742)/-577.572436216168))<0.00005),0,1)) -> 1 | G116: =IF(OR(NOT(ISNUMBER($S$116)),ISERROR($S$116)),1,IF(AND(LEN($S$116)>0,ABS((1-($S$116* 1.34036839008331+-0.0395195484161377)/ 195.38844650416))<0.00005),0,1)) -> 1 | J116: Invested assets [IA] | L116: [$m]
A117: =IF(OR(NOT(ISNUMBER($M$117)),ISERROR($M$117)),1,IF(AND(LEN($M$117)>0,ABS((1-($M$117*-2.14223921298981+ 0.333509802818298)/-41.3932071469766))<0.00005),0,1)) -> 1 | B117: =IF(OR(NOT(ISNUMBER($N$117)),ISERROR($N$117)),1,IF(AND(LEN($N$117)>0,ABS((1-($N$117*-1.93053185939789+ 0.474221229553223)/-30.335574097026))<0.00005),0,1)) -> 1 | C117: =IF(OR(NOT(ISNUMBER($O$117)),ISERROR($O$117)),1,IF(AND(LEN($O$117)>0,ABS((1-($O$117*-1.02858364582062+ 0.291649460792542)/-12.791433442628))<0.00005),0,1)) -> 1 | D117: =IF(OR(NOT(ISNUMBER($P$117)),ISERROR($P$117)),1,IF(AND(LEN($P$117)>0,ABS((1-($P$117* 3.05818855762482+ 0.107732057571411)/ 30.6391844025174))<0.00005),0,1)) -> 1 | E117: =IF(OR(NOT(ISNUMBER($Q$117)),ISERROR($Q$117)),1,IF(AND(LEN($Q$117)>0,ABS((1-($Q$117*-1.43771708011627+ 0.0855320692062378)/-11.4087266517224))<0.00005),0,1)) -> 1 | F117: =IF(OR(NOT(ISNUMBER($R$117)),ISERROR($R$117)),1,IF(AND(LEN($R$117)>0,ABS((1-($R$117* 1.60743296146393+ 0.0832419395446777)/ 11.3508587577192))<0.00005),0,1)) -> 1 | G117: =IF(OR(NOT(ISNUMBER($S$117)),ISERROR($S$117)),1,IF(AND(LEN($S$117)>0,ABS((1-($S$117*-4.41150963306427+ 0.340218663215637)/-31.8200576156631))<0.00005),0,1)) -> 1 | J117: EVA | L117: [$m]
A118: =IF(OR(NOT(ISNUMBER($M$118)),ISERROR($M$118)),1,IF(AND(LEN($M$118)>0,ABS((1-($M$118*-4.40962970256805+-0.348699808120728)/-527.202811136734))<0.00005),0,1)) -> 1 | B118: =IF(OR(NOT(ISNUMBER($N$118)),ISERROR($N$118)),1,IF(AND(LEN($N$118)>0,ABS((1-($N$118*-1.84144079685211+-0.0643469095230103)/-230.16936464129))<0.00005),0,1)) -> 1 | C118: =IF(OR(NOT(ISNUMBER($O$118)),ISERROR($O$118)),1,IF(AND(LEN($O$118)>0,ABS((1-($O$118*-0.76631486415863+ 0.356401443481445)/-99.6013361293978))<0.00005),0,1)) -> 1 | D118: =IF(OR(NOT(ISNUMBER($P$118)),ISERROR($P$118)),1,IF(AND(LEN($P$118)>0,ABS((1-($P$118*-4.4373494386673+ 0.397287011146545)/-602.833340346108))<0.00005),0,1)) -> 1 | E118: =IF(OR(NOT(ISNUMBER($Q$118)),ISERROR($Q$118)),1,IF(AND(LEN($Q$118)>0,ABS((1-($Q$118*-2.6011723279953+-0.447389364242554)/-368.546627968832))<0.00005),0,1)) -> 1 | F118: =IF(OR(NOT(ISNUMBER($R$118)),ISERROR($R$118)),1,IF(AND(LEN($R$118)>0,ABS((1-($R$118* 2.80381619930267+-0.463295102119446)/ 412.268603343448))<0.00005),0,1)) -> 1 | G118: =IF(OR(NOT(ISNUMBER($S$118)),ISERROR($S$118)),1,IF(AND(LEN($S$118)>0,ABS((1-($S$118*-3.63673627376556+ 0.169188022613525)/-556.585191762353))<0.00005),0,1)) -> 1 | J118: Total | L118: [$m]
A119: =IF(OR(NOT(ISNUMBER($M$119)),ISERROR($M$119)),1,IF(AND(LEN($M$119)>0,ABS((1-($M$119*-2.3707515001297+ 0.342249035835266)/-282.910599622727))<0.00005),0,1)) -> 1 | B119: =IF(OR(NOT(ISNUMBER($N$119)),ISERROR($N$119)),1,IF(AND(LEN($N$119)>0,ABS((1-($N$119*-2.89827525615692+-0.273785829544067)/-362.440020198626))<0.00005),0,1)) -> 1 | C119: =IF(OR(NOT(ISNUMBER($O$119)),ISERROR($O$119)),1,IF(AND(LEN($O$119)>0,ABS((1-($O$119* 0.0615304708480835+ 0.119644522666931)/ 8.14564916570783))<0.00005),0,1)) -> 1 | D119: =IF(OR(NOT(ISNUMBER($P$119)),ISERROR($P$119)),1,IF(AND(LEN($P$119)>0,ABS((1-($P$119* 1.06745779514313+-0.399785041809082)/ 144.714600097752))<0.00005),0,1)) -> 1 | E119: =IF(OR(NOT(ISNUMBER($Q$119)),ISERROR($Q$119)),1,IF(AND(LEN($Q$119)>0,ABS((1-($Q$119* 4.42988574504852+-0.117375731468201)/ 626.768260528703))<0.00005),0,1)) -> 1 | F119: =IF(OR(NOT(ISNUMBER($R$119)),ISERROR($R$119)),1,IF(AND(LEN($R$119)>0,ABS((1-($R$119*-1.52652442455292+-0.460213422775269)/-225.170136964107))<0.00005),0,1)) -> 1 | G119: =IF(OR(NOT(ISNUMBER($S$119)),ISERROR($S$119)),1,IF(AND(LEN($S$119)>0,ABS((1-($S$119* 3.90142858028412+-0.00644600391387939)/ 597.27014651687))<0.00005),0,1)) -> 1 | J119: DCF market value of firm | L119: [$m]
J120: Check IA + EVA = DCF | L120: [ok/check] | M120: =IF(OR(ABS(M118-M119)>0.0001,LEN(M118)=0,LEN(M119)=0),1,0) -> 1 | N120: 1 | O120: 1 | P120: 1 | Q120: 1 | R120: 1 | S120: 1
L123: Copyright (c) 2020 Tykoh Group Pty Ltd. All rights reserved. | T123: Index
L124: www.tykoh.com

Sheet IRR
J1: Click here to see what your answer should look like.
Q2: IRR | R2: IRR
J3: The questions on this page are about working with IRR: Calculating, targeting, tiering, etc.
A5: =SUM($A$6:$G$32) -> 7 | I5: 1 | J5: Share of free cash flow to achieve a target IRR
J7: ="Investors are required to provide capital in the first two years of a project according to the schedule shown on row " & ROW(11:11) & " below." -> Investors are required to provide capital in the first two years of a project according to the schedule shown on row 11 below.
J10: Period | K10: [yr] | L10: 1 | M10: =L10+1 -> 2 | N10: =M10+1 -> 3 | O10: =N10+1 -> 4 | P10: =O10+1 -> 5
J11: Capital contributed | K11: [$m] | L11: -50 | M11: -40 | N11: 0 | O11: 0 | P11: 0
J12: Free cash flow | K12: [$m] | L12: 0 | M12: 0 | N12: 40 | O12: 70 | P12: 120
J14: ="In subsequent years the project yields the free cash flows shown above on row " & ROW(12:12) & ". What proportion of free cash flows (as a fixed percentage) should the investors receive to achieve an IRR of " & TEXT(L18,"0%") & " over the lifetime of the project?" -> In subsequent years the project yields the free cash flows shown above on row 12. What proportion of free cash flows (as a fixed percentage) should the investors receive to achieve an IRR of 30% over the lifetime of the project?
J18: Target IRR | K18: [%] | L18: 0.3
A20: =IF(OR(NOT(ISNUMBER($L$20)),ISERROR($L$20)),1,IF(AND(LEN($L$20)>0,ABS((1-($L$20*-0.926193594932556+ 0.431220531463623)/-0.335681727858045))<0.00005),0,1)) -> 1 | J20: Proportion of free cash flows | K20: [%]
J22: ="Generate a schedule of cash flows for the project above showing capital contributed and free cash flows. The free cash flows should be those shown earlier on row " & ROW(12:12) & " scaled by the proportion you calculated in cell " & ADDRESS(ROW(L20),COLUMN(L20),4)&"." -> Generate a schedule of cash flows for the project above showing capital contributed and free cash flows. The free cash flows should be those shown earlier on row 12 scaled by the proportion you calculated in cell L20.
J26: Period | K26: [yr] | L26: =L10 -> 1 | M26: =M10 -> 2 | N26: =N10 -> 3 | O26: =O10 -> 4 | P26: =P10 -> 5
A27: =IF(OR(NOT(ISNUMBER($L$27)),ISERROR($L$27)),1,IF(AND(LEN($L$27)>0,ABS((1-($L$27*-2.48758614063263+ 0.054057240486145)/ 124.433364272118))<0.00005),0,1)) -> 1 | B27: =IF(OR(NOT(ISNUMBER($M$27)),ISERROR($M$27)),1,IF(AND(LEN($M$27)>0,ABS((1-($M$27*-4.55525577068329+ 0.314128637313843)/ 182.524359464645))<0.00005),0,1)) -> 1 | C27: =IF(OR(NOT(ISNUMBER($N$27)),ISERROR($N$27)),1,IF(AND(LEN($N$27)>0,ABS((1-($N$27*-0.300512909889221+ 0.0456403493881226)/-9.90752843995789))<0.00005),0,1)) -> 1 | D27: =IF(OR(NOT(ISNUMBER($O$27)),ISERROR($O$27)),1,IF(AND(LEN($O$27)>0,ABS((1-($O$27*-1.23390138149261+-0.352931976318359)/-71.8711581546158))<0.00005),0,1)) -> 1 | E27: =IF(OR(NOT(ISNUMBER($P$27)),ISERROR($P$27)),1,IF(AND(LEN($P$27)>0,ABS((1-($P$27* 2.33093440532684+-0.279682517051697)/ 231.326176761982))<0.00005),0,1)) -> 1 | J27: Project cash flow | K27: [$m]
J29: ="Calculate the IRR of the cash flows above and show the IRR matches the target IRR in cell " & ADDRESS(ROW(L18),COLUMN(L18),4)&"." -> Calculate the IRR of the cash flows above and show the IRR matches the target IRR in cell L18.
A31: =IF(OR(NOT(ISNUMBER($L$31)),ISERROR($L$31)),1,IF(AND(LEN($L$31)>0,ABS((1-($L$31*-2.89755523204803+-0.176833868026733)/-1.04610043764112))<0.00005),0,1)) -> 1 | J31: IRR | K31: [%]
S32: Index
A33: =SUM($A$34:$G$65) -> 8 | I33: 2 | J33: Calculating IRR tenor
J35: ="Investors are required to provide capital in the first two years of a project according to the schedule shown on row " & ROW(39:39) & " below." -> Investors are required to provide capital in the first two years of a project according to the schedule shown on row 39 below.
J38: Period | K38: [yr] | L38: 1 | M38: =L38+1 -> 2 | N38: 3 | O38: 4 | P38: 5 | Q38: 6 | R38: 7
J39: Equity contributed | K39: [$m] | L39: -50 | M39: -40 | N39: 0 | O39: 0 | P39: 0 | Q39: 0 | R39: 0
J40: Free cash flow | K40: [$m] | L40: 0 | M40: 0 | N40: 40 | O40: 70 | P40: 70 | Q40: 70 | R40: 120
J42: ="In subsequent years the project yields the free cash flows shown above on row "&ROW(40:40)&"." -> In subsequent years the project yields the free cash flows shown above on row 40.
J44: ="Investors are entitled to dividends equal to " & TEXT(L49,"0%") & " of the free cash flows until they achieve an IRR of " & TEXT(L50,"0%") & ". Thereafter they have no further claim on free cash flows. Calculate the dividends investors receive. [They will receive " & TEXT(L49,"0%") & " for a number of years, less than " & TEXT(L49,"0%") & " on a final year and 0% thereafter.] Show investing and dividend cash flows below." -> Investors are entitled to dividends equal to 80% of the free cash flows until they achieve an IRR of 20%. Thereafter they have no further claim on free cash flows. Calculate the dividends investors receive. [They will receive 80% for a number of years, less than 80% on a final year and 0% thereafter.] Show investing and dividend cash flows below.
J49: Dividend payout ratio | K49: [%] | L49: 0.8
J50: Target IRR | K50: [%] | L50: 0.2
J52: Workspace
J59: Period | K59: [yr] | L59: 1 | M59: =L59+1 -> 2 | N59: 3 | O59: 4 | P59: 5 | Q59: 6 | R59: 7
A60: =IF(OR(NOT(ISNUMBER($L$60)),ISERROR($L$60)),1,IF(AND(LEN($L$60)>0,ABS((1-($L$60*-0.762067437171936+ 0.241235613822937)/ 38.3446074724197))<0.00005),0,1)) -> 1 | B60: =IF(OR(NOT(ISNUMBER($M$60)),ISERROR($M$60)),1,IF(AND(LEN($M$60)>0,ABS((1-($M$60*-3.81562650203705+-0.0642542839050293)/ 152.560805797577))<0.00005),0,1)) -> 1 | C60: =IF(OR(NOT(ISNUMBER($N$60)),ISERROR($N$60)),1,IF(AND(LEN($N$60)>0,ABS((1-($N$60* 3.24579894542694+ 0.0732995271682739)/ 103.93886578083))<0.00005),0,1)) -> 1 | D60: =IF(OR(NOT(ISNUMBER($O$60)),ISERROR($O$60)),1,IF(AND(LEN($O$60)>0,ABS((1-($O$60* 2.68974125385284+-0.206050157546997)/ 150.419460058212))<0.00005),0,1)) -> 1 | E60: =IF(OR(NOT(ISNUMBER($P$60)),ISERROR($P$60)),1,IF(AND(LEN($P$60)>0,ABS((1-($P$60*-4.29475843906403+ 0.123796820640564)/-240.382675766945))<0.00005),0,1)) -> 1 | F60: =IF(OR(NOT(ISNUMBER($Q$60)),ISERROR($Q$60)),1,IF(AND(LEN($Q$60)>0,ABS((1-($Q$60* 0.0249201059341431+ 0.188366889953613)/ 0.293629417419434))<0.00005),0,1)) -> 1 | G60: =IF(OR(NOT(ISNUMBER($R$60)),ISERROR($R$60)),1,IF(AND(LEN($R$60)>0,ABS((1-($R$60*-1.47639095783234+ 0.133022904396057)/ 0.133022904396057))<0.00005),0,1)) -> 1 | J60: Investor cash flow | K60: [$m]
J62: ="Calculate the investors' IRR and confirm it matches the target IRR in cell " & ADDRESS(ROW(L50),COLUMN(L50),4) &"." -> Calculate the investors' IRR and confirm it matches the target IRR in cell L50.
A64: =IF(OR(NOT(ISNUMBER($L$64)),ISERROR($L$64)),1,IF(AND(LEN($L$64)>0,ABS((1-($L$64*-3.39395225048065+ 0.406655550003052)/-0.27213490009155))<0.00005),0,1)) -> 1 | J64: Investor IRR | K64: [%]
S65: Index
A66: =SUM($A$67:$G$102) -> 34 | I66: 3 | J66: IRR waterfall
J68: ="A project begins in year 0 and finishes in year 4. Two partners contribute capital in year 0 as shown below in cells " & ADDRESS(ROW(M72),COLUMN(M72),4)&":"& ADDRESS(ROW(M73),COLUMN(M73),4)&". Cash available for distribution to the partners at the end of the project in year 4 is $" & TEXT(M74,"0")&"m." -> A project begins in year 0 and finishes in year 4. Two partners contribute capital in year 0 as shown below in cells M72:M73. Cash available for distribution to the partners at the end of the project in year 4 is $60m.
J72: Partner A - capital contributed | L72: [$m] | M72: 35
J73: Partner B - capital contributed | L73: [$m] | M73: 2
J74: Cash to distribute | L74: [$m] | M74: 60
J76: ="The cash distribution is split between the partners on an ""IRR waterfall"" basis. In cells " & ADDRESS(ROW(L85),COLUMN(L85),4)&":"&ADDRESS(ROW(L88),COLUMN(L88),4)&" below calculate the distributions in year 4 that would be required to achieve the project IRRs listed in cells " & ADDRESS(ROW(J85),COLUMN(J85),4)&":"&ADDRESS(ROW(J88),COLUMN(J88),4)&"." -> The cash distribution is split between the partners on an "IRR waterfall" basis. In cells L85:L88 below calculate the distributions in year 4 that would be required to achieve the project IRRs listed in cells J85:J88.
J80: ="In cells " & ADDRESS(ROW(O85),COLUMN(O85),4)&":"&ADDRESS(ROW(Q88),COLUMN(Q88),4)&" calculate the profit split between the two partners. You'll need to calculate the contribution at each IRR tier." -> In cells O85:Q88 calculate the profit split between the two partners. You'll need to calculate the contribution at each IRR tier.
J83: Hurdles | O83: Split
J84: IRR | K84: Cash flow in year 0 | L84: Cash flow in year 4 | M84: Partner A split | N84: Partner B split | O84: Partner A | P84: Partner B | Q84: Project
A85: =IF(OR(NOT(ISNUMBER($L$85)),ISERROR($L$85)),1,IF(AND(LEN($L$85)>0,ABS((1-($L$85*-1.30385935306549+ 0.314906001091003)/-65.3188854427277))<0.00005),0,1)) -> 1 | B85: =IF(OR(NOT(ISNUMBER($O$85)),ISERROR($O$85)),1,IF(AND(LEN($O$85)>0,ABS((1-($O$85*-3.35972249507904+-0.000830173492431641)/-44.8131162946595))<0.00005),0,1)) -> 1 | C85: =IF(OR(NOT(ISNUMBER($P$85)),ISERROR($P$85)),1,IF(AND(LEN($P$85)>0,ABS((1-($P$85*-4.66278374195099+ 0.247632145881653)/ 0.247632145881653))<0.00005),0,1)) -> 1 | D85: =IF(OR(NOT(ISNUMBER($Q$85)),ISERROR($Q$85)),1,IF(AND(LEN($Q$85)>0,ABS((1-($Q$85* 3.40702831745148+-0.205415964126587)/ 45.2378395452729))<0.00005),0,1)) -> 1 | J85: 0.08 | K85: =-M72-M73 -> -37 | M85: 1 | N85: =1-M85 -> 0
A86: =IF(OR(NOT(ISNUMBER($L$86)),ISERROR($L$86)),1,IF(AND(LEN($L$86)>0,ABS((1-($L$86*-0.788393616676331+ 0.0142701864242554)/-42.6943522980809))<0.00005),0,1)) -> 1 | B86: =IF(OR(NOT(ISNUMBER($O$86)),ISERROR($O$86)),1,IF(AND(LEN($O$86)>0,ABS((1-($O$86*-4.9607652425766+ 0.165517807006836)/-14.0977059689164))<0.00005),0,1)) -> 1 | C86: =IF(OR(NOT(ISNUMBER($P$86)),ISERROR($P$86)),1,IF(AND(LEN($P$86)>0,ABS((1-($P$86* 4.76572215557098+-0.406603217124939)/ 4.16087500010526))<0.00005),0,1)) -> 1 | D86: =IF(OR(NOT(ISNUMBER($Q$86)),ISERROR($Q$86)),1,IF(AND(LEN($Q$86)>0,ABS((1-($Q$86* 2.80459702014923+-0.455838918685913)/ 10.2958880007409))<0.00005),0,1)) -> 1 | J86: 0.1 | K86: =K85 -> -37 | M86: 0.75 | N86: =1-M86 -> 0.25
A87: =IF(OR(NOT(ISNUMBER($L$87)),ISERROR($L$87)),1,IF(AND(LEN($L$87)>0,ABS((1-($L$87* 4.65886533260345+ 0.49972140789032)/ 271.739868877812))<0.00005),0,1)) -> 1 | B87: =IF(OR(NOT(ISNUMBER($O$87)),ISERROR($O$87)),1,IF(AND(LEN($O$87)>0,ABS((1-($O$87* 1.88683092594147+ 0.187899112701416)/ 4.77121859075426))<0.00005),0,1)) -> 1 | C87: =IF(OR(NOT(ISNUMBER($P$87)),ISERROR($P$87)),1,IF(AND(LEN($P$87)>0,ABS((1-($P$87*-3.20552170276642+-0.325288653373718)/-5.51633142447933))<0.00005),0,1)) -> 1 | D87: =IF(OR(NOT(ISNUMBER($Q$87)),ISERROR($Q$87)),1,IF(AND(LEN($Q$87)>0,ABS((1-($Q$87* 4.6669179201126+ 0.194937467575073)/ 19.0890308312514))<0.00005),0,1)) -> 1 | J87: 0.12 | K87: =K86 -> -37 | M87: 0.6 | N87: =1-M87 -> 0.4
A88: =IF(OR(NOT(ISNUMBER($L$88)),ISERROR($L$88)),1,IF(AND(LEN($L$88)>0,ABS((1-($L$88* 3.85139405727386+-0.372783303260803)/ 227.887194031122))<0.00005),0,1)) -> 1 | B88: =IF(OR(NOT(ISNUMBER($O$88)),ISERROR($O$88)),1,IF(AND(LEN($O$88)>0,ABS((1-($O$88*-3.49564492702484+-0.230072975158691)/-3.34081887125547))<0.00005),0,1)) -> 1 | C88: =IF(OR(NOT(ISNUMBER($P$88)),ISERROR($P$88)),1,IF(AND(LEN($P$88)>0,ABS((1-($P$88*-4.6849137544632+-0.175904631614685)/-4.34497115281522))<0.00005),0,1)) -> 1 | D88: =IF(OR(NOT(ISNUMBER($Q$88)),ISERROR($Q$88)),1,IF(AND(LEN($Q$88)>0,ABS((1-($Q$88* 4.01840507984161+-0.260411024093628)/ 6.89148075663752))<0.00005),0,1)) -> 1 | J88: 0.125 | K88: =K87 -> -37 | M88: 0.5 | N88: =1-M88 -> 0.5
A90: =IF(OR(NOT(ISNUMBER($O$90)),ISERROR($O$90)),1,IF(AND(LEN($O$90)>0,ABS((1-($O$90* 2.00891911983489+ 0.330838084220886)/ 39.5696480282196))<0.00005),0,1)) -> 1 | B90: =IF(OR(NOT(ISNUMBER($P$90)),ISERROR($P$90)),1,IF(AND(LEN($P$90)>0,ABS((1-($P$90*-4.13065373897552+ 0.318339824676514)/-14.0055301617279))<0.00005),0,1)) -> 1 | C90: =IF(OR(NOT(ISNUMBER($Q$90)),ISERROR($Q$90)),1,IF(AND(LEN($Q$90)>0,ABS((1-($Q$90* 3.12539756298065+-0.297806620597839)/ 71.5863373279572))<0.00005),0,1)) -> 1 | M90: Profit | N90: [$ 000's]
A91: =IF(OR(NOT(ISNUMBER($O$91)),ISERROR($O$91)),1,IF(AND(LEN($O$91)>0,ABS((1-($O$91*-3.96027743816376+ 0.123916387557983)/-138.485793948174))<0.00005),0,1)) -> 1 | B91: =IF(OR(NOT(ISNUMBER($P$91)),ISERROR($P$91)),1,IF(AND(LEN($P$91)>0,ABS((1-($P$91*-4.24258291721343+ 0.122792601585388)/-8.36237323284149))<0.00005),0,1)) -> 1 | C91: =IF(OR(NOT(ISNUMBER($Q$91)),ISERROR($Q$91)),1,IF(AND(LEN($Q$91)>0,ABS((1-($Q$91*-0.384406447410584+ 0.443000793457031)/-13.7800377607346))<0.00005),0,1)) -> 1 | M91: Equity | N91: [$ 000's]
A92: =IF(OR(NOT(ISNUMBER($O$92)),ISERROR($O$92)),1,IF(AND(LEN($O$92)>0,ABS((1-($O$92*-3.07048618793488+-0.202225089073181)/-167.642897536997))<0.00005),0,1)) -> 1 | B92: =IF(OR(NOT(ISNUMBER($P$92)),ISERROR($P$92)),1,IF(AND(LEN($P$92)>0,ABS((1-($P$92* 1.0677844285965+-0.253154516220093)/ 5.58517092509577))<0.00005),0,1)) -> 1 | C92: =IF(OR(NOT(ISNUMBER($Q$92)),ISERROR($Q$92)),1,IF(AND(LEN($Q$92)>0,ABS((1-($Q$92*-1.87088549137115+-0.406587719917297)/-112.659717202187))<0.00005),0,1)) -> 1 | M92: Total | N92: [$ 000's]
J94: ="In cells " & ADDRESS(ROW(R99),COLUMN(R99),4)&":"&ADDRESS(ROW(R101),COLUMN(R101),4)&" calculate the IRRs due to the individual partners and to the project overall. When you have done that the chart below will show the IRR split as a function of the cash available for distribution." -> In cells R99:R101 calculate the IRRs due to the individual partners and to the project overall. When you have done that the chart below will show the IRR split as a function of the cash available for distribution.
J97: Project cash flows
J98: Period | K98: [yr] | L98: 0 | M98: =L98+1 -> 1 | N98: =M98+1 -> 2 | O98: =N98+1 -> 3 | P98: =O98+1 -> 4 | R98: IRRs
A99: =IF(OR(NOT(ISNUMBER($P$99)),ISERROR($P$99)),1,IF(AND(LEN($P$99)>0,ABS((1-($P$99*-4.96686398983002+ 0.456898212432861)/-270.397616516345))<0.00005),0,1)) -> 1 | B99: =IF(OR(NOT(ISNUMBER($R$99)),ISERROR($R$99)),1,IF(AND(LEN($R$99)>0,ABS((1-($R$99* 2.33778655529022+-0.0722655057907104)/ 0.201816383127187))<0.00005),0,1)) -> 1 | J99: Partner A cash flows | K99: [$ 000's] | L99: =-M72 -> -35 | M99: 0 | N99: 0 | O99: 0
A100: =IF(OR(NOT(ISNUMBER($P$100)),ISERROR($P$100)),1,IF(AND(LEN($P$100)>0,ABS((1-($P$100*-0.404245257377625+-0.0395729541778564)/-2.24986494521318))<0.00005),0,1)) -> 1 | B100: =IF(OR(NOT(ISNUMBER($R$100)),ISERROR($R$100)),1,IF(AND(LEN($R$100)>0,ABS((1-($R$100* 3.56248795986176+-0.0888458490371704)/ 0.929526891155548))<0.00005),0,1)) -> 1 | J100: Partner B cash flows | K100: [$ 000's] | L100: =-M73 -> -2 | M100: 0 | N100: 0 | O100: 0
A101: =IF(OR(NOT(ISNUMBER($M$101)),ISERROR($M$101)),1,IF(AND(LEN($M$101)>0,ABS((1-($M$101* 2.06826269626617+-0.123854637145996)/-0.123854637145996))<0.00005),0,1)) -> 1 | B101: =IF(OR(NOT(ISNUMBER($N$101)),ISERROR($N$101)),1,IF(AND(LEN($N$101)>0,ABS((1-($N$101*-1.13318264484406+-0.262908339500427)/-0.262908339500427))<0.00005),0,1)) -> 1 | C101: =IF(OR(NOT(ISNUMBER($O$101)),ISERROR($O$101)),1,IF(AND(LEN($O$101)>0,ABS((1-($O$101*-2.72695243358612+-0.430163145065308)/-0.430163145065308))<0.00005),0,1)) -> 1 | D101: =IF(OR(NOT(ISNUMBER($P$101)),ISERROR($P$101)),1,IF(AND(LEN($P$101)>0,ABS((1-($P$101* 2.90226399898529+ 0.322600245475769)/ 174.458440184593))<0.00005),0,1)) -> 1 | E101: =IF(OR(NOT(ISNUMBER($R$101)),ISERROR($R$101)),1,IF(AND(LEN($R$101)>0,ABS((1-($R$101*-1.67648732662201+-0.080019474029541)/-0.29538631621232))<0.00005),0,1)) -> 1 | J101: Project cash flows | K101: [$ 000's] | L101: =SUM(L99:L100) -> -37
S102: Index
A103: =SUM($A$104:$G$112) -> 2 | I103: 4 | J103: Two IRRs
J105: The following set of cashflows have two IRRs. Find both the lower and the higher IRR.
J107: Period | K107: [yr] | L107: 1 | M107: =L107+1 -> 2 | N107: =M107+1 -> 3
J108: Cash flow | K108: [$ 000's] | L108: =4*N108/(5.6+0.16-4/100) -> 699.3006993 | M108: =-2.4*L108 -> -1678.321678 | N108: 1000
A110: =IF(OR(NOT(ISNUMBER($L$110)),ISERROR($L$110)),1,IF(AND(LEN($L$110)>0,ABS((1-($L$110* 4.93945777416229+ 0.198990941047668)/ 0.692936718463885))<0.00005),0,1)) -> 1 | J110: Lower IRR | K110: [%]
A111: =IF(OR(NOT(ISNUMBER($L$111)),ISERROR($L$111)),1,IF(AND(LEN($L$111)>0,ABS((1-($L$111*-0.0946730375289917+ 0.333375692367554)/ 0.30497378110668))<0.00005),0,1)) -> 1 | J111: Higher IRR | K111: [%]
S112: Index
A113: =SUM($A$114:$G$125) -> 1 | I113: =I103+1 -> 5 | J113: IRR when cash flows grow at a constant rate in perpetuity
J115: ="An investment of $" & TEXT(L118,"0") & "m is made. The investment will generate a dividend of $" & TEXT(L119,"0.00") & "m in the first year and dividends threreafter increase at " & TEXT(L120,"0.0%") & " forever. What is the IRR of this investment?" -> An investment of $6m is made. The investment will generate a dividend of $1.25m in the first year and dividends threreafter increase at 5.0% forever. What is the IRR of this investment?
J118: Investment | K118: [$m] | L118: 6
J119: Dividend in first year | K119: [$m] | L119: 1.25
J120: Dividend growth rate | K120: [% / yr] | L120: 0.05
A122: =IF(OR(NOT(ISNUMBER($L$122)),ISERROR($L$122)),1,IF(AND(LEN($L$122)>0,ABS((1-($L$122*-1.60058081150055+-0.347542405128479)/-0.761025781432788))<0.00005),0,1)) -> 1 | J122: IRR
K125: Copyright (c) 2020 Tykoh Group Pty Ltd. All rights reserved. | S125: Index
K126: www.tykoh.com

Sheet Sculpting
J1: Click here to see what your answer should look like.
Q2: Various | R2: Sculpting
J3: The questions on this page relate to "sculpting" various profiles of cash flows.
A5: =SUM($A$6:$G$34) -> 36 | I5: 1 | J5: Reserving for a future need #1
J7: Two projects are to be developed: Project Alpha will require an expenditure of $2m per year in years 4 through 6 (inclusive) and Project Beta will require $3m per year in years 5 through 7 (inclusive). Before the first project begins a reserve account has to accumulate sufficient funds to service the two projects in the subsquent years. To achieve this a fixed amount will be deposited into the reserve account in years 1 through 3 (inclusive).
J13: So - in years 1 through 3 deposits will be made into the reserve account. In years 4 through 7 cash will be withdrawn as required. The reserve account earns 5% interest paid yearly in arrears. Cash flows always occur on the last day of the year in this order: 1) Interest on the reserve account calculated and credited, 2) deposit (if any) made and 3) withdrawal (if any) made. There is to be a zero cash balance in the reserve account after the last withdrawal has been made.
J19: Interest earned on reserve account | L19: [%] | M19: 0.05
J21: Year | K21: [yr] | L21: 1 | M21: =L21+1 -> 2 | N21: 3 | O21: 4 | P21: 5 | Q21: 6 | R21: 7
A22: =IF(OR(NOT(ISNUMBER($M$22)),ISERROR($M$22)),1,IF(AND(LEN($M$22)>0,ABS((1-($M$22* 4.05767500400543+ 0.0107669830322266)/ 17.035889248284))<0.00005),0,1)) -> 1 | B22: =IF(OR(NOT(ISNUMBER($N$22)),ISERROR($N$22)),1,IF(AND(LEN($N$22)>0,ABS((1-($N$22* 2.88480937480927+ 0.114701867103577)/ 24.9279696011287))<0.00005),0,1)) -> 1 | C22: =IF(OR(NOT(ISNUMBER($O$22)),ISERROR($O$22)),1,IF(AND(LEN($O$22)>0,ABS((1-($O$22*-1.54549300670624+ 0.462469339370728)/-19.9800830445197))<0.00005),0,1)) -> 1 | D22: =IF(OR(NOT(ISNUMBER($P$22)),ISERROR($P$22)),1,IF(AND(LEN($P$22)>0,ABS((1-($P$22*-1.28881990909576+-0.196441769599915)/-15.5186609674666))<0.00005),0,1)) -> 1 | E22: =IF(OR(NOT(ISNUMBER($Q$22)),ISERROR($Q$22)),1,IF(AND(LEN($Q$22)>0,ABS((1-($Q$22*-2.8142112493515+ 0.273993015289307)/-20.7847306193138))<0.00005),0,1)) -> 1 | F22: =IF(OR(NOT(ISNUMBER($R$22)),ISERROR($R$22)),1,IF(AND(LEN($R$22)>0,ABS((1-($R$22* 3.93822371959686+-0.386381030082703)/ 10.865686740194))<0.00005),0,1)) -> 1 | J22: Opening balance | K22: [$m]
A23: =IF(OR(NOT(ISNUMBER($L$23)),ISERROR($L$23)),1,IF(AND(LEN($L$23)>0,ABS((1-($L$23* 4.03875172138214+ 0.121668577194214)/ 17.0673928620746))<0.00005),0,1)) -> 1 | B23: =IF(OR(NOT(ISNUMBER($M$23)),ISERROR($M$23)),1,IF(AND(LEN($M$23)>0,ABS((1-($M$23* 3.90102326869965+ 0.256859183311462)/ 16.624704819949))<0.00005),0,1)) -> 1 | C23: =IF(OR(NOT(ISNUMBER($N$23)),ISERROR($N$23)),1,IF(AND(LEN($N$23)>0,ABS((1-($N$23*-1.72085702419281+ 0.0382719039916992)/-7.18207009209703))<0.00005),0,1)) -> 1 | J23: Deposit | K23: [$m]
A24: =IF(OR(NOT(ISNUMBER($M$24)),ISERROR($M$24)),1,IF(AND(LEN($M$24)>0,ABS((1-($M$24* 3.24130237102509+-0.346738219261169)/ 0.333251788697569))<0.00005),0,1)) -> 1 | B24: =IF(OR(NOT(ISNUMBER($N$24)),ISERROR($N$24)),1,IF(AND(LEN($N$24)>0,ABS((1-($N$24* 2.93247520923615+-0.0713508129119873)/ 1.18981211046105))<0.00005),0,1)) -> 1 | C24: =IF(OR(NOT(ISNUMBER($O$24)),ISERROR($O$24)),1,IF(AND(LEN($O$24)>0,ABS((1-($O$24* 0.438675284385681+-0.428557515144348)/-0.138435125665401))<0.00005),0,1)) -> 1 | D24: =IF(OR(NOT(ISNUMBER($P$24)),ISERROR($P$24)),1,IF(AND(LEN($P$24)>0,ABS((1-($P$24*-4.43472325801849+ 0.335341930389404)/-2.30078284397533))<0.00005),0,1)) -> 1 | E24: =IF(OR(NOT(ISNUMBER($Q$24)),ISERROR($Q$24)),1,IF(AND(LEN($Q$24)>0,ABS((1-($Q$24* 4.84189689159393+-0.480725169181824)/ 1.33086890590434))<0.00005),0,1)) -> 1 | F24: =IF(OR(NOT(ISNUMBER($R$24)),ISERROR($R$24)),1,IF(AND(LEN($R$24)>0,ABS((1-($R$24* 1.56634151935577+ 0.454211950302124)/ 0.677975024495806))<0.00005),0,1)) -> 1 | J24: Interest earned | K24: [$m]
A25: =IF(OR(NOT(ISNUMBER($L$25)),ISERROR($L$25)),1,IF(AND(LEN($L$25)>0,ABS((1-($L$25*-3.79988729953766+-0.115484833717346)/-0.115484833717346))<0.00005),0,1)) -> 1 | B25: =IF(OR(NOT(ISNUMBER($M$25)),ISERROR($M$25)),1,IF(AND(LEN($M$25)>0,ABS((1-($M$25*-0.0720208883285522+ 0.400066375732422)/ 0.400066375732422))<0.00005),0,1)) -> 1 | C25: =IF(OR(NOT(ISNUMBER($N$25)),ISERROR($N$25)),1,IF(AND(LEN($N$25)>0,ABS((1-($N$25*-3.30589115619659+ 0.325427651405334)/ 0.325427651405334))<0.00005),0,1)) -> 1 | D25: =IF(OR(NOT(ISNUMBER($O$25)),ISERROR($O$25)),1,IF(AND(LEN($O$25)>0,ABS((1-($O$25* 1.52726471424103+-0.277717351913452)/-3.33224678039551))<0.00005),0,1)) -> 1 | E25: =IF(OR(NOT(ISNUMBER($P$25)),ISERROR($P$25)),1,IF(AND(LEN($P$25)>0,ABS((1-($P$25*-4.53243792057037+ 0.411409258842468)/ 9.47628509998322))<0.00005),0,1)) -> 1 | F25: =IF(OR(NOT(ISNUMBER($Q$25)),ISERROR($Q$25)),1,IF(AND(LEN($Q$25)>0,ABS((1-($Q$25*-0.0927108526229858+ 0.170433521270752)/ 0.355855226516724))<0.00005),0,1)) -> 1 | G25: =IF(OR(NOT(ISNUMBER($R$25)),ISERROR($R$25)),1,IF(AND(LEN($R$25)>0,ABS((1-($R$25*-4.3417102098465+-0.486385226249695)/-0.486385226249695))<0.00005),0,1)) -> 1 | J25: Project Alpha cost | K25: [$m]
A26: =IF(OR(NOT(ISNUMBER($L$26)),ISERROR($L$26)),1,IF(AND(LEN($L$26)>0,ABS((1-($L$26* 4.55840885639191+-0.290087938308716)/-0.290087938308716))<0.00005),0,1)) -> 1 | B26: =IF(OR(NOT(ISNUMBER($M$26)),ISERROR($M$26)),1,IF(AND(LEN($M$26)>0,ABS((1-($M$26* 3.92949998378754+-0.0544182062149048)/-0.0544182062149048))<0.00005),0,1)) -> 1 | C26: =IF(OR(NOT(ISNUMBER($N$26)),ISERROR($N$26)),1,IF(AND(LEN($N$26)>0,ABS((1-($N$26*-3.30050408840179+-0.212443351745605)/-0.212443351745605))<0.00005),0,1)) -> 1 | D26: =IF(OR(NOT(ISNUMBER($O$26)),ISERROR($O$26)),1,IF(AND(LEN($O$26)>0,ABS((1-($O$26* 2.50104129314423+ 0.353855729103088)/ 0.353855729103088))<0.00005),0,1)) -> 1 | E26: =IF(OR(NOT(ISNUMBER($P$26)),ISERROR($P$26)),1,IF(AND(LEN($P$26)>0,ABS((1-($P$26*-2.44081199169159+-0.152724027633667)/ 7.1697119474411))<0.00005),0,1)) -> 1 | F26: =IF(OR(NOT(ISNUMBER($Q$26)),ISERROR($Q$26)),1,IF(AND(LEN($Q$26)>0,ABS((1-($Q$26* 3.68065297603607+ 0.358614802360535)/-10.6833441257477))<0.00005),0,1)) -> 1 | G26: =IF(OR(NOT(ISNUMBER($R$26)),ISERROR($R$26)),1,IF(AND(LEN($R$26)>0,ABS((1-($R$26*-0.842861533164978+ 0.0956740379333496)/ 2.62425863742828))<0.00005),0,1)) -> 1 | J26: Project Beta cost | K26: [$m]
A27: =IF(OR(NOT(ISNUMBER($L$27)),ISERROR($L$27)),1,IF(AND(LEN($L$27)>0,ABS((1-($L$27*-3.10478508472443+ 0.444295048713684)/-12.5827082530748))<0.00005),0,1)) -> 1 | B27: =IF(OR(NOT(ISNUMBER($M$27)),ISERROR($M$27)),1,IF(AND(LEN($M$27)>0,ABS((1-($M$27*-2.41473376750946+-0.482324838638306)/-21.2523056917285))<0.00005),0,1)) -> 1 | C27: =IF(OR(NOT(ISNUMBER($N$27)),ISERROR($N$27)),1,IF(AND(LEN($N$27)>0,ABS((1-($N$27*-1.77800238132477+ 0.100215315818787)/-23.4177861640949))<0.00005),0,1)) -> 1 | D27: =IF(OR(NOT(ISNUMBER($O$27)),ISERROR($O$27)),1,IF(AND(LEN($O$27)>0,ABS((1-($O$27*-1.21099412441254+ 0.142148971557617)/-14.2548333303342))<0.00005),0,1)) -> 1 | E27: =IF(OR(NOT(ISNUMBER($P$27)),ISERROR($P$27)),1,IF(AND(LEN($P$27)>0,ABS((1-($P$27* 2.41991221904755+ 0.211202263832092)/ 18.319388936977))<0.00005),0,1)) -> 1 | F27: =IF(OR(NOT(ISNUMBER($Q$27)),ISERROR($Q$27)),1,IF(AND(LEN($Q$27)>0,ABS((1-($Q$27*-3.15144240856171+-0.442464590072632)/-9.44658575739178))<0.00005),0,1)) -> 1 | G27: =IF(OR(NOT(ISNUMBER($R$27)),ISERROR($R$27)),1,IF(AND(LEN($R$27)>0,ABS((1-($R$27*-2.53923952579498+-0.301784634590149)/-0.301784634590149))<0.00005),0,1)) -> 1 | J27: Closing balance | K27: [$m]
J29: Workspace
S34: Index
A35: =SUM($A$36:$G$59) -> 36 | I35: 2 | J35: Reserving for a future need #2
J37: In the preceding question the deposits were all the same size. In this exercise the deposits have to be of varying sizes - 20% of the total deposits must be made in the first year, 30% in the second and 50% in the third. Revise your model accordingly.
J41: Interest earned on reserve account | L41: [%] | M41: 0.05
J43: Year | L43: 1 | M43: =L43+1 -> 2 | N43: 3 | O43: 4 | P43: 5 | Q43: 6 | R43: 7
J44: Deposit profile | K44: [%] | L44: 0.2 | M44: 0.3 | N44: 0.5
A45: =IF(OR(NOT(ISNUMBER($M$45)),ISERROR($M$45)),1,IF(AND(LEN($M$45)>0,ABS((1-($M$45* 4.76013720035552+-0.322530269622803)/ 11.8384179131362))<0.00005),0,1)) -> 1 | B45: =IF(OR(NOT(ISNUMBER($N$45)),ISERROR($N$45)),1,IF(AND(LEN($N$45)>0,ABS((1-($N$45* 1.56048476696014+ 0.408971905708313)/ 10.5749151674704))<0.00005),0,1)) -> 1 | C45: =IF(OR(NOT(ISNUMBER($O$45)),ISERROR($O$45)),1,IF(AND(LEN($O$45)>0,ABS((1-($O$45*-2.28277385234833+-0.243592500686646)/-30.4383095616588))<0.00005),0,1)) -> 1 | D45: =IF(OR(NOT(ISNUMBER($P$45)),ISERROR($P$45)),1,IF(AND(LEN($P$45)>0,ABS((1-($P$45* 2.71041810512543+ 0.258571982383728)/ 32.4815536662526))<0.00005),0,1)) -> 1 | E45: =IF(OR(NOT(ISNUMBER($Q$45)),ISERROR($Q$45)),1,IF(AND(LEN($Q$45)>0,ABS((1-($Q$45*-1.10817849636078+-0.34475040435791)/-8.63724255399639))<0.00005),0,1)) -> 1 | F45: =IF(OR(NOT(ISNUMBER($R$45)),ISERROR($R$45)),1,IF(AND(LEN($R$45)>0,ABS((1-($R$45* 0.708534121513367+-0.379876494407654)/ 1.64450670991625))<0.00005),0,1)) -> 1 | J45: Opening balance | K45: [$m]
A46: =IF(OR(NOT(ISNUMBER($L$46)),ISERROR($L$46)),1,IF(AND(LEN($L$46)>0,ABS((1-($L$46*-2.28431403636932+ 0.356967210769653)/-5.47887815674657))<0.00005),0,1)) -> 1 | B46: =IF(OR(NOT(ISNUMBER($M$46)),ISERROR($M$46)),1,IF(AND(LEN($M$46)>0,ABS((1-($M$46* 1.69069707393646+-0.0346328020095825)/ 6.44432315350825))<0.00005),0,1)) -> 1 | C46: =IF(OR(NOT(ISNUMBER($N$46)),ISERROR($N$46)),1,IF(AND(LEN($N$46)>0,ABS((1-($N$46* 0.661597847938538+-0.267773151397705)/ 3.95776531942858))<0.00005),0,1)) -> 1 | J46: Deposit | K46: [$m]
A47: =IF(OR(NOT(ISNUMBER($M$47)),ISERROR($M$47)),1,IF(AND(LEN($M$47)>0,ABS((1-($M$47*-4.83808815479279+-0.244698405265808)/-0.862703064350644))<0.00005),0,1)) -> 1 | B47: =IF(OR(NOT(ISNUMBER($N$47)),ISERROR($N$47)),1,IF(AND(LEN($N$47)>0,ABS((1-($N$47* 4.52460110187531+-0.444984674453735)/ 1.02881497606683))<0.00005),0,1)) -> 1 | C47: =IF(OR(NOT(ISNUMBER($O$47)),ISERROR($O$47)),1,IF(AND(LEN($O$47)>0,ABS((1-($O$47* 3.52757394313812+-0.419191956520081)/ 1.91380517797795))<0.00005),0,1)) -> 1 | D47: =IF(OR(NOT(ISNUMBER($P$47)),ISERROR($P$47)),1,IF(AND(LEN($P$47)>0,ABS((1-($P$47* 2.20325529575348+-0.231735229492188)/ 1.07794195473445))<0.00005),0,1)) -> 1 | E47: =IF(OR(NOT(ISNUMBER($Q$47)),ISERROR($Q$47)),1,IF(AND(LEN($Q$47)>0,ABS((1-($Q$47* 4.12471950054169+-0.44672429561615)/ 1.09653810254571))<0.00005),0,1)) -> 1 | F47: =IF(OR(NOT(ISNUMBER($R$47)),ISERROR($R$47)),1,IF(AND(LEN($R$47)>0,ABS((1-($R$47* 0.980885624885559+-0.000522375106811523)/ 0.139604142733983))<0.00005),0,1)) -> 1 | J47: Interest earned | K47: [$m]
A48: =IF(OR(NOT(ISNUMBER($L$48)),ISERROR($L$48)),1,IF(AND(LEN($L$48)>0,ABS((1-($L$48* 3.75327527523041+-0.0547734498977661)/-0.0547734498977661))<0.00005),0,1)) -> 1 | B48: =IF(OR(NOT(ISNUMBER($M$48)),ISERROR($M$48)),1,IF(AND(LEN($M$48)>0,ABS((1-($M$48* 3.30683290958405+ 0.326351642608643)/ 0.326351642608643))<0.00005),0,1)) -> 1 | C48: =IF(OR(NOT(ISNUMBER($N$48)),ISERROR($N$48)),1,IF(AND(LEN($N$48)>0,ABS((1-($N$48*-4.29269134998322+ 0.0809403657913208)/ 0.0809403657913208))<0.00005),0,1)) -> 1 | D48: =IF(OR(NOT(ISNUMBER($O$48)),ISERROR($O$48)),1,IF(AND(LEN($O$48)>0,ABS((1-($O$48* 0.077703595161438+ 0.292404890060425)/ 0.136997699737549))<0.00005),0,1)) -> 1 | E48: =IF(OR(NOT(ISNUMBER($P$48)),ISERROR($P$48)),1,IF(AND(LEN($P$48)>0,ABS((1-($P$48*-0.693722367286682+ 0.477079749107361)/ 1.86452448368073))<0.00005),0,1)) -> 1 | F48: =IF(OR(NOT(ISNUMBER($Q$48)),ISERROR($Q$48)),1,IF(AND(LEN($Q$48)>0,ABS((1-($Q$48*-3.58138024806976+ 0.172600746154785)/ 7.33536124229431))<0.00005),0,1)) -> 1 | G48: =IF(OR(NOT(ISNUMBER($R$48)),ISERROR($R$48)),1,IF(AND(LEN($R$48)>0,ABS((1-($R$48* 1.92628085613251+ 0.233315110206604)/ 0.233315110206604))<0.00005),0,1)) -> 1 | J48: Project Alpha cost | K48: [$m]
A49: =IF(OR(NOT(ISNUMBER($L$49)),ISERROR($L$49)),1,IF(AND(LEN($L$49)>0,ABS((1-($L$49*-0.0355309247970581+ 0.488972902297974)/ 0.488972902297974))<0.00005),0,1)) -> 1 | B49: =IF(OR(NOT(ISNUMBER($M$49)),ISERROR($M$49)),1,IF(AND(LEN($M$49)>0,ABS((1-($M$49* 3.53130757808685+-0.3270503282547)/-0.3270503282547))<0.00005),0,1)) -> 1 | C49: =IF(OR(NOT(ISNUMBER($N$49)),ISERROR($N$49)),1,IF(AND(LEN($N$49)>0,ABS((1-($N$49* 1.64115488529205+-0.22374963760376)/-0.22374963760376))<0.00005),0,1)) -> 1 | D49: =IF(OR(NOT(ISNUMBER($O$49)),ISERROR($O$49)),1,IF(AND(LEN($O$49)>0,ABS((1-($O$49* 3.70448768138886+ 0.2335444688797)/ 0.2335444688797))<0.00005),0,1)) -> 1 | E49: =IF(OR(NOT(ISNUMBER($P$49)),ISERROR($P$49)),1,IF(AND(LEN($P$49)>0,ABS((1-($P$49*-1.05315387248993+-0.402517557144165)/ 2.75694406032562))<0.00005),0,1)) -> 1 | F49: =IF(OR(NOT(ISNUMBER($Q$49)),ISERROR($Q$49)),1,IF(AND(LEN($Q$49)>0,ABS((1-($Q$49* 1.17934167385101+-0.392456650733948)/-3.93048167228699))<0.00005),0,1)) -> 1 | G49: =IF(OR(NOT(ISNUMBER($R$49)),ISERROR($R$49)),1,IF(AND(LEN($R$49)>0,ABS((1-($R$49* 1.73322737216949+-0.190336227416992)/-5.39001834392548))<0.00005),0,1)) -> 1 | J49: Project Beta cost | K49: [$m]
A50: =IF(OR(NOT(ISNUMBER($L$50)),ISERROR($L$50)),1,IF(AND(LEN($L$50)>0,ABS((1-($L$50*-4.12896931171417+ 0.132897973060608)/-10.4155756810618))<0.00005),0,1)) -> 1 | B50: =IF(OR(NOT(ISNUMBER($M$50)),ISERROR($M$50)),1,IF(AND(LEN($M$50)>0,ABS((1-($M$50* 0.486748814582825+ 0.0793592929840088)/ 3.25033598980768))<0.00005),0,1)) -> 1 | C50: =IF(OR(NOT(ISNUMBER($N$50)),ISERROR($N$50)),1,IF(AND(LEN($N$50)>0,ABS((1-($N$50* 3.4076064825058+ 0.433692812919617)/ 45.5068013420675))<0.00005),0,1)) -> 1 | D50: =IF(OR(NOT(ISNUMBER($O$50)),ISERROR($O$50)),1,IF(AND(LEN($O$50)>0,ABS((1-($O$50*-2.89012372493744+-0.351670742034912)/-34.711094358881))<0.00005),0,1)) -> 1 | E50: =IF(OR(NOT(ISNUMBER($P$50)),ISERROR($P$50)),1,IF(AND(LEN($P$50)>0,ABS((1-($P$50* 2.16126143932343+ 0.310770153999329)/ 16.4834748019977))<0.00005),0,1)) -> 1 | F50: =IF(OR(NOT(ISNUMBER($Q$50)),ISERROR($Q$50)),1,IF(AND(LEN($Q$50)>0,ABS((1-($Q$50*-1.7976588010788+ 0.349154233932495)/-4.78701376914977))<0.00005),0,1)) -> 1 | G50: =IF(OR(NOT(ISNUMBER($R$50)),ISERROR($R$50)),1,IF(AND(LEN($R$50)>0,ABS((1-($R$50* 2.77957856655121+-0.117644906044006)/-0.117644906044006))<0.00005),0,1)) -> 1 | J50: Closing balance | K50: [$m]
J52: Workspace
S59: Index
A60: =SUM($A$61:$G$87) -> 30 | I60: 3 | J60: Paying down a loan according to a repayment profile
J62: ="A loan has an initial principal of " & TEXT(L71,"#,000")&" and must be repaid over " & Q74 & " years. Loan payments must be made according to the schedule shown on row " & ROW(75:75)&". If T is the total paid over the six years then " &TEXT(L75,"0%") & " of T must be made in year 1, "& TEXT(M75,"0%") & " in year 2, and so on." -> A loan has an initial principal of 500,000 and must be repaid over 6 years. Loan payments must be made according to the schedule shown on row 75. If T is the total paid over the six years then 10% of T must be made in year 1, 15% in year 2, and so on.
J66: Interest is paid in arrears and payments occur at the end of each year. Calculate the principal and interest payments needed to pay down the loan according to the repayment schedule. Use negative numbers to represent interest and principal payments and use positive numbers to represent the principal balance.
J71: Principal | K71: [$] | L71: 500000
J72: Interest rate | K72: [%] | L72: 0.06
J74: Period | K74: [yr] | L74: 1 | M74: =L74+1 -> 2 | N74: =M74+1 -> 3 | O74: =N74+1 -> 4 | P74: =O74+1 -> 5 | Q74: =P74+1 -> 6
J75: Repayment schedule | K75: [%] | L75: 0.1 | M75: 0.15 | N75: 0.2 | O75: 0.2 | P75: 0.25 | Q75: 0.1
J77: Period | K77: [yr] | L77: 1 | M77: =L77+1 -> 2 | N77: =M77+1 -> 3 | O77: =N77+1 -> 4 | P77: =O77+1 -> 5 | Q77: =P77+1 -> 6
A78: =IF(OR(NOT(ISNUMBER($L$78)),ISERROR($L$78)),1,IF(AND(LEN($L$78)>0,ABS((1-($L$78* 0.842390656471252+-0.12913990020752)/ 421195.199095726))<0.00005),0,1)) -> 1 | B78: =IF(OR(NOT(ISNUMBER($M$78)),ISERROR($M$78)),1,IF(AND(LEN($M$78)>0,ABS((1-($M$78* 0.216781497001648+-0.0253194570541382)/ 101537.201941653))<0.00005),0,1)) -> 1 | C78: =IF(OR(NOT(ISNUMBER($N$78)),ISERROR($N$78)),1,IF(AND(LEN($N$78)>0,ABS((1-($N$78* 0.868037343025208+ 0.274543046951294)/ 350744.568721522))<0.00005),0,1)) -> 1 | D78: =IF(OR(NOT(ISNUMBER($O$78)),ISERROR($O$78)),1,IF(AND(LEN($O$78)>0,ABS((1-($O$78*-1.73501551151276+-0.237387776374817)/-529318.937455301))<0.00005),0,1)) -> 1 | E78: =IF(OR(NOT(ISNUMBER($P$78)),ISERROR($P$78)),1,IF(AND(LEN($P$78)>0,ABS((1-($P$78* 3.65830957889557+-0.241005420684814)/ 732229.226541949))<0.00005),0,1)) -> 1 | F78: =IF(OR(NOT(ISNUMBER($Q$78)),ISERROR($Q$78)),1,IF(AND(LEN($Q$78)>0,ABS((1-($Q$78*-3.4145575761795+-0.339726328849792)/-198479.168844995))<0.00005),0,1)) -> 1 | J78: Opening principal | K78: [$]
A79: =IF(OR(NOT(ISNUMBER($L$79)),ISERROR($L$79)),1,IF(AND(LEN($L$79)>0,ABS((1-($L$79*-2.58549869060516+-0.323673486709595)/ 81739.909863051))<0.00005),0,1)) -> 1 | B79: =IF(OR(NOT(ISNUMBER($M$79)),ISERROR($M$79)),1,IF(AND(LEN($M$79)>0,ABS((1-($M$79* 0.239800810813904+ 0.461671233177185)/-15423.3380987475))<0.00005),0,1)) -> 1 | C79: =IF(OR(NOT(ISNUMBER($N$79)),ISERROR($N$79)),1,IF(AND(LEN($N$79)>0,ABS((1-($N$79*-1.05857789516449+-0.202404022216797)/ 104783.985679765))<0.00005),0,1)) -> 1 | D79: =IF(OR(NOT(ISNUMBER($O$79)),ISERROR($O$79)),1,IF(AND(LEN($O$79)>0,ABS((1-($O$79* 1.72134578227997+-0.268680930137634)/-180612.39962894))<0.00005),0,1)) -> 1 | E79: =IF(OR(NOT(ISNUMBER($P$79)),ISERROR($P$79)),1,IF(AND(LEN($P$79)>0,ABS((1-($P$79* 1.92864716053009+-0.171569585800171)/-273921.866390656))<0.00005),0,1)) -> 1 | F79: =IF(OR(NOT(ISNUMBER($Q$79)),ISERROR($Q$79)),1,IF(AND(LEN($Q$79)>0,ABS((1-($Q$79*-4.51374590396881+ 0.444864153862)/ 262372.064604506))<0.00005),0,1)) -> 1 | J79: Principal repaid | K79: [$]
A80: =IF(OR(NOT(ISNUMBER($L$80)),ISERROR($L$80)),1,IF(AND(LEN($L$80)>0,ABS((1-($L$80*-2.26823270320892+ 0.174652576446533)/ 68047.1557488441))<0.00005),0,1)) -> 1 | B80: =IF(OR(NOT(ISNUMBER($M$80)),ISERROR($M$80)),1,IF(AND(LEN($M$80)>0,ABS((1-($M$80* 4.98484313488007+-0.120288729667664)/-140089.700971934))<0.00005),0,1)) -> 1 | C80: =IF(OR(NOT(ISNUMBER($N$80)),ISERROR($N$80)),1,IF(AND(LEN($N$80)>0,ABS((1-($N$80*-1.34636104106903+-0.0420944690704346)/ 32641.0734188372))<0.00005),0,1)) -> 1 | D80: =IF(OR(NOT(ISNUMBER($O$80)),ISERROR($O$80)),1,IF(AND(LEN($O$80)>0,ABS((1-($O$80* 2.1928209066391+-0.244351983070374)/-40139.4052095509))<0.00005),0,1)) -> 1 | E80: =IF(OR(NOT(ISNUMBER($P$80)),ISERROR($P$80)),1,IF(AND(LEN($P$80)>0,ABS((1-($P$80* 3.72563421726227+ 0.281277656555176)/-44742.0091220388))<0.00005),0,1)) -> 1 | F80: =IF(OR(NOT(ISNUMBER($Q$80)),ISERROR($Q$80)),1,IF(AND(LEN($Q$80)>0,ABS((1-($Q$80*-0.357463955879211+-0.37453019618988)/ 1246.32919347186))<0.00005),0,1)) -> 1 | J80: Interest paid | K80: [$]
A81: =IF(OR(NOT(ISNUMBER($L$81)),ISERROR($L$81)),1,IF(AND(LEN($L$81)>0,ABS((1-($L$81*-3.01110923290253+-0.255072355270386)/ 185528.882116014))<0.00005),0,1)) -> 1 | B81: =IF(OR(NOT(ISNUMBER($M$81)),ISERROR($M$81)),1,IF(AND(LEN($M$81)>0,ABS((1-($M$81* 4.95422780513763+-0.484395146369934)/-457881.719694508))<0.00005),0,1)) -> 1 | C81: =IF(OR(NOT(ISNUMBER($N$81)),ISERROR($N$81)),1,IF(AND(LEN($N$81)>0,ABS((1-($N$81*-1.72443807125092+ 0.211709499359131)/ 212502.304956752))<0.00005),0,1)) -> 1 | D81: =IF(OR(NOT(ISNUMBER($O$81)),ISERROR($O$81)),1,IF(AND(LEN($O$81)>0,ABS((1-($O$81*-2.13272392749786+-0.183260798454285)/ 262814.878913652))<0.00005),0,1)) -> 1 | E81: =IF(OR(NOT(ISNUMBER($P$81)),ISERROR($P$81)),1,IF(AND(LEN($P$81)>0,ABS((1-($P$81*-3.5099333524704+-0.177202463150024)/ 540660.137738023))<0.00005),0,1)) -> 1 | F81: =IF(OR(NOT(ISNUMBER($Q$81)),ISERROR($Q$81)),1,IF(AND(LEN($Q$81)>0,ABS((1-($Q$81*-0.228548645973206+ 0.424441695213318)/ 14082.4220755391))<0.00005),0,1)) -> 1 | J81: Total payment | K81: [$]
A82: =IF(OR(NOT(ISNUMBER($L$82)),ISERROR($L$82)),1,IF(AND(LEN($L$82)>0,ABS((1-($L$82*-4.60966050624847+ 0.263311386108398)/-2159096.12126592))<0.00005),0,1)) -> 1 | B82: =IF(OR(NOT(ISNUMBER($M$82)),ISERROR($M$82)),1,IF(AND(LEN($M$82)>0,ABS((1-($M$82*-4.26183521747589+ 0.129788994789124)/-1722062.17233381))<0.00005),0,1)) -> 1 | C82: =IF(OR(NOT(ISNUMBER($N$82)),ISERROR($N$82)),1,IF(AND(LEN($N$82)>0,ABS((1-($N$82* 1.86908066272736+ 0.277940988540649)/ 570219.587308193))<0.00005),0,1)) -> 1 | D82: =IF(OR(NOT(ISNUMBER($O$82)),ISERROR($O$82)),1,IF(AND(LEN($O$82)>0,ABS((1-($O$82*-0.94828188419342+ 0.259990572929382)/-189803.233719598))<0.00005),0,1)) -> 1 | E82: =IF(OR(NOT(ISNUMBER($P$82)),ISERROR($P$82)),1,IF(AND(LEN($P$82)>0,ABS((1-($P$82*-3.26499402523041+ 0.436571598052979)/-189784.675188692))<0.00005),0,1)) -> 1 | F82: =IF(OR(NOT(ISNUMBER($Q$82)),ISERROR($Q$82)),1,IF(AND(LEN($Q$82)>0,ABS((1-($Q$82*-1.75944626331329+-0.430986285209656)/-0.430986284953623))<0.00005),0,1)) -> 1 | J82: Closing principal | K82: [$]
J84: Workspace
S87: Index
A88: =SUM($A$89:$G$118) -> 35 | I88: =I60+1 -> 4 | J88: Paying down a loan with capitalised interest
J90: A loan is to be paid off in equal instalments. There are seven payment periods during which instalments can be made. There is an optional grace period at the start of the loan during which no principal or interest payments need be made. During this grace period interest is capitalised and added to the outstanding principal.
J95: Calculate the principal and interest payments for the loan. Use negative numbers to represent interest and principal payments and use positive numbers to represent capitalised interest and the principal balance.
J99: Interest rate | K99: [%] | L99: 0.05
J100: Opening Principal | K100: [$m] | L100: 100
J101: Number Capitalisation Periods | K101: [#] | L101: 2
J102: Term | K102: [yrs] | L102: 7
J104: Year | K104: [yr] | L104: 1 | M104: =L104+1 -> 2 | N104: 3 | O104: 4 | P104: 5 | Q104: 6 | R104: 7
J105: Interest
A106: =IF(OR(NOT(ISNUMBER($L$106)),ISERROR($L$106)),1,IF(AND(LEN($L$106)>0,ABS((1-($L$106*-2.00590312480927+ 0.149908781051636)/ 0.149908781051636))<0.00005),0,1)) -> 1 | B106: =IF(OR(NOT(ISNUMBER($M$106)),ISERROR($M$106)),1,IF(AND(LEN($M$106)>0,ABS((1-($M$106*-3.39149534702301+ 0.378208518028259)/ 0.378208518028259))<0.00005),0,1)) -> 1 | C106: =IF(OR(NOT(ISNUMBER($N$106)),ISERROR($N$106)),1,IF(AND(LEN($N$106)>0,ABS((1-($N$106*-3.36914956569672+-0.0648965835571289)/ 18.507540397346))<0.00005),0,1)) -> 1 | D106: =IF(OR(NOT(ISNUMBER($O$106)),ISERROR($O$106)),1,IF(AND(LEN($O$106)>0,ABS((1-($O$106* 4.26604449748993+-0.0330671072006226)/-19.2937308382751))<0.00005),0,1)) -> 1 | E106: =IF(OR(NOT(ISNUMBER($P$106)),ISERROR($P$106)),1,IF(AND(LEN($P$106)>0,ABS((1-($P$106* 4.88952934741974+-0.0686233043670654)/-17.0224388525425))<0.00005),0,1)) -> 1 | F106: =IF(OR(NOT(ISNUMBER($Q$106)),ISERROR($Q$106)),1,IF(AND(LEN($Q$106)>0,ABS((1-($Q$106* 2.66153752803802+ 0.213177561759949)/-6.08799039404632))<0.00005),0,1)) -> 1 | G106: =IF(OR(NOT(ISNUMBER($R$106)),ISERROR($R$106)),1,IF(AND(LEN($R$106)>0,ABS((1-($R$106*-2.94458806514739+-0.334354877471924)/ 3.2363047005993))<0.00005),0,1)) -> 1 | J106: Interest Payment | K106: [$m]
J108: Principal
A109: =IF(OR(NOT(ISNUMBER($L$109)),ISERROR($L$109)),1,IF(AND(LEN($L$109)>0,ABS((1-($L$109* 1.61248862743378+ 0.484191060066223)/ 161.733053803444))<0.00005),0,1)) -> 1 | B109: =IF(OR(NOT(ISNUMBER($M$109)),ISERROR($M$109)),1,IF(AND(LEN($M$109)>0,ABS((1-($M$109* 2.73604214191437+ 0.0681455135345459)/ 287.352570414543))<0.00005),0,1)) -> 1 | C109: =IF(OR(NOT(ISNUMBER($N$109)),ISERROR($N$109)),1,IF(AND(LEN($N$109)>0,ABS((1-($N$109*-1.16320669651031+-0.222895264625549)/-128.466433554888))<0.00005),0,1)) -> 1 | D109: =IF(OR(NOT(ISNUMBER($O$109)),ISERROR($O$109)),1,IF(AND(LEN($O$109)>0,ABS((1-($O$109* 2.64247953891754+-0.261940002441406)/ 238.347431490434))<0.00005),0,1)) -> 1 | E109: =IF(OR(NOT(ISNUMBER($P$109)),ISERROR($P$109)),1,IF(AND(LEN($P$109)>0,ABS((1-($P$109* 1.98398768901825+ 0.109557747840881)/ 137.694011953914))<0.00005),0,1)) -> 1 | F109: =IF(OR(NOT(ISNUMBER($Q$109)),ISERROR($Q$109)),1,IF(AND(LEN($Q$109)>0,ABS((1-($Q$109*-3.12945067882538+ 0.45914101600647)/-147.719827936777))<0.00005),0,1)) -> 1 | G109: =IF(OR(NOT(ISNUMBER($R$109)),ISERROR($R$109)),1,IF(AND(LEN($R$109)>0,ABS((1-($R$109* 3.16649854183197+ 0.160322070121765)/ 76.9553650247968))<0.00005),0,1)) -> 1 | J109: Opening principal | K109: [$m]
A110: =IF(OR(NOT(ISNUMBER($L$110)),ISERROR($L$110)),1,IF(AND(LEN($L$110)>0,ABS((1-($L$110*-4.31790769100189+-0.0346636772155762)/-21.624202132225))<0.00005),0,1)) -> 1 | B110: =IF(OR(NOT(ISNUMBER($M$110)),ISERROR($M$110)),1,IF(AND(LEN($M$110)>0,ABS((1-($M$110*-4.00910675525665+ 0.159927487373352)/-20.8878829777241))<0.00005),0,1)) -> 1 | C110: =IF(OR(NOT(ISNUMBER($N$110)),ISERROR($N$110)),1,IF(AND(LEN($N$110)>0,ABS((1-($N$110* 2.7862149477005+-0.0435860157012939)/-0.0435860157012939))<0.00005),0,1)) -> 1 | D110: =IF(OR(NOT(ISNUMBER($O$110)),ISERROR($O$110)),1,IF(AND(LEN($O$110)>0,ABS((1-($O$110*-4.91087019443511+ 0.0312865972518921)/ 0.0312865972518921))<0.00005),0,1)) -> 1 | E110: =IF(OR(NOT(ISNUMBER($P$110)),ISERROR($P$110)),1,IF(AND(LEN($P$110)>0,ABS((1-($P$110* 1.1205393075943+ 0.363587379455566)/ 0.363587379455566))<0.00005),0,1)) -> 1 | F110: =IF(OR(NOT(ISNUMBER($Q$110)),ISERROR($Q$110)),1,IF(AND(LEN($Q$110)>0,ABS((1-($Q$110*-1.85019314289093+-0.219680190086365)/-0.219680190086365))<0.00005),0,1)) -> 1 | G110: =IF(OR(NOT(ISNUMBER($R$110)),ISERROR($R$110)),1,IF(AND(LEN($R$110)>0,ABS((1-($R$110* 1.132453083992+-0.134859800338745)/-0.134859800338745))<0.00005),0,1)) -> 1 | J110: Capitalised interest | K110: [$m]
A111: =IF(OR(NOT(ISNUMBER($L$111)),ISERROR($L$111)),1,IF(AND(LEN($L$111)>0,ABS((1-($L$111* 0.449413657188416+ 0.136580348014832)/ 0.136580348014832))<0.00005),0,1)) -> 1 | B111: =IF(OR(NOT(ISNUMBER($M$111)),ISERROR($M$111)),1,IF(AND(LEN($M$111)>0,ABS((1-($M$111* 1.56035959720612+-0.347948551177979)/-0.347948551177979))<0.00005),0,1)) -> 1 | C111: =IF(OR(NOT(ISNUMBER($N$111)),ISERROR($N$111)),1,IF(AND(LEN($N$111)>0,ABS((1-($N$111* 1.88358008861542+ 0.443879246711731)/-37.1381987773782))<0.00005),0,1)) -> 1 | D111: =IF(OR(NOT(ISNUMBER($O$111)),ISERROR($O$111)),1,IF(AND(LEN($O$111)>0,ABS((1-($O$111* 2.71492779254913+ 0.443620443344116)/-56.4343749141943))<0.00005),0,1)) -> 1 | E111: =IF(OR(NOT(ISNUMBER($P$111)),ISERROR($P$111)),1,IF(AND(LEN($P$111)>0,ABS((1-($P$111*-3.50167334079742+-0.199089646339417)/ 76.8293192109771))<0.00005),0,1)) -> 1 | F111: =IF(OR(NOT(ISNUMBER($Q$111)),ISERROR($Q$111)),1,IF(AND(LEN($Q$111)>0,ABS((1-($Q$111* 2.26034224033356+-0.246908187866211)/-52.4551174540503))<0.00005),0,1)) -> 1 | G111: =IF(OR(NOT(ISNUMBER($R$111)),ISERROR($R$111)),1,IF(AND(LEN($R$111)>0,ABS((1-($R$111* 4.52131450176239+ 0.451875329017639)/-109.200643624475))<0.00005),0,1)) -> 1 | J111: Principal payment | K111: [$m]
A112: =IF(OR(NOT(ISNUMBER($L$112)),ISERROR($L$112)),1,IF(AND(LEN($L$112)>0,ABS((1-($L$112* 3.49555313587189+ 0.40328049659729)/ 367.436359763145))<0.00005),0,1)) -> 1 | B112: =IF(OR(NOT(ISNUMBER($M$112)),ISERROR($M$112)),1,IF(AND(LEN($M$112)>0,ABS((1-($M$112*-3.10690462589264+ 0.427108645439148)/-342.109126359224))<0.00005),0,1)) -> 1 | C112: =IF(OR(NOT(ISNUMBER($N$112)),ISERROR($N$112)),1,IF(AND(LEN($N$112)>0,ABS((1-($N$112*-3.86447370052338+ 0.292196750640869)/-348.660227384441))<0.00005),0,1)) -> 1 | D112: =IF(OR(NOT(ISNUMBER($O$112)),ISERROR($O$112)),1,IF(AND(LEN($O$112)>0,ABS((1-($O$112* 2.29836165904999+ 0.43370258808136)/ 159.819184755582))<0.00005),0,1)) -> 1 | E112: =IF(OR(NOT(ISNUMBER($P$112)),ISERROR($P$112)),1,IF(AND(LEN($P$112)>0,ABS((1-($P$112*-0.407506823539734+ 0.408671140670776)/-18.8867091514405))<0.00005),0,1)) -> 1 | F112: =IF(OR(NOT(ISNUMBER($Q$112)),ISERROR($Q$112)),1,IF(AND(LEN($Q$112)>0,ABS((1-($Q$112*-3.30280363559723+-0.0038677453994751)/-80.1046300592845))<0.00005),0,1)) -> 1 | G112: =IF(OR(NOT(ISNUMBER($R$112)),ISERROR($R$112)),1,IF(AND(LEN($R$112)>0,ABS((1-($R$112*-1.24279916286469+ 0.0979795455932617)/ 0.0979795455932264))<0.00005),0,1)) -> 1 | J112: Closing principal | K112: [$m]
J114: Workspace
K118: Copyright (c) 2020 Tykoh Group Pty Ltd. All rights reserved. | S118: Index
K119: www.tykoh.com

Sheet Expected_value
D1: Click here to see what your answer should look like.
K2: Various | L2: Expected_value
D3: The questions on this page relate to statistical measures of expected value and standard deviation.
A5: =SUM($A$6:$A$66) -> 4 | C5: 1 | D5: Expected value of a distribution
D7: A wind farm has a maximum output of 600 Megawatts. It generates maximum output when the wind speed is above a certain threshold. At lower wind speeds the farm has a lower ouput. At very high wind speeds the farm cannot operate and is off-line. At very low speeds the farm is also off-line.
D11: ="The table below on rows "&ROW(20:20)&" to "&ROW(44:44)&" lists probabilities that the wind will be a certain speed on a given day. The probabilities are shown in column "&CHAR(CODE("A")+COLUMN(E:E)-1)&". The power outputs corresponding to each wind speed are shown in column "&CHAR(CODE("A")+COLUMN(F:F)-1)&". Daily wind speeds are independent of each other." -> The table below on rows 20 to 44 lists probabilities that the wind will be a certain speed on a given day. The probabilities are shown in column E. The power outputs corresponding to each wind speed are shown in column F. Daily wind speeds are independent of each other.
D15: Wind distribtion "shape" parameters
D16: a | E16: =600/(15^3) -> 0.1777777778
D17: l | E17: 10
D18: k | E18: 1.5
D20: Wind farm generating profile | I20: Workspace
D21: Wind speed [m/s] | E21: Probability of wind speed [%] | F21: Power output at given wind speed [MW]
D22: 0 | E22: =EXP(-((D22/$E$17)^$E$18))-EXP(-((D23/$E$17)^$E$18)) -> 0.08555935639 | F22: =IF(D22<4,0,IF(D22<15,D22^3*$E$16,IF(D22<25,15^3*$E$16,0))) -> 0
D23: =D22+2 -> 2 | E23: 0.1379589505 | F23: 0
D24: 4 | E24: 0.1481945618 | F24: 11.37777778
D25: 6 | E25: 0.1393599689 | F25: 38.4
D26: 8 | E26: 0.1210477212 | F26: 91.02222222
D27: 10 | E27: 0.09928001681 | F27: 177.7777778
D28: 12 | E28: 0.07779423821 | F28: 307.2
D29: 14 | E29: 0.05866048058 | F29: 487.8222222
D30: 16 | E30: 0.04277320344 | F30: 600
D31: 18 | E31: 0.03026575557 | F31: 600
D32: 20 | E32: 0.02083721437 | F32: 600
D33: 22 | E33: 0.01398760224 | F33: 600
D34: 24 | E34: 0.009170560152 | F34: 600
D35: 26 | E35: 0.005880369045 | F35: 0
D36: 28 | E36: 0.003692170041 | F36: 0
D37: 30 | E37: 0.002272303394 | F37: 0
D38: 32 | E38: 0.001371955215 | F38: 0
D39: 34 | E39: 0.0008132756133 | F39: 0
D40: 36 | E40: 0.0004736496238 | F40: 0
D41: 38 | E41: 0.0002711842402 | F41: 0
D42: 40 | E42: 0.0001527212506 | F42: 0
D43: 42 | E43: 8.464085469e-05 | F43: 0
D44: 44
D46: Calculate the expected (i.e. mean / average) wind speed
A48: =IF(OR(NOT(ISNUMBER($F$48)),ISERROR($F$48)),1,IF(AND(LEN($F$48)>0,ABS((1-($F$48*-4.64367687702179+-0.153119444847107)/-37.4304625171265))<0.00005),0,1)) -> 1 | D48: Expected wind speed | E48: [m/s]
D50: Calculate the power ouput at the expected wind speed (use linear interpolation)
A52: =IF(OR(NOT(ISNUMBER($F$52)),ISERROR($F$52)),1,IF(AND(LEN($F$52)>0,ABS((1-($F$52* 2.28016197681427+-0.422531843185425)/ 209.847691968708))<0.00005),0,1)) -> 1 | D52: Power output at expected wind speed | E52: [MW]
D54: Workspace
D59: Calculate the expected power ouput. (Note - this is not the same as the power output at the expected speed).
A61: =IF(OR(NOT(ISNUMBER($F$61)),ISERROR($F$61)),1,IF(AND(LEN($F$61)>0,ABS((1-($F$61*-2.61964380741119+-0.432936787605286)/-415.489926097888))<0.00005),0,1)) -> 1 | D61: Expected power ouput | E61: [MW]
D63: Asuming electricity can be sold at a price of $55 per Megawatt-hour what is the expected revenue over 365 days?
A65: =IF(OR(NOT(ISNUMBER($F$65)),ISERROR($F$65)),1,IF(AND(LEN($F$65)>0,ABS((1-($F$65* 3.35290491580963+-0.297821521759033)/ 255.651227552224))<0.00005),0,1)) -> 1 | D65: Expected revenue over 365 days. | E65: [$m]
M66: Index
A67: =SUM($A$68:$A$77) -> 2 | C67: 2 | D67: Standard deviation of a distribution
D69: The standard deviation of the windfarm power output is a measure of its riskiness with respect to wind speed distributions. Calculate the standard deviation of daily revenues.
A72: =IF(OR(NOT(ISNUMBER($F$72)),ISERROR($F$72)),1,IF(AND(LEN($F$72)>0,ABS((1-($F$72* 2.74305045604706+ 0.477053761482239)/ 159505.525996836))<0.00005),0,1)) -> 1 | D72: Standard deviation of daily revenues | E72: [$]
D74: Calculate the standard deviation of yearly revenues (assuming daily power outputs are independent of each other).
A76: =IF(OR(NOT(ISNUMBER($F$76)),ISERROR($F$76)),1,IF(AND(LEN($F$76)>0,ABS((1-($F$76* 2.9892235994339+-0.0195276737213135)/ 3.3012933744797))<0.00005),0,1)) -> 1 | D76: Standard deviation of yearly revenues | E76: [$m]
M77: Index
A78: =SUM($A$79:$A$98) -> 1 | C78: =C67+1 -> 3 | D78: Two envelope problem
D80: This fairly abstract modelling problem illustrates the occasional challenges of integrating language, logic and mathematics.
D83: Two sealed envelopes each contain sums of money. You are given one of the envelopes. You are then told the other envelope contains either twice as much or half as much as yours (with equal probability). If X represents the value of your envelope what is the expected value of the other envelope?
D87: A | E87: 2 X
D88: B | E88: 1.5 X
D89: C | E89: 1.25 X
D90: D | E90: 1 X
A92: =IF(OR((0),ISERROR($E$92)),1,IF($E$92="C",0,1)) -> 1 | D92: Answer:
D94: You have the opportunity to swap envelopes. Do you swap? You can do a web search on "Two envelope paradox" for analyses of this problem.
E98: Copyright (c) 2020 Tykoh Group Pty Ltd. All rights reserved. | M98: Index
E99: www.tykoh.com

Sheet Foreign_exchange
H1: Click here to see what your answer should look like.
O2: Various | P2: Foreign_exchange
H3: The questions on this page relate to cash flows denominated in currencies other than the local currency and also to inflation and real and nominal discount rates.
A6: =SUM($A$7:$E$44) -> 20 | G6: 1 | H6: Forward foreign exchange rates
H8: A company will receive foreign and domestic currency cash flows according to the schedule shown in the table below. The first cash flow will be received in one year.
H11: Cash flows
H12: Period | I12: [yr] | K12: =J12+1 -> 1 | L12: =K12+1 -> 2 | M12: =L12+1 -> 3 | N12: =M12+1 -> 4 | O12: =N12+1 -> 5
H13: Australian Dollars | I13: [$AUD m] | K13: 56 | L13: 45 | M13: 23 | N13: 23 | O13: 23
H14: Great Britain Pounds | I14: [£ m] | K14: 30 | L14: 30 | M14: 50 | N14: 50 | O14: 50
H15: Japanese Yen | I15: [Y m] | K15: 867 | L15: 850 | M15: 800 | N15: 800 | O15: 800
H16: United States Dollars | I16: [$USD m] | K16: 80 | L16: 80 | M16: 80 | N16: 80 | O16: 80
H18: ="The table below shows spot (i.e. current) foreign exchange rates relative to United States Dollars. The rates are shown in cells " & ADDRESS(ROW(I27),COLUMN(I27),4) &":" & ADDRESS(ROW(I30),COLUMN(I30),4)&". The figure for each currency shows the number of units of that currency that can be purchased with one United States Dollar." -> The table below shows spot (i.e. current) foreign exchange rates relative to United States Dollars. The rates are shown in cells I27:I30. The figure for each currency shows the number of units of that currency that can be purchased with one United States Dollar.
H22: ="The table below also shows risk free rates on a nominal basis for each currency. [Nominal means not inflation adjusted.] The risk free rates are shown in cells " & ADDRESS(ROW(K27),COLUMN(K27),4)& ":" & ADDRESS(ROW(K30),COLUMN(K30),4)&"." -> The table below also shows risk free rates on a nominal basis for each currency. [Nominal means not inflation adjusted.] The risk free rates are shown in cells K27:K30.
H25: Rates
H26: Country | I26: Spot FX rate (vs $USD) | J26: Inflation rate | K26: Risk free rate (nominal) | L26: Risk margin (nominal)
H27: Australian Dollar | I27: 0.98002 | J27: 0.029 | K27: 0.035 | L27: 0.03
H28: Great Britain Pounds | I28: 0.63024 | J28: 0.026 | K28: 0.005 | L28: 0.0301
H29: Japanese Yen | I29: 78.437714 | J29: -0.004 | K29: 0 | L29: 0.0302
H30: United States Dollars | I30: 1 | J30: 0.014 | K30: 0.0025 | L30: 0.0303
H32: Calulate future (forward) fx rates. Do that on the following basis: Two investing strategies should yield the same return: 1) Buy one unit of domestic currency and earn interest at the domestic risk free rate for one period, 2) Buy one unit of domestic currency, immediately convert it into a foreign currency at the spot rate, earn the foreign risk free rate for one period, and - last - convert the foreign currency holding plus earned interest back to the domestic currency at the then-prevailing spot rate.
H38: Future FX rates
H39: Period | I39: [yr] | K39: =J39+1 -> 1 | L39: =K39+1 -> 2 | M39: =L39+1 -> 3 | N39: =M39+1 -> 4 | O39: =N39+1 -> 5
A40: =IF(OR(NOT(ISNUMBER($K$40)),ISERROR($K$40)),1,IF(AND(LEN($K$40)>0,ABS((1-($K$40* 1.81855142116547+-0.222891449928284)/ 1.61710291466279))<0.00005),0,1)) -> 1 | B40: =IF(OR(NOT(ISNUMBER($L$40)),ISERROR($L$40)),1,IF(AND(LEN($L$40)>0,ABS((1-($L$40*-4.19357240200043+-0.160343170166016)/-4.54091717117166))<0.00005),0,1)) -> 1 | C40: =IF(OR(NOT(ISNUMBER($M$40)),ISERROR($M$40)),1,IF(AND(LEN($M$40)>0,ABS((1-($M$40*-2.58735477924347+-0.062008261680603)/-2.85235920273282))<0.00005),0,1)) -> 1 | D40: =IF(OR(NOT(ISNUMBER($N$40)),ISERROR($N$40)),1,IF(AND(LEN($N$40)>0,ABS((1-($N$40*-1.69340789318085+ 0.14160943031311)/-1.74386389449122))<0.00005),0,1)) -> 1 | E40: =IF(OR(NOT(ISNUMBER($O$40)),ISERROR($O$40)),1,IF(AND(LEN($O$40)>0,ABS((1-($O$40*-0.705991387367249+ 0.341600298881531)/-0.469947649605804))<0.00005),0,1)) -> 1 | H40: Australia | I40: [#] | J40: =I27 -> 0.98002
A41: =IF(OR(NOT(ISNUMBER($K$41)),ISERROR($K$41)),1,IF(AND(LEN($K$41)>0,ABS((1-($K$41*-0.342192053794861+-0.0515971183776855)/-0.267798051628151))<0.00005),0,1)) -> 1 | B41: =IF(OR(NOT(ISNUMBER($L$41)),ISERROR($L$41)),1,IF(AND(LEN($L$41)>0,ABS((1-($L$41* 1.22545897960663+ 0.171589016914368)/ 0.947779123505284))<0.00005),0,1)) -> 1 | C41: =IF(OR(NOT(ISNUMBER($M$41)),ISERROR($M$41)),1,IF(AND(LEN($M$41)>0,ABS((1-($M$41* 4.97543156147003+-0.462069749832153)/ 2.6971640097489))<0.00005),0,1)) -> 1 | D41: =IF(OR(NOT(ISNUMBER($N$41)),ISERROR($N$41)),1,IF(AND(LEN($N$41)>0,ABS((1-($N$41* 0.495204329490662+-0.446004509925842)/-0.130782075791283))<0.00005),0,1)) -> 1 | E41: =IF(OR(NOT(ISNUMBER($O$41)),ISERROR($O$41)),1,IF(AND(LEN($O$41)>0,ABS((1-($O$41* 1.10333502292633+-0.330470085144043)/ 0.373609528873885))<0.00005),0,1)) -> 1 | H41: Great Britain | I41: [#] | J41: =I28 -> 0.63024
A42: =IF(OR(NOT(ISNUMBER($K$42)),ISERROR($K$42)),1,IF(AND(LEN($K$42)>0,ABS((1-($K$42*-0.0519067049026489+-0.0521348714828491)/-4.11342492019744))<0.00005),0,1)) -> 1 | B42: =IF(OR(NOT(ISNUMBER($L$42)),ISERROR($L$42)),1,IF(AND(LEN($L$42)>0,ABS((1-($L$42* 4.89515602588654+ 0.0996105670928955)/ 382.151810087111))<0.00005),0,1)) -> 1 | C42: =IF(OR(NOT(ISNUMBER($M$42)),ISERROR($M$42)),1,IF(AND(LEN($M$42)>0,ABS((1-($M$42* 2.5168651342392+-0.214123845100403)/ 195.729767535981))<0.00005),0,1)) -> 1 | D42: =IF(OR(NOT(ISNUMBER($N$42)),ISERROR($N$42)),1,IF(AND(LEN($N$42)>0,ABS((1-($N$42* 3.99554789066315+ 0.347276210784912)/ 310.634392596141))<0.00005),0,1)) -> 1 | E42: =IF(OR(NOT(ISNUMBER($O$42)),ISERROR($O$42)),1,IF(AND(LEN($O$42)>0,ABS((1-($O$42*-1.7466002702713+ 0.364964604377747)/-134.934645350425))<0.00005),0,1)) -> 1 | H42: Japan | I42: [#] | J42: =I29 -> 78.437714
A43: =IF(OR(NOT(ISNUMBER($K$43)),ISERROR($K$43)),1,IF(AND(LEN($K$43)>0,ABS((1-($K$43* 0.121429562568665+-0.290048837661743)/-0.168619275093079))<0.00005),0,1)) -> 1 | B43: =IF(OR(NOT(ISNUMBER($L$43)),ISERROR($L$43)),1,IF(AND(LEN($L$43)>0,ABS((1-($L$43* 3.85996758937836+-0.0130506753921509)/ 3.84691691398621))<0.00005),0,1)) -> 1 | C43: =IF(OR(NOT(ISNUMBER($M$43)),ISERROR($M$43)),1,IF(AND(LEN($M$43)>0,ABS((1-($M$43* 4.84323561191559+-0.47099494934082)/ 4.37224066257477))<0.00005),0,1)) -> 1 | D43: =IF(OR(NOT(ISNUMBER($N$43)),ISERROR($N$43)),1,IF(AND(LEN($N$43)>0,ABS((1-($N$43* 4.72047984600067+ 0.349156975746155)/ 5.06963682174683))<0.00005),0,1)) -> 1 | E43: =IF(OR(NOT(ISNUMBER($O$43)),ISERROR($O$43)),1,IF(AND(LEN($O$43)>0,ABS((1-($O$43*-2.13383376598358+-0.294622182846069)/-2.42845594882965))<0.00005),0,1)) -> 1 | H43: United States | I43: [#] | J43: =I30 -> 1
Q44: Index
A45: =SUM($A$46:$E$58) -> 20 | G45: 2 | H45: Discount factors across currencies
H47: ="Calculate discount factors needed to present-value future cash flows. The cash flows are assumed to be risky so the risk margins listed above in cells " & ADDRESS(ROW(L27),COLUMN(L27),4)&":"&ADDRESS(ROW(L30),COLUMN(L30),4)&" should be added to the corresponding risk free rates." -> Calculate discount factors needed to present-value future cash flows. The cash flows are assumed to be risky so the risk margins listed above in cells L27:L30 should be added to the corresponding risk free rates.
H51: Discount factors
H52: Period | I52: [yr] | K52: =J52+1 -> 1 | L52: =K52+1 -> 2 | M52: =L52+1 -> 3 | N52: =M52+1 -> 4 | O52: =N52+1 -> 5
A53: =IF(OR(NOT(ISNUMBER($K$53)),ISERROR($K$53)),1,IF(AND(LEN($K$53)>0,ABS((1-($K$53*-0.568261742591858+ 0.185047030448914)/-0.420151725411415))<0.00005),0,1)) -> 1 | B53: =IF(OR(NOT(ISNUMBER($L$53)),ISERROR($L$53)),1,IF(AND(LEN($L$53)>0,ABS((1-($L$53*-2.18856275081635+ 0.46520471572876)/-2.01711787031591))<0.00005),0,1)) -> 1 | C53: =IF(OR(NOT(ISNUMBER($M$53)),ISERROR($M$53)),1,IF(AND(LEN($M$53)>0,ABS((1-($M$53*-3.16531479358673+ 0.154836773872375)/-3.66870404404767))<0.00005),0,1)) -> 1 | D53: =IF(OR(NOT(ISNUMBER($N$53)),ISERROR($N$53)),1,IF(AND(LEN($N$53)>0,ABS((1-($N$53*-4.5024698972702+ 0.375441312789917)/-5.4168347047502))<0.00005),0,1)) -> 1 | E53: =IF(OR(NOT(ISNUMBER($O$53)),ISERROR($O$53)),1,IF(AND(LEN($O$53)>0,ABS((1-($O$53*-4.45434629917145+-0.0138736963272095)/-6.11671415505675))<0.00005),0,1)) -> 1 | H53: Australia | I53: [#]
A54: =IF(OR(NOT(ISNUMBER($K$54)),ISERROR($K$54)),1,IF(AND(LEN($K$54)>0,ABS((1-($K$54*-0.278558135032654+-0.390511512756348)/-0.678847038328648))<0.00005),0,1)) -> 1 | B54: =IF(OR(NOT(ISNUMBER($L$54)),ISERROR($L$54)),1,IF(AND(LEN($L$54)>0,ABS((1-($L$54*-4.01238262653351+-0.135476469993591)/-4.43447165242947))<0.00005),0,1)) -> 1 | C54: =IF(OR(NOT(ISNUMBER($M$54)),ISERROR($M$54)),1,IF(AND(LEN($M$54)>0,ABS((1-($M$54*-4.4600647687912+ 0.462817430496216)/-4.48356956067438))<0.00005),0,1)) -> 1 | D54: =IF(OR(NOT(ISNUMBER($N$54)),ISERROR($N$54)),1,IF(AND(LEN($N$54)>0,ABS((1-($N$54* 4.92144048213959+ 0.07426917552948)/ 5.72391823694354))<0.00005),0,1)) -> 1 | E54: =IF(OR(NOT(ISNUMBER($O$54)),ISERROR($O$54)),1,IF(AND(LEN($O$54)>0,ABS((1-($O$54*-4.94921147823334+ 0.118594646453857)/-5.76235626577826))<0.00005),0,1)) -> 1 | H54: Great Britain | I54: [#]
A55: =IF(OR(NOT(ISNUMBER($K$55)),ISERROR($K$55)),1,IF(AND(LEN($K$55)>0,ABS((1-($K$55* 2.47712790966034+-0.111138224601746)/ 2.44079894793034))<0.00005),0,1)) -> 1 | B55: =IF(OR(NOT(ISNUMBER($L$55)),ISERROR($L$55)),1,IF(AND(LEN($L$55)>0,ABS((1-($L$55* 0.67404568195343+-0.336693048477173)/ 0.378679749290013))<0.00005),0,1)) -> 1 | C55: =IF(OR(NOT(ISNUMBER($M$55)),ISERROR($M$55)),1,IF(AND(LEN($M$55)>0,ABS((1-($M$55* 1.68507516384125+-0.288317322731018)/ 1.5540826318613))<0.00005),0,1)) -> 1 | D55: =IF(OR(NOT(ISNUMBER($N$55)),ISERROR($N$55)),1,IF(AND(LEN($N$55)>0,ABS((1-($N$55* 0.933266282081604+ 0.352386474609375)/ 1.40360197903515))<0.00005),0,1)) -> 1 | E55: =IF(OR(NOT(ISNUMBER($O$55)),ISERROR($O$55)),1,IF(AND(LEN($O$55)>0,ABS((1-($O$55* 0.507318377494812+ 0.466621041297913)/ 1.05531329683419))<0.00005),0,1)) -> 1 | H55: Japan | I55: [#]
A56: =IF(OR(NOT(ISNUMBER($K$56)),ISERROR($K$56)),1,IF(AND(LEN($K$56)>0,ABS((1-($K$56*-1.26322448253632+ 0.125835657119751)/-1.17882258844376))<0.00005),0,1)) -> 1 | B56: =IF(OR(NOT(ISNUMBER($L$56)),ISERROR($L$56)),1,IF(AND(LEN($L$56)>0,ABS((1-($L$56*-3.63121569156647+ 0.238698840141296)/-3.63463120788155))<0.00005),0,1)) -> 1 | C56: =IF(OR(NOT(ISNUMBER($M$56)),ISERROR($M$56)),1,IF(AND(LEN($M$56)>0,ABS((1-($M$56* 2.15891420841217+ 0.373852252960205)/ 2.75224774106346))<0.00005),0,1)) -> 1 | D56: =IF(OR(NOT(ISNUMBER($N$56)),ISERROR($N$56)),1,IF(AND(LEN($N$56)>0,ABS((1-($N$56* 3.18854033946991+ 0.164695858955383)/ 3.79260860004645))<0.00005),0,1)) -> 1 | E56: =IF(OR(NOT(ISNUMBER($O$56)),ISERROR($O$56)),1,IF(AND(LEN($O$56)>0,ABS((1-($O$56*-2.27871119976044+-0.0475456714630127)/-2.72529816972661))<0.00005),0,1)) -> 1 | H56: United States | I56: [#]
Q58: Index
A59: =SUM($A$60:$E$69) -> 20 | G59: 3 | H59: Present-valuing currency cash flows
H61: Calculate the present values of the cash flows in their respective currencies.
H63: PV of cash flows in domestic currency
H64: Period | I64: [yr] | K64: =J64+1 -> 1 | L64: =K64+1 -> 2 | M64: =L64+1 -> 3 | N64: =M64+1 -> 4 | O64: =N64+1 -> 5
A65: =IF(OR(NOT(ISNUMBER($K$65)),ISERROR($K$65)),1,IF(AND(LEN($K$65)>0,ABS((1-($K$65* 0.911044478416443+-0.426225304603577)/ 47.47846088443))<0.00005),0,1)) -> 1 | B65: =IF(OR(NOT(ISNUMBER($L$65)),ISERROR($L$65)),1,IF(AND(LEN($L$65)>0,ABS((1-($L$65*-3.82597863674164+ 0.449105262756348)/-151.345325871607))<0.00005),0,1)) -> 1 | C65: =IF(OR(NOT(ISNUMBER($M$65)),ISERROR($M$65)),1,IF(AND(LEN($M$65)>0,ABS((1-($M$65*-2.46260464191437+ 0.378105759620667)/-46.5111896147874))<0.00005),0,1)) -> 1 | D65: =IF(OR(NOT(ISNUMBER($N$65)),ISERROR($N$65)),1,IF(AND(LEN($N$65)>0,ABS((1-($N$65* 0.776999592781067+-0.301661252975464)/ 13.5898724239702))<0.00005),0,1)) -> 1 | E65: =IF(OR(NOT(ISNUMBER($O$65)),ISERROR($O$65)),1,IF(AND(LEN($O$65)>0,ABS((1-($O$65* 3.65658223628998+-0.286507725715637)/ 61.0974862071972))<0.00005),0,1)) -> 1 | H65: Australia | I65: [$AUD m]
A66: =IF(OR(NOT(ISNUMBER($K$66)),ISERROR($K$66)),1,IF(AND(LEN($K$66)>0,ABS((1-($K$66*-1.91887319087982+-0.452616214752197)/-56.0667556470724))<0.00005),0,1)) -> 1 | B66: =IF(OR(NOT(ISNUMBER($L$66)),ISERROR($L$66)),1,IF(AND(LEN($L$66)>0,ABS((1-($L$66*-0.52326500415802+-0.170004725456238)/-14.8213778207407))<0.00005),0,1)) -> 1 | C66: =IF(OR(NOT(ISNUMBER($M$66)),ISERROR($M$66)),1,IF(AND(LEN($M$66)>0,ABS((1-($M$66* 1.2095719575882+-0.128210306167603)/ 54.4042118737658))<0.00005),0,1)) -> 1 | D66: =IF(OR(NOT(ISNUMBER($N$66)),ISERROR($N$66)),1,IF(AND(LEN($N$66)>0,ABS((1-($N$66* 4.35637414455414+ 0.232558608055115)/ 189.975636782443))<0.00005),0,1)) -> 1 | E66: =IF(OR(NOT(ISNUMBER($O$66)),ISERROR($O$66)),1,IF(AND(LEN($O$66)>0,ABS((1-($O$66*-4.36098039150238+-0.15894889831543)/-183.661706633306))<0.00005),0,1)) -> 1 | H66: Great Britain | I66: [£ m]
A67: =IF(OR(NOT(ISNUMBER($K$67)),ISERROR($K$67)),1,IF(AND(LEN($K$67)>0,ABS((1-($K$67*-1.16433918476105+ 0.0716339349746704)/-979.817778982738))<0.00005),0,1)) -> 1 | B67: =IF(OR(NOT(ISNUMBER($L$67)),ISERROR($L$67)),1,IF(AND(LEN($L$67)>0,ABS((1-($L$67*-2.51908004283905+ 0.434232950210571)/-2017.08554983977))<0.00005),0,1)) -> 1 | C67: =IF(OR(NOT(ISNUMBER($M$67)),ISERROR($M$67)),1,IF(AND(LEN($M$67)>0,ABS((1-($M$67*-0.832353234291077+-0.216194272041321)/-609.238251247586))<0.00005),0,1)) -> 1 | D67: =IF(OR(NOT(ISNUMBER($N$67)),ISERROR($N$67)),1,IF(AND(LEN($N$67)>0,ABS((1-($N$67* 4.26273882389069+ 0.20559549331665)/ 3027.76399577052))<0.00005),0,1)) -> 1 | E67: =IF(OR(NOT(ISNUMBER($O$67)),ISERROR($O$67)),1,IF(AND(LEN($O$67)>0,ABS((1-($O$67* 4.34952437877655+-0.0175837278366089)/ 2998.62033612035))<0.00005),0,1)) -> 1 | H67: Japan | I67: [Y m]
A68: =IF(OR(NOT(ISNUMBER($K$68)),ISERROR($K$68)),1,IF(AND(LEN($K$68)>0,ABS((1-($K$68*-1.79079234600067+ 0.300219297409058)/-138.413362886996))<0.00005),0,1)) -> 1 | B68: =IF(OR(NOT(ISNUMBER($L$68)),ISERROR($L$68)),1,IF(AND(LEN($L$68)>0,ABS((1-($L$68*-4.34612333774567+-0.401809334754944)/-326.358256440235))<0.00005),0,1)) -> 1 | C68: =IF(OR(NOT(ISNUMBER($M$68)),ISERROR($M$68)),1,IF(AND(LEN($M$68)>0,ABS((1-($M$68* 2.02357351779938+-0.280369758605957)/ 146.666482140367))<0.00005),0,1)) -> 1 | D68: =IF(OR(NOT(ISNUMBER($N$68)),ISERROR($N$68)),1,IF(AND(LEN($N$68)>0,ABS((1-($N$68*-1.34007275104523+ 0.269861817359924)/-93.9523828609305))<0.00005),0,1)) -> 1 | E68: =IF(OR(NOT(ISNUMBER($O$68)),ISERROR($O$68)),1,IF(AND(LEN($O$68)>0,ABS((1-($O$68*-2.83115088939667+-0.162575483322144)/-192.90257648232))<0.00005),0,1)) -> 1 | H68: United States | I68: [$USD m]
Q69: Index
A70: =SUM($A$71:$E$82) -> 26 | G70: 4 | H70: Converting risky foreign cash flows to a reference / domestic currency
H72: Calculate the present $USD value of all of the cash flows.
H74: PV of cash flows in $USD
H75: Period | I75: [yr] | K75: =J75+1 -> 1 | L75: =K75+1 -> 2 | M75: =L75+1 -> 3 | N75: =M75+1 -> 4 | O75: =N75+1 -> 5
A76: =IF(OR(NOT(ISNUMBER($K$76)),ISERROR($K$76)),1,IF(AND(LEN($K$76)>0,ABS((1-($K$76*-2.21520960330963+-0.0152045488357544)/-115.138267920378))<0.00005),0,1)) -> 1 | B76: =IF(OR(NOT(ISNUMBER($L$76)),ISERROR($L$76)),1,IF(AND(LEN($L$76)>0,ABS((1-($L$76* 4.64906275272369+ 0.164893627166748)/ 176.740957178169))<0.00005),0,1)) -> 1 | C76: =IF(OR(NOT(ISNUMBER($M$76)),ISERROR($M$76)),1,IF(AND(LEN($M$76)>0,ABS((1-($M$76* 3.31472098827362+-0.03038489818573)/ 58.492152335988))<0.00005),0,1)) -> 1 | D76: =IF(OR(NOT(ISNUMBER($N$76)),ISERROR($N$76)),1,IF(AND(LEN($N$76)>0,ABS((1-($N$76*-1.70949161052704+ 0.366649389266968)/-27.083048309425))<0.00005),0,1)) -> 1 | E76: =IF(OR(NOT(ISNUMBER($O$76)),ISERROR($O$76)),1,IF(AND(LEN($O$76)>0,ABS((1-($O$76* 0.936364531517029+-0.169172883033752)/ 13.5052803604916))<0.00005),0,1)) -> 1 | H76: Australia | I76: [$USD m]
A77: =IF(OR(NOT(ISNUMBER($K$77)),ISERROR($K$77)),1,IF(AND(LEN($K$77)>0,ABS((1-($K$77* 0.522995591163635+-0.473751068115234)/ 23.5173030276592))<0.00005),0,1)) -> 1 | B77: =IF(OR(NOT(ISNUMBER($L$77)),ISERROR($L$77)),1,IF(AND(LEN($L$77)>0,ABS((1-($L$77* 3.76800715923309+-0.0545543432235718)/ 166.516307361217))<0.00005),0,1)) -> 1 | C77: =IF(OR(NOT(ISNUMBER($M$77)),ISERROR($M$77)),1,IF(AND(LEN($M$77)>0,ABS((1-($M$77* 0.661099553108215+-0.338180303573608)/ 46.6013713736788))<0.00005),0,1)) -> 1 | D77: =IF(OR(NOT(ISNUMBER($N$77)),ISERROR($N$77)),1,IF(AND(LEN($N$77)>0,ABS((1-($N$77*-3.10917437076569+ 0.101617693901062)/-212.640346073916))<0.00005),0,1)) -> 1 | E77: =IF(OR(NOT(ISNUMBER($O$77)),ISERROR($O$77)),1,IF(AND(LEN($O$77)>0,ABS((1-($O$77*-4.3145889043808+ 0.491684436798096)/-284.009132570803))<0.00005),0,1)) -> 1 | H77: Great Britain | I77: [$USD m]
A78: =IF(OR(NOT(ISNUMBER($K$78)),ISERROR($K$78)),1,IF(AND(LEN($K$78)>0,ABS((1-($K$78* 4.38013732433319+ 0.389248013496399)/ 47.5026789238411))<0.00005),0,1)) -> 1 | B78: =IF(OR(NOT(ISNUMBER($L$78)),ISERROR($L$78)),1,IF(AND(LEN($L$78)>0,ABS((1-($L$78* 3.52378666400909+ 0.449986219406128)/ 36.6100574065354))<0.00005),0,1)) -> 1 | C78: =IF(OR(NOT(ISNUMBER($M$78)),ISERROR($M$78)),1,IF(AND(LEN($M$78)>0,ABS((1-($M$78*-1.16334974765778+ 0.340624213218689)/-10.5929930260111))<0.00005),0,1)) -> 1 | D78: =IF(OR(NOT(ISNUMBER($N$78)),ISERROR($N$78)),1,IF(AND(LEN($N$78)>0,ABS((1-($N$78*-1.16740167140961+-0.0476865768432617)/-10.7243785347063))<0.00005),0,1)) -> 1 | E78: =IF(OR(NOT(ISNUMBER($O$78)),ISERROR($O$78)),1,IF(AND(LEN($O$78)>0,ABS((1-($O$78* 3.41771304607391+ 0.321041703224182)/ 30.7379335735033))<0.00005),0,1)) -> 1 | H78: Japan | I78: [$USD m]
A79: =IF(OR(NOT(ISNUMBER($K$79)),ISERROR($K$79)),1,IF(AND(LEN($K$79)>0,ABS((1-($K$79* 1.2779837846756+-0.0886752605438232)/ 98.9030973711834))<0.00005),0,1)) -> 1 | B79: =IF(OR(NOT(ISNUMBER($L$79)),ISERROR($L$79)),1,IF(AND(LEN($L$79)>0,ABS((1-($L$79*-3.63143503665924+ 0.169428706169128)/-272.185856787819))<0.00005),0,1)) -> 1 | C79: =IF(OR(NOT(ISNUMBER($M$79)),ISERROR($M$79)),1,IF(AND(LEN($M$79)>0,ABS((1-($M$79*-3.68290364742279+-0.497625827789307)/-267.940885030235))<0.00005),0,1)) -> 1 | D79: =IF(OR(NOT(ISNUMBER($N$79)),ISERROR($N$79)),1,IF(AND(LEN($N$79)>0,ABS((1-($N$79*-1.94641411304474+ 0.0889712572097778)/-136.765917152046))<0.00005),0,1)) -> 1 | E79: =IF(OR(NOT(ISNUMBER($O$79)),ISERROR($O$79)),1,IF(AND(LEN($O$79)>0,ABS((1-($O$79*-1.52064502239227+ 0.179136037826538)/-103.343824971668))<0.00005),0,1)) -> 1 | H79: United States | I79: [$USD m]
A80: =IF(OR(NOT(ISNUMBER($K$80)),ISERROR($K$80)),1,IF(AND(LEN($K$80)>0,ABS((1-($K$80* 0.487546324729919+-0.21226179599762)/ 90.4992656140007))<0.00005),0,1)) -> 1 | B80: =IF(OR(NOT(ISNUMBER($L$80)),ISERROR($L$80)),1,IF(AND(LEN($L$80)>0,ABS((1-($L$80*-2.85230576992035+-0.0607700347900391)/-477.675623495712))<0.00005),0,1)) -> 1 | C80: =IF(OR(NOT(ISNUMBER($M$80)),ISERROR($M$80)),1,IF(AND(LEN($M$80)>0,ABS((1-($M$80*-0.633142590522766+-0.130693793296814)/-108.191343328125))<0.00005),0,1)) -> 1 | D80: =IF(OR(NOT(ISNUMBER($N$80)),ISERROR($N$80)),1,IF(AND(LEN($N$80)>0,ABS((1-($N$80* 4.83981430530548+-0.160154104232788)/ 793.270043446132))<0.00005),0,1)) -> 1 | E80: =IF(OR(NOT(ISNUMBER($O$80)),ISERROR($O$80)),1,IF(AND(LEN($O$80)>0,ABS((1-($O$80*-1.3991791009903+ 0.473384737968445)/-219.926896863083))<0.00005),0,1)) -> 1 | H80: Total | I80: [$USD m]
A81: =IF(OR(NOT(ISNUMBER($J$81)),ISERROR($J$81)),1,IF(AND(LEN($J$81)>0,ABS((1-($J$81*-2.01056897640228+-0.236630916595459)/-1700.45156494789))<0.00005),0,1)) -> 1 | H81: NPV | I81: [$USD m]
Q82: Index
A83: =SUM($A$84:$E$93) -> 20 | G83: 5 | H83: Inflation adjusting currency cash flows
H85: Calculate real (inflation-adjusted) cash flows for each currency.
H87: Real cash flows in domestic currency
H88: Period | I88: [yr] | K88: =J88+1 -> 1 | L88: =K88+1 -> 2 | M88: =L88+1 -> 3 | N88: =M88+1 -> 4 | O88: =N88+1 -> 5
A89: =IF(OR(NOT(ISNUMBER($K$89)),ISERROR($K$89)),1,IF(AND(LEN($K$89)>0,ABS((1-($K$89*-2.65712082386017+ 0.166441082954407)/-144.438773821))<0.00005),0,1)) -> 1 | B89: =IF(OR(NOT(ISNUMBER($L$89)),ISERROR($L$89)),1,IF(AND(LEN($L$89)>0,ABS((1-($L$89* 0.22752583026886+ 0.433005094528198)/ 10.1026933310988))<0.00005),0,1)) -> 1 | C89: =IF(OR(NOT(ISNUMBER($M$89)),ISERROR($M$89)),1,IF(AND(LEN($M$89)>0,ABS((1-($M$89*-0.478134751319885+ 0.0823253393173218)/-10.010947694406))<0.00005),0,1)) -> 1 | D89: =IF(OR(NOT(ISNUMBER($N$89)),ISERROR($N$89)),1,IF(AND(LEN($N$89)>0,ABS((1-($N$89*-1.83640420436859+-0.321595191955566)/-37.9949777206867))<0.00005),0,1)) -> 1 | E89: =IF(OR(NOT(ISNUMBER($O$89)),ISERROR($O$89)),1,IF(AND(LEN($O$89)>0,ABS((1-($O$89*-4.12674725055695+ 0.31289541721344)/-81.9603885775532))<0.00005),0,1)) -> 1 | H89: Australia | I89: [$AUD m]
A90: =IF(OR(NOT(ISNUMBER($K$90)),ISERROR($K$90)),1,IF(AND(LEN($K$90)>0,ABS((1-($K$90*-0.333096385002136+-0.0487105846405029)/-9.78837096481992))<0.00005),0,1)) -> 1 | B90: =IF(OR(NOT(ISNUMBER($L$90)),ISERROR($L$90)),1,IF(AND(LEN($L$90)>0,ABS((1-($L$90*-1.52959406375885+-0.451357960700989)/-44.0429492126774))<0.00005),0,1)) -> 1 | C90: =IF(OR(NOT(ISNUMBER($M$90)),ISERROR($M$90)),1,IF(AND(LEN($M$90)>0,ABS((1-($M$90* 4.64772760868073+ 0.0910754203796387)/ 215.254569996868))<0.00005),0,1)) -> 1 | D90: =IF(OR(NOT(ISNUMBER($N$90)),ISERROR($N$90)),1,IF(AND(LEN($N$90)>0,ABS((1-($N$90*-2.2441703081131+-0.0306862592697144)/-101.290324919043))<0.00005),0,1)) -> 1 | E90: =IF(OR(NOT(ISNUMBER($O$90)),ISERROR($O$90)),1,IF(AND(LEN($O$90)>0,ABS((1-($O$90*-1.66138827800751+ 0.340499639511108)/-72.7236513987633))<0.00005),0,1)) -> 1 | H90: Great Britain | I90: [£ m]
A91: =IF(OR(NOT(ISNUMBER($K$91)),ISERROR($K$91)),1,IF(AND(LEN($K$91)>0,ABS((1-($K$91* 2.07241952419281+ 0.384541869163513)/ 1804.38828431411))<0.00005),0,1)) -> 1 | B91: =IF(OR(NOT(ISNUMBER($L$91)),ISERROR($L$91)),1,IF(AND(LEN($L$91)>0,ABS((1-($L$91*-2.92438447475433+-0.388755798339844)/-2506.12132819756))<0.00005),0,1)) -> 1 | C91: =IF(OR(NOT(ISNUMBER($M$91)),ISERROR($M$91)),1,IF(AND(LEN($M$91)>0,ABS((1-($M$91*-0.305288434028625+-0.375534415245056)/-247.560654007358))<0.00005),0,1)) -> 1 | D91: =IF(OR(NOT(ISNUMBER($N$91)),ISERROR($N$91)),1,IF(AND(LEN($N$91)>0,ABS((1-($N$91*-3.42043578624725+-0.000438451766967773)/-2780.57198849596))<0.00005),0,1)) -> 1 | E91: =IF(OR(NOT(ISNUMBER($O$91)),ISERROR($O$91)),1,IF(AND(LEN($O$91)>0,ABS((1-($O$91* 3.3601325750351+ 0.180356860160828)/ 2742.6997534208))<0.00005),0,1)) -> 1 | H91: Japan | I91: [Y m]
A92: =IF(OR(NOT(ISNUMBER($K$92)),ISERROR($K$92)),1,IF(AND(LEN($K$92)>0,ABS((1-($K$92* 2.73729860782623+-0.448100566864014)/ 215.512341865186))<0.00005),0,1)) -> 1 | B92: =IF(OR(NOT(ISNUMBER($L$92)),ISERROR($L$92)),1,IF(AND(LEN($L$92)>0,ABS((1-($L$92*-2.69975006580353+ 0.0952454805374146)/-209.961986082591))<0.00005),0,1)) -> 1 | C92: =IF(OR(NOT(ISNUMBER($M$92)),ISERROR($M$92)),1,IF(AND(LEN($M$92)>0,ABS((1-($M$92* 4.88292515277863+ 0.280525922775269)/ 374.95679700071))<0.00005),0,1)) -> 1 | D92: =IF(OR(NOT(ISNUMBER($N$92)),ISERROR($N$92)),1,IF(AND(LEN($N$92)>0,ABS((1-($N$92*-3.22797834873199+ 0.104544043540955)/-244.164695340952))<0.00005),0,1)) -> 1 | E92: =IF(OR(NOT(ISNUMBER($O$92)),ISERROR($O$92)),1,IF(AND(LEN($O$92)>0,ABS((1-($O$92* 1.57906591892242+ 0.429154396057129)/ 118.271254127473))<0.00005),0,1)) -> 1 | H92: United States | I92: [$USD m]
Q93: Index
A94: =SUM($A$95:$E$115) -> 8 | G94: =G83+1 -> 6 | H94: Calculating real risk-free and risky rates
H96: Calculate each currencies real risk free rate and each cash flows real risk margin. Hint: The present value of real cash flows discounted at the real discount rate is equal to the present value of nominal cash flows discounted at the nominal discount rate.
H100: =H25 -> Rates
H101: Country | I101: =K26 -> Risk free rate (nominal) | J101: Inflation rate | K101: Currency risk free rate (real) | L101: Cash flow risk margin (real)
A102: =IF(OR(NOT(ISNUMBER($K$102)),ISERROR($K$102)),1,IF(AND(LEN($K$102)>0,ABS((1-($K$102* 0.0890463590621948+ 0.0266729593276978)/ 0.027192180080247))<0.00005),0,1)) -> 1 | B102: =IF(OR(NOT(ISNUMBER($L$102)),ISERROR($L$102)),1,IF(AND(LEN($L$102)>0,ABS((1-($L$102*-1.10189139842987+-0.0114314556121826)/-0.0435565692690305))<0.00005),0,1)) -> 1 | H102: Australian Dollar | I102: =K27 -> 0.035 | J102: =J27 -> 0.029
A103: =IF(OR(NOT(ISNUMBER($K$103)),ISERROR($K$103)),1,IF(AND(LEN($K$103)>0,ABS((1-($K$103* 3.15281331539154+ 0.403685450553894)/ 0.339154183864593))<0.00005),0,1)) -> 1 | B103: =IF(OR(NOT(ISNUMBER($L$103)),ISERROR($L$103)),1,IF(AND(LEN($L$103)>0,ABS((1-($L$103* 1.20345652103424+ 0.462247371673584)/ 0.49755345479681))<0.00005),0,1)) -> 1 | H103: Great Britain Pounds | I103: =K28 -> 0.005 | J103: =J28 -> 0.026
A104: =IF(OR(NOT(ISNUMBER($K$104)),ISERROR($K$104)),1,IF(AND(LEN($K$104)>0,ABS((1-($K$104*-3.51604759693146+ 0.391892552375793)/ 0.377771879295747))<0.00005),0,1)) -> 1 | B104: =IF(OR(NOT(ISNUMBER($L$104)),ISERROR($L$104)),1,IF(AND(LEN($L$104)>0,ABS((1-($L$104* 4.43077862262726+-0.118009805679321)/ 0.0163370963320894))<0.00005),0,1)) -> 1 | H104: Japanese Yen | I104: =K29 -> 0 | J104: =J29 -> -0.004
A105: =IF(OR(NOT(ISNUMBER($K$105)),ISERROR($K$105)),1,IF(AND(LEN($K$105)>0,ABS((1-($K$105* 4.7534841299057+-0.097511887550354)/-0.151422210522658))<0.00005),0,1)) -> 1 | B105: =IF(OR(NOT(ISNUMBER($L$105)),ISERROR($L$105)),1,IF(AND(LEN($L$105)>0,ABS((1-($L$105* 1.86925947666168+ 0.0735416412353516)/ 0.129398211396135))<0.00005),0,1)) -> 1 | H105: United States Dollars | I105: =K30 -> 0.0025 | J105: =J30 -> 0.014
H107: Workspace
I115: Copyright (c) 2020 Tykoh Group Pty Ltd. All rights reserved. | Q115: Index
I116: www.tykoh.com

Sheet Ratios
J1: Click here to see what your answer should look like.
Q2: Various | R2: Ratios
J3: The questions on this page relate to some ratios used in financial modelling.
A5: =SUM($A$6:$G$15) -> 7 | I5: 1 | J5: Debt service coverage ratio
J7: The debt service coverage ratio (DSCR) is the cash flow available for debt service (CFADS) in a period divided by the principal and interest payments due in that period.
J10: Period | K10: [yr] | L10: 1 | M10: =L10+1 -> 2 | N10: 3 | O10: 4 | P10: 5 | Q10: 6 | R10: 7
J11: CFADS | K11: [$m] | L11: 2.5 | M11: 2.6 | N11: 2.65 | O11: 2.7 | P11: 2.77 | Q11: 2.8 | R11: 2.8
J12: Debt principal due | K12: [$m] | L12: =-PPMT(6%,L10,7,4) -> 0.4765400722 | M12: 0.5051324766 | N12: 0.5354404252 | O12: 0.5675668507 | P12: 0.6016208617 | Q12: 0.6377181134 | R12: 0.6759812002
J13: Debt interest due | K13: [$m] | L13: =-IPMT(6%,L10,7,4) -> 0.24 | M13: 0.2114075957 | N13: 0.1810996471 | O13: 0.1489732216 | P13: 0.1149192105 | Q13: 0.07882195882 | R13: 0.04055887201
A14: =IF(OR(NOT(ISNUMBER($L$14)),ISERROR($L$14)),1,IF(AND(LEN($L$14)>0,ABS((1-($L$14*-1.18593037128448+-0.00782620906829834)/-4.14552351741163))<0.00005),0,1)) -> 1 | B14: =IF(OR(NOT(ISNUMBER($M$14)),ISERROR($M$14)),1,IF(AND(LEN($M$14)>0,ABS((1-($M$14* 2.44284927845001+ 0.172216653823853)/ 9.03621236051162))<0.00005),0,1)) -> 1 | C14: =IF(OR(NOT(ISNUMBER($N$14)),ISERROR($N$14)),1,IF(AND(LEN($N$14)>0,ABS((1-($N$14* 0.231260657310486+-0.49621593952179)/ 0.359061756197794))<0.00005),0,1)) -> 1 | D14: =IF(OR(NOT(ISNUMBER($O$14)),ISERROR($O$14)),1,IF(AND(LEN($O$14)>0,ABS((1-($O$14* 1.49151384830475+ 0.388525485992432)/ 6.00870996200623))<0.00005),0,1)) -> 1 | E14: =IF(OR(NOT(ISNUMBER($P$14)),ISERROR($P$14)),1,IF(AND(LEN($P$14)>0,ABS((1-($P$14*-1.68525040149689+-0.0430887937545776)/-6.55792835824525))<0.00005),0,1)) -> 1 | F14: =IF(OR(NOT(ISNUMBER($Q$14)),ISERROR($Q$14)),1,IF(AND(LEN($Q$14)>0,ABS((1-($Q$14* 4.05248463153839+ 0.0237987041473389)/ 15.8595591981809))<0.00005),0,1)) -> 1 | G14: =IF(OR(NOT(ISNUMBER($R$14)),ISERROR($R$14)),1,IF(AND(LEN($R$14)>0,ABS((1-($R$14*-0.350380539894104+-0.311469674110413)/-1.68064015000852))<0.00005),0,1)) -> 1 | J14: DSCR | K14: [#]
S15: Index
A16: =SUM($A$17:$G$64) -> 14 | I16: =I5+1 -> 2 | J16: Loan life coverage ratio
J18: The loan life coverage ratio (LLCR) is the present value of all future cash flows available for debt service (CFADS) divided by the current outstanding debt. The following example shows a calculation for LLCR.
J21: ="CFADS is shown below on row " & ROW(39:39) & ". Row " & ROW(37:37) & " shows discount rates needed to present-value the CFADS. In this example the discount rates are 'one-period' rates: They are the rates needed to discount a cash flow at the end of each period back to the start of that period." -> CFADS is shown below on row 39. Row 37 shows discount rates needed to present-value the CFADS. In this example the discount rates are 'one-period' rates: They are the rates needed to discount a cash flow at the end of each period back to the start of that period.
J25: ="For example, consider the discount rate for year " & P36 & " shown in cell " & ADDRESS(ROW(P37),COLUMN(P37),4) & ". That discount rate is " & TEXT(P37,"0.0%")&". That means a cash flow occurring at the end of year " & P36 & " must be discounted at " & TEXT(P37,"0.0%") & " to give the value of that cash flow at the beginning of year " & P36&"." -> For example, consider the discount rate for year 4 shown in cell P37. That discount rate is 6.5%. That means a cash flow occurring at the end of year 4 must be discounted at 6.5% to give the value of that cash flow at the beginning of year 4.
J29: ="Row " & ROW(38:38) & " calculates a 'running' or compounded discount factor by applying each period's discount rate in turn. Row " & ROW(39:39) & " lists the CFADS. Row " & ROW(40:40) &" calculates the present value of each CFADS by discounting each CFADS by the corresponding discount factor." -> Row 38 calculates a 'running' or compounded discount factor by applying each period's discount rate in turn. Row 39 lists the CFADS. Row 40 calculates the present value of each CFADS by discounting each CFADS by the corresponding discount factor.
J33: ="Cell " & ADDRESS(ROW(L43),COLUMN(L43),4) & " calculates the LLCR by dividing the present value of the CFADS (ie. the sum of the discounted values) by the current outstanding debt." -> Cell L43 calculates the LLCR by dividing the present value of the CFADS (ie. the sum of the discounted values) by the current outstanding debt.
J36: Period | K36: [yr] | L36: 0 | M36: =L36+1 -> 1 | N36: 2 | O36: 3 | P36: 4 | Q36: 5 | R36: 6
J37: One period discount rate | K37: [%] | M37: 0.05 | N37: 0.055 | O37: 0.06 | P37: 0.065 | Q37: 0.07 | R37: 0.072
J38: Discount factor | K38: [#] | L38: 1 | M38: =L38*(1+M37) -> 1.05 | N38: 1.10775 | O38: 1.174215 | P38: 1.250538975 | Q38: 1.338076703 | R38: 1.434418226
J39: CFADS | K39: [$m] | M39: =N39+1 -> 6.5 | N39: 5.5 | O39: 5.7 | P39: 6.7 | Q39: 6 | R39: 5.7
J40: Discounted CFADS | K40: [$m] | M40: =M39/M38 -> 6.19047619 | N40: 4.965019183 | O40: 4.85430692 | P40: 5.357689871 | Q40: 4.484047877 | R40: 3.973736458
J41: Present value of CFADS | K41: [$m] | L41: =SUM(M40:R40) -> 29.8252765
J42: Outstanding debt at period end | K42: [$m] | L42: 20.1
J43: LLCR | K43: [#] | L43: =L41/L42 -> 1.483844602
J45: ="Calculate the loan life coverage ratios for the scenario shown below. You need to be very clear about the meaning of the discount rates shown on row " &ROW(52:52)&": The discount rate for year 4, say, will apply for year 4 irrespective of how many years in the future year 4 is." -> Calculate the loan life coverage ratios for the scenario shown below. You need to be very clear about the meaning of the discount rates shown on row 52: The discount rate for year 4, say, will apply for year 4 irrespective of how many years in the future year 4 is.
J49: So - whether year 4 is one, two, three or four years ahead - use the year 4 discount rate to discount over that year.
J51: Period | K51: [yr] | L51: 0 | M51: =L51+1 -> 1 | N51: 2 | O51: 3 | P51: 4 | Q51: 5 | R51: 6
J52: One period discount rate | K52: [%] | M52: 0.05 | N52: 0.055 | O52: 0.06 | P52: 0.065 | Q52: 0.07 | R52: 0.072
J53: Discount factor | K53: [#] | L53: 1 | M53: =L53*(1+M52) -> 1.05 | N53: 1.10775 | O53: 1.174215 | P53: 1.250538975 | Q53: 1.338076703 | R53: 1.434418226
J54: CFADS | K54: [$m] | M54: =N54+1 -> 6.5 | N54: 5.5 | O54: 5.7 | P54: 6.7 | Q54: 6 | R54: 5.7
J55: Discounted CFADS | K55: [$m] | L55: =L54/L53 -> 0 | M55: 6.19047619 | N55: 4.965019183 | O55: 4.85430692 | P55: 5.357689871 | Q55: 4.484047877 | R55: 3.973736458
A56: =IF(OR(NOT(ISNUMBER($L$56)),ISERROR($L$56)),1,IF(AND(LEN($L$56)>0,ABS((1-($L$56* 0.64150869846344+-0.264187812805176)/ 18.8689864955257))<0.00005),0,1)) -> 1 | B56: =IF(OR(NOT(ISNUMBER($M$56)),ISERROR($M$56)),1,IF(AND(LEN($M$56)>0,ABS((1-($M$56* 0.127593874931335+ 0.243624329566956)/ 3.4100628719198))<0.00005),0,1)) -> 1 | C56: =IF(OR(NOT(ISNUMBER($N$56)),ISERROR($N$56)),1,IF(AND(LEN($N$56)>0,ABS((1-($N$56*-4.46590125560761+ 0.0544121265411377)/-92.3069015838929))<0.00005),0,1)) -> 1 | D56: =IF(OR(NOT(ISNUMBER($O$56)),ISERROR($O$56)),1,IF(AND(LEN($O$56)>0,ABS((1-($O$56*-0.521712899208069+ 0.0158089399337769)/-8.44759355150315))<0.00005),0,1)) -> 1 | E56: =IF(OR(NOT(ISNUMBER($P$56)),ISERROR($P$56)),1,IF(AND(LEN($P$56)>0,ABS((1-($P$56*-2.45321691036224+ 0.147140026092529)/-25.8000174893513))<0.00005),0,1)) -> 1 | F56: =IF(OR(NOT(ISNUMBER($Q$56)),ISERROR($Q$56)),1,IF(AND(LEN($Q$56)>0,ABS((1-($Q$56*-1.69954597949982+ 0.137957692146301)/-8.89880731079116))<0.00005),0,1)) -> 1 | G56: =IF(OR(NOT(ISNUMBER($R$56)),ISERROR($R$56)),1,IF(AND(LEN($R$56)>0,ABS((1-($R$56* 3.31835567951202+-0.165142297744751)/-0.165142297744751))<0.00005),0,1)) -> 1 | J56: Present value of CFADS | K56: [$m]
J57: Outstanding debt at period end | K57: [$m] | L57: 20.1 | M57: 15.87 | N57: 13.44 | O57: 10.21 | P57: 7.03 | Q57: 3.47 | R57: 0
A58: =IF(OR(NOT(ISNUMBER($L$58)),ISERROR($L$58)),1,IF(AND(LEN($L$58)>0,ABS((1-($L$58*-2.40675985813141+-0.377173066139221)/-3.94843068982121))<0.00005),0,1)) -> 1 | B58: =IF(OR(NOT(ISNUMBER($M$58)),ISERROR($M$58)),1,IF(AND(LEN($M$58)>0,ABS((1-($M$58* 3.0911260843277+-0.142627716064453)/ 4.69108716225102))<0.00005),0,1)) -> 1 | C58: =IF(OR(NOT(ISNUMBER($N$58)),ISERROR($N$58)),1,IF(AND(LEN($N$58)>0,ABS((1-($N$58* 0.787431597709656+-0.246319174766541)/ 0.965379281300323))<0.00005),0,1)) -> 1 | D58: =IF(OR(NOT(ISNUMBER($O$58)),ISERROR($O$58)),1,IF(AND(LEN($O$58)>0,ABS((1-($O$58*-1.00783050060272+ 0.389061212539673)/-1.2122479024989))<0.00005),0,1)) -> 1 | E58: =IF(OR(NOT(ISNUMBER($P$58)),ISERROR($P$58)),1,IF(AND(LEN($P$58)>0,ABS((1-($P$58*-1.72329485416412+-0.275083661079407)/-2.86781850820738))<0.00005),0,1)) -> 1 | F58: =IF(OR(NOT(ISNUMBER($Q$58)),ISERROR($Q$58)),1,IF(AND(LEN($Q$58)>0,ABS((1-($Q$58*-4.18542325496674+-0.195502758026123)/-6.60892714007223))<0.00005),0,1)) -> 1 | G58: =IF(OR(NOT(ISNUMBER($R$58)),ISERROR($R$58)),1,IF(AND(LEN($R$58)>0,ABS((1-($R$58* 4.44887816905975+-0.46731173992157)/-0.46731173992157))<0.00005),0,1)) -> 1 | J58: LLCR | K58: [#]
J60: Workspace (not really needed though)
K64: Copyright (c) 2020 Tykoh Group Pty Ltd. All rights reserved. | S64: Index
K65: www.tykoh.com

Sheet Four_phase
L1: Click here to see what your answer should look like.
U2: Models | V2: Four_phase
L3: Financial models that perform forecasting typically divide forecasts into phases - often a detailed near/medium-term section is followed by a "steady-state" longer term one. The following model comprises four phases: Pre-upgrade, upgrade, post-upgrade and steady-state or terminal.
L7: Real estate holdings (A - E) yield rental incomes. Some of the holdings will be refurbished and after refurbishment will give increased rental incomes. During refurbishment, however, no rental income will be received. A model is required to forecast rental income and costs.
L11: ="The table below contains data your model will use. Cells " & ADDRESS(ROW(M19),COLUMN(M19),4)&":" & ADDRESS(ROW(M23),COLUMN(M23),4) & " list the area in square meters of holdings A - E. Cells " & ADDRESS(ROW(N19),COLUMN(N19),4)&":" & ADDRESS(ROW(N23),COLUMN(N23),4) & " give the initial rent (per square meter per quarter) of each holding." -> The table below contains data your model will use. Cells M19:M23 list the area in square meters of holdings A - E. Cells N19:N23 give the initial rent (per square meter per quarter) of each holding.
L14: ="Cells " & ADDRESS(ROW(O19),COLUMN(O19),4)&":" & ADDRESS(ROW(O23),COLUMN(O23),4) & " give the growth per quarter (pre refurbishment) in rent per square meter. Cells " & ADDRESS(ROW(P19),COLUMN(P19),4)&":" & ADDRESS(ROW(P23),COLUMN(P23),4) & " give the rent per square meter per quarter in the first quarter after refurbishment. Cells " & ADDRESS(ROW(Q19),COLUMN(Q19),4)&":" & ADDRESS(ROW(Q23),COLUMN(Q23),4) & " give the growth per quarter (after refurbishment) in rent per square meter." -> Cells O19:O23 give the growth per quarter (pre refurbishment) in rent per square meter. Cells P19:P23 give the rent per square meter per quarter in the first quarter after refurbishment. Cells Q19:Q23 give the growth per quarter (after refurbishment) in rent per square meter.
M18: Area (m2) | N18: Initial rent / m2 / qtr | O18: Growth per qtr in rent / m2 (pre refurbish) | P18: Rent / m2 / qtr (after refurbish) | Q18: Growth per qtr n rent / m2 (after refurbish) | R18: Lease ends in qtr (#) | S18: Refurbish starts in qtr (#) | T18: Refurbish periods (qtrs) | U18: Refurbishment cost / m2 | V18: Lease break cost ($)
L19: A | M19: 100 | N19: 200 | O19: 0.0025 | P19: 300 | Q19: 0.01 | R19: 4 | S19: 1 | T19: 2 | U19: 1200 | V19: 100000
L20: B | M20: 200 | N20: 150 | O20: 0.005 | P20: 200 | Q20: 0.01 | R20: 2 | S20: 3 | T20: 3 | U20: 750 | V20: 30000
L21: C | M21: 200 | N21: 150 | O21: 0.0025 | P21: 225 | Q21: 0.0125 | R21: 5 | S21: 0 | T21: 6 | U21: 2000 | V21: 20000
L22: D | M22: 100 | N22: 200 | O22: 0.006 | P22: 300 | Q22: 0.02 | R22: 2 | S22: 4 | T22: 2 | U22: 1200 | V22: 50000
L23: E | M23: 150 | N23: 150 | O23: 0.0075 | P23: 250 | Q23: 0.014 | R23: 3 | S23: 3 | T23: 2 | U23: 300 | V23: 30000
L25: ="The holdings are all currently leased. Cells "&ADDRESS(ROW(R19),COLUMN(R19),4)&":"&ADDRESS(ROW(R23),COLUMN(R23),4)&" lists the quarters in which each lease ends. Cells "&ADDRESS(ROW(S19),COLUMN(S19),4)&":"&ADDRESS(ROW(S23),COLUMN(S23),4) & " give the quarters in which refurbishment will start. If the start quarter is given as zero then no refurbishment will be done." -> The holdings are all currently leased. Cells R19:R23 lists the quarters in which each lease ends. Cells S19:S23 give the quarters in which refurbishment will start. If the start quarter is given as zero then no refurbishment will be done.
L28: ="If refurbishment starts before a lease ends then a lease break cost must be paid. This is a one-off fee paid in the quarter in which refurbishment begins. Lease break costs are detailed in cells " &ADDRESS(ROW(V19),COLUMN(V19),4)&":"&ADDRESS(ROW(V23),COLUMN(V23),4)&"." -> If refurbishment starts before a lease ends then a lease break cost must be paid. This is a one-off fee paid in the quarter in which refurbishment begins. Lease break costs are detailed in cells V19:V23.
L31: ="Cells "&ADDRESS(ROW(T19),COLUMN(T19),4)&":"&ADDRESS(ROW(T23),COLUMN(T23),4) & " give the number of quarters required to complete refurbishment (if refurbishment is to be done). Cells "&ADDRESS(ROW(U19),COLUMN(U19),4)&":"&ADDRESS(ROW(U23),COLUMN(U23),4) & " give the refurbishment cost per square meter. Refurbishment costs are spread out evenly over the term of the refurbishment." -> Cells T19:T23 give the number of quarters required to complete refurbishment (if refurbishment is to be done). Cells U19:U23 give the refurbishment cost per square meter. Refurbishment costs are spread out evenly over the term of the refurbishment.
L35: Calculate the rental, refurbishment and net cash flows below. Also calculate net present values of the cash flows. Assume that cash flows continue into perpetuity growing at the same rate as in the final period of the model.
A38: =SUM($A$39:$I$53) -> 35 | K38: 1 | L38: Generate phase flags
L40: ="In the section below indicate with a 0 or 1 whether refurbishing will occur. Use 1 to indicate refurbishing will occur and 0 to indicate it won't." -> In the section below indicate with a 0 or 1 whether refurbishing will occur. Use 1 to indicate refurbishing will occur and 0 to indicate it won't.
L43: Refurbishing (10 = not refurbishing, 1 = refurbishing)
L45: Quarter | M45: [#] | O45: 1 | P45: =O45+1 -> 2 | Q45: 3 | R45: 4 | S45: 5 | T45: 6 | U45: 7
A47: =IF(OR(NOT(ISNUMBER($O$47)),ISERROR($O$47)),1,IF(AND(LEN($O$47)>0,ABS((1-($O$47* 4.29870426654816+-0.305926561355591)/ 3.99277770519257))<0.00005),0,1)) -> 1 | B47: =IF(OR(NOT(ISNUMBER($P$47)),ISERROR($P$47)),1,IF(AND(LEN($P$47)>0,ABS((1-($P$47*-2.78284132480621+ 0.11553418636322)/-2.66730713844299))<0.00005),0,1)) -> 1 | C47: =IF(OR(NOT(ISNUMBER($Q$47)),ISERROR($Q$47)),1,IF(AND(LEN($Q$47)>0,ABS((1-($Q$47*-3.08657586574554+ 0.12962818145752)/ 0.12962818145752))<0.00005),0,1)) -> 1 | D47: =IF(OR(NOT(ISNUMBER($R$47)),ISERROR($R$47)),1,IF(AND(LEN($R$47)>0,ABS((1-($R$47* 0.0513952970504761+-0.255000472068787)/-0.255000472068787))<0.00005),0,1)) -> 1 | E47: =IF(OR(NOT(ISNUMBER($S$47)),ISERROR($S$47)),1,IF(AND(LEN($S$47)>0,ABS((1-($S$47*-3.86262595653534+ 0.180070161819458)/ 0.180070161819458))<0.00005),0,1)) -> 1 | F47: =IF(OR(NOT(ISNUMBER($T$47)),ISERROR($T$47)),1,IF(AND(LEN($T$47)>0,ABS((1-($T$47*-3.49067270755768+-0.33373749256134)/-0.33373749256134))<0.00005),0,1)) -> 1 | G47: =IF(OR(NOT(ISNUMBER($U$47)),ISERROR($U$47)),1,IF(AND(LEN($U$47)>0,ABS((1-($U$47*-4.75979268550873+-0.322996616363525)/-0.322996616363525))<0.00005),0,1)) -> 1 | L47: =L19 -> A | M47: [0/1]
A48: =IF(OR(NOT(ISNUMBER($O$48)),ISERROR($O$48)),1,IF(AND(LEN($O$48)>0,ABS((1-($O$48*-2.73216545581818+-0.0112408399581909)/-0.0112408399581909))<0.00005),0,1)) -> 1 | B48: =IF(OR(NOT(ISNUMBER($P$48)),ISERROR($P$48)),1,IF(AND(LEN($P$48)>0,ABS((1-($P$48* 1.56384289264679+ 0.230352163314819)/ 0.230352163314819))<0.00005),0,1)) -> 1 | C48: =IF(OR(NOT(ISNUMBER($Q$48)),ISERROR($Q$48)),1,IF(AND(LEN($Q$48)>0,ABS((1-($Q$48*-0.345812439918518+-0.173191666603088)/-0.519004106521606))<0.00005),0,1)) -> 1 | D48: =IF(OR(NOT(ISNUMBER($R$48)),ISERROR($R$48)),1,IF(AND(LEN($R$48)>0,ABS((1-($R$48* 2.30371534824371+ 0.493986129760742)/ 2.79770147800446))<0.00005),0,1)) -> 1 | E48: =IF(OR(NOT(ISNUMBER($S$48)),ISERROR($S$48)),1,IF(AND(LEN($S$48)>0,ABS((1-($S$48*-0.322702527046204+-0.309763312339783)/-0.632465839385986))<0.00005),0,1)) -> 1 | F48: =IF(OR(NOT(ISNUMBER($T$48)),ISERROR($T$48)),1,IF(AND(LEN($T$48)>0,ABS((1-($T$48* 2.79002487659454+-0.318654775619507)/-0.318654775619507))<0.00005),0,1)) -> 1 | G48: =IF(OR(NOT(ISNUMBER($U$48)),ISERROR($U$48)),1,IF(AND(LEN($U$48)>0,ABS((1-($U$48*-3.44103395938873+ 0.125003695487976)/ 0.125003695487976))<0.00005),0,1)) -> 1 | L48: =L20 -> B | M48: [0/1]
A49: =IF(OR(NOT(ISNUMBER($O$49)),ISERROR($O$49)),1,IF(AND(LEN($O$49)>0,ABS((1-($O$49*-2.73101270198822+ 0.331064701080322)/ 0.331064701080322))<0.00005),0,1)) -> 1 | B49: =IF(OR(NOT(ISNUMBER($P$49)),ISERROR($P$49)),1,IF(AND(LEN($P$49)>0,ABS((1-($P$49*-0.234864354133606+-0.396173357963562)/-0.396173357963562))<0.00005),0,1)) -> 1 | C49: =IF(OR(NOT(ISNUMBER($Q$49)),ISERROR($Q$49)),1,IF(AND(LEN($Q$49)>0,ABS((1-($Q$49* 2.18408405780792+ 0.322600126266479)/ 0.322600126266479))<0.00005),0,1)) -> 1 | D49: =IF(OR(NOT(ISNUMBER($R$49)),ISERROR($R$49)),1,IF(AND(LEN($R$49)>0,ABS((1-($R$49*-1.46286070346832+-0.333194375038147)/-0.333194375038147))<0.00005),0,1)) -> 1 | E49: =IF(OR(NOT(ISNUMBER($S$49)),ISERROR($S$49)),1,IF(AND(LEN($S$49)>0,ABS((1-($S$49* 1.95731222629547+ 0.141852378845215)/ 0.141852378845215))<0.00005),0,1)) -> 1 | F49: =IF(OR(NOT(ISNUMBER($T$49)),ISERROR($T$49)),1,IF(AND(LEN($T$49)>0,ABS((1-($T$49* 3.92295062541962+ 0.312048554420471)/ 0.312048554420471))<0.00005),0,1)) -> 1 | G49: =IF(OR(NOT(ISNUMBER($U$49)),ISERROR($U$49)),1,IF(AND(LEN($U$49)>0,ABS((1-($U$49*-2.72956550121307+ 0.396792650222778)/ 0.396792650222778))<0.00005),0,1)) -> 1 | L49: =L21 -> C | M49: [0/1]
A50: =IF(OR(NOT(ISNUMBER($O$50)),ISERROR($O$50)),1,IF(AND(LEN($O$50)>0,ABS((1-($O$50* 3.30843389034271+-0.363703846931458)/-0.363703846931458))<0.00005),0,1)) -> 1 | B50: =IF(OR(NOT(ISNUMBER($P$50)),ISERROR($P$50)),1,IF(AND(LEN($P$50)>0,ABS((1-($P$50*-4.15377080440521+-0.41691255569458)/-0.41691255569458))<0.00005),0,1)) -> 1 | C50: =IF(OR(NOT(ISNUMBER($Q$50)),ISERROR($Q$50)),1,IF(AND(LEN($Q$50)>0,ABS((1-($Q$50*-2.55140602588654+-0.274453043937683)/-0.274453043937683))<0.00005),0,1)) -> 1 | D50: =IF(OR(NOT(ISNUMBER($R$50)),ISERROR($R$50)),1,IF(AND(LEN($R$50)>0,ABS((1-($R$50*-4.27025973796844+ 0.0997235774993896)/-4.17053616046906))<0.00005),0,1)) -> 1 | E50: =IF(OR(NOT(ISNUMBER($S$50)),ISERROR($S$50)),1,IF(AND(LEN($S$50)>0,ABS((1-($S$50*-0.00117361545562744+-0.204317688941956)/-0.205491304397583))<0.00005),0,1)) -> 1 | F50: =IF(OR(NOT(ISNUMBER($T$50)),ISERROR($T$50)),1,IF(AND(LEN($T$50)>0,ABS((1-($T$50* 1.06952726840973+-0.485366821289063)/-0.485366821289063))<0.00005),0,1)) -> 1 | G50: =IF(OR(NOT(ISNUMBER($U$50)),ISERROR($U$50)),1,IF(AND(LEN($U$50)>0,ABS((1-($U$50*-0.453832745552063+-0.416908621788025)/-0.416908621788025))<0.00005),0,1)) -> 1 | L50: =L22 -> D | M50: [0/1]
A51: =IF(OR(NOT(ISNUMBER($O$51)),ISERROR($O$51)),1,IF(AND(LEN($O$51)>0,ABS((1-($O$51* 0.398915410041809+ 0.0803186893463135)/ 0.0803186893463135))<0.00005),0,1)) -> 1 | B51: =IF(OR(NOT(ISNUMBER($P$51)),ISERROR($P$51)),1,IF(AND(LEN($P$51)>0,ABS((1-($P$51* 4.14054334163666+-0.0147038698196411)/-0.0147038698196411))<0.00005),0,1)) -> 1 | C51: =IF(OR(NOT(ISNUMBER($Q$51)),ISERROR($Q$51)),1,IF(AND(LEN($Q$51)>0,ABS((1-($Q$51*-2.5827544927597+ 0.499477863311768)/-2.08327662944794))<0.00005),0,1)) -> 1 | D51: =IF(OR(NOT(ISNUMBER($R$51)),ISERROR($R$51)),1,IF(AND(LEN($R$51)>0,ABS((1-($R$51*-1.67397797107697+-0.0484236478805542)/-1.72240161895752))<0.00005),0,1)) -> 1 | E51: =IF(OR(NOT(ISNUMBER($S$51)),ISERROR($S$51)),1,IF(AND(LEN($S$51)>0,ABS((1-($S$51* 4.27112400531769+-0.0593712329864502)/-0.0593712329864502))<0.00005),0,1)) -> 1 | F51: =IF(OR(NOT(ISNUMBER($T$51)),ISERROR($T$51)),1,IF(AND(LEN($T$51)>0,ABS((1-($T$51* 2.67206132411957+-0.376405358314514)/-0.376405358314514))<0.00005),0,1)) -> 1 | G51: =IF(OR(NOT(ISNUMBER($U$51)),ISERROR($U$51)),1,IF(AND(LEN($U$51)>0,ABS((1-($U$51*-2.66432702541351+ 0.30373477935791)/ 0.30373477935791))<0.00005),0,1)) -> 1 | L51: E | M51: [0/1]
W53: Index
A54: =SUM($A$55:$I$67) -> 35 | K54: 2 | L54: Calculate growth rates
L56: In the area below calculate the growth rate per quarter in rent per square meter. During refurbishing no rent will be received and growth rates then will be zero.
L59: Growth rate per qtr in rent / m2
A61: =IF(OR(NOT(ISNUMBER($O$61)),ISERROR($O$61)),1,IF(AND(LEN($O$61)>0,ABS((1-($O$61*-4.19524013996124+-0.273978590965271)/-0.273978590965271))<0.00005),0,1)) -> 1 | B61: =IF(OR(NOT(ISNUMBER($P$61)),ISERROR($P$61)),1,IF(AND(LEN($P$61)>0,ABS((1-($P$61*-4.50421988964081+-0.264170408248901)/-0.264170408248901))<0.00005),0,1)) -> 1 | C61: =IF(OR(NOT(ISNUMBER($Q$61)),ISERROR($Q$61)),1,IF(AND(LEN($Q$61)>0,ABS((1-($Q$61*-1.0618931055069+ 0.207159876823425)/ 0.196540945768356))<0.00005),0,1)) -> 1 | D61: =IF(OR(NOT(ISNUMBER($R$61)),ISERROR($R$61)),1,IF(AND(LEN($R$61)>0,ABS((1-($R$61* 0.927348732948303+ 0.396642208099365)/ 0.405915695428848))<0.00005),0,1)) -> 1 | E61: =IF(OR(NOT(ISNUMBER($S$61)),ISERROR($S$61)),1,IF(AND(LEN($S$61)>0,ABS((1-($S$61* 2.90523231029511+ 0.129571080207825)/ 0.158623403310776))<0.00005),0,1)) -> 1 | F61: =IF(OR(NOT(ISNUMBER($T$61)),ISERROR($T$61)),1,IF(AND(LEN($T$61)>0,ABS((1-($T$61* 2.37854778766632+ 0.47422194480896)/ 0.498007422685623))<0.00005),0,1)) -> 1 | G61: =IF(OR(NOT(ISNUMBER($U$61)),ISERROR($U$61)),1,IF(AND(LEN($U$61)>0,ABS((1-($U$61*-2.31034338474274+-0.189301133155823)/-0.21240456700325))<0.00005),0,1)) -> 1 | L61: =L47 -> A | M61: [%]
A62: =IF(OR(NOT(ISNUMBER($O$62)),ISERROR($O$62)),1,IF(AND(LEN($O$62)>0,ABS((1-($O$62* 0.951061844825745+ 0.450563430786133)/ 0.455318740010262))<0.00005),0,1)) -> 1 | B62: =IF(OR(NOT(ISNUMBER($P$62)),ISERROR($P$62)),1,IF(AND(LEN($P$62)>0,ABS((1-($P$62* 4.45654094219208+ 0.213494896888733)/ 0.235777601599693))<0.00005),0,1)) -> 1 | C62: =IF(OR(NOT(ISNUMBER($Q$62)),ISERROR($Q$62)),1,IF(AND(LEN($Q$62)>0,ABS((1-($Q$62*-1.61865890026093+-0.382768392562866)/-0.382768392562866))<0.00005),0,1)) -> 1 | D62: =IF(OR(NOT(ISNUMBER($R$62)),ISERROR($R$62)),1,IF(AND(LEN($R$62)>0,ABS((1-($R$62* 0.0839370489120483+-0.412956357002258)/-0.412956357002258))<0.00005),0,1)) -> 1 | E62: =IF(OR(NOT(ISNUMBER($S$62)),ISERROR($S$62)),1,IF(AND(LEN($S$62)>0,ABS((1-($S$62*-2.17814862728119+-0.159013271331787)/-0.159013271331787))<0.00005),0,1)) -> 1 | F62: =IF(OR(NOT(ISNUMBER($T$62)),ISERROR($T$62)),1,IF(AND(LEN($T$62)>0,ABS((1-($T$62* 4.19403731822968+ 0.357187390327454)/ 0.39912776350975))<0.00005),0,1)) -> 1 | G62: =IF(OR(NOT(ISNUMBER($U$62)),ISERROR($U$62)),1,IF(AND(LEN($U$62)>0,ABS((1-($U$62*-2.87767589092255+-0.42059063911438)/-0.449367398023605))<0.00005),0,1)) -> 1 | L62: =L48 -> B | M62: [%]
A63: =IF(OR(NOT(ISNUMBER($O$63)),ISERROR($O$63)),1,IF(AND(LEN($O$63)>0,ABS((1-($O$63*-1.31557524204254+ 0.267151236534119)/ 0.263862298429012))<0.00005),0,1)) -> 1 | B63: =IF(OR(NOT(ISNUMBER($P$63)),ISERROR($P$63)),1,IF(AND(LEN($P$63)>0,ABS((1-($P$63* 4.6110063791275+ 0.146525382995605)/ 0.158052898943424))<0.00005),0,1)) -> 1 | C63: =IF(OR(NOT(ISNUMBER($Q$63)),ISERROR($Q$63)),1,IF(AND(LEN($Q$63)>0,ABS((1-($Q$63*-0.240676999092102+-0.231831908226013)/-0.232433600723743))<0.00005),0,1)) -> 1 | D63: =IF(OR(NOT(ISNUMBER($R$63)),ISERROR($R$63)),1,IF(AND(LEN($R$63)>0,ABS((1-($R$63*-2.62408912181854+ 0.228430986404419)/ 0.221870763599873))<0.00005),0,1)) -> 1 | E63: =IF(OR(NOT(ISNUMBER($S$63)),ISERROR($S$63)),1,IF(AND(LEN($S$63)>0,ABS((1-($S$63* 2.46084630489349+-0.339896321296692)/-0.333744205534458))<0.00005),0,1)) -> 1 | F63: =IF(OR(NOT(ISNUMBER($T$63)),ISERROR($T$63)),1,IF(AND(LEN($T$63)>0,ABS((1-($T$63* 2.04606592655182+-0.351082324981689)/-0.34596716016531))<0.00005),0,1)) -> 1 | G63: =IF(OR(NOT(ISNUMBER($U$63)),ISERROR($U$63)),1,IF(AND(LEN($U$63)>0,ABS((1-($U$63*-2.29975044727325+-0.0179184675216675)/-0.0236678436398506))<0.00005),0,1)) -> 1 | L63: =L49 -> C | M63: [%]
A64: =IF(OR(NOT(ISNUMBER($O$64)),ISERROR($O$64)),1,IF(AND(LEN($O$64)>0,ABS((1-($O$64*-1.92723453044891+ 0.38509726524353)/ 0.373533858060837))<0.00005),0,1)) -> 1 | B64: =IF(OR(NOT(ISNUMBER($P$64)),ISERROR($P$64)),1,IF(AND(LEN($P$64)>0,ABS((1-($P$64* 1.78917825222015+ 0.15310800075531)/ 0.163843070268631))<0.00005),0,1)) -> 1 | C64: =IF(OR(NOT(ISNUMBER($Q$64)),ISERROR($Q$64)),1,IF(AND(LEN($Q$64)>0,ABS((1-($Q$64* 3.51081907749176+-0.166973114013672)/-0.145908199548721))<0.00005),0,1)) -> 1 | D64: =IF(OR(NOT(ISNUMBER($R$64)),ISERROR($R$64)),1,IF(AND(LEN($R$64)>0,ABS((1-($R$64*-1.52908146381378+ 0.362697243690491)/ 0.362697243690491))<0.00005),0,1)) -> 1 | E64: =IF(OR(NOT(ISNUMBER($S$64)),ISERROR($S$64)),1,IF(AND(LEN($S$64)>0,ABS((1-($S$64* 3.29980194568634+ 0.323333978652954)/ 0.323333978652954))<0.00005),0,1)) -> 1 | F64: =IF(OR(NOT(ISNUMBER($T$64)),ISERROR($T$64)),1,IF(AND(LEN($T$64)>0,ABS((1-($T$64* 3.45164716243744+ 0.211496233940125)/ 0.280529177188873))<0.00005),0,1)) -> 1 | G64: =IF(OR(NOT(ISNUMBER($U$64)),ISERROR($U$64)),1,IF(AND(LEN($U$64)>0,ABS((1-($U$64* 0.0453048944473267+-0.113158702850342)/-0.112252604961395))<0.00005),0,1)) -> 1 | L64: =L50 -> D | M64: [%]
A65: =IF(OR(NOT(ISNUMBER($O$65)),ISERROR($O$65)),1,IF(AND(LEN($O$65)>0,ABS((1-($O$65* 1.43168151378632+-0.398090243339539)/-0.387352631986141))<0.00005),0,1)) -> 1 | B65: =IF(OR(NOT(ISNUMBER($P$65)),ISERROR($P$65)),1,IF(AND(LEN($P$65)>0,ABS((1-($P$65*-2.69981563091278+ 0.27019190788269)/ 0.249943290650845))<0.00005),0,1)) -> 1 | C65: =IF(OR(NOT(ISNUMBER($Q$65)),ISERROR($Q$65)),1,IF(AND(LEN($Q$65)>0,ABS((1-($Q$65*-4.36327040195465+-0.121274590492249)/-0.121274590492249))<0.00005),0,1)) -> 1 | D65: =IF(OR(NOT(ISNUMBER($R$65)),ISERROR($R$65)),1,IF(AND(LEN($R$65)>0,ABS((1-($R$65*-4.65418756008148+ 0.201474189758301)/ 0.201474189758301))<0.00005),0,1)) -> 1 | E65: =IF(OR(NOT(ISNUMBER($S$65)),ISERROR($S$65)),1,IF(AND(LEN($S$65)>0,ABS((1-($S$65*-0.150859951972961+ 0.219738602638245)/ 0.217626563310623))<0.00005),0,1)) -> 1 | F65: =IF(OR(NOT(ISNUMBER($T$65)),ISERROR($T$65)),1,IF(AND(LEN($T$65)>0,ABS((1-($T$65*-0.526673197746277+-0.0941531658172607)/-0.101526590585709))<0.00005),0,1)) -> 1 | G65: =IF(OR(NOT(ISNUMBER($U$65)),ISERROR($U$65)),1,IF(AND(LEN($U$65)>0,ABS((1-($U$65* 2.93915212154388+ 0.276377558708191)/ 0.317525688409805))<0.00005),0,1)) -> 1 | L65: =L51 -> E | M65: [%]
W67: Index
A68: =SUM($A$69:$I$80) -> 35 | K68: 3 | L68: Calculate income #1
L70: In the area below calculate the rental income per square meter per quarter.
L72: Rental income / m2 / qtr
A74: =IF(OR(NOT(ISNUMBER($O$74)),ISERROR($O$74)),1,IF(AND(LEN($O$74)>0,ABS((1-($O$74* 0.764880776405334+-0.128836154937744)/-0.128836154937744))<0.00005),0,1)) -> 1 | B74: =IF(OR(NOT(ISNUMBER($P$74)),ISERROR($P$74)),1,IF(AND(LEN($P$74)>0,ABS((1-($P$74*-4.10385429859161+ 0.0643283128738403)/ 0.0643283128738403))<0.00005),0,1)) -> 1 | C74: =IF(OR(NOT(ISNUMBER($Q$74)),ISERROR($Q$74)),1,IF(AND(LEN($Q$74)>0,ABS((1-($Q$74*-0.625106692314147+-0.136400461196899)/-187.668408155441))<0.00005),0,1)) -> 1 | D74: =IF(OR(NOT(ISNUMBER($R$74)),ISERROR($R$74)),1,IF(AND(LEN($R$74)>0,ABS((1-($R$74* 1.35989129543304+ 0.104159712791443)/ 412.151222229004))<0.00005),0,1)) -> 1 | E74: =IF(OR(NOT(ISNUMBER($S$74)),ISERROR($S$74)),1,IF(AND(LEN($S$74)>0,ABS((1-($S$74* 0.311298966407776+ 0.193273544311523)/ 95.4600962340832))<0.00005),0,1)) -> 1 | F74: =IF(OR(NOT(ISNUMBER($T$74)),ISERROR($T$74)),1,IF(AND(LEN($T$74)>0,ABS((1-($T$74*-4.34819996356964+-0.188051581382751)/-1344.17448278111))<0.00005),0,1)) -> 1 | G74: =IF(OR(NOT(ISNUMBER($U$74)),ISERROR($U$74)),1,IF(AND(LEN($U$74)>0,ABS((1-($U$74* 1.71679794788361+ 0.229875802993774)/ 536.181924481229))<0.00005),0,1)) -> 1 | L74: =L47 -> A | M74: [/m2 / qtr]
A75: =IF(OR(NOT(ISNUMBER($O$75)),ISERROR($O$75)),1,IF(AND(LEN($O$75)>0,ABS((1-($O$75* 3.30617368221283+ 0.139903903007507)/ 496.065956234932))<0.00005),0,1)) -> 1 | B75: =IF(OR(NOT(ISNUMBER($P$75)),ISERROR($P$75)),1,IF(AND(LEN($P$75)>0,ABS((1-($P$75*-4.34989392757416+ 0.168291568756104)/-655.578218013048))<0.00005),0,1)) -> 1 | C75: =IF(OR(NOT(ISNUMBER($Q$75)),ISERROR($Q$75)),1,IF(AND(LEN($Q$75)>0,ABS((1-($Q$75* 4.10145461559296+ 0.466993451118469)/ 0.466993451118469))<0.00005),0,1)) -> 1 | D75: =IF(OR(NOT(ISNUMBER($R$75)),ISERROR($R$75)),1,IF(AND(LEN($R$75)>0,ABS((1-($R$75* 1.36720478534698+ 0.0442264080047607)/ 0.0442264080047607))<0.00005),0,1)) -> 1 | E75: =IF(OR(NOT(ISNUMBER($S$75)),ISERROR($S$75)),1,IF(AND(LEN($S$75)>0,ABS((1-($S$75* 2.59147584438324+-0.260432839393616)/-0.260432839393616))<0.00005),0,1)) -> 1 | F75: =IF(OR(NOT(ISNUMBER($T$75)),ISERROR($T$75)),1,IF(AND(LEN($T$75)>0,ABS((1-($T$75* 1.10259115695953+-0.000168800354003906)/ 220.518062591553))<0.00005),0,1)) -> 1 | G75: =IF(OR(NOT(ISNUMBER($U$75)),ISERROR($U$75)),1,IF(AND(LEN($U$75)>0,ABS((1-($U$75* 0.136711001396179+-0.138017058372498)/ 27.4776052236557))<0.00005),0,1)) -> 1 | L75: =L48 -> B | M75: [/m2 / qtr]
A76: =IF(OR(NOT(ISNUMBER($O$76)),ISERROR($O$76)),1,IF(AND(LEN($O$76)>0,ABS((1-($O$76*-1.64947211742401+-0.20067286491394)/-247.621490478516))<0.00005),0,1)) -> 1 | B76: =IF(OR(NOT(ISNUMBER($P$76)),ISERROR($P$76)),1,IF(AND(LEN($P$76)>0,ABS((1-($P$76*-0.564475655555725+ 0.337231516838074)/-84.5457951873541))<0.00005),0,1)) -> 1 | C76: =IF(OR(NOT(ISNUMBER($Q$76)),ISERROR($Q$76)),1,IF(AND(LEN($Q$76)>0,ABS((1-($Q$76*-1.35370671749114+-0.405369281768799)/-204.477926043607))<0.00005),0,1)) -> 1 | D76: =IF(OR(NOT(ISNUMBER($R$76)),ISERROR($R$76)),1,IF(AND(LEN($R$76)>0,ABS((1-($R$76* 1.55542075634003+ 0.157561421394348)/ 235.224901489675))<0.00005),0,1)) -> 1 | E76: =IF(OR(NOT(ISNUMBER($S$76)),ISERROR($S$76)),1,IF(AND(LEN($S$76)>0,ABS((1-($S$76* 2.84743130207062+-0.0590212345123291)/ 431.342864541613))<0.00005),0,1)) -> 1 | F76: =IF(OR(NOT(ISNUMBER($T$76)),ISERROR($T$76)),1,IF(AND(LEN($T$76)>0,ABS((1-($T$76*-4.53570425510406+-0.0548959970474243)/-1020.58835339546))<0.00005),0,1)) -> 1 | G76: =IF(OR(NOT(ISNUMBER($U$76)),ISERROR($U$76)),1,IF(AND(LEN($U$76)>0,ABS((1-($U$76* 2.91500151157379+ 0.0625534057617188)/ 657.577581860125))<0.00005),0,1)) -> 1 | L76: =L49 -> C | M76: [/m2 / qtr]
A77: =IF(OR(NOT(ISNUMBER($O$77)),ISERROR($O$77)),1,IF(AND(LEN($O$77)>0,ABS((1-($O$77* 0.0616854429244995+ 0.342498421669006)/ 12.6795870065689))<0.00005),0,1)) -> 1 | B77: =IF(OR(NOT(ISNUMBER($P$77)),ISERROR($P$77)),1,IF(AND(LEN($P$77)>0,ABS((1-($P$77* 0.194829106330872+ 0.368107080459595)/ 39.567723274231))<0.00005),0,1)) -> 1 | C77: =IF(OR(NOT(ISNUMBER($Q$77)),ISERROR($Q$77)),1,IF(AND(LEN($Q$77)>0,ABS((1-($Q$77*-1.28998339176178+-0.34648334980011)/-261.448409722805))<0.00005),0,1)) -> 1 | D77: =IF(OR(NOT(ISNUMBER($R$77)),ISERROR($R$77)),1,IF(AND(LEN($R$77)>0,ABS((1-($R$77*-3.80124509334564+ 0.216587543487549)/ 0.216587543487549))<0.00005),0,1)) -> 1 | E77: =IF(OR(NOT(ISNUMBER($S$77)),ISERROR($S$77)),1,IF(AND(LEN($S$77)>0,ABS((1-($S$77*-3.7341433763504+-0.266311526298523)/-0.266311526298523))<0.00005),0,1)) -> 1 | F77: =IF(OR(NOT(ISNUMBER($T$77)),ISERROR($T$77)),1,IF(AND(LEN($T$77)>0,ABS((1-($T$77*-4.11411464214325+-0.0672371387481689)/-1234.30162978172))<0.00005),0,1)) -> 1 | G77: =IF(OR(NOT(ISNUMBER($U$77)),ISERROR($U$77)),1,IF(AND(LEN($U$77)>0,ABS((1-($U$77*-1.38883650302887+ 0.130926489830017)/-424.853043437004))<0.00005),0,1)) -> 1 | L77: =L50 -> D | M77: [/m2 / qtr]
A78: =IF(OR(NOT(ISNUMBER($O$78)),ISERROR($O$78)),1,IF(AND(LEN($O$78)>0,ABS((1-($O$78* 3.44384253025055+ 0.0728464126586914)/ 516.649225950241))<0.00005),0,1)) -> 1 | B78: =IF(OR(NOT(ISNUMBER($P$78)),ISERROR($P$78)),1,IF(AND(LEN($P$78)>0,ABS((1-($P$78* 4.68453586101531+ 0.47615110874176)/ 708.426633104681))<0.00005),0,1)) -> 1 | C78: =IF(OR(NOT(ISNUMBER($Q$78)),ISERROR($Q$78)),1,IF(AND(LEN($Q$78)>0,ABS((1-($Q$78* 0.570014119148254+-0.0598781108856201)/-0.0598781108856201))<0.00005),0,1)) -> 1 | D78: =IF(OR(NOT(ISNUMBER($R$78)),ISERROR($R$78)),1,IF(AND(LEN($R$78)>0,ABS((1-($R$78* 1.01246297359467+ 0.123915553092957)/ 0.123915553092957))<0.00005),0,1)) -> 1 | E78: =IF(OR(NOT(ISNUMBER($S$78)),ISERROR($S$78)),1,IF(AND(LEN($S$78)>0,ABS((1-($S$78*-2.74719655513763+ 0.350568294525146)/-686.448570489883))<0.00005),0,1)) -> 1 | F78: =IF(OR(NOT(ISNUMBER($T$78)),ISERROR($T$78)),1,IF(AND(LEN($T$78)>0,ABS((1-($T$78*-1.25942528247833+ 0.043030858039856)/-319.221278250217))<0.00005),0,1)) -> 1 | G78: =IF(OR(NOT(ISNUMBER($U$78)),ISERROR($U$78)),1,IF(AND(LEN($U$78)>0,ABS((1-($U$78*-4.94712054729462+-0.351515054702759)/-1272.00390461624))<0.00005),0,1)) -> 1 | L78: =L51 -> E | M78: [/m2 / qtr]
W80: Index
A81: =SUM($A$82:$I$93) -> 35 | K81: 4 | L81: Calculate income #2
L83: In the area below calculate the rental income in thousands of dollars per quarter.
L85: Rental income [000's / qtr]
A87: =IF(OR(NOT(ISNUMBER($O$87)),ISERROR($O$87)),1,IF(AND(LEN($O$87)>0,ABS((1-($O$87* 3.16489160060883+-0.0428091287612915)/-0.0428091287612915))<0.00005),0,1)) -> 1 | B87: =IF(OR(NOT(ISNUMBER($P$87)),ISERROR($P$87)),1,IF(AND(LEN($P$87)>0,ABS((1-($P$87* 2.88442671298981+-0.0278835296630859)/-0.0278835296630859))<0.00005),0,1)) -> 1 | C87: =IF(OR(NOT(ISNUMBER($Q$87)),ISERROR($Q$87)),1,IF(AND(LEN($Q$87)>0,ABS((1-($Q$87*-4.23692524433135+-0.264402747154236)/-127.372160077095))<0.00005),0,1)) -> 1 | D87: =IF(OR(NOT(ISNUMBER($R$87)),ISERROR($R$87)),1,IF(AND(LEN($R$87)>0,ABS((1-($R$87*-4.70360457897186+-0.230722188949585)/-142.749940931797))<0.00005),0,1)) -> 1 | E87: =IF(OR(NOT(ISNUMBER($S$87)),ISERROR($S$87)),1,IF(AND(LEN($S$87)>0,ABS((1-($S$87*-1.27432405948639+ 0.0335844755172729)/-38.9645547169447))<0.00005),0,1)) -> 1 | F87: =IF(OR(NOT(ISNUMBER($T$87)),ISERROR($T$87)),1,IF(AND(LEN($T$87)>0,ABS((1-($T$87* 3.25375139713287+-0.437020778656006)/ 100.133278767866))<0.00005),0,1)) -> 1 | G87: =IF(OR(NOT(ISNUMBER($U$87)),ISERROR($U$87)),1,IF(AND(LEN($U$87)>0,ABS((1-($U$87* 1.98738753795624+ 0.183244824409485)/ 62.2257480670481))<0.00005),0,1)) -> 1 | L87: =L74 -> A | M87: [000's / qtr]
A88: =IF(OR(NOT(ISNUMBER($O$88)),ISERROR($O$88)),1,IF(AND(LEN($O$88)>0,ABS((1-($O$88*-2.58127391338348+-0.0329487323760986)/-77.4711661338806))<0.00005),0,1)) -> 1 | B88: =IF(OR(NOT(ISNUMBER($P$88)),ISERROR($P$88)),1,IF(AND(LEN($P$88)>0,ABS((1-($P$88* 2.75829255580902+ 0.33405339717865)/ 83.4965739548206))<0.00005),0,1)) -> 1 | C88: =IF(OR(NOT(ISNUMBER($Q$88)),ISERROR($Q$88)),1,IF(AND(LEN($Q$88)>0,ABS((1-($Q$88* 3.93206655979156+-0.0482301712036133)/-0.0482301712036133))<0.00005),0,1)) -> 1 | D88: =IF(OR(NOT(ISNUMBER($R$88)),ISERROR($R$88)),1,IF(AND(LEN($R$88)>0,ABS((1-($R$88*-2.44488537311554+-0.156506896018982)/-0.156506896018982))<0.00005),0,1)) -> 1 | E88: =IF(OR(NOT(ISNUMBER($S$88)),ISERROR($S$88)),1,IF(AND(LEN($S$88)>0,ABS((1-($S$88* 2.69428551197052+ 0.3594810962677)/ 0.3594810962677))<0.00005),0,1)) -> 1 | F88: =IF(OR(NOT(ISNUMBER($T$88)),ISERROR($T$88)),1,IF(AND(LEN($T$88)>0,ABS((1-($T$88*-3.26753199100494+-0.0823203325271606)/-130.783599972725))<0.00005),0,1)) -> 1 | G88: =IF(OR(NOT(ISNUMBER($U$88)),ISERROR($U$88)),1,IF(AND(LEN($U$88)>0,ABS((1-($U$88*-1.85308873653412+-0.329773426055908)/-75.1945583820343))<0.00005),0,1)) -> 1 | L88: =L75 -> B | M88: [000's / qtr]
A89: =IF(OR(NOT(ISNUMBER($O$89)),ISERROR($O$89)),1,IF(AND(LEN($O$89)>0,ABS((1-($O$89* 1.51410758495331+-0.498013377189636)/ 44.9252141714096))<0.00005),0,1)) -> 1 | B89: =IF(OR(NOT(ISNUMBER($P$89)),ISERROR($P$89)),1,IF(AND(LEN($P$89)>0,ABS((1-($P$89* 2.55373775959015+ 0.0173680782318115)/ 76.8210311979055))<0.00005),0,1)) -> 1 | C89: =IF(OR(NOT(ISNUMBER($Q$89)),ISERROR($Q$89)),1,IF(AND(LEN($Q$89)>0,ABS((1-($Q$89* 3.52417886257172+ 0.421670317649841)/ 106.676323807724))<0.00005),0,1)) -> 1 | D89: =IF(OR(NOT(ISNUMBER($R$89)),ISERROR($R$89)),1,IF(AND(LEN($R$89)>0,ABS((1-($R$89* 1.78207457065582+ 0.453212738037109)/ 54.3174198884028))<0.00005),0,1)) -> 1 | E89: =IF(OR(NOT(ISNUMBER($S$89)),ISERROR($S$89)),1,IF(AND(LEN($S$89)>0,ABS((1-($S$89*-3.18153202533722+-0.227505087852478)/-96.6315106481996))<0.00005),0,1)) -> 1 | F89: =IF(OR(NOT(ISNUMBER($T$89)),ISERROR($T$89)),1,IF(AND(LEN($T$89)>0,ABS((1-($T$89* 3.5839968919754+ 0.464637994766235)/ 161.744498133659))<0.00005),0,1)) -> 1 | G89: =IF(OR(NOT(ISNUMBER($U$89)),ISERROR($U$89)),1,IF(AND(LEN($U$89)>0,ABS((1-($U$89* 2.415651679039+-0.438642621040344)/ 108.537443749607))<0.00005),0,1)) -> 1 | L89: =L76 -> C | M89: [000's / qtr]
A90: =IF(OR(NOT(ISNUMBER($O$90)),ISERROR($O$90)),1,IF(AND(LEN($O$90)>0,ABS((1-($O$90*-1.62240445613861+-0.261283397674561)/-32.7093725204468))<0.00005),0,1)) -> 1 | B90: =IF(OR(NOT(ISNUMBER($P$90)),ISERROR($P$90)),1,IF(AND(LEN($P$90)>0,ABS((1-($P$90*-4.67145264148712+-0.403087496757507)/-94.3927146434784))<0.00005),0,1)) -> 1 | C90: =IF(OR(NOT(ISNUMBER($Q$90)),ISERROR($Q$90)),1,IF(AND(LEN($Q$90)>0,ABS((1-($Q$90* 2.52822697162628+ 0.178341627120972)/ 51.3514758562565))<0.00005),0,1)) -> 1 | D90: =IF(OR(NOT(ISNUMBER($R$90)),ISERROR($R$90)),1,IF(AND(LEN($R$90)>0,ABS((1-($R$90* 4.09536302089691+-0.369802117347717)/-0.369802117347717))<0.00005),0,1)) -> 1 | E90: =IF(OR(NOT(ISNUMBER($S$90)),ISERROR($S$90)),1,IF(AND(LEN($S$90)>0,ABS((1-($S$90* 4.12976324558258+ 0.167851448059082)/ 0.167851448059082))<0.00005),0,1)) -> 1 | F90: =IF(OR(NOT(ISNUMBER($T$90)),ISERROR($T$90)),1,IF(AND(LEN($T$90)>0,ABS((1-($T$90* 2.8109472990036+-0.254741072654724)/ 84.0736778974533))<0.00005),0,1)) -> 1 | G90: =IF(OR(NOT(ISNUMBER($U$90)),ISERROR($U$90)),1,IF(AND(LEN($U$90)>0,ABS((1-($U$90* 1.28584206104279+ 0.0886547565460205)/ 39.4354218244553))<0.00005),0,1)) -> 1 | L90: =L77 -> D | M90: [000's / qtr]
A91: =IF(OR(NOT(ISNUMBER($O$91)),ISERROR($O$91)),1,IF(AND(LEN($O$91)>0,ABS((1-($O$91*-4.34196054935455+-0.000226140022277832)/-97.6943385004997))<0.00005),0,1)) -> 1 | B91: =IF(OR(NOT(ISNUMBER($P$91)),ISERROR($P$91)),1,IF(AND(LEN($P$91)>0,ABS((1-($P$91* 2.8911167383194+ 0.0848555564880371)/ 65.6228581182659))<0.00005),0,1)) -> 1 | C91: =IF(OR(NOT(ISNUMBER($Q$91)),ISERROR($Q$91)),1,IF(AND(LEN($Q$91)>0,ABS((1-($Q$91* 3.93851935863495+ 0.315678715705872)/ 0.315678715705872))<0.00005),0,1)) -> 1 | D91: =IF(OR(NOT(ISNUMBER($R$91)),ISERROR($R$91)),1,IF(AND(LEN($R$91)>0,ABS((1-($R$91* 1.91250622272491+ 0.0788781642913818)/ 0.0788781642913818))<0.00005),0,1)) -> 1 | E91: =IF(OR(NOT(ISNUMBER($S$91)),ISERROR($S$91)),1,IF(AND(LEN($S$91)>0,ABS((1-($S$91*-4.39534246921539+-0.380207657814026)/-165.205550253391))<0.00005),0,1)) -> 1 | F91: =IF(OR(NOT(ISNUMBER($T$91)),ISERROR($T$91)),1,IF(AND(LEN($T$91)>0,ABS((1-($T$91* 1.17044508457184+ 0.0370922088623047)/ 44.5432665497065))<0.00005),0,1)) -> 1 | G91: =IF(OR(NOT(ISNUMBER($U$91)),ISERROR($U$91)),1,IF(AND(LEN($U$91)>0,ABS((1-($U$91*-2.70963490009308+ 0.23444139957428)/-104.24189981553))<0.00005),0,1)) -> 1 | L91: =L78 -> E | M91: [000's / qtr]
W93: Index
A94: =SUM($A$95:$I$107) -> 35 | K94: 5 | L94: Calculate upgrade cost
L96: In the area below calculate the cost of refurbishing. That cost is spread evenly over the number of periods required for the refurbishment.
L99: Refurbishing cost [000's / qtr] [Numbers in this section should be negative.]
A101: =IF(OR(NOT(ISNUMBER($O$101)),ISERROR($O$101)),1,IF(AND(LEN($O$101)>0,ABS((1-($O$101* 1.62013351917267+ 0.485437631607056)/-96.7225735187531))<0.00005),0,1)) -> 1 | B101: =IF(OR(NOT(ISNUMBER($P$101)),ISERROR($P$101)),1,IF(AND(LEN($P$101)>0,ABS((1-($P$101*-1.15755617618561+-0.481914639472961)/ 68.9714559316635))<0.00005),0,1)) -> 1 | C101: =IF(OR(NOT(ISNUMBER($Q$101)),ISERROR($Q$101)),1,IF(AND(LEN($Q$101)>0,ABS((1-($Q$101* 3.1327873468399+ 0.275049686431885)/ 0.275049686431885))<0.00005),0,1)) -> 1 | D101: =IF(OR(NOT(ISNUMBER($R$101)),ISERROR($R$101)),1,IF(AND(LEN($R$101)>0,ABS((1-($R$101* 0.351836085319519+-0.2440584897995)/-0.2440584897995))<0.00005),0,1)) -> 1 | E101: =IF(OR(NOT(ISNUMBER($S$101)),ISERROR($S$101)),1,IF(AND(LEN($S$101)>0,ABS((1-($S$101*-2.22311198711395+-0.402116060256958)/-0.402116060256958))<0.00005),0,1)) -> 1 | F101: =IF(OR(NOT(ISNUMBER($T$101)),ISERROR($T$101)),1,IF(AND(LEN($T$101)>0,ABS((1-($T$101* 1.6848748922348+ 0.300609946250916)/ 0.300609946250916))<0.00005),0,1)) -> 1 | G101: =IF(OR(NOT(ISNUMBER($U$101)),ISERROR($U$101)),1,IF(AND(LEN($U$101)>0,ABS((1-($U$101*-4.4005674123764+ 0.252341270446777)/ 0.252341270446777))<0.00005),0,1)) -> 1 | L101: =L87 -> A | M101: [000's / qtr]
A102: =IF(OR(NOT(ISNUMBER($O$102)),ISERROR($O$102)),1,IF(AND(LEN($O$102)>0,ABS((1-($O$102* 4.51453387737274+-0.0373014211654663)/-0.0373014211654663))<0.00005),0,1)) -> 1 | B102: =IF(OR(NOT(ISNUMBER($P$102)),ISERROR($P$102)),1,IF(AND(LEN($P$102)>0,ABS((1-($P$102* 2.90718376636505+ 0.158892869949341)/ 0.158892869949341))<0.00005),0,1)) -> 1 | C102: =IF(OR(NOT(ISNUMBER($Q$102)),ISERROR($Q$102)),1,IF(AND(LEN($Q$102)>0,ABS((1-($Q$102*-3.14832270145416+-0.348551869392395)/ 157.067583203316))<0.00005),0,1)) -> 1 | D102: =IF(OR(NOT(ISNUMBER($R$102)),ISERROR($R$102)),1,IF(AND(LEN($R$102)>0,ABS((1-($R$102* 3.04791986942291+ 0.125705242156982)/-152.270288228989))<0.00005),0,1)) -> 1 | E102: =IF(OR(NOT(ISNUMBER($S$102)),ISERROR($S$102)),1,IF(AND(LEN($S$102)>0,ABS((1-($S$102* 0.0763100385665894+ 0.265357136726379)/-3.55014479160309))<0.00005),0,1)) -> 1 | F102: =IF(OR(NOT(ISNUMBER($T$102)),ISERROR($T$102)),1,IF(AND(LEN($T$102)>0,ABS((1-($T$102*-0.30831515789032+-0.135734796524048)/-0.135734796524048))<0.00005),0,1)) -> 1 | G102: =IF(OR(NOT(ISNUMBER($U$102)),ISERROR($U$102)),1,IF(AND(LEN($U$102)>0,ABS((1-($U$102*-1.5311723947525+-0.167193055152893)/-0.167193055152893))<0.00005),0,1)) -> 1 | L102: =L88 -> B | M102: [000's / qtr]
A103: =IF(OR(NOT(ISNUMBER($O$103)),ISERROR($O$103)),1,IF(AND(LEN($O$103)>0,ABS((1-($O$103* 2.61203825473785+ 0.2550048828125)/ 0.2550048828125))<0.00005),0,1)) -> 1 | B103: =IF(OR(NOT(ISNUMBER($P$103)),ISERROR($P$103)),1,IF(AND(LEN($P$103)>0,ABS((1-($P$103* 1.24126613140106+-0.0973132848739624)/-0.0973132848739624))<0.00005),0,1)) -> 1 | C103: =IF(OR(NOT(ISNUMBER($Q$103)),ISERROR($Q$103)),1,IF(AND(LEN($Q$103)>0,ABS((1-($Q$103*-4.03269469738007+-0.137073278427124)/-0.137073278427124))<0.00005),0,1)) -> 1 | D103: =IF(OR(NOT(ISNUMBER($R$103)),ISERROR($R$103)),1,IF(AND(LEN($R$103)>0,ABS((1-($R$103*-2.93144762516022+ 0.185018420219421)/ 0.185018420219421))<0.00005),0,1)) -> 1 | E103: =IF(OR(NOT(ISNUMBER($S$103)),ISERROR($S$103)),1,IF(AND(LEN($S$103)>0,ABS((1-($S$103*-0.91817319393158+-0.29677152633667)/-0.29677152633667))<0.00005),0,1)) -> 1 | F103: =IF(OR(NOT(ISNUMBER($T$103)),ISERROR($T$103)),1,IF(AND(LEN($T$103)>0,ABS((1-($T$103* 1.11975371837616+ 0.441581845283508)/ 0.441581845283508))<0.00005),0,1)) -> 1 | G103: =IF(OR(NOT(ISNUMBER($U$103)),ISERROR($U$103)),1,IF(AND(LEN($U$103)>0,ABS((1-($U$103*-0.272790789604187+ 0.256928205490112)/ 0.256928205490112))<0.00005),0,1)) -> 1 | L103: =L89 -> C | M103: [000's / qtr]
A104: =IF(OR(NOT(ISNUMBER($O$104)),ISERROR($O$104)),1,IF(AND(LEN($O$104)>0,ABS((1-($O$104* 4.58932816982269+-0.373460412025452)/-0.373460412025452))<0.00005),0,1)) -> 1 | B104: =IF(OR(NOT(ISNUMBER($P$104)),ISERROR($P$104)),1,IF(AND(LEN($P$104)>0,ABS((1-($P$104*-0.0964254140853882+-0.263510704040527)/-0.263510704040527))<0.00005),0,1)) -> 1 | C104: =IF(OR(NOT(ISNUMBER($Q$104)),ISERROR($Q$104)),1,IF(AND(LEN($Q$104)>0,ABS((1-($Q$104*-3.27162563800812+ 0.277062058448792)/ 0.277062058448792))<0.00005),0,1)) -> 1 | D104: =IF(OR(NOT(ISNUMBER($R$104)),ISERROR($R$104)),1,IF(AND(LEN($R$104)>0,ABS((1-($R$104* 4.12081062793732+-0.398554563522339)/-247.647192239761))<0.00005),0,1)) -> 1 | E104: =IF(OR(NOT(ISNUMBER($S$104)),ISERROR($S$104)),1,IF(AND(LEN($S$104)>0,ABS((1-($S$104*-0.624118447303771+ 0.153952479362488)/ 37.6010593175888))<0.00005),0,1)) -> 1 | F104: =IF(OR(NOT(ISNUMBER($T$104)),ISERROR($T$104)),1,IF(AND(LEN($T$104)>0,ABS((1-($T$104* 0.179820656776428+ 0.324025630950928)/ 0.324025630950928))<0.00005),0,1)) -> 1 | G104: =IF(OR(NOT(ISNUMBER($U$104)),ISERROR($U$104)),1,IF(AND(LEN($U$104)>0,ABS((1-($U$104* 3.98997962474822+ 0.132271885871887)/ 0.132271885871887))<0.00005),0,1)) -> 1 | L104: =L90 -> D | M104: [000's / qtr]
A105: =IF(OR(NOT(ISNUMBER($O$105)),ISERROR($O$105)),1,IF(AND(LEN($O$105)>0,ABS((1-($O$105* 2.45377361774445+ 0.404779195785522)/ 0.404779195785522))<0.00005),0,1)) -> 1 | B105: =IF(OR(NOT(ISNUMBER($P$105)),ISERROR($P$105)),1,IF(AND(LEN($P$105)>0,ABS((1-($P$105* 1.17918908596039+ 0.34196412563324)/ 0.34196412563324))<0.00005),0,1)) -> 1 | C105: =IF(OR(NOT(ISNUMBER($Q$105)),ISERROR($Q$105)),1,IF(AND(LEN($Q$105)>0,ABS((1-($Q$105*-2.33064591884613+-0.361799240112305)/ 52.0777339339256))<0.00005),0,1)) -> 1 | D105: =IF(OR(NOT(ISNUMBER($R$105)),ISERROR($R$105)),1,IF(AND(LEN($R$105)>0,ABS((1-($R$105* 2.7336710691452+-0.441519141197205)/-61.9491181969643))<0.00005),0,1)) -> 1 | E105: =IF(OR(NOT(ISNUMBER($S$105)),ISERROR($S$105)),1,IF(AND(LEN($S$105)>0,ABS((1-($S$105* 3.1880122423172+-0.371644735336304)/-0.371644735336304))<0.00005),0,1)) -> 1 | F105: =IF(OR(NOT(ISNUMBER($T$105)),ISERROR($T$105)),1,IF(AND(LEN($T$105)>0,ABS((1-($T$105*-3.84352266788483+-0.156593441963196)/-0.156593441963196))<0.00005),0,1)) -> 1 | G105: =IF(OR(NOT(ISNUMBER($U$105)),ISERROR($U$105)),1,IF(AND(LEN($U$105)>0,ABS((1-($U$105*-2.21278607845306+-0.445497035980225)/-0.445497035980225))<0.00005),0,1)) -> 1 | L105: =L91 -> E | M105: [000's / qtr]
W107: Index
A108: =SUM($A$109:$I$121) -> 35 | K108: 6 | L108: Calculate break fee
L110: In the area below calculate the lease break cost. The break cost must be paid if refurbishment begins before the end of the lease. If a break fee is paid it is paid in full when refurbishment begins.
L113: Lease break cost [000's] [Numbers in this section should be negative.]
A115: =IF(OR(NOT(ISNUMBER($O$115)),ISERROR($O$115)),1,IF(AND(LEN($O$115)>0,ABS((1-($O$115* 1.6948002576828+ 0.435083508491516)/-169.044942259789))<0.00005),0,1)) -> 1 | B115: =IF(OR(NOT(ISNUMBER($P$115)),ISERROR($P$115)),1,IF(AND(LEN($P$115)>0,ABS((1-($P$115* 4.94169056415558+ 0.186724424362183)/ 0.186724424362183))<0.00005),0,1)) -> 1 | C115: =IF(OR(NOT(ISNUMBER($Q$115)),ISERROR($Q$115)),1,IF(AND(LEN($Q$115)>0,ABS((1-($Q$115* 1.87122285366058+-0.110763192176819)/-0.110763192176819))<0.00005),0,1)) -> 1 | D115: =IF(OR(NOT(ISNUMBER($R$115)),ISERROR($R$115)),1,IF(AND(LEN($R$115)>0,ABS((1-($R$115*-1.39531075954437+ 0.151545524597168)/ 0.151545524597168))<0.00005),0,1)) -> 1 | E115: =IF(OR(NOT(ISNUMBER($S$115)),ISERROR($S$115)),1,IF(AND(LEN($S$115)>0,ABS((1-($S$115* 3.51496875286102+ 0.469599366188049)/ 0.469599366188049))<0.00005),0,1)) -> 1 | F115: =IF(OR(NOT(ISNUMBER($T$115)),ISERROR($T$115)),1,IF(AND(LEN($T$115)>0,ABS((1-($T$115* 1.48922264575958+ 0.447562456130981)/ 0.447562456130981))<0.00005),0,1)) -> 1 | G115: =IF(OR(NOT(ISNUMBER($U$115)),ISERROR($U$115)),1,IF(AND(LEN($U$115)>0,ABS((1-($U$115* 2.29315221309662+-0.211463093757629)/-0.211463093757629))<0.00005),0,1)) -> 1 | L115: =L101 -> A | M115: [000's]
A116: =IF(OR(NOT(ISNUMBER($O$116)),ISERROR($O$116)),1,IF(AND(LEN($O$116)>0,ABS((1-($O$116*-4.15068089962006+ 0.211066722869873)/ 0.211066722869873))<0.00005),0,1)) -> 1 | B116: =IF(OR(NOT(ISNUMBER($P$116)),ISERROR($P$116)),1,IF(AND(LEN($P$116)>0,ABS((1-($P$116*-0.257971882820129+-0.302327036857605)/-0.302327036857605))<0.00005),0,1)) -> 1 | C116: =IF(OR(NOT(ISNUMBER($Q$116)),ISERROR($Q$116)),1,IF(AND(LEN($Q$116)>0,ABS((1-($Q$116*-3.23872745037079+-0.268329858779907)/-0.268329858779907))<0.00005),0,1)) -> 1 | D116: =IF(OR(NOT(ISNUMBER($R$116)),ISERROR($R$116)),1,IF(AND(LEN($R$116)>0,ABS((1-($R$116* 2.79824197292328+ 0.428513884544373)/ 0.428513884544373))<0.00005),0,1)) -> 1 | E116: =IF(OR(NOT(ISNUMBER($S$116)),ISERROR($S$116)),1,IF(AND(LEN($S$116)>0,ABS((1-($S$116*-2.09510743618011+-0.282070159912109)/-0.282070159912109))<0.00005),0,1)) -> 1 | F116: =IF(OR(NOT(ISNUMBER($T$116)),ISERROR($T$116)),1,IF(AND(LEN($T$116)>0,ABS((1-($T$116*-4.16992008686066+-0.0169261693954468)/-0.0169261693954468))<0.00005),0,1)) -> 1 | G116: =IF(OR(NOT(ISNUMBER($U$116)),ISERROR($U$116)),1,IF(AND(LEN($U$116)>0,ABS((1-($U$116*-0.155245661735535+-0.187026739120483)/-0.187026739120483))<0.00005),0,1)) -> 1 | L116: =L102 -> B | M116: [000's]
A117: =IF(OR(NOT(ISNUMBER($O$117)),ISERROR($O$117)),1,IF(AND(LEN($O$117)>0,ABS((1-($O$117*-4.83128130435944+-0.225500226020813)/-0.225500226020813))<0.00005),0,1)) -> 1 | B117: =IF(OR(NOT(ISNUMBER($P$117)),ISERROR($P$117)),1,IF(AND(LEN($P$117)>0,ABS((1-($P$117* 0.811448693275452+ 0.360123157501221)/ 0.360123157501221))<0.00005),0,1)) -> 1 | C117: =IF(OR(NOT(ISNUMBER($Q$117)),ISERROR($Q$117)),1,IF(AND(LEN($Q$117)>0,ABS((1-($Q$117*-3.86052429676056+-0.482303500175476)/-0.482303500175476))<0.00005),0,1)) -> 1 | D117: =IF(OR(NOT(ISNUMBER($R$117)),ISERROR($R$117)),1,IF(AND(LEN($R$117)>0,ABS((1-($R$117*-0.0171679258346558+ 0.418522596359253)/ 0.418522596359253))<0.00005),0,1)) -> 1 | E117: =IF(OR(NOT(ISNUMBER($S$117)),ISERROR($S$117)),1,IF(AND(LEN($S$117)>0,ABS((1-($S$117* 2.59305894374847+ 0.369951605796814)/ 0.369951605796814))<0.00005),0,1)) -> 1 | F117: =IF(OR(NOT(ISNUMBER($T$117)),ISERROR($T$117)),1,IF(AND(LEN($T$117)>0,ABS((1-($T$117* 3.26527655124664+ 0.0287599563598633)/ 0.0287599563598633))<0.00005),0,1)) -> 1 | G117: =IF(OR(NOT(ISNUMBER($U$117)),ISERROR($U$117)),1,IF(AND(LEN($U$117)>0,ABS((1-($U$117*-1.06318295001984+ 0.321560502052307)/ 0.321560502052307))<0.00005),0,1)) -> 1 | L117: =L103 -> C | M117: [000's]
A118: =IF(OR(NOT(ISNUMBER($O$118)),ISERROR($O$118)),1,IF(AND(LEN($O$118)>0,ABS((1-($O$118* 1.57491981983185+-0.271506071090698)/-0.271506071090698))<0.00005),0,1)) -> 1 | B118: =IF(OR(NOT(ISNUMBER($P$118)),ISERROR($P$118)),1,IF(AND(LEN($P$118)>0,ABS((1-($P$118* 4.66598927974701+-0.163548588752747)/-0.163548588752747))<0.00005),0,1)) -> 1 | C118: =IF(OR(NOT(ISNUMBER($Q$118)),ISERROR($Q$118)),1,IF(AND(LEN($Q$118)>0,ABS((1-($Q$118* 1.61891520023346+ 0.318078517913818)/ 0.318078517913818))<0.00005),0,1)) -> 1 | D118: =IF(OR(NOT(ISNUMBER($R$118)),ISERROR($R$118)),1,IF(AND(LEN($R$118)>0,ABS((1-($R$118* 1.39495551586151+-0.257189631462097)/-0.257189631462097))<0.00005),0,1)) -> 1 | E118: =IF(OR(NOT(ISNUMBER($S$118)),ISERROR($S$118)),1,IF(AND(LEN($S$118)>0,ABS((1-($S$118*-0.823318362236022+-0.123811960220337)/-0.123811960220337))<0.00005),0,1)) -> 1 | F118: =IF(OR(NOT(ISNUMBER($T$118)),ISERROR($T$118)),1,IF(AND(LEN($T$118)>0,ABS((1-($T$118* 2.38848626613617+ 0.373706221580505)/ 0.373706221580505))<0.00005),0,1)) -> 1 | G118: =IF(OR(NOT(ISNUMBER($U$118)),ISERROR($U$118)),1,IF(AND(LEN($U$118)>0,ABS((1-($U$118* 4.8811537027359+ 0.0254421234130859)/ 0.0254421234130859))<0.00005),0,1)) -> 1 | L118: =L104 -> D | M118: [000's]
A119: =IF(OR(NOT(ISNUMBER($O$119)),ISERROR($O$119)),1,IF(AND(LEN($O$119)>0,ABS((1-($O$119* 4.59299266338348+-0.042284369468689)/-0.042284369468689))<0.00005),0,1)) -> 1 | B119: =IF(OR(NOT(ISNUMBER($P$119)),ISERROR($P$119)),1,IF(AND(LEN($P$119)>0,ABS((1-($P$119* 2.50003159046173+ 0.448030710220337)/ 0.448030710220337))<0.00005),0,1)) -> 1 | C119: =IF(OR(NOT(ISNUMBER($Q$119)),ISERROR($Q$119)),1,IF(AND(LEN($Q$119)>0,ABS((1-($Q$119* 3.16777646541595+ 0.25954806804657)/-94.7737458944321))<0.00005),0,1)) -> 1 | D119: =IF(OR(NOT(ISNUMBER($R$119)),ISERROR($R$119)),1,IF(AND(LEN($R$119)>0,ABS((1-($R$119*-0.282968878746033+-0.348660945892334)/-0.348660945892334))<0.00005),0,1)) -> 1 | E119: =IF(OR(NOT(ISNUMBER($S$119)),ISERROR($S$119)),1,IF(AND(LEN($S$119)>0,ABS((1-($S$119*-1.48371994495392+ 0.470670819282532)/ 0.470670819282532))<0.00005),0,1)) -> 1 | F119: =IF(OR(NOT(ISNUMBER($T$119)),ISERROR($T$119)),1,IF(AND(LEN($T$119)>0,ABS((1-($T$119* 1.41313374042511+-0.0164272785186768)/-0.0164272785186768))<0.00005),0,1)) -> 1 | G119: =IF(OR(NOT(ISNUMBER($U$119)),ISERROR($U$119)),1,IF(AND(LEN($U$119)>0,ABS((1-($U$119*-4.18266355991364+ 0.349933981895447)/ 0.349933981895447))<0.00005),0,1)) -> 1 | L119: =L105 -> E | M119: [000's]
W121: Index
A122: =SUM($A$123:$I$144) -> 46 | K122: =K108+1 -> 7 | L122: Calculate net cash flow and NPV
L124: ="Calculate net cash flows and NPVs of the cash flows. The terminal value in column " & CHAR(CODE("A") + COLUMN(V:V)-1) & " should represent the value at the beginning of period " & V133 & " of cash flows in period " & V133 & " and continuing to perpetuity. Bear in mind that cashflows grow at individual rates." -> Calculate net cash flows and NPVs of the cash flows. The terminal value in column V should represent the value at the beginning of period 8 of cash flows in period 8 and continuing to perpetuity. Bear in mind that cashflows grow at individual rates.
L128: Discount rate (per quarter): | O128: 0.05
L130: Net cash flow & NPV
N131: NPV | O131: Net cash flow | V131: Terminal value
L133: Period | M133: [qtr] | O133: =O45 -> 1 | P133: 2 | Q133: 3 | R133: 4 | S133: 5 | T133: 6 | U133: 7 | V133: =U133+1 -> 8
A134: =IF(OR(NOT(ISNUMBER($N$134)),ISERROR($N$134)),1,IF(AND(LEN($N$134)>0,ABS((1-($N$134*-4.55216348171234+-0.100617408752441)/-1625.1873717437))<0.00005),0,1)) -> 1 | B134: =IF(OR(NOT(ISNUMBER($O$134)),ISERROR($O$134)),1,IF(AND(LEN($O$134)>0,ABS((1-($O$134*-2.9435807466507+-0.385804533958435)/ 470.587114930153))<0.00005),0,1)) -> 1 | C134: =IF(OR(NOT(ISNUMBER($P$134)),ISERROR($P$134)),1,IF(AND(LEN($P$134)>0,ABS((1-($P$134* 0.940402150154114+ 0.475489854812622)/-55.9486391544342))<0.00005),0,1)) -> 1 | D134: =IF(OR(NOT(ISNUMBER($Q$134)),ISERROR($Q$134)),1,IF(AND(LEN($Q$134)>0,ABS((1-($Q$134*-4.4431072473526+-0.421054005622864)/-133.714271426201))<0.00005),0,1)) -> 1 | E134: =IF(OR(NOT(ISNUMBER($R$134)),ISERROR($R$134)),1,IF(AND(LEN($R$134)>0,ABS((1-($R$134*-0.948891043663025+ 0.176311016082764)/-28.5750876069069))<0.00005),0,1)) -> 1 | F134: =IF(OR(NOT(ISNUMBER($S$134)),ISERROR($S$134)),1,IF(AND(LEN($S$134)>0,ABS((1-($S$134* 3.01126182079315+ 0.0489341020584106)/ 92.2025796037913))<0.00005),0,1)) -> 1 | G134: =IF(OR(NOT(ISNUMBER($T$134)),ISERROR($T$134)),1,IF(AND(LEN($T$134)>0,ABS((1-($T$134*-3.73749911785126+-0.130417108535767)/-115.652889467174))<0.00005),0,1)) -> 1 | H134: =IF(OR(NOT(ISNUMBER($U$134)),ISERROR($U$134)),1,IF(AND(LEN($U$134)>0,ABS((1-($U$134*-0.98757803440094+ 0.458791136741638)/-30.3715387468244))<0.00005),0,1)) -> 1 | I134: =IF(OR(NOT(ISNUMBER($V$134)),ISERROR($V$134)),1,IF(AND(LEN($V$134)>0,ABS((1-($V$134* 0.160637497901917+ 0.0919876098632813)/ 105.402803027917))<0.00005),0,1)) -> 1 | L134: =L115 -> A | M134: [000's]
A135: =IF(OR(NOT(ISNUMBER($N$135)),ISERROR($N$135)),1,IF(AND(LEN($N$135)>0,ABS((1-($N$135* 3.08490931987762+ 0.263656258583069)/ 1743.87202394604))<0.00005),0,1)) -> 1 | B135: =IF(OR(NOT(ISNUMBER($O$135)),ISERROR($O$135)),1,IF(AND(LEN($O$135)>0,ABS((1-($O$135*-2.283656001091+-0.435222387313843)/-68.9449024200439))<0.00005),0,1)) -> 1 | C135: =IF(OR(NOT(ISNUMBER($P$135)),ISERROR($P$135)),1,IF(AND(LEN($P$135)>0,ABS((1-($P$135*-0.783849358558655+-0.420198559761047)/-24.0532567203045))<0.00005),0,1)) -> 1 | D135: =IF(OR(NOT(ISNUMBER($Q$135)),ISERROR($Q$135)),1,IF(AND(LEN($Q$135)>0,ABS((1-($Q$135*-3.93353879451752+-0.0405993461608887)/ 196.636340379715))<0.00005),0,1)) -> 1 | E135: =IF(OR(NOT(ISNUMBER($R$135)),ISERROR($R$135)),1,IF(AND(LEN($R$135)>0,ABS((1-($R$135* 2.88771331310272+ 0.0752564668655396)/-144.310409188271))<0.00005),0,1)) -> 1 | F135: =IF(OR(NOT(ISNUMBER($S$135)),ISERROR($S$135)),1,IF(AND(LEN($S$135)>0,ABS((1-($S$135*-4.20490443706512+-0.0868752002716064)/ 210.158346652985))<0.00005),0,1)) -> 1 | G135: =IF(OR(NOT(ISNUMBER($T$135)),ISERROR($T$135)),1,IF(AND(LEN($T$135)>0,ABS((1-($T$135* 0.606555342674255+ 0.11043393611908)/ 24.3726476430893))<0.00005),0,1)) -> 1 | H135: =IF(OR(NOT(ISNUMBER($U$135)),ISERROR($U$135)),1,IF(AND(LEN($U$135)>0,ABS((1-($U$135*-3.28513085842133+ 0.294663429260254)/-132.424623250961))<0.00005),0,1)) -> 1 | I135: =IF(OR(NOT(ISNUMBER($V$135)),ISERROR($V$135)),1,IF(AND(LEN($V$135)>0,ABS((1-($V$135* 1.93627536296844+ 0.128754258155823)/ 1642.86477220058))<0.00005),0,1)) -> 1 | L135: =L116 -> B | M135: [000's]
A136: =IF(OR(NOT(ISNUMBER($N$136)),ISERROR($N$136)),1,IF(AND(LEN($N$136)>0,ABS((1-($N$136*-3.85183036327362+-0.280199766159058)/-3225.63389453982))<0.00005),0,1)) -> 1 | B136: =IF(OR(NOT(ISNUMBER($O$136)),ISERROR($O$136)),1,IF(AND(LEN($O$136)>0,ABS((1-($O$136* 4.02836263179779+ 0.297270655632019)/ 121.148149609566))<0.00005),0,1)) -> 1 | C136: =IF(OR(NOT(ISNUMBER($P$136)),ISERROR($P$136)),1,IF(AND(LEN($P$136)>0,ABS((1-($P$136*-0.291599631309509+ 0.317014217376709)/-8.45284469425678))<0.00005),0,1)) -> 1 | D136: =IF(OR(NOT(ISNUMBER($Q$136)),ISERROR($Q$136)),1,IF(AND(LEN($Q$136)>0,ABS((1-($Q$136*-1.34655296802521+ 0.397294163703918)/-40.2015303009376))<0.00005),0,1)) -> 1 | E136: =IF(OR(NOT(ISNUMBER($R$136)),ISERROR($R$136)),1,IF(AND(LEN($R$136)>0,ABS((1-($R$136* 4.58123028278351+-0.256895303726196)/ 138.213369082891))<0.00005),0,1)) -> 1 | F136: =IF(OR(NOT(ISNUMBER($S$136)),ISERROR($S$136)),1,IF(AND(LEN($S$136)>0,ABS((1-($S$136* 1.73254907131195+-0.034981369972229)/ 52.4632078590449))<0.00005),0,1)) -> 1 | G136: =IF(OR(NOT(ISNUMBER($T$136)),ISERROR($T$136)),1,IF(AND(LEN($T$136)>0,ABS((1-($T$136*-4.69415605068207+ 0.448816299438477)/-210.788205981255))<0.00005),0,1)) -> 1 | H136: =IF(OR(NOT(ISNUMBER($U$136)),ISERROR($U$136)),1,IF(AND(LEN($U$136)>0,ABS((1-($U$136*-4.63167011737823+-0.317854285240173)/-209.264072455466))<0.00005),0,1)) -> 1 | I136: =IF(OR(NOT(ISNUMBER($V$136)),ISERROR($V$136)),1,IF(AND(LEN($V$136)>0,ABS((1-($V$136* 2.05619156360626+ 0.194463968276978)/ 1948.15324414521))<0.00005),0,1)) -> 1 | L136: =L117 -> C | M136: [000's]
A137: =IF(OR(NOT(ISNUMBER($N$137)),ISERROR($N$137)),1,IF(AND(LEN($N$137)>0,ABS((1-($N$137* 2.37634122371674+ 0.0165098905563354)/ 1039.61426021189))<0.00005),0,1)) -> 1 | B137: =IF(OR(NOT(ISNUMBER($O$137)),ISERROR($O$137)),1,IF(AND(LEN($O$137)>0,ABS((1-($O$137* 1.422238945961+-0.184442043304443)/ 28.2603368759155))<0.00005),0,1)) -> 1 | C137: =IF(OR(NOT(ISNUMBER($P$137)),ISERROR($P$137)),1,IF(AND(LEN($P$137)>0,ABS((1-($P$137* 3.31627547740936+ 0.112703442573547)/ 66.8361660480499))<0.00005),0,1)) -> 1 | D137: =IF(OR(NOT(ISNUMBER($Q$137)),ISERROR($Q$137)),1,IF(AND(LEN($Q$137)>0,ABS((1-($Q$137*-0.308782458305359+ 0.238428831100464)/-6.01155044836998))<0.00005),0,1)) -> 1 | E137: =IF(OR(NOT(ISNUMBER($R$137)),ISERROR($R$137)),1,IF(AND(LEN($R$137)>0,ABS((1-($R$137*-3.97678434848785+-0.0672985315322876)/ 238.539762377739))<0.00005),0,1)) -> 1 | F137: =IF(OR(NOT(ISNUMBER($S$137)),ISERROR($S$137)),1,IF(AND(LEN($S$137)>0,ABS((1-($S$137*-1.37112557888031+-0.254147529602051)/ 82.0133872032166))<0.00005),0,1)) -> 1 | G137: =IF(OR(NOT(ISNUMBER($T$137)),ISERROR($T$137)),1,IF(AND(LEN($T$137)>0,ABS((1-($T$137*-2.36111462116241+-0.353513121604919)/-71.1869517564774))<0.00005),0,1)) -> 1 | H137: =IF(OR(NOT(ISNUMBER($U$137)),ISERROR($U$137)),1,IF(AND(LEN($U$137)>0,ABS((1-($U$137* 3.76072227954865+ 0.492675065994263)/ 115.570776820183))<0.00005),0,1)) -> 1 | I137: =IF(OR(NOT(ISNUMBER($V$137)),ISERROR($V$137)),1,IF(AND(LEN($V$137)>0,ABS((1-($V$137*-0.857101082801819+ 0.272675395011902)/-550.500480413437))<0.00005),0,1)) -> 1 | L137: =L118 -> D | M137: [000's]
A138: =IF(OR(NOT(ISNUMBER($N$138)),ISERROR($N$138)),1,IF(AND(LEN($N$138)>0,ABS((1-($N$138*-4.84671056270599+ 0.271438121795654)/-2962.65045171551))<0.00005),0,1)) -> 1 | B138: =IF(OR(NOT(ISNUMBER($O$138)),ISERROR($O$138)),1,IF(AND(LEN($O$138)>0,ABS((1-($O$138* 2.38401114940643+-0.430859446525574)/ 53.2093914151192))<0.00005),0,1)) -> 1 | C138: =IF(OR(NOT(ISNUMBER($P$138)),ISERROR($P$138)),1,IF(AND(LEN($P$138)>0,ABS((1-($P$138* 0.695369839668274+-0.471996545791626)/ 15.2911685071886))<0.00005),0,1)) -> 1 | D138: =IF(OR(NOT(ISNUMBER($Q$138)),ISERROR($Q$138)),1,IF(AND(LEN($Q$138)>0,ABS((1-($Q$138*-0.388632416725159+ 0.173638701438904)/ 20.5768405795097))<0.00005),0,1)) -> 1 | E138: =IF(OR(NOT(ISNUMBER($R$138)),ISERROR($R$138)),1,IF(AND(LEN($R$138)>0,ABS((1-($R$138* 1.87927305698395+-0.372821807861328)/-42.6564655900002))<0.00005),0,1)) -> 1 | F138: =IF(OR(NOT(ISNUMBER($S$138)),ISERROR($S$138)),1,IF(AND(LEN($S$138)>0,ABS((1-($S$138*-4.49424564838409+-0.00556600093841553)/-168.539777815342))<0.00005),0,1)) -> 1 | G138: =IF(OR(NOT(ISNUMBER($T$138)),ISERROR($T$138)),1,IF(AND(LEN($T$138)>0,ABS((1-($T$138* 2.08207428455353+ 0.368339776992798)/ 79.5392144471406))<0.00005),0,1)) -> 1 | H138: =IF(OR(NOT(ISNUMBER($U$138)),ISERROR($U$138)),1,IF(AND(LEN($U$138)>0,ABS((1-($U$138* 1.71084821224213+-0.149076581001282)/ 65.8166967352927))<0.00005),0,1)) -> 1 | I138: =IF(OR(NOT(ISNUMBER($V$138)),ISERROR($V$138)),1,IF(AND(LEN($V$138)>0,ABS((1-($V$138*-2.65313565731049+-0.248939037322998)/-2148.50442190173))<0.00005),0,1)) -> 1 | L138: =L119 -> E | M138: [000's]
A141: =IF(OR(NOT(ISNUMBER($N$141)),ISERROR($N$141)),1,IF(AND(LEN($N$141)>0,ABS((1-($N$141* 3.864466547966+ 0.364261746406555)/ 10853.1723831746))<0.00005),0,1)) -> 1 | L141: Total | M141: [000's]
N144: Copyright (c) 2020 Tykoh Group Pty Ltd. All rights reserved. | W144: Index
N145: www.tykoh.com

Sheet Lookups
L1: Click here to see what your answer should look like.
U2: Models | V2: Lookups
L3: Financial models sometimes have to do "lookups" of data and assumptions. The following is such a model.
L5: A model is required to forecast business volumes and associated resourcing costs. Resources comprise two classes of employees - "A" and "B". When business volumes increase staffing also needs to increase to support the greater volume.
L8: ="The table below shows the number of ""A"" and ""B"" staff required for various volumes of business. For example, if business volumes are between " &O12 & " (in cell " & ADDRESS(ROW(O13),COLUMN(O12),4) & ") and " & O13 & " (in cell " & ADDRESS(ROW(O12),COLUMN(O12),4)& ") then " & O14 & " ""A"" staff and "&O15& " ""B"" staff are required to support that level of business." -> The table below shows the number of "A" and "B" staff required for various volumes of business. For example, if business volumes are between 10 (in cell O13) and 12 (in cell O12) then 5 "A" staff and 7 "B" staff are required to support that level of business.
L11: Staff resourcing requirements
L12: For business volume from: | M12: $m | N12: 0 | O12: =N13 -> 10 | P12: =O13 -> 12 | Q12: =P13 -> 20
L13: to: | M13: $m | N13: 10 | O13: 12 | P13: 20 | Q13: 40
L14: Number "A" staff required: | M14: [#] | N14: 4 | O14: 5 | P14: 6 | Q14: 6.5
L15: Number "B" staff required: | M15: [#] | N15: 6 | O15: 7 | P15: 9 | Q15: 11
L17: The table below shows the initial costs per year of each class of staff.
L19: Initial per-staff yearly costs
L20: "A" staff initial cost per year per person | M20: [$ 000's] | N20: 80
L21: "B" staff initial cost per year per person | M21: [$ 000's] | N21: 90
L23: The table below shows the percentage growth per year in per-staff costs.
L25: Growth rate in per-staff costs
L26: "A" staff | M26: [% / yr] | N26: 0.1
L27: "B" staff | M27: [% / yr] | N27: 0.05
L29: The table below shows assumptions about the yearly rate of growth in business volume.
L31: Business growth assumptions
L32: Year | M32: [yr] | N32: 2013 | O32: =N32+1 -> 2014 | P32: =O32+1 -> 2015 | Q32: =P32+1 -> 2016 | R32: =Q32+1 -> 2017
L33: Growth | M33: [%] | N33: 0.1 | O33: 0.15 | P33: 0.2 | Q33: 0.25 | R33: 0.3
L35: ="The business volume in the prior period (i.e. the period before the first period to be modelled) is given in cell " & ADDRESS(ROW(N38),COLUMN(N38),4) & " below." -> The business volume in the prior period (i.e. the period before the first period to be modelled) is given in cell N38 below.
L37: Business volume in prior period
L38: Business volume in prior period | M38: [$m] | N38: 10
L40: ="The intervals (in months) between forecast dates is listed below in cell " & ADDRESS(ROW(N42),COLUMN(N42),4)&"." -> The intervals (in months) between forecast dates is listed below in cell N42.
L42: Date intervals | M42: [months] | N42: 6
L44: The model below is required to forecast business volumes and staff numbers and costs.
A46: =SUM($A$47:$I$56) -> 35 | K46: 1 | L46: Dates and events
L48: In the section below calculate period start and end dates. Also generate "flags" (0 or 1) that indicate whether a period is the first in the year or the last in the year.
A51: =IF(OR(NOT(ISNUMBER($O$51)),ISERROR($O$51)),1,IF(AND(LEN($O$51)>0,ABS((1-($O$51*-0.336000323295593+-0.00926518440246582)/-13929.2386677265))<0.000005),0,1)) -> 1 | B51: =IF(OR(NOT(ISNUMBER($P$51)),ISERROR($P$51)),1,IF(AND(LEN($P$51)>0,ABS((1-($P$51* 1.12981736660004+ 0.0979865789413452)/ 47045.6931318045))<0.000005),0,1)) -> 1 | C51: =IF(OR(NOT(ISNUMBER($Q$51)),ISERROR($Q$51)),1,IF(AND(LEN($Q$51)>0,ABS((1-($Q$51* 2.75235235691071+-0.215800285339355)/ 115105.912118077))<0.000005),0,1)) -> 1 | D51: =IF(OR(NOT(ISNUMBER($R$51)),ISERROR($R$51)),1,IF(AND(LEN($R$51)>0,ABS((1-($R$51*-1.77325069904327+-0.0513566732406616)/-74485.446969986))<0.000005),0,1)) -> 1 | E51: =IF(OR(NOT(ISNUMBER($S$51)),ISERROR($S$51)),1,IF(AND(LEN($S$51)>0,ABS((1-($S$51* 0.340560078620911+-0.174635648727417)/ 14366.692841053))<0.000005),0,1)) -> 1 | F51: =IF(OR(NOT(ISNUMBER($T$51)),ISERROR($T$51)),1,IF(AND(LEN($T$51)>0,ABS((1-($T$51*-0.0369983911514282+-0.213589787483215)/-1567.8354228735))<0.000005),0,1)) -> 1 | G51: =IF(OR(NOT(ISNUMBER($U$51)),ISERROR($U$51)),1,IF(AND(LEN($U$51)>0,ABS((1-($U$51*-3.05172383785248+-0.4291672706604)/-129857.381915569))<0.000005),0,1)) -> 1 | H51: =IF(OR(NOT(ISNUMBER($V$51)),ISERROR($V$51)),1,IF(AND(LEN($V$51)>0,ABS((1-($V$51*-1.73454582691193+ 0.345723271369934)/-74127.2047356367))<0.000005),0,1)) -> 1 | L51: Period starts | M51: [Date] | N51: 2013-01-01
A52: =IF(OR(NOT(ISNUMBER($N$52)),ISERROR($N$52)),1,IF(AND(LEN($N$52)>0,ABS((1-($N$52* 1.16741955280304+ 0.255529165267944)/ 48395.6330906153))<0.000005),0,1)) -> 1 | B52: =IF(OR(NOT(ISNUMBER($O$52)),ISERROR($O$52)),1,IF(AND(LEN($O$52)>0,ABS((1-($O$52* 1.71137750148773+ 0.365901350975037)/ 71260.4136857986))<0.000005),0,1)) -> 1 | C52: =IF(OR(NOT(ISNUMBER($P$52)),ISERROR($P$52)),1,IF(AND(LEN($P$52)>0,ABS((1-($P$52* 1.44342482089996+ 0.158323287963867)/ 60364.1843333244))<0.000005),0,1)) -> 1 | D52: =IF(OR(NOT(ISNUMBER($Q$52)),ISERROR($Q$52)),1,IF(AND(LEN($Q$52)>0,ABS((1-($Q$52*-2.44031727313995+-0.0182288885116577)/-102503.104969859))<0.000005),0,1)) -> 1 | E52: =IF(OR(NOT(ISNUMBER($R$52)),ISERROR($R$52)),1,IF(AND(LEN($R$52)>0,ABS((1-($R$52* 4.35649216175079+ 0.117655038833618)/ 183778.739498496))<0.000005),0,1)) -> 1 | F52: =IF(OR(NOT(ISNUMBER($S$52)),ISERROR($S$52)),1,IF(AND(LEN($S$52)>0,ABS((1-($S$52*-3.71782839298248+ 0.364292025566101)/-157520.306890249))<0.000005),0,1)) -> 1 | G52: =IF(OR(NOT(ISNUMBER($T$52)),ISERROR($T$52)),1,IF(AND(LEN($T$52)>0,ABS((1-($T$52*-4.59716260433197+ 0.297159671783447)/-195613.568817258))<0.000005),0,1)) -> 1 | H52: =IF(OR(NOT(ISNUMBER($U$52)),ISERROR($U$52)),1,IF(AND(LEN($U$52)>0,ABS((1-($U$52*-1.40521347522736+-0.388818621635437)/-60052.1866824627))<0.000005),0,1)) -> 1 | I52: =IF(OR(NOT(ISNUMBER($V$52)),ISERROR($V$52)),1,IF(AND(LEN($V$52)>0,ABS((1-($V$52* 2.27594196796417+ 0.201292753219604)/ 97674.5267899036))<0.000005),0,1)) -> 1 | L52: Period ends | M52: [Date]
A54: =IF(OR(NOT(ISNUMBER($N$54)),ISERROR($N$54)),1,IF(AND(LEN($N$54)>0,ABS((1-($N$54* 4.98886048793793+-0.112460732460022)/ 4.87639975547791))<0.00005),0,1)) -> 1 | B54: =IF(OR(NOT(ISNUMBER($O$54)),ISERROR($O$54)),1,IF(AND(LEN($O$54)>0,ABS((1-($O$54* 0.647802948951721+-0.0590448379516602)/-0.0590448379516602))<0.00005),0,1)) -> 1 | C54: =IF(OR(NOT(ISNUMBER($P$54)),ISERROR($P$54)),1,IF(AND(LEN($P$54)>0,ABS((1-($P$54*-2.23763287067413+-0.183526396751404)/-2.42115926742554))<0.00005),0,1)) -> 1 | D54: =IF(OR(NOT(ISNUMBER($Q$54)),ISERROR($Q$54)),1,IF(AND(LEN($Q$54)>0,ABS((1-($Q$54* 2.45018303394318+-0.250881910324097)/-0.250881910324097))<0.00005),0,1)) -> 1 | E54: =IF(OR(NOT(ISNUMBER($R$54)),ISERROR($R$54)),1,IF(AND(LEN($R$54)>0,ABS((1-($R$54*-4.44882929325104+ 0.119725108146667)/-4.32910418510437))<0.00005),0,1)) -> 1 | F54: =IF(OR(NOT(ISNUMBER($S$54)),ISERROR($S$54)),1,IF(AND(LEN($S$54)>0,ABS((1-($S$54*-3.34413945674896+-0.253551959991455)/-0.253551959991455))<0.00005),0,1)) -> 1 | G54: =IF(OR(NOT(ISNUMBER($T$54)),ISERROR($T$54)),1,IF(AND(LEN($T$54)>0,ABS((1-($T$54* 0.360276103019714+-0.491707682609558)/-0.131431579589844))<0.00005),0,1)) -> 1 | H54: =IF(OR(NOT(ISNUMBER($U$54)),ISERROR($U$54)),1,IF(AND(LEN($U$54)>0,ABS((1-($U$54* 2.55987942218781+-0.0430681705474854)/-0.0430681705474854))<0.00005),0,1)) -> 1 | I54: =IF(OR(NOT(ISNUMBER($V$54)),ISERROR($V$54)),1,IF(AND(LEN($V$54)>0,ABS((1-($V$54*-2.90492117404938+-0.176943421363831)/-3.08186459541321))<0.00005),0,1)) -> 1 | L54: Is first period in year | M54: [0/1]
A55: =IF(OR(NOT(ISNUMBER($N$55)),ISERROR($N$55)),1,IF(AND(LEN($N$55)>0,ABS((1-($N$55*-4.43920075893402+-0.426498413085938)/-0.426498413085938))<0.00005),0,1)) -> 1 | B55: =IF(OR(NOT(ISNUMBER($O$55)),ISERROR($O$55)),1,IF(AND(LEN($O$55)>0,ABS((1-($O$55*-4.40738499164581+ 0.4254070520401)/-3.98197793960571))<0.00005),0,1)) -> 1 | C55: =IF(OR(NOT(ISNUMBER($P$55)),ISERROR($P$55)),1,IF(AND(LEN($P$55)>0,ABS((1-($P$55*-4.55805480480194+ 0.473659753799438)/ 0.473659753799438))<0.00005),0,1)) -> 1 | D55: =IF(OR(NOT(ISNUMBER($Q$55)),ISERROR($Q$55)),1,IF(AND(LEN($Q$55)>0,ABS((1-($Q$55*-4.84718859195709+-0.162134289741516)/-5.00932288169861))<0.00005),0,1)) -> 1 | E55: =IF(OR(NOT(ISNUMBER($R$55)),ISERROR($R$55)),1,IF(AND(LEN($R$55)>0,ABS((1-($R$55*-2.84734189510345+-0.0148959159851074)/-0.0148959159851074))<0.00005),0,1)) -> 1 | F55: =IF(OR(NOT(ISNUMBER($S$55)),ISERROR($S$55)),1,IF(AND(LEN($S$55)>0,ABS((1-($S$55* 1.56973540782928+-0.365287661552429)/ 1.20444774627686))<0.00005),0,1)) -> 1 | G55: =IF(OR(NOT(ISNUMBER($T$55)),ISERROR($T$55)),1,IF(AND(LEN($T$55)>0,ABS((1-($T$55* 4.08954441547394+-0.0986473560333252)/-0.0986473560333252))<0.00005),0,1)) -> 1 | H55: =IF(OR(NOT(ISNUMBER($U$55)),ISERROR($U$55)),1,IF(AND(LEN($U$55)>0,ABS((1-($U$55*-3.33715498447418+-0.417390465736389)/-3.75454545021057))<0.00005),0,1)) -> 1 | I55: =IF(OR(NOT(ISNUMBER($V$55)),ISERROR($V$55)),1,IF(AND(LEN($V$55)>0,ABS((1-($V$55* 3.87772619724274+-0.252631187438965)/-0.252631187438965))<0.00005),0,1)) -> 1 | L55: Is last period in year | M55: [0/1]
W56: Index
A57: =SUM($A$58:$I$64) -> 27 | K57: 2 | L57: Growth and volume
L59: In the section below calculate yearly business growth and per-period growth. Also calculate business volumes.
A61: =IF(OR(NOT(ISNUMBER($N$61)),ISERROR($N$61)),1,IF(AND(LEN($N$61)>0,ABS((1-($N$61* 0.308238863945007+ 0.031227707862854)/ 0.0620515942573547))<0.00005),0,1)) -> 1 | B61: =IF(OR(NOT(ISNUMBER($O$61)),ISERROR($O$61)),1,IF(AND(LEN($O$61)>0,ABS((1-($O$61*-3.34790885448456+ 0.295186281204224)/-0.0396046042442322))<0.00005),0,1)) -> 1 | C61: =IF(OR(NOT(ISNUMBER($P$61)),ISERROR($P$61)),1,IF(AND(LEN($P$61)>0,ABS((1-($P$61* 4.96990621089935+-0.44612991809845)/ 0.299356013536453))<0.00005),0,1)) -> 1 | D61: =IF(OR(NOT(ISNUMBER($Q$61)),ISERROR($Q$61)),1,IF(AND(LEN($Q$61)>0,ABS((1-($Q$61*-4.16145741939545+ 0.32953405380249)/-0.294684559106827))<0.00005),0,1)) -> 1 | E61: =IF(OR(NOT(ISNUMBER($R$61)),ISERROR($R$61)),1,IF(AND(LEN($R$61)>0,ABS((1-($R$61* 2.73097693920136+-0.16190230846405)/ 0.384293079376221))<0.00005),0,1)) -> 1 | F61: =IF(OR(NOT(ISNUMBER($S$61)),ISERROR($S$61)),1,IF(AND(LEN($S$61)>0,ABS((1-($S$61* 1.43524944782257+-0.336538553237915)/-0.0494886636734009))<0.00005),0,1)) -> 1 | G61: =IF(OR(NOT(ISNUMBER($T$61)),ISERROR($T$61)),1,IF(AND(LEN($T$61)>0,ABS((1-($T$61* 4.82497155666351+-0.173645615577698)/ 1.03259727358818))<0.00005),0,1)) -> 1 | H61: =IF(OR(NOT(ISNUMBER($U$61)),ISERROR($U$61)),1,IF(AND(LEN($U$61)>0,ABS((1-($U$61*-4.20610368251801+ 0.403963088989258)/-0.647562831640244))<0.00005),0,1)) -> 1 | I61: =IF(OR(NOT(ISNUMBER($V$61)),ISERROR($V$61)),1,IF(AND(LEN($V$61)>0,ABS((1-($V$61* 3.66705119609833+ 0.106591820716858)/ 1.20670717954636))<0.00005),0,1)) -> 1 | L61: Yearly business growth | M61: [%]
A62: =IF(OR(NOT(ISNUMBER($N$62)),ISERROR($N$62)),1,IF(AND(LEN($N$62)>0,ABS((1-($N$62* 1.90093338489532+ 0.467603921890259)/ 0.560386290855187))<0.00005),0,1)) -> 1 | B62: =IF(OR(NOT(ISNUMBER($O$62)),ISERROR($O$62)),1,IF(AND(LEN($O$62)>0,ABS((1-($O$62*-2.6147323846817+-0.447105526924133)/-0.574727602893641))<0.00005),0,1)) -> 1 | C62: =IF(OR(NOT(ISNUMBER($P$62)),ISERROR($P$62)),1,IF(AND(LEN($P$62)>0,ABS((1-($P$62* 4.15882647037506+ 0.346144199371338)/ 0.64716226129739))<0.00005),0,1)) -> 1 | D62: =IF(OR(NOT(ISNUMBER($Q$62)),ISERROR($Q$62)),1,IF(AND(LEN($Q$62)>0,ABS((1-($Q$62*-3.14818680286407+ 0.216104626655579)/-0.0117628010262148))<0.00005),0,1)) -> 1 | E62: =IF(OR(NOT(ISNUMBER($R$62)),ISERROR($R$62)),1,IF(AND(LEN($R$62)>0,ABS((1-($R$62* 1.6673070192337+ 0.122164487838745)/ 0.28130079804704))<0.00005),0,1)) -> 1 | F62: =IF(OR(NOT(ISNUMBER($S$62)),ISERROR($S$62)),1,IF(AND(LEN($S$62)>0,ABS((1-($S$62*-4.78572905063629+ 0.464447379112244)/ 0.00767291946597515))<0.00005),0,1)) -> 1 | G62: =IF(OR(NOT(ISNUMBER($T$62)),ISERROR($T$62)),1,IF(AND(LEN($T$62)>0,ABS((1-($T$62* 4.00462210178375+-0.26530933380127)/ 0.207372186308254))<0.00005),0,1)) -> 1 | H62: =IF(OR(NOT(ISNUMBER($U$62)),ISERROR($U$62)),1,IF(AND(LEN($U$62)>0,ABS((1-($U$62*-0.0731354951858521+ 0.374155640602112)/ 0.365523166386127))<0.00005),0,1)) -> 1 | I62: =IF(OR(NOT(ISNUMBER($V$62)),ISERROR($V$62)),1,IF(AND(LEN($V$62)>0,ABS((1-($V$62*-0.491215586662292+ 0.494818925857544)/ 0.425962572181835))<0.00005),0,1)) -> 1 | L62: Growth this period | M62: [%]
A63: =IF(OR(NOT(ISNUMBER($N$63)),ISERROR($N$63)),1,IF(AND(LEN($N$63)>0,ABS((1-($N$63*-2.71829187870026+ 0.370095133781433)/-28.1395906091175))<0.00005),0,1)) -> 1 | B63: =IF(OR(NOT(ISNUMBER($O$63)),ISERROR($O$63)),1,IF(AND(LEN($O$63)>0,ABS((1-($O$63*-3.94117772579193+-0.148659229278564)/-43.5016142129898))<0.00005),0,1)) -> 1 | C63: =IF(OR(NOT(ISNUMBER($P$63)),ISERROR($P$63)),1,IF(AND(LEN($P$63)>0,ABS((1-($P$63*-0.559943318367004+ 0.116389393806458)/-6.48880604069229))<0.00005),0,1)) -> 1 | D63: =IF(OR(NOT(ISNUMBER($Q$63)),ISERROR($Q$63)),1,IF(AND(LEN($Q$63)>0,ABS((1-($Q$63* 4.35602962970734+ 0.406368017196655)/ 55.5101428329945))<0.00005),0,1)) -> 1 | E63: =IF(OR(NOT(ISNUMBER($R$63)),ISERROR($R$63)),1,IF(AND(LEN($R$63)>0,ABS((1-($R$63* 3.9635556936264+-0.342955231666565)/ 54.581544959912))<0.00005),0,1)) -> 1 | F63: =IF(OR(NOT(ISNUMBER($S$63)),ISERROR($S$63)),1,IF(AND(LEN($S$63)>0,ABS((1-($S$63* 3.70521605014801+ 0.180957794189453)/ 56.4261374354363))<0.00005),0,1)) -> 1 | G63: =IF(OR(NOT(ISNUMBER($T$63)),ISERROR($T$63)),1,IF(AND(LEN($T$63)>0,ABS((1-($T$63*-4.15450870990753+-0.193424582481384)/-70.702732495955))<0.00005),0,1)) -> 1 | H63: =IF(OR(NOT(ISNUMBER($U$63)),ISERROR($U$63)),1,IF(AND(LEN($U$63)>0,ABS((1-($U$63* 0.29595673084259+ 0.130737543106079)/ 5.74651651084423))<0.00005),0,1)) -> 1 | I63: =IF(OR(NOT(ISNUMBER($V$63)),ISERROR($V$63)),1,IF(AND(LEN($V$63)>0,ABS((1-($V$63* 2.04204022884369+-0.20937168598175)/ 43.969818845705))<0.00005),0,1)) -> 1 | L63: Business volume | M63: [units]
W64: Index
A65: =SUM($A$66:$I$71) -> 18 | K65: 3 | L65: Resource requirements
L67: Determine the number of staff required to support the business volumes calculated above.
A69: =IF(OR(NOT(ISNUMBER($N$69)),ISERROR($N$69)),1,IF(AND(LEN($N$69)>0,ABS((1-($N$69*-2.01615750789642+-0.0884699821472168)/-10.1692575216293))<0.00005),0,1)) -> 1 | B69: =IF(OR(NOT(ISNUMBER($O$69)),ISERROR($O$69)),1,IF(AND(LEN($O$69)>0,ABS((1-($O$69*-1.49648010730743+ 0.136608242988586)/-7.34579229354858))<0.00005),0,1)) -> 1 | C69: =IF(OR(NOT(ISNUMBER($P$69)),ISERROR($P$69)),1,IF(AND(LEN($P$69)>0,ABS((1-($P$69* 1.57172977924347+-0.105021715164185)/ 7.75362718105316))<0.00005),0,1)) -> 1 | D69: =IF(OR(NOT(ISNUMBER($Q$69)),ISERROR($Q$69)),1,IF(AND(LEN($Q$69)>0,ABS((1-($Q$69*-0.294361710548401+-0.185697197914124)/-1.95186746120453))<0.00005),0,1)) -> 1 | E69: =IF(OR(NOT(ISNUMBER($R$69)),ISERROR($R$69)),1,IF(AND(LEN($R$69)>0,ABS((1-($R$69* 2.59099066257477+ 0.434170722961426)/ 15.98011469841))<0.00005),0,1)) -> 1 | F69: =IF(OR(NOT(ISNUMBER($S$69)),ISERROR($S$69)),1,IF(AND(LEN($S$69)>0,ABS((1-($S$69* 0.680744051933289+-0.37349259853363)/ 3.7109717130661))<0.00005),0,1)) -> 1 | G69: =IF(OR(NOT(ISNUMBER($T$69)),ISERROR($T$69)),1,IF(AND(LEN($T$69)>0,ABS((1-($T$69*-2.41723716259003+ 0.379266023635864)/-14.1241569519043))<0.00005),0,1)) -> 1 | H69: =IF(OR(NOT(ISNUMBER($U$69)),ISERROR($U$69)),1,IF(AND(LEN($U$69)>0,ABS((1-($U$69* 1.54907643795013+-0.150349736213684)/ 9.14410889148712))<0.00005),0,1)) -> 1 | I69: =IF(OR(NOT(ISNUMBER($V$69)),ISERROR($V$69)),1,IF(AND(LEN($V$69)>0,ABS((1-($V$69*-1.12080037593842+-0.156881809234619)/-7.44208425283432))<0.00005),0,1)) -> 1 | L69: Number staff - class A | M69: [#]
A70: =IF(OR(NOT(ISNUMBER($N$70)),ISERROR($N$70)),1,IF(AND(LEN($N$70)>0,ABS((1-($N$70* 4.55001533031464+ 0.124417424201965)/ 31.9745247364044))<0.00005),0,1)) -> 1 | B70: =IF(OR(NOT(ISNUMBER($O$70)),ISERROR($O$70)),1,IF(AND(LEN($O$70)>0,ABS((1-($O$70*-2.1152800321579+ 0.216901540756226)/-14.5900586843491))<0.00005),0,1)) -> 1 | C70: =IF(OR(NOT(ISNUMBER($P$70)),ISERROR($P$70)),1,IF(AND(LEN($P$70)>0,ABS((1-($P$70* 3.57333123683929+-0.403622269630432)/ 24.6096963882446))<0.00005),0,1)) -> 1 | D70: =IF(OR(NOT(ISNUMBER($Q$70)),ISERROR($Q$70)),1,IF(AND(LEN($Q$70)>0,ABS((1-($Q$70* 0.857258439064026+ 0.435735702514648)/ 8.15106165409088))<0.00005),0,1)) -> 1 | E70: =IF(OR(NOT(ISNUMBER($R$70)),ISERROR($R$70)),1,IF(AND(LEN($R$70)>0,ABS((1-($R$70*-3.80956470966339+ 0.306607842445374)/-33.9794745445251))<0.00005),0,1)) -> 1 | F70: =IF(OR(NOT(ISNUMBER($S$70)),ISERROR($S$70)),1,IF(AND(LEN($S$70)>0,ABS((1-($S$70*-2.81048476696014+ 0.494310617446899)/-24.8000522851944))<0.00005),0,1)) -> 1 | G70: =IF(OR(NOT(ISNUMBER($T$70)),ISERROR($T$70)),1,IF(AND(LEN($T$70)>0,ABS((1-($T$70*-1.81437075138092+-0.167682766914368)/-16.4970195293427))<0.00005),0,1)) -> 1 | H70: =IF(OR(NOT(ISNUMBER($U$70)),ISERROR($U$70)),1,IF(AND(LEN($U$70)>0,ABS((1-($U$70* 0.190206170082092+ 0.212511539459229)/ 1.92436707019806))<0.00005),0,1)) -> 1 | I70: =IF(OR(NOT(ISNUMBER($V$70)),ISERROR($V$70)),1,IF(AND(LEN($V$70)>0,ABS((1-($V$70* 0.587355494499207+ 0.177473187446594)/ 6.63838362693787))<0.00005),0,1)) -> 1 | L70: Number staff - class B | M70: [#]
W71: Index
A72: =SUM($A$73:$I$84) -> 45 | K72: 4 | L72: Resource costs
L74: Calculate the cost of staff - both per-person and collectively. Bear in mind that staff salaries escalate in the first period of each new year. Also calculate the total staff costs for each year. The total should be reported only in the last period in each year - other periods should show zero for the staff cost.
A77: =IF(OR(NOT(ISNUMBER($N$77)),ISERROR($N$77)),1,IF(AND(LEN($N$77)>0,ABS((1-($N$77* 0.365312695503235+ 0.251044034957886)/ 29.4760596752167))<0.00005),0,1)) -> 1 | B77: =IF(OR(NOT(ISNUMBER($O$77)),ISERROR($O$77)),1,IF(AND(LEN($O$77)>0,ABS((1-($O$77*-0.80055296421051+-0.0865741968154907)/-64.1308113336563))<0.00005),0,1)) -> 1 | C77: =IF(OR(NOT(ISNUMBER($P$77)),ISERROR($P$77)),1,IF(AND(LEN($P$77)>0,ABS((1-($P$77* 1.19933187961578+ 0.377058982849121)/ 105.918264389038))<0.00005),0,1)) -> 1 | D77: =IF(OR(NOT(ISNUMBER($Q$77)),ISERROR($Q$77)),1,IF(AND(LEN($Q$77)>0,ABS((1-($Q$77*-3.36762249469757+-0.430467009544373)/-296.781246542931))<0.00005),0,1)) -> 1 | E77: =IF(OR(NOT(ISNUMBER($R$77)),ISERROR($R$77)),1,IF(AND(LEN($R$77)>0,ABS((1-($R$77*-2.56347358226776+-0.0202224254608154)/-248.16446518898))<0.00005),0,1)) -> 1 | F77: =IF(OR(NOT(ISNUMBER($S$77)),ISERROR($S$77)),1,IF(AND(LEN($S$77)>0,ABS((1-($S$77*-3.16548883914948+ 0.273785471916199)/-306.145534157752))<0.00005),0,1)) -> 1 | G77: =IF(OR(NOT(ISNUMBER($T$77)),ISERROR($T$77)),1,IF(AND(LEN($T$77)>0,ABS((1-($T$77*-4.13782536983489+-0.163883686065674)/-440.759529066086))<0.00005),0,1)) -> 1 | H77: =IF(OR(NOT(ISNUMBER($U$77)),ISERROR($U$77)),1,IF(AND(LEN($U$77)>0,ABS((1-($U$77* 2.12335288524628+-0.356568217277527)/ 225.738047003746))<0.00005),0,1)) -> 1 | I77: =IF(OR(NOT(ISNUMBER($V$77)),ISERROR($V$77)),1,IF(AND(LEN($V$77)>0,ABS((1-($V$77*-1.41617953777313+ 0.126312017440796)/-165.747964882851))<0.00005),0,1)) -> 1 | L77: Cost per staff - class A | M77: [$ 000's/yr]
